Workbook

Sheet Resource Options
C1: Avista 2021 IRP Resource Assumptions
B6: Short Description | C6: Long Description | D6: Technology | E6: Type | F6: Ownership (Utility or PPA) | G6: First Year Available | H6: Modeled Plant Total Units | I6: Unit Size (MW) (59F) | J6: Plant Size (MW) (59F) | K6: Storage (MWh) | L6: Capital Cost Excludes AFUDC ($mill) | M6: Capital Cost Excludes AFUDC (2020$/kW) | N6: Transmission | O6: Winter Capacity (%) (9F) | P6: Summer Capacity (%) (93F) | Q6: Fixed O&M (2020$/kW/Yr) | R6: Variable Costs (2020$/MWh) | S6: Net HHV Heat Rate(s) (Btu/kWh) | T6: Net HHV DF Heat Rate(s) (Btu/kWh) | U6: Net HHV Total Heat Rate(s) (Btu/kWh) | V6: Availability/CF (%) | W6: Round Trip Efficiency | X6: Technology Improvement (%) | Y6: Forced Outage (%) | Z6: Annual Avg Maintenance (days) | AA6: Net Degradation Per Year (%) | AB6: CO2 (lbs/mmbtu) | AC6: Federal Incentives | AD6: Development (Yrs) | AE6: Tax Depreciation Life | AF6: Book Depreciation Life | AG6: Lifecycle GHG Emissions (g CO2eq/kWh) | AH6: Source
A7: =ROW() -> 7 | B7: Advanced Small Frame CT | C7: GE- 7E.03 Simple Cycle | D7: Frame SC | E7: Brownfield | F7: Utility | G7: 2023 | H7: 1 | I7: 83.9 | J7: =H7*I7 -> 83.9 | K7: n/a | L7: 87.275 | M7: =L7/J7*1000 -> 1040.22646 | N7: 0 | O7: 114.2857143 | P7: 88.0952381 | Q7: 4.8 | R7: 4 | S7: 11352 | T7: n/a | U7: =S7 -> 11352 | V7: =100-Y7-(Z7/365*100) -> 93.16438356 | W7: n/a | X7: 0.005 | Y7: 3 | Z7: 14 | AA7: 0 | AB7: 117 | AC7: n/a | AD7: 3 | AE7: 20 | AF7: 30 | AH7: Avista (2020 $)
A8: =ROW() -> 8 | B8: Frame/Aero Hybrid CT | C8: GE-LMS100PB Wet Intercooler DLN | D8: Advanced Aero SC | E8: Brownfield | F8: Utility | G8: 2023 | H8: 1 | I8: 91.5 | J8: 92 | K8: n/a | L8: 100.953 | M8: 1097.315217 | N8: 0 | O8: 101.6 | P8: 90.4 | Q8: 4.4 | R8: 4 | S8: 8956 | T8: n/a | U8: 8956 | V8: =100-Y8-(Z8/365*100) -> 93.16438356 | W8: n/a | X8: 0.005 | Y8: 3 | Z8: 14 | AA8: 0 | AB8: 117 | AC8: n/a | AD8: 3 | AE8: 20 | AF8: 30 | AH8: Avista (2020 $)
A9: =ROW() -> 9 | B9: Large Reciprocating Engine Facility | C9: 10X Wartsila 18V50SG-B | D9: NG Recip | E9: Greenfield | F9: Utility | G9: 2023 | H9: 10 | I9: 18.4222 | J9: =H9*I9 -> 184.222 | K9: n/a | L9: 210.874 | M9: 1144.673275 | N9: 0 | O9: 100 | P9: 100 | Q9: 4.3 | R9: 5 | S9: 8382 | T9: n/a | U9: 8382 | V9: =100-Y9-(Z9/365*100) -> 93.16438356 | W9: n/a | X9: 0.005 | Y9: 3 | Z9: 14 | AA9: 0 | AB9: 117 | AC9: n/a | AD9: 3 | AE9: 20 | AF9: 30 | AH9: Avista (2020 $)
A10: =ROW() -> 10 | B10: Small Reciprocating Engine Facility (Option 2) | C10: Jenbacher 920 | D10: NG Recip | E10: Greenfield | F10: Utility | G10: 2023 | H10: 10 | I10: 9.14 | J10: 91.4 | K10: n/a | L10: 121.823 | M10: 1332.85558 | N10: 0 | O10: 100 | P10: 100 | Q10: 8.8 | R10: 7 | S10: 8146 | T10: n/a | U10: 8146 | V10: 93.16438356 | W10: n/a | X10: 0.005 | Y10: 3 | Z10: 14 | AA10: 0 | AB10: 117 | AC10: n/a | AD10: 3 | AE10: 20 | AF10: 30 | AH10: Avista (2020 $)
A11: =ROW() -> 11 | B11: Modern Small Frame CT | C11: Siemens- SGT-800-57 | D11: Frame SC | E11: Brownfield | F11: Utility | G11: 2023 | H11: 1 | I11: 50.7 | J11: 50.7 | K11: n/a | L11: 57.645 | M11: 1136.982249 | N11: 0 | O11: 110.4 | P11: 90.2 | Q11: 7.9 | R11: 5 | S11: 9817 | T11: n/a | U11: 9817 | V11: 93.16438356 | W11: n/a | X11: 0.005 | Y11: 3 | Z11: 14 | AA11: 0 | AB11: 117 | AC11: n/a | AD11: 3 | AE11: 20 | AF11: 30 | AH11: Avista (2020 $)
A12: =ROW() -> 12 | B12: Aero CT option 2 | C12: GE- LM6000- PF Sprint | D12: Aero SS | E12: Brownfield | F12: Utility | G12: 2023 | H12: 1 | I12: 44.2 | J12: 44.2 | K12: n/a | L12: 58.307 | M12: 1319.162896 | N12: 0 | O12: 110.5 | P12: 84.7 | Q12: 9.1 | R12: 5 | S12: 9512 | T12: n/a | U12: 9512 | V12: 93.16438356 | W12: n/a | X12: 0.005 | Y12: 3 | Z12: 14 | AA12: 0 | AB12: 117 | AC12: n/a | AD12: 3 | AE12: 20 | AF12: 30 | AH12: Avista (2020 $)
A13: =ROW() -> 13 | B13: 1 on 1 Large CCCT option 2 | C13: Siemens- SGT6-9000HL CCCT | D13: 1 on 1 CC | E13: Greenfield | F13: Utility | G13: 2023 | H13: 1 | I13: 586.5 | J13: 586.5 | K13: n/a | L13: 476.782 | M13: 812.9275362 | N13: 0 | O13: 104.8 | P13: 91.2317254 | Q13: 13.6 | R13: 3.5 | S13: 6411 | T13: 7414 | U13: 6549 | V13: 93.16438356 | W13: n/a | X13: 0.005 | Y13: 3 | Z13: 14 | AA13: 0 | AB13: 117 | AC13: n/a | AD13: 4 | AE13: 20 | AF13: 30 | AH13: Avista (2020 $)
A14: =ROW() -> 14 | B14: 1 on 1 modern CCCT | C14: GE - 7F.04 One on One | D14: 1 on 1 CC | E14: Greenfield | F14: Utility | G14: 2023 | H14: 1 | I14: 311.3 | J14: 311.3 | K14: n/a | L14: 326.229 | M14: 1047.956955 | N14: 0 | O14: 105.8 | P14: 91.2 | Q14: 25.7 | R14: 4 | S14: 6765 | T14: 7500 | U14: 6819 | V14: 93.16438356 | W14: n/a | X14: 0.005 | Y14: 3 | Z14: 14 | AA14: 0 | AB14: 117 | AC14: n/a | AD14: 4 | AE14: 20 | AF14: 30 | AH14: Avista (2020 $)
A15: =ROW() -> 15 | B15: 3 x 2 small CCCT | C15: Siemens- SGT-800 3 on 2 | D15: 3 on 2 CC | E15: Greenfield | F15: Utility | G15: 2023 | H15: 1 | I15: 249.1 | J15: 249.1 | K15: n/a | L15: 361.824 | M15: 1452.52509 | N15: 0 | O15: 107 | P15: 91.4 | Q15: 32.1 | R15: 5 | S15: 6779 | T15: 8334 | U15: 6957 | V15: 93.16438356 | W15: n/a | X15: 0.005 | Y15: 3 | Z15: 14 | AA15: 0 | AB15: 117 | AC15: n/a | AD15: 4 | AE15: 20 | AF15: 30 | AH15: Avista (2020 $)
A16: =ROW() -> 16 | B16: Small Nuclear (share) | C16: Small Modular Reactor (share) | D16: Nuclear | E16: Greenfield | F16: PPA | G16: 2027 | H16: 1 | I16: 100 | J16: 100 | K16: n/a | L16: =M16*J16/1000 -> 454.3959064 | M16: =3108068/684 -> 4543.959064 | N16: BPA | O16: 100 | P16: 100 | Q16: 135 | R16: 0.75 | S16: 10450 | T16: n/a | U16: 10450 | V16: 95.6 | W16: n/a | X16: 0 | Y16: 3 | Z16: 5 | AA16: 0 | AB16: 0 | AC16: PTC- 2021 | AD16: 6 | AE16: 20 | AF16: 40 | AG16: 10 | AH16: B&V 2019
A17: =ROW() -> 17 | B17: NW Wind On System | C17: NW Wind On System (Share) | D17: Wind | E17: Greenfield | F17: PPA | G17: 2023 | H17: n/a | I17: n/a | J17: 100 | K17: n/a | L17: 130 | M17: 1300 | N17: 0 | O17: n/a | P17: n/a | Q17: =(28+36.5)/2 -> 32.25 | R17: 0 | S17: n/a | T17: n/a | U17: n/a | V17: 34 | W17: n/a | X17: 0.003 | Y17: n/a | Z17: n/a | AA17: 0 | AB17: 0 | AC17: PTC online- 2020: 100%,80%,60%,40% | AD17: 2 | AE17: 5 | AF17: 20 | AG17: 10 | AH17: Lazard 2019 Midpoint
A18: =ROW() -> 18 | B18: NW Wind Off System | C18: NW Wind Off System | D18: Wind | E18: Greenfield | F18: PPA | G18: 2023 | H18: n/a | I18: n/a | J18: 100 | K18: n/a | L18: 126.8292683 | M18: =M17/1.025 -> 1268.292683 | N18: BPA | O18: n/a | P18: n/a | Q18: =(28+36.5)/2 -> 32.25 | R18: 0 | S18: n/a | T18: n/a | U18: n/a | V18: 35 | W18: n/a | X18: 0.003 | Y18: n/a | Z18: n/a | AA18: 0 | AB18: 0 | AC18: =AC17 -> PTC online- 2020: 100%,80%,60%,40% | AD18: 2 | AE18: 5 | AF18: 20 | AG18: 10 | AH18: Lazard 2019 Midpoint
A19: =ROW() -> 19 | B19: Wind Montana | C19: Wind Montana | D19: Wind | E19: Greenfield | F19: PPA | G19: 2023 | H19: n/a | I19: n/a | J19: 100 | K19: n/a | L19: 126.8292683 | M19: =M18 -> 1268.292683 | N19: NWE | O19: n/a | P19: n/a | Q19: =(28+36.5)/2 -> 32.25 | R19: 0.15 | S19: n/a | T19: n/a | U19: n/a | V19: 44.5 | W19: n/a | X19: 0.003 | Y19: n/a | Z19: n/a | AA19: 0 | AB19: 0 | AC19: =AC17 -> PTC online- 2020: 100%,80%,60%,40% | AD19: 2 | AE19: 5 | AF19: 20 | AG19: 10 | AH19: Lazard 2019 Midpoint
A20: =ROW() -> 20 | B20: Off Shore Wind (Share) | C20: Off Shore Wind (Share) | D20: Wind | E20: Greenfield | F20: PPA | G20: 2023 | H20: n/a | I20: n/a | J20: 100 | K20: n/a | L20: 295 | M20: 2950 | N20: BPA | O20: n/a | P20: n/a | Q20: 95 | R20: 0 | S20: n/a | T20: n/a | U20: n/a | V20: 55 | W20: n/a | X20: 0.003 | Y20: n/a | Z20: n/a | AA20: 0 | AB20: 0 | AC20: =AC18 -> PTC online- 2020: 100%,80%,60%,40% | AD20: 2 | AE20: 5 | AF20: 20 | AG20: 11 | AH20: Lazard 2019 Midpoint
A21: =ROW() -> 21 | B21: Solar Photovoltaic Fixed Array (5 MW AC) | C21: Solar Photovoltaic Fixed Array (5 MW AC) | D21: Solar | E21: Greenfield | F21: PPA | G21: 2023 | H21: n/a | I21: n/a | J21: 5 | K21: n/a | L21: 9.625 | M21: 1925 | N21: 0 | O21: n/a | P21: n/a | Q21: 14 | R21: 0 | S21: n/a | T21: n/a | U21: n/a | V21: 25 | W21: n/a | X21: 0.003 | Y21: n/a | Z21: n/a | AA21: 0.005 | AB21: 0 | AC21: 30% ITC through 2023, 10% thereafter | AD21: 1 | AE21: 5 | AF21: 25 | AG21: 49 | AH21: Lazard 2019 Midpoint
A22: =ROW() -> 22 | B22: Solar Photovoltaic w/ Single Axis Tracking (100 MW AC) | C22: Solar Photovoltaic w/ Single Axis Tracking (100 MW AC) | D22: Solar | E22: Greenfield | F22: PPA | G22: 2023 | H22: n/a | I22: n/a | J22: 100 | K22: n/a | L22: 100 | M22: 1000 | N22: 0 | O22: n/a | P22: n/a | Q22: 10.5 | R22: 0 | S22: n/a | T22: n/a | U22: n/a | V22: 27 | W22: n/a | X22: 0.003 | Y22: n/a | Z22: n/a | AA22: 0.005 | AB22: 0 | AC22: 30% ITC through 2023, 10% thereafter | AD22: 1 | AE22: 5 | AF22: 25 | AG22: 49 | AH22: Lazard 2019 Midpoint
A23: =ROW() -> 23 | B23: Southern NW Solar Photovoltaic w/ Single Axis Tracking (100 MW AC) | C23: Southern NW Solar Photovoltaic w/ Single Axis Tracking (100 MW AC) | D23: Solar | E23: Greenfield | F23: PPA | G23: 2023 | H23: n/a | I23: n/a | J23: 100 | K23: n/a | L23: 100 | M23: 1000 | N23: BPA | O23: n/a | P23: n/a | Q23: 10.5 | R23: 0 | S23: n/a | T23: n/a | U23: n/a | V23: 30 | W23: n/a | X23: 0.003 | Y23: n/a | Z23: n/a | AA23: 0.005 | AB23: 0 | AC23: 30% ITC through 2023, 10% thereafter | AD23: 1 | AE23: 5 | AF23: 25 | AG23: 49 | AH23: Lazard 2019 Midpoint
A24: =ROW() -> 24 | B24: Solar Photovoltiac 4 hr | C24: Solar Photovoltaic w/ Single Axis Tracking (100 MW AC w/ 100 MW/400 MWh Lithium-ion) - Battery only | D24: Storage | E24: Greenfield | F24: PPA | G24: 2023 | H24: n/a | I24: n/a | J24: 100 | K24: 400 | L24: 128.8 | M24: 1288 | N24: 0 | O24: n/a | P24: n/a | Q24: 10 | R24: 0 | S24: n/a | T24: n/a | U24: n/a | V24: 27 | W24: n/a | X24: 0.003 | Y24: n/a | Z24: n/a | AA24: 0.005 | AB24: 0 | AC24: 30% ITC through 2023, 10% thereafter | AD24: 1 | AE24: 5 | AF24: 20 | AG24: 49 | AH24: Lazard 2019 Midpoint
A25: =ROW() -> 25 | B25: Solar Photovoltiac 2 hr | C25: Solar Photovoltaic w/ Single Axis Tracking (100 MW AC w/ 100 MW/200 MWh Lithium-ion) - Battery only | D25: Storage | E25: Greenfield | F25: PPA | G25: 2023 | H25: n/a | I25: n/a | J25: 100 | K25: 200 | L25: 94.1 | M25: 941 | N25: 0 | O25: n/a | P25: n/a | Q25: 10 | R25: 0 | S25: n/a | T25: n/a | U25: n/a | V25: 27 | W25: n/a | X25: 0.003 | Y25: n/a | Z25: n/a | AA25: 0.005 | AB25: 0 | AC25: 30% ITC through 2023, 10% thereafter | AD25: 1 | AE25: 5 | AF25: 20 | AG25: 49 | AH25: Lazard 2019 Midpoint
A26: =ROW() -> 26 | B26: Solar Photovoltiac 2 hr | C26: Solar Photovoltaic w/ Single Axis Tracking (100 MW AC w/ 50 MW/100 MWh Lithium-ion) - Battery only | D26: Storage | E26: Greenfield | F26: PPA | G26: 2023 | H26: n/a | I26: n/a | J26: 50 | K26: 100 | L26: 47.05 | M26: 941 | N26: 0 | O26: n/a | P26: n/a | Q26: 10 | R26: 0 | S26: n/a | T26: n/a | U26: n/a | V26: 27 | W26: n/a | X26: 0.003 | Y26: n/a | Z26: n/a | AA26: 0.005 | AB26: 0 | AC26: 30% ITC through 2023, 10% thereafter | AD26: 1 | AE26: 5 | AF26: 20 | AG26: 49 | AH26: Lazard 2019 Midpoint
A27: =ROW() -> 27 | B27: Geothermal | C27: Geothermal (Off System) | D27: Geothermal | E27: Greenfield | F27: PPA | G27: 2026 | H27: n/a | I27: n/a | J27: 20 | K27: n/a | L27: =M27*J27/1000 -> 70 | M27: 3500 | N27: BPA | O27: 100 | P27: 100 | Q27: 0 | R27: 31.04 | S27: n/a | T27: n/a | U27: n/a | V27: =100-Y27-(Z27/365*100) -> 90.08219178 | W27: n/a | X27: 0 | Y27: 8 | Z27: 7 | AA27: 0.01 | AB27: 0 | AC27: n/a | AD27: 4 | AE27: 5 | AF27: 25 | AG27: 40 | AH27: B&V 2019
A28: =ROW() -> 28 | B28: Distribution Scale 4hr Lithium-Ion | C28: Distribution Scale 4hr Lithium-Ion | D28: Storage | E28: Greenfield | F28: Utility | G28: 2020 | H28: n/a | I28: n/a | J28: 5 | K28: 20 | L28: 7.44 | M28: 1488 | N28: 0 | O28: TBD | P28: TBD | Q28: 54 | R28: 0 | S28: n/a | T28: n/a | U28: n/a | V28: n/a | W28: 0.88 | X28: varies | Y28: 2 | Z28: n/a | AA28: varies | AB28: TBD | AC28: n/a | AD28: 1 | AE28: 7 | AF28: 10
A29: =ROW() -> 29 | B29: Distribution Scale 8hr Lithium-Ion | C29: Distribution Scale 8hr Lithium-Ion | D29: Storage | E29: Greenfield | F29: Utility | G29: 2020 | H29: n/a | I29: n/a | J29: 5 | K29: 40 | L29: 14.575 | M29: 2915 | N29: 0 | O29: TBD | P29: TBD | Q29: 106 | R29: 0 | S29: n/a | T29: n/a | U29: n/a | V29: n/a | W29: 0.88 | X29: varies | Y29: 2 | Z29: n/a | AA29: varies | AB29: TBD | AC29: n/a | AD29: 1 | AE29: 7 | AF29: 10
A30: =ROW() -> 30 | B30: 4hr Lithium-Ion | C30: 4hr Lithium-Ion | D30: Storage | E30: Greenfield | F30: Utility | G30: 2023 | H30: n/a | I30: n/a | J30: 25 | K30: 100 | L30: 34.65 | M30: =(898+1874)/2 -> 1386 | N30: 0 | O30: n/a | P30: n/a | Q30: =M30*0.035 -> 48.51 | R30: 0 | S30: n/a | T30: n/a | U30: n/a | V30: n/a | W30: 0.85 | X30: varies | Y30: 2 | Z30: n/a | AA30: varies | AB30: n/a | AC30: n/a | AD30: 1 | AE30: 7 | AF30: 10
A31: =ROW() -> 31 | B31: 8hr Lithium-Ion | C31: 8hr Lithium-Ion | D31: Storage | E31: Greenfield | F31: Utility | G31: 2023 | H31: n/a | I31: n/a | J31: 25 | K31: 200 | L31: 63.756 | M31: =M30*1.84 -> 2550.24 | N31: 0 | O31: n/a | P31: n/a | Q31: =M31*0.035 -> 89.2584 | R31: 0 | S31: n/a | T31: n/a | U31: n/a | V31: n/a | W31: 0.85 | X31: varies | Y31: 2 | Z31: n/a | AA31: varies | AB31: n/a | AC31: n/a | AD31: 1 | AE31: 7 | AF31: 10
A32: =ROW() -> 32 | B32: 16hr Lithium-Ion | C32: 16hr Lithium-Ion | D32: Storage | E32: Greenfield | F32: Utility | G32: 2023 | H32: n/a | I32: n/a | J32: 25 | K32: 400 | L32: 110.88 | M32: =M30*3.2 -> 4435.2 | N32: 0 | O32: n/a | P32: n/a | Q32: =M32*0.035 -> 155.232 | R32: 0 | S32: n/a | T32: n/a | U32: n/a | V32: n/a | W32: 0.85 | X32: varies | Y32: 2 | Z32: n/a | AA32: varies | AB32: n/a | AC32: n/a | AD32: 1 | AE32: 7 | AF32: 10
A33: =ROW() -> 33 | B33: 4 hr Vanadium Flow Battery | C33: 4 hr Vanadium Flow Battery | D33: Storage | E33: Greenfield | F33: Utility | G33: 2023 | H33: n/a | I33: n/a | J33: 25 | K33: 100 | L33: 40.822 | M33: =((408.22)*4) -> 1632.88 | N33: 0 | O33: n/a | P33: n/a | Q33: =M33*0.035 -> 57.1508 | R33: 0 | S33: n/a | T33: n/a | U33: n/a | V33: n/a | W33: 0.7 | X33: varies | Y33: 2 | Z33: n/a | AA33: 0 | AB33: n/a | AC33: n/a | AD33: 1 | AE33: 20 | AF33: 30
A34: =ROW() -> 34 | B34: 4 hr Zinc Bromide Flow Battery | C34: 4 hr Zinc Bromide Flow Battery | D34: Storage | E34: Greenfield | F34: Utility | G34: 2023 | H34: n/a | I34: n/a | J34: 25 | K34: 100 | L34: 45.925 | M34: =((459.25)*4) -> 1837 | N34: 0 | O34: n/a | P34: n/a | Q34: =M34*0.035 -> 64.295 | R34: 0 | S34: n/a | T34: n/a | U34: n/a | V34: n/a | W34: 0.67 | X34: varies | Y34: 2 | Z34: n/a | AA34: 0 | AB34: n/a | AC34: n/a | AD34: 1 | AE34: 20 | AF34: 30
A35: =ROW() -> 35 | B35: Hydrogen Fuel Cell with 40 hrs Storage | C35: Hydrogen Fuel Cell with 40 hrs Storage | D35: Hydrogen | E35: Greenfield | F35: Utility | G35: 2023 | H35: n/a | I35: n/a | J35: 25 | K35: =40*25 -> 1000 | L35: 133.9 | M35: =L35/J35*1000 -> 5356 | N35: 0 | O35: n/a | P35: n/a | Q35: =71438.84/447 -> 159.818434 | R35: 0 | S35: 5687 | T35: n/a | U35: 5687 | V35: =100-Y35-(Z35/365*100) -> 95.08219178 | W35: 0.41 | X35: 0 | Y35: 3 | Z35: 7 | AA35: 0.007 | AB35: 0 | AC35: n/a | AD35: 2 | AE35: 20 | AF35: 20
A36: =ROW() -> 36 | B36: Turbine Retrofit Hydrogen | C36: Hydrogen Gas Tubine with 40 hrs Storage | D36: Hydrogen | E36: Greenfield | F36: Utility | G36: 2023 | H36: 1 | I36: =I7 -> 83.9 | J36: =H36*I36 -> 83.9 | K36: =I36*40 -> 3356 | L36: 125 | M36: =L36/J36*1000 -> 1489.868892 | N36: =N7 -> 0 | O36: 114.2857143 | P36: 88.0952381 | Q36: 4.8 | R36: 4 | S36: 11352 | T36: n/a | U36: 11352 | V36: 93.16438356 | W36: n/a | X36: 0.005 | Y36: 3 | Z36: 14 | AA36: 0 | AB36: 117 | AC36: n/a | AD36: 3 | AE36: 20 | AF36: 30
A37: =ROW() -> 37 | B37: Liquid Air | C37: Liquid Air | D37: Storage | E37: Greenfield | F37: Utility | G37: 2023 | H37: n/a | I37: n/a | J37: 25 | K37: =J37*16 -> 400 | L37: =M37*J37/1000 -> 35.7195 | M37: 1428.78 | N37: 0 | O37: TBD | P37: TBD | Q37: 25.51 | R37: 3.06 | S37: n/a | T37: n/a | U37: n/a | V37: n/a | W37: 0.65 | X37: 0 | Y37: 2 | Z37: n/a | AA37: 0 | AB37: TBD | AC37: n/a | AD37: 2 | AE37: 20 | AF37: 30
A38: =ROW() -> 38 | B38: Pumped Hydro (16 hr/ 100 MW) | C38: Pumped Hydro (16 hr/ 100 MW) | D38: Storage | E38: Greenfield | F38: Utility | G38: 2025 | H38: n/a | I38: n/a | J38: 100 | K38: =J38*16 -> 1600 | L38: 297 | M38: 2970 | N38: Avista | O38: TBD | P38: TBD | Q38: 15.31 | R38: 0.51 | S38: n/a | T38: n/a | U38: n/a | V38: n/a | W38: 0.81 | X38: 0 | Y38: 2 | Z38: n/a | AA38: 0 | AB38: TBD | AC38: n/a | AD38: 6 | AE38: 20 | AF38: 50
A39: =ROW() -> 39 | B39: Pumped Hydro (24 hr/ 100 MW) | C39: Pumped Hyrdo (24 hr/ 100 MW) | D39: Storage | E39: Greenfield | F39: Utility | G39: 2025 | H39: n/a | I39: n/a | J39: 100 | K39: =J39*24 -> 2400 | L39: 310 | M39: 3100 | N39: Avista | O39: TBD | P39: TBD | Q39: 15.31 | R39: 0.51 | S39: n/a | T39: n/a | U39: n/a | V39: n/a | W39: 0.81 | X39: 0 | Y39: 2 | Z39: n/a | AA39: 0 | AB39: TBD | AC39: n/a | AD39: 6 | AE39: 20 | AF39: 50
A40: =ROW() -> 40 | B40: Pumped Hydro (70 hr/ 500MW share) | C40: Pumped Hydro (70 hr/ 500 MW share) | D40: Storage | E40: Greenfield | F40: Utility | G40: 2028 | H40: n/a | I40: n/a | J40: 500 | K40: =J40*70 -> 35000 | L40: 1400 | M40: =L40/J40*1000 -> 2800 | N40: BPA | O40: TBD | P40: TBD | Q40: 15.31 | R40: 0.51 | S40: n/a | T40: n/a | U40: n/a | V40: n/a | W40: 0.7 | X40: 0 | Y40: 2 | Z40: n/a | AA40: 0 | AB40: TBD | AC40: n/a | AD40: 6 | AE40: 20 | AF40: 50
A41: =ROW() -> 41 | B41: Pumped Hydro (8.5 hr/ 400 MW) | C41: Pumped Hydro (8.5 hr/ 400 MW share) | D41: Storage | E41: Greenfield | F41: Utility | G41: 2023 | H41: n/a | I41: n/a | J41: 400 | K41: =J41*8.5 -> 3400 | L41: 1100 | M41: =L41/J41*1000 -> 2750 | N41: Northwestern | O41: TBD | P41: TBD | Q41: 15.31 | R41: 0.51 | S41: n/a | T41: n/a | U41: n/a | V41: n/a | W41: 0.83 | X41: 0 | Y41: 2 | Z41: n/a | AA41: 0 | AB41: TBD | AC41: n/a | AD41: 2 | AE41: 20 | AF41: 50
A42: =ROW() -> 42 | B42: Pumped Hydro (12 hr/ 1200 MW share) | C42: Pumped Hydro (12 hr/ 1200 MW share) | D42: Storage | E42: Greenfield | F42: Utility | G42: 2029 | H42: n/a | I42: n/a | J42: 1200 | K42: =J42*12 -> 14400 | L42: 2200 | M42: =L42/J42*1000 -> 1833.333333 | N42: BPA | O42: TBD | P42: TBD | Q42: 15.31 | R42: 0.51 | S42: n/a | T42: n/a | U42: n/a | V42: n/a | W42: 0.81 | X42: 0 | Y42: 2 | Z42: n/a | AA42: 0 | AB42: TBD | AC42: n/a | AD42: 7 | AE42: 20 | AF42: 50 | AH42: National Grid/Rye
A43: =ROW() -> 43 | B43: Pumped Hydro (10 hr/ 400 MW) | C43: Pumped Hydro (10 hr/ 400 MW) | D43: Storage | E43: Greenfield | F43: Utility | G43: 2025 | H43: n/a | I43: n/a | J43: 400 | K43: =J43*10 -> 4000 | L43: 1200 | M43: =L43/J43*1000 -> 3000 | N43: PGE | O43: TBD | P43: TBD | Q43: 15.31 | R43: 0.51 | S43: n/a | T43: n/a | U43: n/a | V43: n/a | W43: 0.81 | X43: 0 | Y43: 2 | Z43: n/a | AA43: 0 | AB43: TBD | AC43: n/a | AD43: 4 | AE43: 20 | AF43: 50 | AH43: National Grid/Rye
A44: =ROW() -> 44 | B44: Wood Biomass | C44: Wood Biomass | D44: Wood Boiler | E44: Thermal Addition | F44: Utility | G44: 2026 | H44: n/a | I44: n/a | J44: 50 | K44: n/a | L44: 125 | M44: 2500 | N44: 0 | O44: 100 | P44: 100 | Q44: 26 | R44: 3.25 | S44: 13500 | T44: n/a | U44: 12000 | V44: 50 | W44: n/a | X44: 0 | Y44: n/a | Z44: n/a | AA44: 0 | AB44: 0 | AC44: n/a | AD44: 4 | AE44: 20 | AF44: 20
A45: =ROW() -> 45 | B45: Rathdrum Supplemental Compression - 2 unit operation | C45: Rathdrum Supplemental Compression to CT | D45: Existing CT Upgrade | E45: Thermal Upgrade | F45: Utility | G45: 2023 | H45: n/a | I45: n/a | J45: 24 | K45: n/a | L45: 17.66 | M45: =L45/J45*1000 -> 735.8333333 | N45: 0 | O45: 100 | P45: 100 | Q45: 4.08 | R45: 2.55 | S45: 11650 | T45: n/a | U45: 11650 | V45: 91.32420091 | W45: n/a | X45: 0 | Y45: n/a | Z45: n/a | AA45: 0 | AB45: 117 | AC45: n/a | AD45: 1 | AE45: 20 | AF45: 20
A46: =ROW() -> 46 | B46: Rathdrum CT 2055 Uprates - 2 unit operation | C46: Rathdrum CT 2055 Uprates two unit operation | D46: Existing CT Upgrade | E46: Thermal Upgrade | F46: Utility | G46: 2023 | H46: n/a | I46: n/a | J46: 5 | K46: n/a | L46: 4.2 | M46: =L46/J46*1000 -> 840 | N46: 0 | O46: 100 | P46: 100 | Q46: 0 | R46: 2.55 | S46: 11750 | T46: n/a | U46: 11750 | V46: 91.32420091 | W46: n/a | X46: 0 | Y46: n/a | Z46: n/a | AA46: 0 | AB46: 117 | AC46: n/a | AD46: 1 | AE46: 20 | AF46: 20
A47: =ROW() -> 47 | B47: Rathdrum CT: Inlet Evaporation - 2 unit operation | C47: Rathdrum CT: Inlet Evaporation 2 unit operation | D47: Inlet Evap | E47: Thermal Upgrade | F47: Utility | G47: 2025 | H47: n/a | I47: n/a | J47: 4.316 | K47: n/a | L47: 1.06 | M47: =L47/J47*1000 -> 245.5977757 | N47: 0 | O47: 0 | P47: 402.5949954 | Q47: 2.04 | R47: 0.92 | S47: 11950 | T47: n/a | U47: 11950 | V47: 91.32420091 | W47: n/a | X47: 0 | Y47: n/a | Z47: n/a | AA47: 0 | AB47: 117 | AC47: n/a | AD47: 1 | AE47: 20 | AF47: 20
A48: =ROW() -> 48 | B48: Kettle Falls Turbine Generator Upgrade | C48: Kettle Falls Turbine Generator Upgrade | D48: Plant Re Power | E48: Thermal Upgrade | F48: Utility | G48: 2025 | H48: n/a | I48: n/a | J48: 12 | K48: n/a | L48: 16.43 | M48: =L48/J48*1000 -> 1369.166667 | N48: 0 | O48: 100 | P48: 100 | Q48: 0 | R48: 0 | S48: 13050 | T48: n/a | U48: 13050 | V48: 83.33333333 | W48: n/a | X48: 0 | Y48: n/a | Z48: n/a | AA48: 0 | AB48: 0 | AC48: n/a | AD48: 1 | AE48: 20 | AF48: 20
A49: =ROW() -> 49 | B49: Long Lake 2nd Powerhouse | C49: Long Lake 2nd Powerhouse | D49: 2nd Power House | E49: Hydro Upgrade | F49: Utility | G49: 2023 | H49: n/a | I49: n/a | J49: 68 | K49: n/a | L49: =J49*M49/1000 -> 161.48844 | M49: 2374.83 | N49: 0 | O49: 100 | P49: 100 | Q49: 8.98 | R49: 0 | S49: n/a | T49: n/a | U49: n/a | V49: 34 | W49: n/a | X49: 0 | Y49: n/a | Z49: n/a | AA49: 0 | AB49: 0 | AC49: n/a | AD49: 5 | AE49: 20 | AF49: 50 | AG49: 8
A50: =ROW() -> 50 | B50: Cabinet Gorge 2nd Powerhouse | C50: Cabinet Gorge 2nd Powerhouse | D50: 2nd Power House | E50: Hydro Upgrade | F50: Utility | G50: 2023 | H50: n/a | I50: n/a | J50: 110 | K50: n/a | L50: =J50*M50/1000 -> 255.1692 | M50: 2319.72 | N50: 0 | O50: 0 | P50: 0 | Q50: 0 | R50: 0 | S50: n/a | T50: n/a | U50: n/a | V50: 16.8 | W50: n/a | X50: 0 | Y50: n/a | Z50: n/a | AA50: 0 | AB50: 0 | AC50: n/a | AD50: 5 | AE50: 20 | AF50: 50 | AG50: 8

Sheet Levelized Cost Summary
D1: PPA Price/ Implied Energy Payment $/MWh | AC1: PPA Price/ Implied Capacity Payment $/kW-Yr
A2: Type | B2: Item | C2: Size (MW) | D2: 2022 | E2: 2023 | F2: 2024 | G2: 2025 | H2: 2026 | I2: 2027 | J2: 2028 | K2: 2029 | L2: 2030 | M2: 2031 | N2: 2032 | O2: 2033 | P2: 2034 | Q2: 2035 | R2: 2036 | S2: 2037 | T2: 2038 | U2: 2039 | V2: 2040 | W2: 2041 | X2: 2042 | Y2: 2043 | Z2: 2044 | AA2: 2045 | AC2: 2022 | AD2: 2023 | AE2: 2024 | AF2: 2025 | AG2: 2026 | AH2: 2027 | AI2: 2028 | AJ2: 2029 | AK2: 2030 | AL2: 2031 | AM2: 2032 | AN2: 2033 | AO2: 2034 | AP2: 2035 | AQ2: 2036 | AR2: 2037 | AS2: 2038 | AT2: 2039 | AU2: 2040 | AV2: 2041 | AW2: 2042 | AX2: 2043 | AY2: 2044 | AZ2: 2045
A3: NG Peaker | B3: ID_10X Wartsila 18V50SG-B | C3: 55.2 | D3: 0 | E3: 0 | F3: 0 | G3: 0 | H3: 0 | I3: 0 | J3: 0 | K3: 0 | L3: 0 | M3: 0 | N3: 0 | O3: 0 | P3: 0 | Q3: 0 | R3: 0 | S3: 0 | T3: 0 | U3: 0 | V3: 0 | W3: 0 | X3: 0 | Y3: 0 | Z3: 0 | AA3: 0 | AC3: ='ID Fuel Gen'!$C$108 -> 142.4804306 | AD3: ='ID Fuel Gen'!$Z$108 -> 144.6300259 | AE3: ='ID Fuel Gen'!$AW$108 -> 146.8121829 | AF3: ='ID Fuel Gen'!$BT$108 -> 149.0273974 | AG3: ='ID Fuel Gen'!$CQ$108 -> 151.2761729 | AH3: ='ID Fuel Gen'!$DN$108 -> 153.5590205 | AI3: ='ID Fuel Gen'!$EK$108 -> 155.8764592 | AJ3: ='ID Fuel Gen'!$FH$108 -> 158.2290158 | AK3: ='ID Fuel Gen'!$GE$108 -> 160.6172256 | AL3: ='ID Fuel Gen'!$HB$108 -> 163.0416316 | AM3: ='ID Fuel Gen'!$HY$108 -> 165.5027854 | AN3: ='ID Fuel Gen'!$IV$108 -> 168.0012471 | AO3: ='ID Fuel Gen'!$JS$108 -> 170.5375853 | AP3: ='ID Fuel Gen'!$KP$108 -> 173.1123773 | AQ3: ='ID Fuel Gen'!$LM$108 -> 175.7262094 | AR3: ='ID Fuel Gen'!$MJ$108 -> 178.3796767 | AS3: ='ID Fuel Gen'!$NG$108 -> 181.0733836 | AT3: ='ID Fuel Gen'!$OD$108 -> 183.8079437 | AU3: ='ID Fuel Gen'!$PA$108 -> 186.5839801 | AV3: ='ID Fuel Gen'!$PX$108 -> 189.4021254 | AW3: ='ID Fuel Gen'!$QU$108 -> 192.263022 | AX3: ='ID Fuel Gen'!$RR$108 -> 195.167322 | AY3: ='ID Fuel Gen'!$SO$108 -> 198.1156877 | AZ3: ='ID Fuel Gen'!$TL$108 -> 201.1087915
A4: NG Peaker | B4: ID_Jenbacher 920 | C4: 36.4 | D4: 0 | E4: 0 | F4: 0 | G4: 0 | H4: 0 | I4: 0 | J4: 0 | K4: 0 | L4: 0 | M4: 0 | N4: 0 | O4: 0 | P4: 0 | Q4: 0 | R4: 0 | S4: 0 | T4: 0 | U4: 0 | V4: 0 | W4: 0 | X4: 0 | Y4: 0 | Z4: 0 | AA4: 0 | AC4: ='ID Fuel Gen'!$C$144 -> 170.5111709 | AD4: ='ID Fuel Gen'!$Z$144 -> 173.1063 | AE4: ='ID Fuel Gen'!$AW$144 -> 175.7411868 | AF4: ='ID Fuel Gen'!$BT$144 -> 178.4164455 | AG4: ='ID Fuel Gen'!$CQ$144 -> 181.1326998 | AH4: ='ID Fuel Gen'!$DN$144 -> 183.8905833 | AI4: ='ID Fuel Gen'!$EK$144 -> 186.6907394 | AJ4: ='ID Fuel Gen'!$FH$144 -> 189.5338215 | AK4: ='ID Fuel Gen'!$GE$144 -> 192.4204933 | AL4: ='ID Fuel Gen'!$HB$144 -> 195.351429 | AM4: ='ID Fuel Gen'!$HY$144 -> 198.327313 | AN4: ='ID Fuel Gen'!$IV$144 -> 201.3488406 | AO4: ='ID Fuel Gen'!$JS$144 -> 204.4167179 | AP4: ='ID Fuel Gen'!$KP$144 -> 207.5316623 | AQ4: ='ID Fuel Gen'!$LM$144 -> 210.694402 | AR4: ='ID Fuel Gen'!$MJ$144 -> 213.9056769 | AS4: ='ID Fuel Gen'!$NG$144 -> 217.1662384 | AT4: ='ID Fuel Gen'!$OD$144 -> 220.4768495 | AU4: ='ID Fuel Gen'!$PA$144 -> 223.8382855 | AV4: ='ID Fuel Gen'!$PX$144 -> 227.2513334 | AW4: ='ID Fuel Gen'!$QU$144 -> 230.716793 | AX4: ='ID Fuel Gen'!$RR$144 -> 234.2354761 | AY4: ='ID Fuel Gen'!$SO$144 -> 237.8082078 | AZ4: ='ID Fuel Gen'!$TL$144 -> 241.4358255
A5: NG Peaker | B5: ID_GE- 7E.03 Simple Cycle | C5: 84 | D5: 0 | E5: 0 | F5: 0 | G5: 0 | H5: 0 | I5: 0 | J5: 0 | K5: 0 | L5: 0 | M5: 0 | N5: 0 | O5: 0 | P5: 0 | Q5: 0 | R5: 0 | S5: 0 | T5: 0 | U5: 0 | V5: 0 | W5: 0 | X5: 0 | Y5: 0 | Z5: 0 | AA5: 0 | AC5: ='ID Fuel Gen'!$C$36 -> 131.5684492 | AD5: ='ID Fuel Gen'!$Z$36 -> 134.0715652 | AE5: ='ID Fuel Gen'!$AW$36 -> 136.6223093 | AF5: ='ID Fuel Gen'!$BT$36 -> 139.2215878 | AG5: ='ID Fuel Gen'!$CQ$36 -> 141.8703244 | AH5: ='ID Fuel Gen'!$DN$36 -> 144.5694602 | AI5: ='ID Fuel Gen'!$EK$36 -> 147.3199544 | AJ5: ='ID Fuel Gen'!$FH$36 -> 150.1227842 | AK5: ='ID Fuel Gen'!$GE$36 -> 152.9789457 | AL5: ='ID Fuel Gen'!$HB$36 -> 155.7403829 | AM5: ='ID Fuel Gen'!$HY$36 -> 158.5516942 | AN5: ='ID Fuel Gen'!$IV$36 -> 161.413781 | AO5: ='ID Fuel Gen'!$JS$36 -> 164.3275608 | AP5: ='ID Fuel Gen'!$KP$36 -> 167.2939678 | AQ5: ='ID Fuel Gen'!$LM$36 -> 170.3139532 | AR5: ='ID Fuel Gen'!$MJ$36 -> 173.3884852 | AS5: ='ID Fuel Gen'!$NG$36 -> 176.5185498 | AT5: ='ID Fuel Gen'!$OD$36 -> 179.7051504 | AU5: ='ID Fuel Gen'!$PA$36 -> 182.9493089 | AV5: ='ID Fuel Gen'!$PX$36 -> 186.6082951 | AW5: ='ID Fuel Gen'!$QU$36 -> 190.340461 | AX5: ='ID Fuel Gen'!$RR$36 -> 194.1472702 | AY5: ='ID Fuel Gen'!$SO$36 -> 198.0302156 | AZ5: ='ID Fuel Gen'!$TL$36 -> 201.9908199
A6: NG Peaker | B6: ID_GE- LM6000- PF Sprint | C6: 42.3 | D6: 0 | E6: 0 | F6: 0 | G6: 0 | H6: 0 | I6: 0 | J6: 0 | K6: 0 | L6: 0 | M6: 0 | N6: 0 | O6: 0 | P6: 0 | Q6: 0 | R6: 0 | S6: 0 | T6: 0 | U6: 0 | V6: 0 | W6: 0 | X6: 0 | Y6: 0 | Z6: 0 | AA6: 0 | AC6: ='ID Fuel Gen'!$C$216 -> 170.5080334 | AD6: ='ID Fuel Gen'!Z$216 -> 173.75555 | AE6: ='ID Fuel Gen'!AW$216 -> 177.0649301 | AF6: ='ID Fuel Gen'!BT$216 -> 180.4373521 | AG6: ='ID Fuel Gen'!$CQ$216 -> 183.8740174 | AH6: ='ID Fuel Gen'!DN$216 -> 187.3761498 | AI6: ='ID Fuel Gen'!EK$216 -> 190.9449967 | AJ6: ='ID Fuel Gen'!FH$216 -> 194.5818294 | AK6: ='ID Fuel Gen'!GE$216 -> 198.287943 | AL6: ='ID Fuel Gen'!HB$216 -> 202.0646577 | AM6: ='ID Fuel Gen'!HY$216 -> 205.9133186 | AN6: ='ID Fuel Gen'!IV$216 -> 209.8352966 | AO6: ='ID Fuel Gen'!JS$216 -> 213.8319886 | AP6: ='ID Fuel Gen'!KP$216 -> 217.9048182 | AQ6: ='ID Fuel Gen'!LM$216 -> 222.055236 | AR6: ='ID Fuel Gen'!MJ$216 -> 226.2847205 | AS6: ='ID Fuel Gen'!NG$216 -> 230.5947781 | AT6: ='ID Fuel Gen'!OD$216 -> 234.9869441 | AU6: ='ID Fuel Gen'!PA$216 -> 239.4627829 | AV6: ='ID Fuel Gen'!PX$216 -> 244.0238888 | AW6: ='ID Fuel Gen'!QU$216 -> 248.6718866 | AX6: ='ID Fuel Gen'!RR$216 -> 253.4084319 | AY6: ='ID Fuel Gen'!SO$216 -> 258.2352119 | AZ6: ='ID Fuel Gen'!TL$216 -> 263.1539459
A7: NG Peaker | B7: ID_GE-LMS100PB Wet Intercooler DLN | C7: 92 | D7: 0 | E7: 0 | F7: 0 | G7: 0 | H7: 0 | I7: 0 | J7: 0 | K7: 0 | L7: 0 | M7: 0 | N7: 0 | O7: 0 | P7: 0 | Q7: 0 | R7: 0 | S7: 0 | T7: 0 | U7: 0 | V7: 0 | W7: 0 | X7: 0 | Y7: 0 | Z7: 0 | AA7: 0 | AC7: ='ID Fuel Gen'!$C$72 -> 137.9832464 | AD7: ='ID Fuel Gen'!Z$72 -> 140.6076197 | AE7: ='ID Fuel Gen'!AW$72 -> 143.2819126 | AF7: ='ID Fuel Gen'!BT$72 -> 146.0070748 | AG7: ='ID Fuel Gen'!$CQ$72 -> 148.784074 | AH7: ='ID Fuel Gen'!DN$72 -> 151.6138964 | AI7: ='ID Fuel Gen'!EK$72 -> 154.4975468 | AJ7: ='ID Fuel Gen'!FH$72 -> 157.4360492 | AK7: ='ID Fuel Gen'!GE$72 -> 160.4304472 | AL7: ='ID Fuel Gen'!HB$72 -> 163.3245521 | AM7: ='ID Fuel Gen'!HY$72 -> 166.2708906 | AN7: ='ID Fuel Gen'!IV$72 -> 169.270406 | AO7: ='ID Fuel Gen'!JS$72 -> 172.3240584 | AP7: ='ID Fuel Gen'!KP$72 -> 175.4328255 | AQ7: ='ID Fuel Gen'!LM$72 -> 178.5977026 | AR7: ='ID Fuel Gen'!MJ$72 -> 181.819703 | AS7: ='ID Fuel Gen'!NG$72 -> 185.0998583 | AT7: ='ID Fuel Gen'!OD$72 -> 188.4392186 | AU7: ='ID Fuel Gen'!PA$72 -> 191.8388531 | AV7: ='ID Fuel Gen'!PX$72 -> 195.6756302 | AW7: ='ID Fuel Gen'!QU$72 -> 199.5891428 | AX7: ='ID Fuel Gen'!RR$72 -> 203.5809257 | AY7: ='ID Fuel Gen'!SO$72 -> 207.6525442 | AZ7: ='ID Fuel Gen'!TL$72 -> 211.8055951
A8: NG Peaker | B8: ID_Siemens- SGT-800-57 | C8: 47.9 | D8: 0 | E8: 0 | F8: 0 | G8: 0 | H8: 0 | I8: 0 | J8: 0 | K8: 0 | L8: 0 | M8: 0 | N8: 0 | O8: 0 | P8: 0 | Q8: 0 | R8: 0 | S8: 0 | T8: 0 | U8: 0 | V8: 0 | W8: 0 | X8: 0 | Y8: 0 | Z8: 0 | AA8: 0 | AC8: ='ID Fuel Gen'!$C$180 -> 147.0292418 | AD8: ='ID Fuel Gen'!Z$180 -> 149.8296443 | AE8: ='ID Fuel Gen'!AW$180 -> 152.6833942 | AF8: ='ID Fuel Gen'!BT$180 -> 155.591508 | AG8: ='ID Fuel Gen'!CQ$180 -> 158.5550214 | AH8: ='ID Fuel Gen'!DN$180 -> 161.57499 | AI8: ='ID Fuel Gen'!EK$180 -> 164.6524895 | AJ8: ='ID Fuel Gen'!FH$180 -> 167.788616 | AK8: ='ID Fuel Gen'!GE$180 -> 170.9844867 | AL8: ='ID Fuel Gen'!HB$180 -> 174.0783033 | AM8: ='ID Fuel Gen'!HY$180 -> 177.2281436 | AN8: ='ID Fuel Gen'!IV$180 -> 180.4350229 | AO8: ='ID Fuel Gen'!JS$180 -> 183.699975 | AP8: ='ID Fuel Gen'!KP$180 -> 187.0240524 | AQ8: ='ID Fuel Gen'!LM$180 -> 190.4083267 | AR8: ='ID Fuel Gen'!MJ$180 -> 193.853889 | AS8: ='ID Fuel Gen'!NG$180 -> 197.3618503 | AT8: ='ID Fuel Gen'!OD$180 -> 200.9333414 | AU8: ='ID Fuel Gen'!PA$180 -> 204.5695139 | AV8: ='ID Fuel Gen'!PX$180 -> 208.6609042 | AW8: ='ID Fuel Gen'!QU$180 -> 212.8341223 | AX8: ='ID Fuel Gen'!RR$180 -> 217.0908047 | AY8: ='ID Fuel Gen'!SO$180 -> 221.4326208 | AZ8: ='ID Fuel Gen'!TL$180 -> 225.8612732
A9: NG CCCT | B9: ID_Siemens- SGT-800 3 on 2 | C9: 235.4 | D9: 0 | E9: 0 | F9: 0 | G9: 0 | H9: 0 | I9: 0 | J9: 0 | K9: 0 | L9: 0 | M9: 0 | N9: 0 | O9: 0 | P9: 0 | Q9: 0 | R9: 0 | S9: 0 | T9: 0 | U9: 0 | V9: 0 | W9: 0 | X9: 0 | Y9: 0 | Z9: 0 | AA9: 0 | AC9: ='ID Fuel Gen'!$C$324 -> 219.4114876 | AD9: ='ID Fuel Gen'!$Z$324 -> 222.8795661 | AE9: ='ID Fuel Gen'!AW$324 -> 226.4032959 | AF9: ='ID Fuel Gen'!BT$324 -> 229.9835858 | AG9: ='ID Fuel Gen'!CQ$324 -> 233.6213597 | AH9: ='ID Fuel Gen'!DN$324 -> 237.3175567 | AI9: ='ID Fuel Gen'!EK$324 -> 241.0731318 | AJ9: ='ID Fuel Gen'!FH$324 -> 244.8890559 | AK9: ='ID Fuel Gen'!GE$324 -> 248.7663159 | AL9: ='ID Fuel Gen'!HB$324 -> 252.7059154 | AM9: ='ID Fuel Gen'!HY$324 -> 256.7088745 | AN9: ='ID Fuel Gen'!IV$324 -> 260.7762306 | AO9: ='ID Fuel Gen'!JS$324 -> 264.9090381 | AP9: ='ID Fuel Gen'!KP$324 -> 269.1083693 | AQ9: ='ID Fuel Gen'!LM$324 -> 273.3753142 | AR9: ='ID Fuel Gen'!MJ$324 -> 277.7109812 | AS9: ='ID Fuel Gen'!NG$324 -> 282.1164972 | AT9: ='ID Fuel Gen'!OD$324 -> 286.5930078 | AU9: ='ID Fuel Gen'!PA$324 -> 291.1416779 | AV9: ='ID Fuel Gen'!PX$324 -> 295.7636919 | AW9: ='ID Fuel Gen'!QU$324 -> 300.460254 | AX9: ='ID Fuel Gen'!RR$324 -> 305.2325884 | AY9: ='ID Fuel Gen'!SO$324 -> 310.0819402 | AZ9: ='ID Fuel Gen'!TL$324 -> 315.0095751
A10: NG CCCT | B10: ID_Siemens- SGT6-9000F CCCT (Flex Plant) | C10: 479.4 | D10: 0 | E10: 0 | F10: 0 | G10: 0 | H10: 0 | I10: 0 | J10: 0 | K10: 0 | L10: 0 | M10: 0 | N10: 0 | O10: 0 | P10: 0 | Q10: 0 | R10: 0 | S10: 0 | T10: 0 | U10: 0 | V10: 0 | W10: 0 | X10: 0 | Y10: 0 | Z10: 0 | AA10: 0 | AC10: ='ID Fuel Gen'!C$252 -> 113.9969483 | AD10: ='ID Fuel Gen'!Z$252 -> 115.7797496 | AE10: ='ID Fuel Gen'!AW$252 -> 117.5907997 | AF10: ='ID Fuel Gen'!BT$252 -> 119.430553 | AG10: ='ID Fuel Gen'!CQ$252 -> 121.2994717 | AH10: ='ID Fuel Gen'!DN$252 -> 123.1980253 | AI10: ='ID Fuel Gen'!EK$252 -> 125.1266912 | AJ10: ='ID Fuel Gen'!FH$252 -> 127.0859546 | AK10: ='ID Fuel Gen'!GE$252 -> 129.0763085 | AL10: ='ID Fuel Gen'!HB$252 -> 131.0982541 | AM10: ='ID Fuel Gen'!HY$252 -> 133.1523008 | AN10: ='ID Fuel Gen'!IV$252 -> 135.2389666 | AO10: ='ID Fuel Gen'!JS$252 -> 137.3587775 | AP10: ='ID Fuel Gen'!KP$252 -> 139.5122687 | AQ10: ='ID Fuel Gen'!LM$252 -> 141.6999838 | AR10: ='ID Fuel Gen'!MJ$252 -> 143.9224755 | AS10: ='ID Fuel Gen'!NG$252 -> 146.1803055 | AT10: ='ID Fuel Gen'!OD$252 -> 148.474045 | AU10: ='ID Fuel Gen'!PA$252 -> 150.8042742 | AV10: ='ID Fuel Gen'!PX$252 -> 153.1715831 | AW10: ='ID Fuel Gen'!QU$252 -> 155.5765714 | AX10: ='ID Fuel Gen'!RR$252 -> 158.0198487 | AY10: ='ID Fuel Gen'!SO$252 -> 160.5020346 | AZ10: ='ID Fuel Gen'!TL$252 -> 163.0237588
A11: NG CCCT | B11: ID_GE- 7F.04 One on One | C11: 308.2 | D11: 0 | E11: 0 | F11: 0 | G11: 0 | H11: 0 | I11: 0 | J11: 0 | K11: 0 | L11: 0 | M11: 0 | N11: 0 | O11: 0 | P11: 0 | Q11: 0 | R11: 0 | S11: 0 | T11: 0 | U11: 0 | V11: 0 | W11: 0 | X11: 0 | Y11: 0 | Z11: 0 | AA11: 0 | AC11: ='ID Fuel Gen'!C$288 -> 161.3854147 | AD11: ='ID Fuel Gen'!Z$288 -> 163.9492591 | AE11: ='ID Fuel Gen'!AW$288 -> 166.5544889 | AF11: ='ID Fuel Gen'!BT$288 -> 169.2017843 | AG11: ='ID Fuel Gen'!CQ$288 -> 171.8918371 | AH11: ='ID Fuel Gen'!DN$288 -> 174.6253506 | AI11: ='ID Fuel Gen'!EK$288 -> 177.4030399 | AJ11: ='ID Fuel Gen'!FH$288 -> 180.2256323 | AK11: ='ID Fuel Gen'!GE$288 -> 183.093867 | AL11: ='ID Fuel Gen'!HB$288 -> 186.0084959 | AM11: ='ID Fuel Gen'!HY$288 -> 188.9702833 | AN11: ='ID Fuel Gen'!IV$288 -> 191.9800066 | AO11: ='ID Fuel Gen'!JS$288 -> 195.0384561 | AP11: ='ID Fuel Gen'!KP$288 -> 198.1464354 | AQ11: ='ID Fuel Gen'!LM$288 -> 201.3047618 | AR11: ='ID Fuel Gen'!MJ$288 -> 204.5142661 | AS11: ='ID Fuel Gen'!NG$288 -> 207.7757933 | AT11: ='ID Fuel Gen'!OD$288 -> 211.0902025 | AU11: ='ID Fuel Gen'!PA$288 -> 214.4583674 | AV11: ='ID Fuel Gen'!PX$288 -> 217.8811764 | AW11: ='ID Fuel Gen'!QU$288 -> 221.3595329 | AX11: ='ID Fuel Gen'!RR$288 -> 224.8943554 | AY11: ='ID Fuel Gen'!SO$288 -> 228.486578 | AZ11: ='ID Fuel Gen'!TL$288 -> 232.1371508
A12: NG Peaker | B12: WA_10X Wartsila 18V50SG-B | C12: 55.2 | D12: 0 | E12: 0 | F12: 0 | G12: 0 | H12: 0 | I12: 0 | J12: 0 | K12: 0 | L12: 0 | M12: 0 | N12: 0 | O12: 0 | P12: 0 | Q12: 0 | R12: 0 | S12: 0 | T12: 0 | U12: 0 | V12: 0 | W12: 0 | X12: 0 | Y12: 0 | Z12: 0 | AA12: 0 | AC12: ='WA Fuel Gen'!C$108 -> 146.0334681 | AD12: ='WA Fuel Gen'!Z$108 -> 148.2360037 | AE12: ='WA Fuel Gen'!AW$108 -> 150.4718897 | AF12: ='WA Fuel Gen'!BT$108 -> 152.7416339 | AG12: ='WA Fuel Gen'!CQ$108 -> 155.0457515 | AH12: ='WA Fuel Gen'!DN$108 -> 157.3847658 | AI12: ='WA Fuel Gen'!EK$108 -> 159.7592081 | AJ12: ='WA Fuel Gen'!FH$108 -> 162.1696177 | AK12: ='WA Fuel Gen'!GE$108 -> 164.6165424 | AL12: ='WA Fuel Gen'!HB$108 -> 167.1005382 | AM12: ='WA Fuel Gen'!HY$108 -> 169.6221698 | AN12: ='WA Fuel Gen'!IV$108 -> 172.1820103 | AO12: ='WA Fuel Gen'!JS$108 -> 174.7806419 | AP12: ='WA Fuel Gen'!KP$108 -> 177.4186554 | AQ12: ='WA Fuel Gen'!LM$108 -> 180.096651 | AR12: ='WA Fuel Gen'!MJ$108 -> 182.8152379 | AS12: ='WA Fuel Gen'!NG$108 -> 185.5750347 | AT12: ='WA Fuel Gen'!OD$108 -> 188.3766694 | AU12: ='WA Fuel Gen'!PA$108 -> 191.2207798 | AV12: ='WA Fuel Gen'!PX$108 -> 194.1080135 | AW12: ='WA Fuel Gen'!QU$108 -> 197.0390278 | AX12: ='WA Fuel Gen'!RR$108 -> 200.0144903 | AY12: ='WA Fuel Gen'!SO$108 -> 203.0350788 | AZ12: ='WA Fuel Gen'!TL$108 -> 206.1014815
A13: NG Peaker | B13: WA_Jenbacher 920 | C13: 36.4 | D13: 0 | E13: 0 | F13: 0 | G13: 0 | H13: 0 | I13: 0 | J13: 0 | K13: 0 | L13: 0 | M13: 0 | N13: 0 | O13: 0 | P13: 0 | Q13: 0 | R13: 0 | S13: 0 | T13: 0 | U13: 0 | V13: 0 | W13: 0 | X13: 0 | Y13: 0 | Z13: 0 | AA13: 0 | AC13: ='WA Fuel Gen'!C$144 -> 174.6483216 | AD13: ='WA Fuel Gen'!Z$144 -> 177.3050943 | AE13: ='WA Fuel Gen'!AW$144 -> 180.0025431 | AF13: ='WA Fuel Gen'!BT$144 -> 182.741296 | AG13: ='WA Fuel Gen'!CQ$144 -> 185.5219906 | AH13: ='WA Fuel Gen'!DN$144 -> 188.3452745 | AI13: ='WA Fuel Gen'!EK$144 -> 191.2118055 | AJ13: ='WA Fuel Gen'!FH$144 -> 194.1222515 | AK13: ='WA Fuel Gen'!GE$144 -> 197.077291 | AL13: ='WA Fuel Gen'!HB$144 -> 200.0776129 | AM13: ='WA Fuel Gen'!HY$144 -> 203.123917 | AN13: ='WA Fuel Gen'!IV$144 -> 206.216914 | AO13: ='WA Fuel Gen'!JS$144 -> 209.3573257 | AP13: ='WA Fuel Gen'!KP$144 -> 212.5458851 | AQ13: ='WA Fuel Gen'!LM$144 -> 215.7833367 | AR13: ='WA Fuel Gen'!MJ$144 -> 219.0704367 | AS13: ='WA Fuel Gen'!NG$144 -> 222.4079531 | AT13: ='WA Fuel Gen'!OD$144 -> 225.7966658 | AU13: ='WA Fuel Gen'!PA$144 -> 229.237367 | AV13: ='WA Fuel Gen'!PX$144 -> 232.7308613 | AW13: ='WA Fuel Gen'!QU$144 -> 236.2779658 | AX13: ='WA Fuel Gen'!RR$144 -> 239.8795105 | AY13: ='WA Fuel Gen'!SO$144 -> 243.5363382 | AZ13: ='WA Fuel Gen'!TL$144 -> 247.2493051
A14: NG Peaker | B14: WA_GE- 7E.03 Simple Cycle | C14: 84 | D14: 0 | E14: 0 | F14: 0 | G14: 0 | H14: 0 | I14: 0 | J14: 0 | K14: 0 | L14: 0 | M14: 0 | N14: 0 | O14: 0 | P14: 0 | Q14: 0 | R14: 0 | S14: 0 | T14: 0 | U14: 0 | V14: 0 | W14: 0 | X14: 0 | Y14: 0 | Z14: 0 | AA14: 0 | AC14: ='WA Fuel Gen'!C$36 -> 134.8232991 | AD14: ='WA Fuel Gen'!Z$36 -> 137.3881922 | AE14: ='WA Fuel Gen'!AW$36 -> 140.0018858 | AF14: ='WA Fuel Gen'!BT$36 -> 142.6653087 | AG14: ='WA Fuel Gen'!CQ$36 -> 145.3794071 | AH14: ='WA Fuel Gen'!DN$36 -> 148.1451453 | AI14: ='WA Fuel Gen'!EK$36 -> 150.9635059 | AJ14: ='WA Fuel Gen'!FH$36 -> 153.8354904 | AK14: ='WA Fuel Gen'!GE$36 -> 156.762119 | AL14: ='WA Fuel Gen'!HB$36 -> 159.591502 | AM14: ='WA Fuel Gen'!HY$36 -> 162.4719794 | AN14: ='WA Fuel Gen'!IV$36 -> 165.4044745 | AO14: ='WA Fuel Gen'!JS$36 -> 168.3899272 | AP14: ='WA Fuel Gen'!KP$36 -> 171.4292943 | AQ14: ='WA Fuel Gen'!LM$36 -> 174.5235502 | AR14: ='WA Fuel Gen'!MJ$36 -> 177.6736866 | AS14: ='WA Fuel Gen'!NG$36 -> 180.8807133 | AT14: ='WA Fuel Gen'!OD$36 -> 184.1456584 | AU14: ='WA Fuel Gen'!PA$36 -> 187.4695684 | AV14: ='WA Fuel Gen'!PX$36 -> 191.2189598 | AW14: ='WA Fuel Gen'!QU$36 -> 195.043339 | AX14: ='WA Fuel Gen'!RR$36 -> 198.9442058 | AY14: ='WA Fuel Gen'!SO$36 -> 202.9230899 | AZ14: ='WA Fuel Gen'!TL$36 -> 206.9815517
A15: NG Peaker | B15: WA_GE- LM6000- PF Sprint | C15: 42.3 | D15: 0 | E15: 0 | F15: 0 | G15: 0 | H15: 0 | I15: 0 | J15: 0 | K15: 0 | L15: 0 | M15: 0 | N15: 0 | O15: 0 | P15: 0 | Q15: 0 | R15: 0 | S15: 0 | T15: 0 | U15: 0 | V15: 0 | W15: 0 | X15: 0 | Y15: 0 | Z15: 0 | AA15: 0 | AC15: ='WA Fuel Gen'!C$216 -> 174.6356703 | AD15: ='WA Fuel Gen'!Z$216 -> 177.9615295 | AE15: ='WA Fuel Gen'!AW$216 -> 181.3507391 | AF15: ='WA Fuel Gen'!BT$216 -> 184.8045058 | AG15: ='WA Fuel Gen'!CQ$216 -> 188.3240596 | AH15: ='WA Fuel Gen'!DN$216 -> 191.9106538 | AI15: ='WA Fuel Gen'!EK$216 -> 195.5655656 | AJ15: ='WA Fuel Gen'!FH$216 -> 199.2900967 | AK15: ='WA Fuel Gen'!GE$216 -> 203.0855732 | AL15: ='WA Fuel Gen'!HB$216 -> 206.9533469 | AM15: ='WA Fuel Gen'!HY$216 -> 210.8947952 | AN15: ='WA Fuel Gen'!IV$216 -> 214.9113216 | AO15: ='WA Fuel Gen'!JS$216 -> 219.0043566 | AP15: ='WA Fuel Gen'!KP$216 -> 223.1753577 | AQ15: ='WA Fuel Gen'!LM$216 -> 227.4258104 | AR15: ='WA Fuel Gen'!MJ$216 -> 231.7572283 | AS15: ='WA Fuel Gen'!NG$216 -> 236.1711541 | AT15: ='WA Fuel Gen'!OD$216 -> 240.6691597 | AU15: ='WA Fuel Gen'!PA$216 -> 245.252847 | AV15: ='WA Fuel Gen'!PX$216 -> 249.9238484 | AW15: ='WA Fuel Gen'!QU$216 -> 254.6838274 | AX15: ='WA Fuel Gen'!RR$216 -> 259.5344793 | AY15: ='WA Fuel Gen'!SO$216 -> 264.4775317 | AZ15: ='WA Fuel Gen'!TL$216 -> 269.5147449
A16: NG Peaker | B16: WA_GE-LMS100PB Wet Intercooler DLN | C16: 92 | D16: 0 | E16: 0 | F16: 0 | G16: 0 | H16: 0 | I16: 0 | J16: 0 | K16: 0 | L16: 0 | M16: 0 | N16: 0 | O16: 0 | P16: 0 | Q16: 0 | R16: 0 | S16: 0 | T16: 0 | U16: 0 | V16: 0 | W16: 0 | X16: 0 | Y16: 0 | Z16: 0 | AA16: 0 | AC16: ='WA Fuel Gen'!C$72 -> 141.416726 | AD16: ='WA Fuel Gen'!Z$72 -> 144.1062667 | AE16: ='WA Fuel Gen'!AW$72 -> 146.846964 | AF16: ='WA Fuel Gen'!BT$72 -> 149.6397908 | AG16: ='WA Fuel Gen'!CQ$72 -> 152.485739 | AH16: ='WA Fuel Gen'!DN$72 -> 155.3858189 | AI16: ='WA Fuel Gen'!EK$72 -> 158.3410604 | AJ16: ='WA Fuel Gen'!FH$72 -> 161.3525128 | AK16: ='WA Fuel Gen'!GE$72 -> 164.4212452 | AL16: ='WA Fuel Gen'!HB$72 -> 167.3870249 | AM16: ='WA Fuel Gen'!HY$72 -> 170.4063254 | AN16: ='WA Fuel Gen'!IV$72 -> 173.4801131 | AO16: ='WA Fuel Gen'!JS$72 -> 176.6093719 | AP16: ='WA Fuel Gen'!KP$72 -> 179.7951032 | AQ16: ='WA Fuel Gen'!LM$72 -> 183.0383269 | AR16: ='WA Fuel Gen'!MJ$72 -> 186.3400809 | AS16: ='WA Fuel Gen'!NG$72 -> 189.7014221 | AT16: ='WA Fuel Gen'!OD$72 -> 193.1234265 | AU16: ='WA Fuel Gen'!PA$72 -> 196.6071894 | AV16: ='WA Fuel Gen'!PX$72 -> 200.5393332 | AW16: ='WA Fuel Gen'!QU$72 -> 204.5501199 | AX16: ='WA Fuel Gen'!RR$72 -> 208.6411223 | AY16: ='WA Fuel Gen'!SO$72 -> 212.8139447 | AZ16: ='WA Fuel Gen'!TL$72 -> 217.0702236
A17: NG Peaker | B17: WA_Siemens- SGT-800-57 | C17: 47.9 | D17: 0 | E17: 0 | F17: 0 | G17: 0 | H17: 0 | I17: 0 | J17: 0 | K17: 0 | L17: 0 | M17: 0 | N17: 0 | O17: 0 | P17: 0 | Q17: 0 | R17: 0 | S17: 0 | T17: 0 | U17: 0 | V17: 0 | W17: 0 | X17: 0 | Y17: 0 | Z17: 0 | AA17: 0 | AC17: ='WA Fuel Gen'!C$180 -> 150.5868388 | AD17: ='WA Fuel Gen'!Z$180 -> 153.4547645 | AE17: ='WA Fuel Gen'!AW$180 -> 156.3773192 | AF17: ='WA Fuel Gen'!BT$180 -> 159.3555436 | AG17: ='WA Fuel Gen'!CQ$180 -> 162.3904984 | AH17: ='WA Fuel Gen'!DN$180 -> 165.4832644 | AI17: ='WA Fuel Gen'!EK$180 -> 168.6349429 | AJ17: ='WA Fuel Gen'!FH$180 -> 171.8466564 | AK17: ='WA Fuel Gen'!GE$180 -> 175.1195488 | AL17: ='WA Fuel Gen'!HB$180 -> 178.2876311 | AM17: ='WA Fuel Gen'!HY$180 -> 181.5130709 | AN17: ='WA Fuel Gen'!IV$180 -> 184.7969075 | AO17: ='WA Fuel Gen'!JS$180 -> 188.140199 | AP17: ='WA Fuel Gen'!KP$180 -> 191.5440228 | AQ17: ='WA Fuel Gen'!LM$180 -> 195.0094758 | AR17: ='WA Fuel Gen'!MJ$180 -> 198.5376748 | AS17: ='WA Fuel Gen'!NG$180 -> 202.1297568 | AT17: ='WA Fuel Gen'!OD$180 -> 205.7868795 | AU17: ='WA Fuel Gen'!PA$180 -> 209.5102216 | AV17: ='WA Fuel Gen'!PX$180 -> 213.700426 | AW17: ='WA Fuel Gen'!QU$180 -> 217.9744345 | AX17: ='WA Fuel Gen'!RR$180 -> 222.3339232 | AY17: ='WA Fuel Gen'!SO$180 -> 226.7806017 | AZ17: ='WA Fuel Gen'!TL$180 -> 231.3162137
A18: NG CCCT | B18: WA_Siemens- SGT-800 3 on 2 | C18: 235.4 | D18: 0 | E18: 0 | F18: 0 | G18: 0 | H18: 0 | I18: 0 | J18: 0 | K18: 0 | L18: 0 | M18: 0 | N18: 0 | O18: 0 | P18: 0 | Q18: 0 | R18: 0 | S18: 0 | T18: 0 | U18: 0 | V18: 0 | W18: 0 | X18: 0 | Y18: 0 | Z18: 0 | AA18: 0 | AC18: ='WA Fuel Gen'!C$324 -> 223.9200895 | AD18: ='WA Fuel Gen'!Z$324 -> 227.4553462 | AE18: ='WA Fuel Gen'!AW$324 -> 231.0472552 | AF18: ='WA Fuel Gen'!BT$324 -> 234.69674 | AG18: ='WA Fuel Gen'!CQ$324 -> 238.4047399 | AH18: ='WA Fuel Gen'!DN$324 -> 242.1722093 | AI18: ='WA Fuel Gen'!EK$324 -> 246.0001187 | AJ18: ='WA Fuel Gen'!FH$324 -> 249.8894549 | AK18: ='WA Fuel Gen'!GE$324 -> 253.8412209 | AL18: ='WA Fuel Gen'!HB$324 -> 257.8564364 | AM18: ='WA Fuel Gen'!HY$324 -> 261.9361383 | AN18: ='WA Fuel Gen'!IV$324 -> 266.0813806 | AO18: ='WA Fuel Gen'!JS$324 -> 270.2932348 | AP18: ='WA Fuel Gen'!KP$324 -> 274.5727906 | AQ18: ='WA Fuel Gen'!LM$324 -> 278.9211554 | AR18: ='WA Fuel Gen'!MJ$324 -> 283.3394554 | AS18: ='WA Fuel Gen'!NG$324 -> 287.8288357 | AT18: ='WA Fuel Gen'!OD$324 -> 292.3904601 | AU18: ='WA Fuel Gen'!PA$324 -> 297.0255123 | AV18: ='WA Fuel Gen'!PX$324 -> 301.7351954 | AW18: ='WA Fuel Gen'!QU$324 -> 306.5207328 | AX18: ='WA Fuel Gen'!RR$324 -> 311.3833685 | AY18: ='WA Fuel Gen'!SO$324 -> 316.3243669 | AZ18: ='WA Fuel Gen'!TL$324 -> 321.3450139
A19: NG CCCT | B19: WA_Siemens- SGT6-9000F CCCT (Flex Plant) | C19: 479.4 | D19: 0 | E19: 0 | F19: 0 | G19: 0 | H19: 0 | I19: 0 | J19: 0 | K19: 0 | L19: 0 | M19: 0 | N19: 0 | O19: 0 | P19: 0 | Q19: 0 | R19: 0 | S19: 0 | T19: 0 | U19: 0 | V19: 0 | W19: 0 | X19: 0 | Y19: 0 | Z19: 0 | AA19: 0 | AC19: ='WA Fuel Gen'!C$252 -> 116.5202552 | AD19: ='WA Fuel Gen'!Z$252 -> 118.3406539 | AE19: ='WA Fuel Gen'!AW$252 -> 120.1898614 | AF19: ='WA Fuel Gen'!BT$252 -> 122.0683407 | AG19: ='WA Fuel Gen'!CQ$252 -> 123.9765625 | AH19: ='WA Fuel Gen'!DN$252 -> 125.9150047 | AI19: ='WA Fuel Gen'!EK$252 -> 127.8841536 | AJ19: ='WA Fuel Gen'!FH$252 -> 129.8845032 | AK19: ='WA Fuel Gen'!GE$252 -> 131.9165554 | AL19: ='WA Fuel Gen'!HB$252 -> 133.9808207 | AM19: ='WA Fuel Gen'!HY$252 -> 136.0778177 | AN19: ='WA Fuel Gen'!IV$252 -> 138.2080737 | AO19: ='WA Fuel Gen'!JS$252 -> 140.3721243 | AP19: ='WA Fuel Gen'!KP$252 -> 142.5705143 | AQ19: ='WA Fuel Gen'!LM$252 -> 144.8037973 | AR19: ='WA Fuel Gen'!MJ$252 -> 147.0725358 | AS19: ='WA Fuel Gen'!NG$252 -> 149.3773018 | AT19: ='WA Fuel Gen'!OD$252 -> 151.7186764 | AU19: ='WA Fuel Gen'!PA$252 -> 154.0972506 | AV19: ='WA Fuel Gen'!PX$252 -> 156.5136249 | AW19: ='WA Fuel Gen'!QU$252 -> 158.9684097 | AX19: ='WA Fuel Gen'!RR$252 -> 161.4622254 | AY19: ='WA Fuel Gen'!SO$252 -> 163.9957027 | AZ19: ='WA Fuel Gen'!TL$252 -> 166.5694826
A20: NG CCCT | B20: WA_GE- 7F.04 One on One | C20: 308.2 | D20: 0 | E20: 0 | F20: 0 | G20: 0 | H20: 0 | I20: 0 | J20: 0 | K20: 0 | L20: 0 | M20: 0 | N20: 0 | O20: 0 | P20: 0 | Q20: 0 | R20: 0 | S20: 0 | T20: 0 | U20: 0 | V20: 0 | W20: 0 | X20: 0 | Y20: 0 | Z20: 0 | AA20: 0 | AC20: ='WA Fuel Gen'!C$288 -> 164.6382471 | AD20: ='WA Fuel Gen'!Z$288 -> 167.2505588 | AE20: ='WA Fuel Gen'!AW$288 -> 169.9049779 | AF20: ='WA Fuel Gen'!BT$288 -> 172.6021956 | AG20: ='WA Fuel Gen'!CQ$288 -> 175.3429145 | AH20: ='WA Fuel Gen'!DN$288 -> 178.1278491 | AI20: ='WA Fuel Gen'!EK$288 -> 180.9577256 | AJ20: ='WA Fuel Gen'!FH$288 -> 183.8332828 | AK20: ='WA Fuel Gen'!GE$288 -> 186.7552715 | AL20: ='WA Fuel Gen'!HB$288 -> 189.7244553 | AM20: ='WA Fuel Gen'!HY$288 -> 192.7416105 | AN20: ='WA Fuel Gen'!IV$288 -> 195.8075266 | AO20: ='WA Fuel Gen'!JS$288 -> 198.9230061 | AP20: ='WA Fuel Gen'!KP$288 -> 202.0888653 | AQ20: ='WA Fuel Gen'!LM$288 -> 205.3059338 | AR20: ='WA Fuel Gen'!MJ$288 -> 208.5750556 | AS20: ='WA Fuel Gen'!NG$288 -> 211.8970886 | AT20: ='WA Fuel Gen'!OD$288 -> 215.2729051 | AU20: ='WA Fuel Gen'!PA$288 -> 218.7033923 | AV20: ='WA Fuel Gen'!PX$288 -> 222.1894522 | AW20: ='WA Fuel Gen'!QU$288 -> 225.7320019 | AX20: ='WA Fuel Gen'!RR$288 -> 229.3319742 | AY20: ='WA Fuel Gen'!SO$288 -> 232.9903174 | AZ20: ='WA Fuel Gen'!TL$288 -> 236.7079958
A21: Solar | B21: Solar Photovoltaic Fixed Array (5 MW AC) | C21: 5 | D21: ='PPA Summary'!$S33 -> 63.14552635 | E21: ='PPA Summary'!$S34 -> 62.200613 | F21: ='PPA Summary'!$S35 -> 79.84151223 | G21: ='PPA Summary'!$S36 -> 78.57847798 | H21: ='PPA Summary'!$S37 -> 75.65234003 | I21: ='PPA Summary'!$S38 -> 74.48215494 | J21: ='PPA Summary'!$S39 -> 73.34035344 | K21: ='PPA Summary'!$S40 -> 72.22646861 | L21: ='PPA Summary'!$S41 -> 71.14004424 | M21: ='PPA Summary'!$S42 -> 71.27614266 | N21: ='PPA Summary'!$S43 -> 71.41491044 | O21: ='PPA Summary'!$S44 -> 71.55639268 | P21: ='PPA Summary'!$S45 -> 71.70063529 | Q21: ='PPA Summary'!$S46 -> 71.84768491 | R21: ='PPA Summary'!$S47 -> 71.997589 | S21: ='PPA Summary'!$S48 -> 72.15039583 | T21: ='PPA Summary'!$S49 -> 72.30615447 | U21: ='PPA Summary'!$S50 -> 72.46491482 | V21: ='PPA Summary'!$S51 -> 72.62672764 | W21: ='PPA Summary'!$S52 -> 72.97977006 | X21: ='PPA Summary'!$S53 -> 73.33641545 | Y21: ='PPA Summary'!$S54 -> 73.69671842 | Z21: ='PPA Summary'!$S55 -> 74.0607345 | AA21: ='PPA Summary'!$S56 -> 74.42852366 | AC21: 0 | AD21: 0 | AE21: 0 | AF21: 0 | AG21: 0 | AH21: 0 | AI21: 0 | AJ21: 0 | AK21: 0 | AL21: 0 | AM21: 0 | AN21: 0 | AO21: 0 | AP21: 0 | AQ21: 0 | AR21: 0 | AS21: 0 | AT21: 0 | AU21: 0 | AV21: 0 | AW21: 0 | AX21: 0 | AY21: 0 | AZ21: 0
A22: Solar | B22: Southern NW Solar Photovoltaic w/ Single Axis Tracking (100 MW AC) | C22: 50 | D22: ='PPA Summary'!$P33 -> 28.81253914 | E22: ='PPA Summary'!$P34 -> 28.31878265 | F22: ='PPA Summary'!$P35 -> 35.85169238 | G22: ='PPA Summary'!$P36 -> 35.22652832 | H22: ='PPA Summary'!$P37 -> 34.31977999 | I22: ='PPA Summary'!$P38 -> 33.84273353 | J22: ='PPA Summary'!$P39 -> 33.3784174 | K22: ='PPA Summary'!$P40 -> 32.9266381 | L22: ='PPA Summary'!$P41 -> 32.4872069 | M22: ='PPA Summary'!$P42 -> 32.57605248 | N22: ='PPA Summary'!$P43 -> 32.66656046 | O22: ='PPA Summary'!$P44 -> 32.75875895 | P22: ='PPA Summary'!$P45 -> 32.85267655 | Q22: ='PPA Summary'!$P46 -> 32.94834236 | R22: ='PPA Summary'!$P47 -> 33.04578595 | S22: ='PPA Summary'!$P48 -> 33.1450374 | T22: ='PPA Summary'!$P49 -> 33.2461273 | U22: ='PPA Summary'!$P50 -> 33.34908675 | V22: ='PPA Summary'!$P51 -> 33.45394738 | W22: ='PPA Summary'!$P52 -> 33.64195704 | X22: ='PPA Summary'!$P53 -> 33.83212548 | Y22: ='PPA Summary'!$P54 -> 34.02448157 | Z22: ='PPA Summary'!$P55 -> 34.21907452 | AA22: ='PPA Summary'!$P56 -> 34.41592442 | AC22: 0 | AD22: 0 | AE22: 0 | AF22: 0 | AG22: 0 | AH22: 0 | AI22: 0 | AJ22: 0 | AK22: 0 | AL22: 0 | AM22: 0 | AN22: 0 | AO22: 0 | AP22: 0 | AQ22: 0 | AR22: 0 | AS22: 0 | AT22: 0 | AU22: 0 | AV22: 0 | AW22: 0 | AX22: 0 | AY22: 0 | AZ22: 0
A23: Solar | B23: Solar Photovoltaic w/ Single Axis Tracking (100 MW AC) | C23: 25 | D23: ='PPA Summary'!$M33 -> 32.10221346 | E23: ='PPA Summary'!$M34 -> 31.6770179 | F23: ='PPA Summary'!$M35 -> 40.19210388 | G23: ='PPA Summary'!$M36 -> 39.61489394 | H23: ='PPA Summary'!$M37 -> 37.69843378 | I23: ='PPA Summary'!$M38 -> 37.17753372 | J23: ='PPA Summary'!$M39 -> 36.6706088 | K23: ='PPA Summary'!$M40 -> 36.17744754 | L23: ='PPA Summary'!$M41 -> 35.6978437 | M23: ='PPA Summary'!$M42 -> 35.94471222 | N23: ='PPA Summary'!$M43 -> 36.19047869 | O23: ='PPA Summary'!$M44 -> 36.43523252 | P23: ='PPA Summary'!$M45 -> 36.67906256 | Q23: ='PPA Summary'!$M46 -> 36.78562546 | R23: ='PPA Summary'!$M47 -> 36.89416912 | S23: ='PPA Summary'!$M48 -> 37.00472705 | T23: ='PPA Summary'!$M49 -> 37.11733335 | U23: ='PPA Summary'!$M50 -> 37.23202267 | V23: ='PPA Summary'!$M51 -> 37.34883026 | W23: ='PPA Summary'!$M52 -> 37.58000812 | X23: ='PPA Summary'!$M53 -> 37.81366064 | Y23: ='PPA Summary'!$M54 -> 38.04977216 | Z23: ='PPA Summary'!$M55 -> 38.28843458 | AA23: ='PPA Summary'!$M56 -> 38.50820023 | AC23: 0 | AD23: 0 | AE23: 0 | AF23: 0 | AG23: 0 | AH23: 0 | AI23: 0 | AJ23: 0 | AK23: 0 | AL23: 0 | AM23: 0 | AN23: 0 | AO23: 0 | AP23: 0 | AQ23: 0 | AR23: 0 | AS23: 0 | AT23: 0 | AU23: 0 | AV23: 0 | AW23: 0 | AX23: 0 | AY23: 0 | AZ23: 0
A24: Solar/Storage | B24: Storage Add-on to Solar (100 MW/400 MWh Lithium-ion) | C24: 25 | D24: 0 | E24: 0 | F24: 0 | G24: 0 | H24: 0 | I24: 0 | J24: 0 | K24: 0 | L24: 0 | M24: 0 | N24: 0 | O24: 0 | P24: 0 | Q24: 0 | R24: 0 | S24: 0 | T24: 0 | U24: 0 | V24: 0 | W24: 0 | X24: 0 | Y24: 0 | Z24: 0 | AA24: 0 | AC24: ='PPA Summary'!$N63*12 -> 104.3535527 | AD24: ='PPA Summary'!$N64*12 -> 101.0273624 | AE24: ='PPA Summary'!$N65*12 -> 118.7566487 | AF24: ='PPA Summary'!$N66*12 -> 117.0155381 | AG24: ='PPA Summary'!$N67*12 -> 118.1098516 | AH24: ='PPA Summary'!$N68*12 -> 116.6097828 | AI24: ='PPA Summary'!$N69*12 -> 115.2799015 | AJ24: ='PPA Summary'!$N70*12 -> 114.1497117 | AK24: ='PPA Summary'!$N71*12 -> 112.9052557 | AL24: ='PPA Summary'!$N72*12 -> 111.357594 | AM24: ='PPA Summary'!$N73*12 -> 109.9013636 | AN24: ='PPA Summary'!$N74*12 -> 108.595989 | AO24: ='PPA Summary'!$N75*12 -> 107.4754173 | AP24: ='PPA Summary'!$N76*12 -> 106.9570728 | AQ24: ='PPA Summary'!$N77*12 -> 106.6016118 | AR24: ='PPA Summary'!$N78*12 -> 106.3879425 | AS24: ='PPA Summary'!$N79*12 -> 106.3521562 | AT24: ='PPA Summary'!$N80*12 -> 106.2810576 | AU24: ='PPA Summary'!$N81*12 -> 106.1994896 | AV24: ='PPA Summary'!$N82*12 -> 106.0240612 | AW24: ='PPA Summary'!$N83*12 -> 105.8136408 | AX24: ='PPA Summary'!$N84*12 -> 105.5768546 | AY24: ='PPA Summary'!$N85*12 -> 105.3139267 | AZ24: ='PPA Summary'!$N86*12 -> 105.079547
A25: Solar/Storage | B25: Storage Add-on to Solar (100 MW/200 MWh Lithium-ion) | C25: 25 | D25: 0 | E25: 0 | F25: 0 | G25: 0 | H25: 0 | I25: 0 | J25: 0 | K25: 0 | L25: 0 | M25: 0 | N25: 0 | O25: 0 | P25: 0 | Q25: 0 | R25: 0 | S25: 0 | T25: 0 | U25: 0 | V25: 0 | W25: 0 | X25: 0 | Y25: 0 | Z25: 0 | AA25: 0 | AC25: ='PPA Summary'!X33*12 -> 84.85344987 | AD25: ='PPA Summary'!X34*12 -> 81.95594543 | AE25: ='PPA Summary'!X35*12 -> 94.28865883 | AF25: ='PPA Summary'!X36*12 -> 92.65674607 | AG25: ='PPA Summary'!X37*12 -> 94.39511544 | AH25: ='PPA Summary'!X38*12 -> 93.17239278 | AI25: ='PPA Summary'!X39*12 -> 92.09072772 | AJ25: ='PPA Summary'!X40*12 -> 91.16474261 | AK25: ='PPA Summary'!X41*12 -> 90.15106767 | AL25: ='PPA Summary'!X42*12 -> 88.91051871 | AM25: ='PPA Summary'!X43*12 -> 87.74151966 | AN25: ='PPA Summary'!X44*12 -> 86.69012172 | AO25: ='PPA Summary'!X45*12 -> 85.78263289 | AP25: ='PPA Summary'!X46*12 -> 85.41784041 | AQ25: ='PPA Summary'!X47*12 -> 85.1789263 | AR25: ='PPA Summary'!X48*12 -> 85.04958001 | AS25: ='PPA Summary'!X49*12 -> 85.05781242 | AT25: ='PPA Summary'!X50*12 -> 85.03843439 | AU25: ='PPA Summary'!X51*12 -> 85.01423876 | AV25: ='PPA Summary'!X52*12 -> 84.91829103 | AW25: ='PPA Summary'!X53*12 -> 84.79505576 | AX25: ='PPA Summary'!X54*12 -> 84.65243182 | AY25: ='PPA Summary'!X55*12 -> 84.49057804 | AZ25: ='PPA Summary'!X56*12 -> 84.36411121
A26: Solar/Storage | B26: Storage Add-on to Solar (50 MW/100 MWh Lithium-ion) | C26: 25 | D26: 0 | E26: 0 | F26: 0 | G26: 0 | H26: 0 | I26: 0 | J26: 0 | K26: 0 | L26: 0 | M26: 0 | N26: 0 | O26: 0 | P26: 0 | Q26: 0 | R26: 0 | S26: 0 | T26: 0 | U26: 0 | V26: 0 | W26: 0 | X26: 0 | Y26: 0 | Z26: 0 | AA26: 0 | AC26: ='PPA Summary'!AC33*12 -> 78.79831981 | AD26: ='PPA Summary'!AC34*12 -> 76.61518672 | AE26: ='PPA Summary'!AC35*12 -> 87.93786217 | AF26: ='PPA Summary'!AC36*12 -> 86.56551387 | AG26: ='PPA Summary'!AC37*12 -> 91.78826072 | AH26: ='PPA Summary'!AC38*12 -> 90.74458229 | AI26: ='PPA Summary'!AC39*12 -> 89.83514716 | AJ26: ='PPA Summary'!AC40*12 -> 89.07113293 | AK26: ='PPA Summary'!AC41*12 -> 88.22283817 | AL26: ='PPA Summary'!AC42*12 -> 86.67930111 | AM26: ='PPA Summary'!AC43*12 -> 85.20865442 | AN26: ='PPA Summary'!AC44*12 -> 83.85429216 | AO26: ='PPA Summary'!AC45*12 -> 82.64097109 | AP26: ='PPA Summary'!AC46*12 -> 82.29838468 | AQ26: ='PPA Summary'!AC47*12 -> 82.07469581 | AR26: ='PPA Summary'!AC48*12 -> 81.95451822 | AS26: ='PPA Summary'!AC49*12 -> 81.96430445 | AT26: ='PPA Summary'!AC50*12 -> 81.94813277 | AU26: ='PPA Summary'!AC51*12 -> 81.92865517 | AV26: ='PPA Summary'!AC52*12 -> 81.76382954 | AW26: ='PPA Summary'!AC53*12 -> 81.57269332 | AX26: ='PPA Summary'!AC54*12 -> 81.36322495 | AY26: ='PPA Summary'!AC55*12 -> 81.13544037 | AZ26: ='PPA Summary'!AC56*12 -> 80.99824104
A27: Wind | B27: NW Wind On System | C27: 100 | D27: ='PPA Summary'!M4 -> 36.86628378 | E27: ='PPA Summary'!M5 -> 44.08101434 | F27: ='PPA Summary'!M6 -> 55.35989012 | G27: ='PPA Summary'!M7 -> 55.79110844 | H27: ='PPA Summary'!M8 -> 56.49846784 | I27: ='PPA Summary'!M9 -> 57.09413817 | J27: ='PPA Summary'!M10 -> 57.47415065 | K27: ='PPA Summary'!M11 -> 57.88738171 | L27: ='PPA Summary'!M12 -> 58.33373882 | M27: ='PPA Summary'!M13 -> 58.78609024 | N27: ='PPA Summary'!M14 -> 59.30436189 | O27: ='PPA Summary'!M15 -> 59.96243629 | P27: ='PPA Summary'!M16 -> 60.87336083 | Q27: ='PPA Summary'!M17 -> 61.77236983 | R27: ='PPA Summary'!M18 -> 62.56543973 | S27: ='PPA Summary'!M19 -> 63.35952061 | T27: ='PPA Summary'!M20 -> 64.16254103 | U27: ='PPA Summary'!M21 -> 64.97106075 | V27: ='PPA Summary'!M22 -> 65.78571928 | W27: ='PPA Summary'!M23 -> 66.72766322 | X27: ='PPA Summary'!M24 -> 67.68055518 | Y27: ='PPA Summary'!M25 -> 68.6444877 | Z27: ='PPA Summary'!M26 -> 69.6195539 | AA27: ='PPA Summary'!M27 -> 70.60584818 | AC27: 0 | AD27: 0 | AE27: 0 | AF27: 0 | AG27: 0 | AH27: 0 | AI27: 0 | AJ27: 0 | AK27: 0 | AL27: 0 | AM27: 0 | AN27: 0 | AO27: 0 | AP27: 0 | AQ27: 0 | AR27: 0 | AS27: 0 | AT27: 0 | AU27: 0 | AV27: 0 | AW27: 0 | AX27: 0 | AY27: 0 | AZ27: 0
A28: Wind | B28: NW Wind Off System | C28: 100 | D28: ='PPA Summary'!$P4 -> 35.54778709 | E28: ='PPA Summary'!$P5 -> 41.45725424 | F28: ='PPA Summary'!$P6 -> 52.80651705 | G28: ='PPA Summary'!$P7 -> 53.28864276 | H28: ='PPA Summary'!$P8 -> 54.08933839 | I28: ='PPA Summary'!$P9 -> 54.76004775 | J28: ='PPA Summary'!$P10 -> 55.18051373 | K28: ='PPA Summary'!$P11 -> 55.63856145 | L28: ='PPA Summary'!$P12 -> 56.13407122 | M28: ='PPA Summary'!$P13 -> 56.63565103 | N28: ='PPA Summary'!$P14 -> 57.21259497 | O28: ='PPA Summary'!$P15 -> 57.95033841 | P28: ='PPA Summary'!$P16 -> 58.97961252 | Q28: ='PPA Summary'!$P17 -> 59.99418932 | R28: ='PPA Summary'!$P18 -> 60.88531204 | S28: ='PPA Summary'!$P19 -> 61.7766593 | T28: ='PPA Summary'!$P20 -> 62.67738635 | U28: ='PPA Summary'!$P21 -> 63.58349964 | V28: ='PPA Summary'!$P22 -> 64.49572376 | W28: ='PPA Summary'!$P23 -> 65.5541553 | X28: ='PPA Summary'!$P24 -> 66.62422896 | Y28: ='PPA Summary'!$P25 -> 67.70603596 | Z28: ='PPA Summary'!$P26 -> 68.79966792 | AA28: ='PPA Summary'!$P27 -> 69.90521731 | AC28: 0 | AD28: 0 | AE28: 0 | AF28: 0 | AG28: 0 | AH28: 0 | AI28: 0 | AJ28: 0 | AK28: 0 | AL28: 0 | AM28: 0 | AN28: 0 | AO28: 0 | AP28: 0 | AQ28: 0 | AR28: 0 | AS28: 0 | AT28: 0 | AU28: 0 | AV28: 0 | AW28: 0 | AX28: 0 | AY28: 0 | AZ28: 0
A29: Wind | B29: Montana Wind 100-200 | C29: 100 | D29: ='PPA Summary'!$S4 -> 24.77285213 | E29: ='PPA Summary'!$S5 -> 30.50217975 | F29: ='PPA Summary'!$S6 -> 41.72258265 | G29: ='PPA Summary'!$S7 -> 42.10556997 | H29: ='PPA Summary'!$S8 -> 42.73919367 | I29: ='PPA Summary'!$S9 -> 43.27065823 | J29: ='PPA Summary'!$S10 -> 43.60538097 | K29: ='PPA Summary'!$S11 -> 43.96974276 | L29: ='PPA Summary'!$S12 -> 44.36365108 | M29: ='PPA Summary'!$S13 -> 44.76241721 | N29: ='PPA Summary'!$S14 -> 45.2205438 | O29: ='PPA Summary'!$S15 -> 45.80522892 | P29: ='PPA Summary'!$S16 -> 46.61929658 | Q29: ='PPA Summary'!$S17 -> 47.42189508 | R29: ='PPA Summary'!$S18 -> 48.1274872 | S29: ='PPA Summary'!$S19 -> 48.83335011 | T29: ='PPA Summary'!$S20 -> 49.54668644 | U29: ='PPA Summary'!$S21 -> 50.26435713 | V29: ='PPA Summary'!$S22 -> 50.98693403 | W29: ='PPA Summary'!$S23 -> 51.82460749 | X29: ='PPA Summary'!$S24 -> 52.67154165 | Y29: ='PPA Summary'!$S25 -> 53.52781034 | Z29: ='PPA Summary'!$S26 -> 54.39348774 | AA29: ='PPA Summary'!$S27 -> 55.26864838 | AC29: 0 | AD29: 0 | AE29: 0 | AF29: 0 | AG29: 0 | AH29: 0 | AI29: 0 | AJ29: 0 | AK29: 0 | AL29: 0 | AM29: 0 | AN29: 0 | AO29: 0 | AP29: 0 | AQ29: 0 | AR29: 0 | AS29: 0 | AT29: 0 | AU29: 0 | AV29: 0 | AW29: 0 | AX29: 0 | AY29: 0 | AZ29: 0
A30: Wind | B30: Montana Wind 300 | C30: 100 | D30: ='PPA Summary'!$S$4 -> 24.77285213 | E30: ='PPA Summary'!$S$5 -> 30.50217975 | F30: ='PPA Summary'!$S$6 -> 41.72258265 | G30: ='PPA Summary'!$S$7 -> 42.10556997 | H30: ='PPA Summary'!$S$8 -> 42.73919367 | I30: ='PPA Summary'!$S$9 -> 43.27065823 | J30: ='PPA Summary'!$S$10 -> 43.60538097 | K30: ='PPA Summary'!$S$11 -> 43.96974276 | L30: ='PPA Summary'!$S$12 -> 44.36365108 | M30: ='PPA Summary'!$S$13 -> 44.76241721 | N30: ='PPA Summary'!$S$14 -> 45.2205438 | O30: ='PPA Summary'!$S$15 -> 45.80522892 | P30: ='PPA Summary'!$S$16 -> 46.61929658 | Q30: ='PPA Summary'!$S$17 -> 47.42189508 | R30: ='PPA Summary'!$S$18 -> 48.1274872 | S30: ='PPA Summary'!$S$19 -> 48.83335011 | T30: ='PPA Summary'!$S$20 -> 49.54668644 | U30: ='PPA Summary'!$S$21 -> 50.26435713 | V30: ='PPA Summary'!$S$22 -> 50.98693403 | W30: ='PPA Summary'!$S$23 -> 51.82460749 | X30: ='PPA Summary'!$S$24 -> 52.67154165 | Y30: ='PPA Summary'!$S$25 -> 53.52781034 | Z30: ='PPA Summary'!$S$26 -> 54.39348774 | AA30: ='PPA Summary'!$S$27 -> 55.26864838 | AC30: 0 | AD30: 0 | AE30: 0 | AF30: 0 | AG30: 0 | AH30: 0 | AI30: 0 | AJ30: 0 | AK30: 0 | AL30: 0 | AM30: 0 | AN30: 0 | AO30: 0 | AP30: 0 | AQ30: 0 | AR30: 0 | AS30: 0 | AT30: 0 | AU30: 0 | AV30: 0 | AW30: 0 | AX30: 0 | AY30: 0 | AZ30: 0
A31: Wind | B31: Montana Wind 400 | C31: 100 | D31: ='PPA Summary'!$S$4 -> 24.77285213 | E31: ='PPA Summary'!$S$5 -> 30.50217975 | F31: ='PPA Summary'!$S$6 -> 41.72258265 | G31: ='PPA Summary'!$S$7 -> 42.10556997 | H31: ='PPA Summary'!$S$8 -> 42.73919367 | I31: ='PPA Summary'!$S$9 -> 43.27065823 | J31: ='PPA Summary'!$S$10 -> 43.60538097 | K31: ='PPA Summary'!$S$11 -> 43.96974276 | L31: ='PPA Summary'!$S$12 -> 44.36365108 | M31: ='PPA Summary'!$S$13 -> 44.76241721 | N31: ='PPA Summary'!$S$14 -> 45.2205438 | O31: ='PPA Summary'!$S$15 -> 45.80522892 | P31: ='PPA Summary'!$S$16 -> 46.61929658 | Q31: ='PPA Summary'!$S$17 -> 47.42189508 | R31: ='PPA Summary'!$S$18 -> 48.1274872 | S31: ='PPA Summary'!$S$19 -> 48.83335011 | T31: ='PPA Summary'!$S$20 -> 49.54668644 | U31: ='PPA Summary'!$S$21 -> 50.26435713 | V31: ='PPA Summary'!$S$22 -> 50.98693403 | W31: ='PPA Summary'!$S$23 -> 51.82460749 | X31: ='PPA Summary'!$S$24 -> 52.67154165 | Y31: ='PPA Summary'!$S$25 -> 53.52781034 | Z31: ='PPA Summary'!$S$26 -> 54.39348774 | AA31: ='PPA Summary'!$S$27 -> 55.26864838 | AC31: 0 | AD31: 0 | AE31: 0 | AF31: 0 | AG31: 0 | AH31: 0 | AI31: 0 | AJ31: 0 | AK31: 0 | AL31: 0 | AM31: 0 | AN31: 0 | AO31: 0 | AP31: 0 | AQ31: 0 | AR31: 0 | AS31: 0 | AT31: 0 | AU31: 0 | AV31: 0 | AW31: 0 | AX31: 0 | AY31: 0 | AZ31: 0 | BC31: 2022 | BD31: 2023 | BE31: 2024 | BF31: 2025 | BG31: 2026 | BH31: 2027 | BI31: 2028 | BJ31: 2029 | BK31: 2030 | BL31: 2031 | BM31: 2032 | BN31: 2033 | BO31: 2034 | BP31: 2035 | BQ31: 2036 | BR31: 2037 | BS31: 2038 | BT31: 2039 | BU31: 2040 | BV31: 2041 | BW31: 2042 | BX31: 2043 | BY31: 2044 | BZ31: 2045
A32: Storage | B32: Distribution Scale 4hr Lithium-Ion | C32: 3 | D32: 0 | E32: 0 | F32: 0 | G32: 0 | H32: 0 | I32: 0 | J32: 0 | K32: 0 | L32: 0 | M32: 0 | N32: 0 | O32: 0 | P32: 0 | Q32: 0 | R32: 0 | S32: 0 | T32: 0 | U32: 0 | V32: 0 | W32: 0 | X32: 0 | Y32: 0 | Z32: 0 | AA32: 0 | AC32: ='Storage Summary'!$C$5 -> 263.5722698 | AD32: ='Storage Summary'!$C$6 -> 258.4719785 | AE32: ='Storage Summary'!$C$7 -> 253.8483316 | AF32: ='Storage Summary'!$C$8 -> 252.0346962 | AG32: ='Storage Summary'!$C$9 -> 250.5298969 | AH32: ='Storage Summary'!$C$10 -> 249.6572924 | AI32: ='Storage Summary'!$C$11 -> 249.1028571 | AJ32: ='Storage Summary'!$C$12 -> 248.8343566 | AK32: ='Storage Summary'!$C$13 -> 248.4267924 | AL32: ='Storage Summary'!$C$14 -> 248.1168459 | AM32: ='Storage Summary'!$C$15 -> 247.9410683 | AN32: ='Storage Summary'!$C$16 -> 247.9807158 | AO32: ='Storage Summary'!$C$17 -> 248.2825218 | AP32: ='Storage Summary'!$C$18 -> 248.9594952 | AQ32: ='Storage Summary'!$C$19 -> 249.8768204 | AR32: ='Storage Summary'!$C$20 -> 251.0066219 | AS32: ='Storage Summary'!$C$21 -> 252.3985341 | AT32: ='Storage Summary'!$C$22 -> 253.7644572 | AU32: ='Storage Summary'!$C$23 -> 255.1696424 | AV32: ='Storage Summary'!$C$24 -> 256.5507406 | AW32: ='Storage Summary'!$C$25 -> 257.909125 | AX32: ='Storage Summary'!$C$26 -> 257.6616687 | AY32: ='Storage Summary'!$C$27 -> 258.9185987 | AZ32: ='Storage Summary'!$C$28 -> 260.1944325 | BB32: Distribution Scale 4hr Lithium-Ion | BC32: 237.722875 | BD32: 241.6084648 | BE32: 245.5588203 | BF32: 249.5750438 | BG32: 253.658257 | BH32: 257.809601 | BI32: 262.0302368 | BJ32: 266.3213455 | BK32: 270.6841288 | BL32: 275.1198095 | BM32: 279.6296317 | BN32: 284.2148609 | BO32: 288.8767849 | BP32: 293.6167141 | BQ32: 298.4359816 | BR32: 303.3359437 | BS32: 308.3179805 | BT32: 313.3834964 | BU32: 318.5339199 | BV32: 323.770705 | BW32: 329.0953308 | BX32: 334.5093023 | BY32: 340.014151 | BZ32: 345.6114352
A33: Storage | B33: Distribution Scale 8hr Lithium-Ion | C33: 3.5 | D33: 0 | E33: 0 | F33: 0 | G33: 0 | H33: 0 | I33: 0 | J33: 0 | K33: 0 | L33: 0 | M33: 0 | N33: 0 | O33: 0 | P33: 0 | Q33: 0 | R33: 0 | S33: 0 | T33: 0 | U33: 0 | V33: 0 | W33: 0 | X33: 0 | Y33: 0 | Z33: 0 | AA33: 0 | AC33: ='Storage Summary'!$D$5 -> 516.6060633 | AD33: ='Storage Summary'!$D$6 -> 506.6198968 | AE33: ='Storage Summary'!$D$7 -> 497.5675857 | AF33: ='Storage Summary'!$D$8 -> 494.0202109 | AG33: ='Storage Summary'!$D$9 -> 491.0779587 | AH33: ='Storage Summary'!$D$10 -> 489.3742928 | AI33: ='Storage Summary'!$D$11 -> 488.2940371 | AJ33: ='Storage Summary'!$D$12 -> 487.7740474 | AK33: ='Storage Summary'!$D$13 -> 486.9817509 | AL33: ='Storage Summary'!$D$14 -> 486.3808106 | AM33: ='Storage Summary'!$D$15 -> 486.042833 | AN33: ='Storage Summary'!$D$16 -> 486.1270015 | AO33: ='Storage Summary'!$D$17 -> 486.7248701 | AP33: ='Storage Summary'!$D$18 -> 488.0578261 | AQ33: ='Storage Summary'!$D$19 -> 489.8617677 | AR33: ='Storage Summary'!$D$20 -> 492.0820897 | AS33: ='Storage Summary'!$D$21 -> 494.8160285 | AT33: ='Storage Summary'!$D$22 -> 497.499198 | AU33: ='Storage Summary'!$D$23 -> 500.2594286 | AV33: ='Storage Summary'!$D$24 -> 502.9726221 | AW33: ='Storage Summary'!$D$25 -> 505.6414712 | AX33: ='Storage Summary'!$D$26 -> 508.3099587 | AY33: ='Storage Summary'!$D$27 -> 510.9803803 | AZ33: ='Storage Summary'!$D$28 -> 513.6551561 | BB33: Distribution Scale 8hr Lithium-Ion | BC33: 377.7499133 | BD33: 374.0524106 | BE33: 371.5187616 | BF33: 370.2066321 | BG33: 369.3469858 | BH33: 368.9583318 | BI33: 368.9331166 | BJ33: 369.2802854 | BK33: 369.9373921 | BL33: 370.9915767 | BM33: 372.453545 | BN33: 374.3216779 | BO33: 376.5637377 | BP33: 379.1255179 | BQ33: 381.9035679 | BR33: 384.8308126 | BS33: 387.8413602 | BT33: 390.8423135 | BU33: 393.8358115 | BV33: 396.8363527 | BW33: 399.847973 | BX33: 402.8750337 | BY33: 405.9263151 | BZ33: 409.0114923
A34: Storage | B34: 4hr Lithium-Ion | C34: 25 | D34: 0 | E34: 0 | F34: 0 | G34: 0 | H34: 0 | I34: 0 | J34: 0 | K34: 0 | L34: 0 | M34: 0 | N34: 0 | O34: 0 | P34: 0 | Q34: 0 | R34: 0 | S34: 0 | T34: 0 | U34: 0 | V34: 0 | W34: 0 | X34: 0 | Y34: 0 | Z34: 0 | AA34: 0 | AC34: ='Storage Summary'!$E$5 -> 238.6118178 | AD34: ='Storage Summary'!$E$6 -> 233.7232834 | AE34: ='Storage Summary'!$E$7 -> 229.2759629 | AF34: ='Storage Summary'!$E$8 -> 227.4432197 | AG34: ='Storage Summary'!$E$9 -> 225.8952739 | AH34: ='Storage Summary'!$E$10 -> 224.933261 | AI34: ='Storage Summary'!$E$11 -> 224.2646227 | AJ34: ='Storage Summary'!$E$12 -> 223.8592749 | AK34: ='Storage Summary'!$E$13 -> 223.3212907 | AL34: ='Storage Summary'!$E$14 -> 222.8710656 | AM34: ='Storage Summary'!$E$15 -> 222.542582 | AN34: ='Storage Summary'!$E$16 -> 222.4114611 | AO34: ='Storage Summary'!$E$17 -> 222.5211673 | AP34: ='Storage Summary'!$E$18 -> 222.9768955 | AQ34: ='Storage Summary'!$E$19 -> 223.6530029 | AR34: ='Storage Summary'!$E$20 -> 224.5234552 | AS34: ='Storage Summary'!$E$21 -> 225.6344126 | AT34: ='Storage Summary'!$E$22 -> 226.7174517 | AU34: ='Storage Summary'!$E$23 -> 227.8332765 | AV34: ='Storage Summary'!$E$24 -> 228.9228047 | AW34: ='Storage Summary'!$E$25 -> 229.9872381 | AX34: ='Storage Summary'!$E$26 -> 231.047409 | AY34: ='Storage Summary'!$E$27 -> 232.1043271 | AZ34: ='Storage Summary'!$E$28 -> 233.1590596 | BB34: Utility Scale 4hr Lithium-Ion | BC34: 172.5896484 | BD34: 170.6911956 | BE34: 169.3433144 | BF34: 168.5733671 | BG34: 168.0156415 | BH34: 167.6788796 | BI34: 167.5118832 | BJ34: 167.5188446 | BK34: 167.6700107 | BL34: 168.0067506 | BM34: 168.5340903 | BN34: 169.251194 | BO34: 170.1426667 | BP34: 171.182666 | BQ34: 172.3219343 | BR34: 173.5285083 | BS34: 174.7709855 | BT34: 176.0051217 | BU34: 177.2318585 | BV34: 178.4580125 | BW34: 179.6854239 | BX34: 180.9160861 | BY34: 182.1540923 | BZ34: 183.4039591
A35: Storage | B35: 8hr Lithium-Ion | C35: 25 | D35: 0 | E35: 0 | F35: 0 | G35: 0 | H35: 0 | I35: 0 | J35: 0 | K35: 0 | L35: 0 | M35: 0 | N35: 0 | O35: 0 | P35: 0 | Q35: 0 | R35: 0 | S35: 0 | T35: 0 | U35: 0 | V35: 0 | W35: 0 | X35: 0 | Y35: 0 | Z35: 0 | AA35: 0 | AC35: ='Storage Summary'!$F$5 -> 439.0457448 | AD35: ='Storage Summary'!$F$6 -> 430.0508414 | AE35: ='Storage Summary'!$F$7 -> 421.8677717 | AF35: ='Storage Summary'!$F$8 -> 418.4955243 | AG35: ='Storage Summary'!$F$9 -> 415.6473039 | AH35: ='Storage Summary'!$F$10 -> 413.8772002 | AI35: ='Storage Summary'!$F$11 -> 412.6469058 | AJ35: ='Storage Summary'!$F$12 -> 411.9010658 | AK35: ='Storage Summary'!$F$13 -> 410.9111749 | AL35: ='Storage Summary'!$F$14 -> 410.0827608 | AM35: ='Storage Summary'!$F$15 -> 409.4783508 | AN35: ='Storage Summary'!$F$16 -> 409.2370884 | AO35: ='Storage Summary'!$F$17 -> 409.4389479 | AP35: ='Storage Summary'!$F$18 -> 410.2774877 | AQ35: ='Storage Summary'!$F$19 -> 411.5215254 | AR35: ='Storage Summary'!$F$20 -> 413.1231575 | AS35: ='Storage Summary'!$F$21 -> 415.1673192 | AT35: ='Storage Summary'!$F$22 -> 417.1601111 | AU35: ='Storage Summary'!$F$23 -> 419.2132287 | AV35: ='Storage Summary'!$F$24 -> 421.2179607 | AW35: ='Storage Summary'!$F$25 -> 423.1765181 | AX35: ='Storage Summary'!$F$26 -> 425.1272325 | AY35: ='Storage Summary'!$F$27 -> 427.0719618 | AZ35: ='Storage Summary'!$F$28 -> 429.0126697 | BB35: Utility Scale 8hr Lithium-Ion | BC35: 317.564953 | BD35: 314.0718 | BE35: 311.5916985 | BF35: 310.1749955 | BG35: 309.1487803 | BH35: 308.5291384 | BI35: 308.221865 | BJ35: 308.2346741 | BK35: 308.5128197 | BL35: 309.1324212 | BM35: 310.1027262 | BN35: 311.422197 | BO35: 313.0625066 | BP35: 314.9761054 | BQ35: 317.0723592 | BR35: 319.2924552 | BS35: 321.5786132 | BT35: 323.8494239 | BU35: 326.1066197 | BV35: 328.362743 | BW35: 330.6211799 | BX35: 332.8855985 | BY35: 335.1635298 | BZ35: 337.4632847
A36: Storage | B36: 16hr Lithium-Ion | C36: 25 | D36: 0 | E36: 0 | F36: 0 | G36: 0 | H36: 0 | I36: 0 | J36: 0 | K36: 0 | L36: 0 | M36: 0 | N36: 0 | O36: 0 | P36: 0 | Q36: 0 | R36: 0 | S36: 0 | T36: 0 | U36: 0 | V36: 0 | W36: 0 | X36: 0 | Y36: 0 | Z36: 0 | AA36: 0 | AC36: ='Storage Summary'!$G$5 -> 763.5578171 | AD36: ='Storage Summary'!$G$6 -> 747.9145068 | AE36: ='Storage Summary'!$G$7 -> 733.6830811 | AF36: ='Storage Summary'!$G$8 -> 727.8183031 | AG36: ='Storage Summary'!$G$9 -> 722.8648764 | AH36: ='Storage Summary'!$G$10 -> 719.7864352 | AI36: ='Storage Summary'!$G$11 -> 717.6467927 | AJ36: ='Storage Summary'!$G$12 -> 716.3496796 | AK36: ='Storage Summary'!$G$13 -> 714.6281303 | AL36: ='Storage Summary'!$G$14 -> 713.1874101 | AM36: ='Storage Summary'!$G$15 -> 712.1362623 | AN36: ='Storage Summary'!$G$16 -> 711.7166756 | AO36: ='Storage Summary'!$G$17 -> 712.0677355 | AP36: ='Storage Summary'!$G$18 -> 713.5260656 | AQ36: ='Storage Summary'!$G$19 -> 715.6896094 | AR36: ='Storage Summary'!$G$20 -> 718.4750565 | AS36: ='Storage Summary'!$G$21 -> 722.0301204 | AT36: ='Storage Summary'!$G$22 -> 725.4958454 | AU36: ='Storage Summary'!$G$23 -> 729.0664847 | AV36: ='Storage Summary'!$G$24 -> 732.5529751 | AW36: ='Storage Summary'!$G$25 -> 735.9591619 | AX36: ='Storage Summary'!$G$26 -> 739.3517087 | AY36: ='Storage Summary'!$G$27 -> 742.7338466 | AZ36: ='Storage Summary'!$G$28 -> 746.1089907 | BB36: Utility Sclae 16hr Lithium-Ion | BC36: 552.2868748 | BD36: 546.211826 | BE36: 541.8986061 | BF36: 539.4347749 | BG36: 537.6500528 | BH36: 536.5724146 | BI36: 536.0380261 | BJ36: 536.0603028 | BK36: 536.5440343 | BL36: 537.621602 | BM36: 539.309089 | BN36: 541.6038209 | BO36: 544.4565333 | BP36: 547.7845311 | BQ36: 551.4301899 | BR36: 555.2912265 | BS36: 559.2671534 | BT36: 563.2163894 | BU36: 567.1419473 | BV36: 571.0656399 | BW36: 574.9933563 | BX36: 578.9314756 | BY36: 582.8930953 | BZ36: 586.8926691
A37: Storage | B37: Pumped Hydro Option 1 - owned | C37: 50 | D37: 0 | E37: 0 | F37: 0 | G37: 0 | H37: 0 | I37: 0 | J37: 0 | K37: 0 | L37: 0 | M37: 0 | N37: 0 | O37: 0 | P37: 0 | Q37: 0 | R37: 0 | S37: 0 | T37: 0 | U37: 0 | V37: 0 | W37: 0 | X37: 0 | Y37: 0 | Z37: 0 | AA37: 0 | AC37: ='Storage Summary'!$K$5 -> 420.203269 | AD37: ='Storage Summary'!$K$6 -> 426.5616917 | AE37: ='Storage Summary'!$K$7 -> 433.0168027 | AF37: ='Storage Summary'!$K$8 -> 439.5700818 | AG37: ='Storage Summary'!$K$9 -> 446.2230313 | AH37: ='Storage Summary'!$K$10 -> 452.9771768 | AI37: ='Storage Summary'!$K$11 -> 459.8340676 | AJ37: ='Storage Summary'!$K$12 -> 466.7952767 | AK37: ='Storage Summary'!$K$13 -> 473.8624014 | AL37: ='Storage Summary'!$K$14 -> 481.0370637 | AM37: ='Storage Summary'!$K$15 -> 488.3209108 | AN37: ='Storage Summary'!$K$16 -> 495.7156151 | AO37: ='Storage Summary'!$K$17 -> 503.2228749 | AP37: ='Storage Summary'!$K$18 -> 510.8444149 | AQ37: ='Storage Summary'!$K$19 -> 518.5819862 | AR37: ='Storage Summary'!$K$20 -> 526.4373671 | AS37: ='Storage Summary'!$K$21 -> 534.4123633 | AT37: ='Storage Summary'!$K$22 -> 542.5088086 | AU37: ='Storage Summary'!$K$23 -> 550.728565 | AV37: ='Storage Summary'!$K$24 -> 559.0735232 | AW37: ='Storage Summary'!$K$25 -> 567.5456033 | AX37: ='Storage Summary'!$K$26 -> 576.1467551 | AY37: ='Storage Summary'!$K$27 -> 584.8789586 | AZ37: ='Storage Summary'!$K$28 -> 593.7442242
A38: Storage | B38: Pumped Hydro Option 2 - owned | C38: 50 | D38: 0 | E38: 0 | F38: 0 | G38: 0 | H38: 0 | I38: 0 | J38: 0 | K38: 0 | L38: 0 | M38: 0 | N38: 0 | O38: 0 | P38: 0 | Q38: 0 | R38: 0 | S38: 0 | T38: 0 | U38: 0 | V38: 0 | W38: 0 | X38: 0 | Y38: 0 | Z38: 0 | AA38: 0 | AC38: ='Storage Summary'!$L$5 -> 437.7601151 | AD38: ='Storage Summary'!$L$6 -> 444.3801348 | AE38: ='Storage Summary'!$L$7 -> 451.1007407 | AF38: ='Storage Summary'!$L$8 -> 457.9234705 | AG38: ='Storage Summary'!$L$9 -> 464.8498854 | AH38: ='Storage Summary'!$L$10 -> 471.8815711 | AI38: ='Storage Summary'!$L$11 -> 479.0201374 | AJ38: ='Storage Summary'!$L$12 -> 486.2672189 | AK38: ='Storage Summary'!$L$13 -> 493.6244755 | AL38: ='Storage Summary'!$L$14 -> 501.0935928 | AM38: ='Storage Summary'!$L$15 -> 508.6762821 | AN38: ='Storage Summary'!$L$16 -> 516.3742814 | AO38: ='Storage Summary'!$L$17 -> 524.1893554 | AP38: ='Storage Summary'!$L$18 -> 532.1232959 | AQ38: ='Storage Summary'!$L$19 -> 540.1779226 | AR38: ='Storage Summary'!$L$20 -> 548.3550829 | AS38: ='Storage Summary'!$L$21 -> 556.6566531 | AT38: ='Storage Summary'!$L$22 -> 565.0845383 | AU38: ='Storage Summary'!$L$23 -> 573.640673 | AV38: ='Storage Summary'!$L$24 -> 582.3270217 | AW38: ='Storage Summary'!$L$25 -> 591.1455789 | AX38: ='Storage Summary'!$L$26 -> 600.0983704 | AY38: ='Storage Summary'!$L$27 -> 609.1874529 | AZ38: ='Storage Summary'!$L$28 -> 618.4149151
A39: Storage | B39: Pumped Hydro Option 3 - PPA | C39: 50 | D39: ='PPA Summary'!$X$63 -> 5 | E39: ='PPA Summary'!$X$64 -> 5.1 | F39: ='PPA Summary'!$X$65 -> 5.202 | G39: ='PPA Summary'!$X$66 -> 5.30604 | H39: ='PPA Summary'!$X$67 -> 5.4121608 | I39: ='PPA Summary'!$X$68 -> 5.520404016 | J39: ='PPA Summary'!$X$69 -> 5.630812096 | K39: ='PPA Summary'!$X$70 -> 5.743428338 | L39: ='PPA Summary'!$X$71 -> 5.858296905 | M39: ='PPA Summary'!$X$72 -> 5.975462843 | N39: ='PPA Summary'!$X$73 -> 6.0949721 | O39: ='PPA Summary'!$X$74 -> 6.216871542 | P39: ='PPA Summary'!$X$75 -> 6.341208973 | Q39: ='PPA Summary'!$X$76 -> 6.468033152 | R39: ='PPA Summary'!$X$77 -> 6.597393815 | S39: ='PPA Summary'!$X$78 -> 6.729341692 | T39: ='PPA Summary'!$X$79 -> 6.863928525 | U39: ='PPA Summary'!$X$80 -> 7.001207096 | V39: ='PPA Summary'!$X$81 -> 7.141231238 | W39: ='PPA Summary'!$X$82 -> 7.284055863 | X39: ='PPA Summary'!$X$83 -> 7.42973698 | Y39: ='PPA Summary'!$X$84 -> 7.578331719 | Z39: ='PPA Summary'!$X$85 -> 7.729898354 | AA39: ='PPA Summary'!$X$86 -> 7.884496321 | AC39: ='PPA Summary'!$Y$63*12 -> 261.0881876 | AD39: ='PPA Summary'!$Y$64*12 -> 264.8854584 | AE39: ='PPA Summary'!$Y$65*12 -> 268.7374496 | AF39: ='PPA Summary'!$Y$66*12 -> 272.6449394 | AG39: ='PPA Summary'!$Y$67*12 -> 276.6087169 | AH39: ='PPA Summary'!$Y$68*12 -> 280.6295821 | AI39: ='PPA Summary'!$Y$69*12 -> 284.708346 | AJ39: ='PPA Summary'!$Y$70*12 -> 288.8458311 | AK39: ='PPA Summary'!$Y$71*12 -> 293.0428714 | AL39: ='PPA Summary'!$Y$72*12 -> 297.3003124 | AM39: ='PPA Summary'!$Y$73*12 -> 301.6190113 | AN39: ='PPA Summary'!$Y$74*12 -> 305.9998373 | AO39: ='PPA Summary'!$Y$75*12 -> 310.4436716 | AP39: ='PPA Summary'!$Y$76*12 -> 314.9514078 | AQ39: ='PPA Summary'!$Y$77*12 -> 319.5239518 | AR39: ='PPA Summary'!$Y$78*12 -> 324.162222 | AS39: ='PPA Summary'!$Y$79*12 -> 328.8671497 | AT39: ='PPA Summary'!$Y$80*12 -> 333.6396791 | AU39: ='PPA Summary'!$Y$81*12 -> 338.4807673 | AV39: ='PPA Summary'!$Y$82*12 -> 343.3913849 | AW39: ='PPA Summary'!$Y$83*12 -> 348.3725158 | AX39: ='PPA Summary'!$Y$84*12 -> 353.4251575 | AY39: ='PPA Summary'!$Y$85*12 -> 358.5503214 | AZ39: ='PPA Summary'!$Y$86*12 -> 363.7490328
A40: Storage | B40: Pumped Hydro Option 4 - PPA | C40: 50 | D40: ='PPA Summary'!$AB$63 -> 5 | E40: ='PPA Summary'!$AB$64 -> 5.1 | F40: ='PPA Summary'!$AB$65 -> 5.202 | G40: ='PPA Summary'!$AB$66 -> 5.30604 | H40: ='PPA Summary'!$AB$67 -> 5.4121608 | I40: ='PPA Summary'!$AB$68 -> 5.520404016 | J40: ='PPA Summary'!$AB$69 -> 5.630812096 | K40: ='PPA Summary'!$AB$70 -> 5.743428338 | L40: ='PPA Summary'!$AB$71 -> 5.858296905 | M40: ='PPA Summary'!$AB$72 -> 5.975462843 | N40: ='PPA Summary'!$AB$73 -> 6.0949721 | O40: ='PPA Summary'!$AB$74 -> 6.216871542 | P40: ='PPA Summary'!$AB$75 -> 6.341208973 | Q40: ='PPA Summary'!$AB$76 -> 6.468033152 | R40: ='PPA Summary'!$AB$77 -> 6.597393815 | S40: ='PPA Summary'!$AB$78 -> 6.729341692 | T40: ='PPA Summary'!$AB$79 -> 6.863928525 | U40: ='PPA Summary'!$AB$80 -> 7.001207096 | V40: ='PPA Summary'!$AB$81 -> 7.141231238 | W40: ='PPA Summary'!$AB$82 -> 7.284055863 | X40: ='PPA Summary'!$AB$83 -> 7.42973698 | Y40: ='PPA Summary'!$AB$84 -> 7.578331719 | Z40: ='PPA Summary'!$AB$85 -> 7.729898354 | AA40: ='PPA Summary'!$AB$86 -> 7.884496321 | AC40: ='PPA Summary'!$AC$63*12 -> 279.3087352 | AD40: ='PPA Summary'!$AC$64*12 -> 283.4955461 | AE40: ='PPA Summary'!$AC$65*12 -> 287.7461786 | AF40: ='PPA Summary'!$AC$66*12 -> 292.0606771 | AG40: ='PPA Summary'!$AC$67*12 -> 296.4393607 | AH40: ='PPA Summary'!$AC$68*12 -> 300.8838264 | AI40: ='PPA Summary'!$AC$69*12 -> 305.395065 | AJ40: ='PPA Summary'!$AC$70*12 -> 309.9740824 | AK40: ='PPA Summary'!$AC$71*12 -> 314.6218998 | AL40: ='PPA Summary'!$AC$72*12 -> 319.3395538 | AM40: ='PPA Summary'!$AC$73*12 -> 324.1280966 | AN40: ='PPA Summary'!$AC$74*12 -> 328.9885963 | AO40: ='PPA Summary'!$AC$75*12 -> 333.9221373 | AP40: ='PPA Summary'!$AC$76*12 -> 338.9298202 | AQ40: ='PPA Summary'!$AC$77*12 -> 344.0127625 | AR40: ='PPA Summary'!$AC$78*12 -> 349.1720984 | AS40: ='PPA Summary'!$AC$79*12 -> 354.4089794 | AT40: ='PPA Summary'!$AC$80*12 -> 359.7245741 | AU40: ='PPA Summary'!$AC$81*12 -> 365.1200693 | AV40: ='PPA Summary'!$AC$82*12 -> 370.5966693 | AW40: ='PPA Summary'!$AC$83*12 -> 376.1555969 | AX40: ='PPA Summary'!$AC$84*12 -> 381.7980932 | AY40: ='PPA Summary'!$AC$85*12 -> 387.5254183 | AZ40: ='PPA Summary'!$AC$86*12 -> 393.3388513
A41: Storage | B41: Pumped Hydro Option 5 - PPA | C41: 25 | D41: ='PPA Summary'!$AF$63 -> 5 | E41: ='PPA Summary'!$AF$64 -> 5.1 | F41: ='PPA Summary'!$AF$65 -> 5.202 | G41: ='PPA Summary'!$AF$66 -> 5.30604 | H41: ='PPA Summary'!$AF$67 -> 5.4121608 | I41: ='PPA Summary'!$AF$68 -> 5.520404016 | J41: ='PPA Summary'!$AF$69 -> 5.630812096 | K41: ='PPA Summary'!$AF$70 -> 5.743428338 | L41: ='PPA Summary'!$AF$71 -> 5.858296905 | M41: ='PPA Summary'!$AF$72 -> 5.975462843 | N41: ='PPA Summary'!$AF$73 -> 6.0949721 | O41: ='PPA Summary'!$AF$74 -> 6.216871542 | P41: ='PPA Summary'!$AF$75 -> 6.341208973 | Q41: ='PPA Summary'!$AF$76 -> 6.468033152 | R41: ='PPA Summary'!$AF$77 -> 6.597393815 | S41: ='PPA Summary'!$AF$78 -> 6.729341692 | T41: ='PPA Summary'!$AF$79 -> 6.863928525 | U41: ='PPA Summary'!$AF$80 -> 7.001207096 | V41: ='PPA Summary'!$AF$81 -> 7.141231238 | W41: ='PPA Summary'!$AF$82 -> 7.284055863 | X41: ='PPA Summary'!$AF$83 -> 7.42973698 | Y41: ='PPA Summary'!$AF$84 -> 7.578331719 | Z41: ='PPA Summary'!$AF$85 -> 7.729898354 | AA41: ='PPA Summary'!$AF$86 -> 7.884496321 | AC41: ='PPA Summary'!$AG$63*12 -> 182.2711604 | AD41: ='PPA Summary'!$AG$64*12 -> 184.9838799 | AE41: ='PPA Summary'!$AG$65*12 -> 187.7369564 | AF41: ='PPA Summary'!$AG$66*12 -> 190.5309902 | AG41: ='PPA Summary'!$AG$67*12 -> 193.3665901 | AH41: ='PPA Summary'!$AG$68*12 -> 196.2443742 | AI41: ='PPA Summary'!$AG$69*12 -> 199.1649697 | AJ41: ='PPA Summary'!$AG$70*12 -> 202.1290132 | AK41: ='PPA Summary'!$AG$71*12 -> 205.1371506 | AL41: ='PPA Summary'!$AG$72*12 -> 208.1900376 | AM41: ='PPA Summary'!$AG$73*12 -> 211.2883395 | AN41: ='PPA Summary'!$AG$74*12 -> 214.4327315 | AO41: ='PPA Summary'!$AG$75*12 -> 217.6238988 | AP41: ='PPA Summary'!$AG$76*12 -> 220.8625369 | AQ41: ='PPA Summary'!$AG$77*12 -> 224.1493516 | AR41: ='PPA Summary'!$AG$78*12 -> 227.4850591 | AS41: ='PPA Summary'!$AG$79*12 -> 230.8703862 | AT41: ='PPA Summary'!$AG$80*12 -> 234.3060707 | AU41: ='PPA Summary'!$AG$81*12 -> 237.7928613 | AV41: ='PPA Summary'!$AG$82*12 -> 241.3315176 | AW41: ='PPA Summary'!$AG$83*12 -> 244.9228107 | AX41: ='PPA Summary'!$AG$84*12 -> 248.5674986 | AY41: ='PPA Summary'!$AG$85*12 -> 252.2663991 | AZ41: ='PPA Summary'!$AG$86*12 -> 256.0203184
A42: Storage | B42: Pumped Hydro Option 6 - PPA | C42: 25 | D42: ='PPA Summary'!$AJ$63 -> 5 | E42: ='PPA Summary'!$AJ$64 -> 5.1 | F42: ='PPA Summary'!$AJ$65 -> 5.202 | G42: ='PPA Summary'!$AJ$66 -> 5.30604 | H42: ='PPA Summary'!$AJ$67 -> 5.4121608 | I42: ='PPA Summary'!$AJ$68 -> 5.520404016 | J42: ='PPA Summary'!$AJ$69 -> 5.630812096 | K42: ='PPA Summary'!$AJ$70 -> 5.743428338 | L42: ='PPA Summary'!$AJ$71 -> 5.858296905 | M42: ='PPA Summary'!$AJ$72 -> 5.975462843 | N42: ='PPA Summary'!$AJ$73 -> 6.0949721 | O42: ='PPA Summary'!$AJ$74 -> 6.216871542 | P42: ='PPA Summary'!$AJ$75 -> 6.341208973 | Q42: ='PPA Summary'!$AJ$76 -> 6.468033152 | R42: ='PPA Summary'!$AJ$77 -> 6.597393815 | S42: ='PPA Summary'!$AJ$78 -> 6.729341692 | T42: ='PPA Summary'!$AJ$79 -> 6.863928525 | U42: ='PPA Summary'!$AJ$80 -> 7.001207096 | V42: ='PPA Summary'!$AJ$81 -> 7.141231238 | W42: ='PPA Summary'!$AJ$82 -> 7.284055863 | X42: ='PPA Summary'!$AJ$83 -> 7.42973698 | Y42: ='PPA Summary'!$AJ$84 -> 7.578331719 | Z42: ='PPA Summary'!$AJ$85 -> 7.729898354 | AA42: ='PPA Summary'!$AJ$86 -> 7.884496321 | AC42: ='PPA Summary'!$AK$63*12 -> 301.8468103 | AD42: ='PPA Summary'!$AK$64*12 -> 306.3578593 | AE42: ='PPA Summary'!$AK$65*12 -> 310.9363936 | AF42: ='PPA Summary'!$AK$66*12 -> 315.5834242 | AG42: ='PPA Summary'!$AK$67*12 -> 320.2999771 | AH42: ='PPA Summary'!$AK$68*12 -> 325.0870939 | AI42: ='PPA Summary'!$AK$69*12 -> 329.9458318 | AJ42: ='PPA Summary'!$AK$70*12 -> 334.8772636 | AK42: ='PPA Summary'!$AK$71*12 -> 339.8824786 | AL42: ='PPA Summary'!$AK$72*12 -> 344.962182 | AM42: ='PPA Summary'!$AK$73*12 -> 350.117882 | AN42: ='PPA Summary'!$AK$74*12 -> 355.3507172 | AO42: ='PPA Summary'!$AK$75*12 -> 360.6618433 | AP42: ='PPA Summary'!$AK$76*12 -> 366.0524331 | AQ42: ='PPA Summary'!$AK$77*12 -> 371.5236773 | AR42: ='PPA Summary'!$AK$78*12 -> 377.0767843 | AS42: ='PPA Summary'!$AK$79*12 -> 382.7129807 | AT42: ='PPA Summary'!$AK$80*12 -> 388.4335114 | AU42: ='PPA Summary'!$AK$81*12 -> 394.2396402 | AV42: ='PPA Summary'!$AK$82*12 -> 400.1326497 | AW42: ='PPA Summary'!$AK$83*12 -> 406.1138418 | AX42: ='PPA Summary'!$AK$84*12 -> 412.184538 | AY42: ='PPA Summary'!$AK$85*12 -> 418.3460795 | AZ42: ='PPA Summary'!$AK$86*12 -> 424.5998279
A43: Storage | B43: 4 hr Vanadium Flow Battery | C43: 25 | D43: 0 | E43: 0 | F43: 0 | G43: 0 | H43: 0 | I43: 0 | J43: 0 | K43: 0 | L43: 0 | M43: 0 | N43: 0 | O43: 0 | P43: 0 | Q43: 0 | R43: 0 | S43: 0 | T43: 0 | U43: 0 | V43: 0 | W43: 0 | X43: 0 | Y43: 0 | Z43: 0 | AA43: 0 | AC43: ='Storage Summary'!$H$5 -> 237.8796206 | AD43: ='Storage Summary'!$H$6 -> 233.8313035 | AE43: ='Storage Summary'!$H$7 -> 230.1933111 | AF43: ='Storage Summary'!$H$8 -> 230.1933111 | AG43: ='Storage Summary'!$H$9 -> 227.5328319 | AH43: ='Storage Summary'!$H$10 -> 227.5328319 | AI43: ='Storage Summary'!$H$11 -> 227.3734289 | AJ43: ='Storage Summary'!$H$12 -> 227.4630196 | AK43: ='Storage Summary'!$H$13 -> 227.4408922 | AL43: ='Storage Summary'!$H$14 -> 227.5081232 | AM43: ='Storage Summary'!$H$15 -> 227.6958754 | AN43: ='Storage Summary'!$H$16 -> 228.0732695 | AO43: ='Storage Summary'!$H$17 -> 228.6801187 | AP43: ='Storage Summary'!$H$18 -> 229.6125081 | AQ43: ='Storage Summary'!$H$19 -> 230.7561156 | AR43: ='Storage Summary'!$H$20 -> 232.0874173 | AS43: ='Storage Summary'!$H$21 -> 233.6486999 | AT43: ='Storage Summary'!$H$22 -> 235.1955071 | AU43: ='Storage Summary'!$H$23 -> 236.7833911 | AV43: ='Storage Summary'!$H$24 -> 238.3587213 | AW43: ='Storage Summary'!$H$25 -> 239.9228215 | AX43: ='Storage Summary'!$H$26 -> 241.4949135 | AY43: ='Storage Summary'!$H$27 -> 243.0761552 | AZ43: ='Storage Summary'!$H$28 -> 244.6677617
A44: Storage | B44: 4 hr Zinc Bromide Flow Battery | C44: 25 | D44: 0 | E44: 0 | F44: 0 | G44: 0 | H44: 0 | I44: 0 | J44: 0 | K44: 0 | L44: 0 | M44: 0 | N44: 0 | O44: 0 | P44: 0 | Q44: 0 | R44: 0 | S44: 0 | T44: 0 | U44: 0 | V44: 0 | W44: 0 | X44: 0 | Y44: 0 | Z44: 0 | AA44: 0 | AC44: ='Storage Summary'!$I$5 -> 283.6817777 | AD44: ='Storage Summary'!$I$6 -> 278.5994938 | AE44: ='Storage Summary'!$I$7 -> 274.0156483 | AF44: ='Storage Summary'!$I$8 -> 272.3501222 | AG44: ='Storage Summary'!$I$9 -> 271.0091777 | AH44: ='Storage Summary'!$I$10 -> 270.3282373 | AI44: ='Storage Summary'!$I$11 -> 269.981731 | AJ44: ='Storage Summary'!$I$12 -> 269.9363205 | AK44: ='Storage Summary'!$I$13 -> 269.7513557 | AL44: ='Storage Summary'!$I$14 -> 269.6723785 | AM44: ='Storage Summary'!$I$15 -> 269.7373891 | AN44: ='Storage Summary'!$I$16 -> 270.0307502 | AO44: ='Storage Summary'!$I$17 -> 270.6010256 | AP44: ='Storage Summary'!$I$18 -> 271.5655108 | AQ44: ='Storage Summary'!$I$19 -> 272.7844994 | AR44: ='Storage Summary'!$I$20 -> 274.2291885 | AS44: ='Storage Summary'!$I$21 -> 275.951158 | AT44: ='Storage Summary'!$I$22 -> 277.6517456 | AU44: ='Storage Summary'!$I$23 -> 279.3987311 | AV44: ='Storage Summary'!$I$24 -> 281.1265324 | AW44: ='Storage Summary'!$I$25 -> 282.8366894 | AX44: ='Storage Summary'!$I$26 -> 284.5526018 | AY44: ='Storage Summary'!$I$27 -> 286.2756039 | AZ44: ='Storage Summary'!$I$28 -> 288.0070982
A45: Hydrogen | B45: Hydrogen Gas Turbine with 40 Hrs Storage | C45: 25 | D45: 0 | E45: 0 | F45: 0 | G45: 0 | H45: 0 | I45: 0 | J45: 0 | K45: 0 | L45: 0 | M45: 0 | N45: 0 | O45: 0 | P45: 0 | Q45: 0 | R45: 0 | S45: 0 | T45: 0 | U45: 0 | V45: 0 | W45: 0 | X45: 0 | Y45: 0 | Z45: 0 | AA45: 0 | AC45: ='ID Fuel Gen'!C$390 -> 176.4449102 | AD45: ='ID Fuel Gen'!Z$390 -> 176.5615148 | AE45: ='ID Fuel Gen'!AW$390 -> 176.6804515 | AF45: ='ID Fuel Gen'!BT$390 -> 176.801767 | AG45: ='ID Fuel Gen'!CQ$390 -> 176.9255088 | AH45: ='ID Fuel Gen'!DN$390 -> 177.0517254 | AI45: ='ID Fuel Gen'!EK$390 -> 177.1804663 | AJ45: ='ID Fuel Gen'!FH$390 -> 177.3117821 | AK45: ='ID Fuel Gen'!GE$390 -> 177.4457242 | AL45: ='ID Fuel Gen'!HB$390 -> 177.5823451 | AM45: ='ID Fuel Gen'!HY$390 -> 177.7216984 | AN45: ='ID Fuel Gen'!IV$390 -> 177.8638388 | AO45: ='ID Fuel Gen'!JS$390 -> 178.008822 | AP45: ='ID Fuel Gen'!KP$390 -> 178.1567049 | AQ45: ='ID Fuel Gen'!LM$390 -> 178.3075455 | AR45: ='ID Fuel Gen'!MJ$390 -> 178.4614028 | AS45: ='ID Fuel Gen'!NG$390 -> 178.6183373 | AT45: ='ID Fuel Gen'!OD$390 -> 178.7784105 | AU45: ='ID Fuel Gen'!PA$390 -> 178.9416851 | AV45: ='ID Fuel Gen'!PX$390 -> 179.1082253 | AW45: ='ID Fuel Gen'!QU$390 -> 179.2780962 | AX45: ='ID Fuel Gen'!RR$390 -> 179.4513646 | AY45: ='ID Fuel Gen'!SO$390 -> 179.6280983 | AZ45: ='ID Fuel Gen'!TL$390 -> 179.8083667
A46: Hydrogen | B46: Hydrogen Fuel Cell with 40 Hrs Storage | C46: 25 | D46: 0 | E46: 0 | F46: 0 | G46: 0 | H46: 0 | I46: 0 | J46: 0 | K46: 0 | L46: 0 | M46: 0 | N46: 0 | O46: 0 | P46: 0 | Q46: 0 | R46: 0 | S46: 0 | T46: 0 | U46: 0 | V46: 0 | W46: 0 | X46: 0 | Y46: 0 | Z46: 0 | AA46: 0 | AC46: ='ID Fuel Gen'!C$357 -> 836.5971984 | AD46: ='ID Fuel Gen'!Z$357 -> 840.479609 | AE46: ='ID Fuel Gen'!AW$357 -> 844.4396678 | AF46: ='ID Fuel Gen'!BT$357 -> 848.4789278 | AG46: ='ID Fuel Gen'!CQ$357 -> 852.598973 | AH46: ='ID Fuel Gen'!DN$357 -> 856.801419 | AI46: ='ID Fuel Gen'!EK$357 -> 861.087914 | AJ46: ='ID Fuel Gen'!FH$357 -> 865.4601389 | AK46: ='ID Fuel Gen'!GE$357 -> 869.9198083 | AL46: ='ID Fuel Gen'!HB$357 -> 874.4686711 | AM46: ='ID Fuel Gen'!HY$357 -> 879.1085111 | AN46: ='ID Fuel Gen'!IV$357 -> 883.841148 | AO46: ='ID Fuel Gen'!JS$357 -> 888.6684375 | AP46: ='ID Fuel Gen'!KP$357 -> 893.5922729 | AQ46: ='ID Fuel Gen'!LM$357 -> 898.614585 | AR46: ='ID Fuel Gen'!MJ$357 -> 903.7373433 | AS46: ='ID Fuel Gen'!NG$357 -> 908.9625568 | AT46: ='ID Fuel Gen'!OD$357 -> 914.2922745 | AU46: ='ID Fuel Gen'!PA$357 -> 919.7285866 | AV46: ='ID Fuel Gen'!PX$357 -> 925.273625 | AW46: ='ID Fuel Gen'!QU$357 -> 930.9295641 | AX46: ='ID Fuel Gen'!RR$357 -> 936.698622 | AY46: ='ID Fuel Gen'!SO$357 -> 942.583061 | AZ46: ='ID Fuel Gen'!TL$357 -> 948.5851889
A47: Storage | B47: Liquid Air | C47: 25 | D47: 0 | E47: 0 | F47: 0 | G47: 0 | H47: 0 | I47: 0 | J47: 0 | K47: 0 | L47: 0 | M47: 0 | N47: 0 | O47: 0 | P47: 0 | Q47: 0 | R47: 0 | S47: 0 | T47: 0 | U47: 0 | V47: 0 | W47: 0 | X47: 0 | Y47: 0 | Z47: 0 | AA47: 0 | AC47: ='Storage Summary'!$J$5 -> 251.6957505 | AD47: ='Storage Summary'!$J$6 -> 256.7296656 | AE47: ='Storage Summary'!$J$7 -> 261.8642589 | AF47: ='Storage Summary'!$J$8 -> 267.101544 | AG47: ='Storage Summary'!$J$9 -> 272.4435749 | AH47: ='Storage Summary'!$J$10 -> 277.8924464 | AI47: ='Storage Summary'!$J$11 -> 283.4502954 | AJ47: ='Storage Summary'!$J$12 -> 289.1193013 | AK47: ='Storage Summary'!$J$13 -> 294.9016873 | AL47: ='Storage Summary'!$J$14 -> 300.799721 | AM47: ='Storage Summary'!$J$15 -> 306.8157155 | AN47: ='Storage Summary'!$J$16 -> 312.9520298 | AO47: ='Storage Summary'!$J$17 -> 319.2110704 | AP47: ='Storage Summary'!$J$18 -> 325.5952918 | AQ47: ='Storage Summary'!$J$19 -> 332.1071976 | AR47: ='Storage Summary'!$J$20 -> 338.7493416 | AS47: ='Storage Summary'!$J$21 -> 345.5243284 | AT47: ='Storage Summary'!$J$22 -> 352.4348149 | AU47: ='Storage Summary'!$J$23 -> 359.4835112 | AV47: ='Storage Summary'!$J$24 -> 366.6731815 | AW47: ='Storage Summary'!$J$25 -> 374.0066451 | AX47: ='Storage Summary'!$J$26 -> 381.486778 | AY47: ='Storage Summary'!$J$27 -> 389.1165136 | AZ47: ='Storage Summary'!$J$28 -> 396.8988438
A48: Nuclear | B48: Small Nuclear (share) | C48: 50 | D48: ='PPA Summary'!$Q63 -> 82.19411747 | E48: ='PPA Summary'!$Q64 -> 83.61072305 | F48: ='PPA Summary'!$Q65 -> 85.08101109 | G48: ='PPA Summary'!$Q66 -> 86.47896218 | H48: ='PPA Summary'!$Q67 -> 87.90416106 | I48: ='PPA Summary'!$Q68 -> 89.35770506 | J48: ='PPA Summary'!$Q69 -> 90.84076015 | K48: ='PPA Summary'!$Q70 -> 92.3774005 | L48: ='PPA Summary'!$Q71 -> 93.94792873 | M48: ='PPA Summary'!$Q72 -> 95.48966965 | N48: ='PPA Summary'!$Q73 -> 96.96297717 | O48: ='PPA Summary'!$Q74 -> 98.46752118 | P48: ='PPA Summary'!$Q75 -> 100.0273254 | Q48: ='PPA Summary'!$Q76 -> 101.6226452 | R48: ='PPA Summary'!$Q77 -> 103.254972 | S48: ='PPA Summary'!$Q78 -> 104.9258956 | T48: ='PPA Summary'!$Q79 -> 106.5535131 | U48: ='PPA Summary'!$Q80 -> 108.2165477 | V48: ='PPA Summary'!$Q81 -> 109.916398 | W48: ='PPA Summary'!$Q82 -> 111.644141 | X48: ='PPA Summary'!$Q83 -> 113.4345268 | Y48: ='PPA Summary'!$Q84 -> 115.2682385 | Z48: ='PPA Summary'!$Q85 -> 117.0407926 | AA48: ='PPA Summary'!$Q86 -> 118.8750923 | AC48: 0 | AD48: 0 | AE48: 0 | AF48: 0 | AG48: 0 | AH48: 0 | AI48: 0 | AJ48: 0 | AK48: 0 | AL48: 0 | AM48: 0 | AN48: 0 | AO48: 0 | AP48: 0 | AQ48: 0 | AR48: 0 | AS48: 0 | AT48: 0 | AU48: 0 | AV48: 0 | AW48: 0 | AX48: 0 | AY48: 0 | AZ48: 0
A49: Geothermal | B49: Geothermal (Off System) | C49: 20 | D49: ='PPA Summary'!$U63 -> 81.08140469 | E49: ='PPA Summary'!$U64 -> 82.4804224 | F49: ='PPA Summary'!$U65 -> 83.90410358 | G49: ='PPA Summary'!$U66 -> 85.35289208 | H49: ='PPA Summary'!$U67 -> 86.82723987 | I49: ='PPA Summary'!$U68 -> 88.32760723 | J49: ='PPA Summary'!$U69 -> 89.8544629 | K49: ='PPA Summary'!$U70 -> 91.4082842 | L49: ='PPA Summary'!$U71 -> 92.98955724 | M49: ='PPA Summary'!$U72 -> 94.59877704 | N49: ='PPA Summary'!$U73 -> 96.23644772 | O49: ='PPA Summary'!$U74 -> 97.90308268 | P49: ='PPA Summary'!$U75 -> 99.59920473 | Q49: ='PPA Summary'!$U76 -> 101.3253463 | R49: ='PPA Summary'!$U77 -> 103.0820497 | S49: ='PPA Summary'!$U78 -> 104.8698671 | T49: ='PPA Summary'!$U79 -> 106.6893608 | U49: ='PPA Summary'!$U80 -> 108.5411036 | V49: ='PPA Summary'!$U81 -> 110.4256789 | W49: ='PPA Summary'!$U82 -> 112.3436806 | X49: ='PPA Summary'!$U83 -> 114.2957137 | Y49: ='PPA Summary'!$U84 -> 116.2823943 | Z49: ='PPA Summary'!$U85 -> 118.3043499 | AA49: ='PPA Summary'!$U86 -> 120.3622197 | AC49: 0 | AD49: 0 | AE49: 0 | AF49: 0 | AG49: 0 | AH49: 0 | AI49: 0 | AJ49: 0 | AK49: 0 | AL49: 0 | AM49: 0 | AN49: 0 | AO49: 0 | AP49: 0 | AQ49: 0 | AR49: 0 | AS49: 0 | AT49: 0 | AU49: 0 | AV49: 0 | AW49: 0 | AX49: 0 | AY49: 0 | AZ49: 0
A50: Wood | B50: Wood Biomass | C50: 25 | D50: 0 | E50: 0 | F50: 0 | G50: 0 | H50: 0 | I50: 0 | J50: 0 | K50: 0 | L50: 0 | M50: 0 | N50: 0 | O50: 0 | P50: 0 | Q50: 0 | R50: 0 | S50: 0 | T50: 0 | U50: 0 | V50: 0 | W50: 0 | X50: 0 | Y50: 0 | Z50: 0 | AA50: 0 | AC50: =Upgrades!$EK$38 -> 335.6216624 | AD50: =Upgrades!$EK$76 -> 342.3340957 | AE50: =Upgrades!$EK$114 -> 349.1807776 | AF50: =Upgrades!$EK$152 -> 356.1643932 | AG50: =Upgrades!$EK$190 -> 363.287681 | AH50: =Upgrades!$EK$228 -> 370.5534346 | AI50: =Upgrades!$EK$266 -> 377.9645033 | AJ50: =Upgrades!$EK$304 -> 385.5237934 | AK50: =Upgrades!$EK$342 -> 393.2342693 | AL50: =Upgrades!$EK$380 -> 401.0989547 | AM50: =Upgrades!$EK$418 -> 409.1209338 | AN50: =Upgrades!$EK$456 -> 417.3033524 | AO50: =Upgrades!$EK$494 -> 425.6494195 | AP50: =Upgrades!$EK$532 -> 434.1624079 | AQ50: =Upgrades!$EK$570 -> 442.845656 | AR50: =Upgrades!$EK$608 -> 451.7025691 | AS50: =Upgrades!$EK$646 -> 460.7366205 | AT50: =Upgrades!$EK$684 -> 469.9513529 | AU50: =Upgrades!$EK$722 -> 479.35038 | AV50: =Upgrades!$EK$760 -> 488.9373876 | AW50: =Upgrades!$EK$798 -> 498.7161353 | AX50: =Upgrades!$EK$836 -> 508.6904581 | AY50: =Upgrades!$EK$874 -> 518.8642672 | AZ50: =Upgrades!$EK$912 -> 529.2415526
A51: Wood | B51: Kettle Falls Turbine Generator Upgrade | C51: 12 | D51: 0 | E51: 0 | F51: 0 | G51: 0 | H51: 0 | I51: 0 | J51: 0 | K51: 0 | L51: 0 | M51: 0 | N51: 0 | O51: 0 | P51: 0 | Q51: 0 | R51: 0 | S51: 0 | T51: 0 | U51: 0 | V51: 0 | W51: 0 | X51: 0 | Y51: 0 | Z51: 0 | AA51: 0 | AC51: =Upgrades!$BT$38 -> 162.7622871 | AD51: =Upgrades!$BT$76 -> 165.1874451 | AE51: =Upgrades!$BT$114 -> 167.6487381 | AF51: =Upgrades!$BT$152 -> 170.1467043 | AG51: =Upgrades!$BT$190 -> 172.6818902 | AH51: =Upgrades!$BT$228 -> 175.2548503 | AI51: =Upgrades!$BT$266 -> 177.8661476 | AJ51: =Upgrades!$BT$304 -> 180.5163532 | AK51: =Upgrades!$BT$342 -> 183.2060469 | AL51: =Upgrades!$BT$380 -> 185.935817 | AM51: =Upgrades!$BT$418 -> 188.7062606 | AN51: =Upgrades!$BT$456 -> 191.5179839 | AO51: =Upgrades!$BT$494 -> 194.3716019 | AP51: =Upgrades!$BT$532 -> 197.2677387 | AQ51: =Upgrades!$BT$570 -> 200.2070281 | AR51: =Upgrades!$BT$608 -> 203.1901128 | AS51: =Upgrades!$BT$646 -> 206.2176455 | AT51: =Upgrades!$BT$684 -> 209.2902884 | AU51: =Upgrades!$BT$722 -> 212.4087137 | AV51: =Upgrades!$BT$760 -> 215.5736035 | AW51: =Upgrades!$BT$798 -> 218.7856502 | AX51: =Upgrades!$BT$836 -> 222.0455564 | AY51: =Upgrades!$BT$874 -> 225.3540352 | AZ51: =Upgrades!$BT$912 -> 228.7118103
A52: Thermal Upgrade | B52: Rathdrum CT 2055 Uprates two unit operation | C52: 5 | D52: 0 | E52: 0 | F52: 0 | G52: 0 | H52: 0 | I52: 0 | J52: 0 | K52: 0 | L52: 0 | M52: 0 | N52: 0 | O52: 0 | P52: 0 | Q52: 0 | R52: 0 | S52: 0 | T52: 0 | U52: 0 | V52: 0 | W52: 0 | X52: 0 | Y52: 0 | Z52: 0 | AA52: 0 | AC52: =Upgrades!$Z$38 -> 99.85659486 | AD52: =Upgrades!$Z$76 -> 101.3444581 | AE52: =Upgrades!$Z$114 -> 102.8544906 | AF52: =Upgrades!$Z$152 -> 104.3870225 | AG52: =Upgrades!$Z$190 -> 105.9423891 | AH52: =Upgrades!$Z$228 -> 107.5209307 | AI52: =Upgrades!$Z$266 -> 109.1229926 | AJ52: =Upgrades!$Z$304 -> 110.7489252 | AK52: =Upgrades!$Z$342 -> 112.3990841 | AL52: =Upgrades!$Z$380 -> 114.0738305 | AM52: =Upgrades!$Z$418 -> 115.7735306 | AN52: =Upgrades!$Z$456 -> 117.4985562 | AO52: =Upgrades!$Z$494 -> 119.2492847 | AP52: =Upgrades!$Z$532 -> 121.026099 | AQ52: =Upgrades!$Z$570 -> 122.8293879 | AR52: =Upgrades!$Z$608 -> 124.6595458 | AS52: =Upgrades!$Z$646 -> 126.516973 | AT52: =Upgrades!$Z$684 -> 128.4020759 | AU52: =Upgrades!$Z$722 -> 130.3152668 | AV52: =Upgrades!$Z$760 -> 132.2569643 | AW52: =Upgrades!$Z$798 -> 134.2275931 | AX52: =Upgrades!$Z$836 -> 136.2275842 | AY52: =Upgrades!$Z$874 -> 138.2573752 | AZ52: =Upgrades!$Z$912 -> 140.3174101
A53: Thermal Upgrade | B53: Rathdrum CT: Inlet Evaporation 2 unit operation | C53: 4.3 | D53: 0 | E53: 0 | F53: 0 | G53: 0 | H53: 0 | I53: 0 | J53: 0 | K53: 0 | L53: 0 | M53: 0 | N53: 0 | O53: 0 | P53: 0 | Q53: 0 | R53: 0 | S53: 0 | T53: 0 | U53: 0 | V53: 0 | W53: 0 | X53: 0 | Y53: 0 | Z53: 0 | AA53: 0 | AC53: =Upgrades!$AW$38 -> 31.67375047 | AD53: =Upgrades!$AW$76 -> 32.15832638 | AE53: =Upgrades!$AW$114 -> 32.65037521 | AF53: =Upgrades!$AW$152 -> 33.15001337 | AG53: =Upgrades!$AW$190 -> 33.65735908 | AH53: =Upgrades!$AW$228 -> 34.17253246 | AI53: =Upgrades!$AW$266 -> 34.69565549 | AJ53: =Upgrades!$AW$304 -> 35.2268521 | AK53: =Upgrades!$AW$342 -> 35.76624817 | AL53: =Upgrades!$AW$380 -> 36.31397156 | AM53: =Upgrades!$AW$418 -> 36.87015215 | AN53: =Upgrades!$AW$456 -> 37.43492189 | AO53: =Upgrades!$AW$494 -> 38.00841478 | AP53: =Upgrades!$AW$532 -> 38.59076697 | AQ53: =Upgrades!$AW$570 -> 39.18211674 | AR53: =Upgrades!$AW$608 -> 39.78260457 | AS53: =Upgrades!$AW$646 -> 40.39237315 | AT53: =Upgrades!$AW$684 -> 41.01156744 | AU53: =Upgrades!$AW$722 -> 41.64033469 | AV53: =Upgrades!$AW$760 -> 42.27882446 | AW53: =Upgrades!$AW$798 -> 42.92718871 | AX53: =Upgrades!$AW$836 -> 43.58558178 | AY53: =Upgrades!$AW$874 -> 44.25416046 | AZ53: =Upgrades!$AW$912 -> 44.93308404
A54: Thermal Upgrade | B54: Supplemental Compression to CT | C54: 24 | D54: 0 | E54: 0 | F54: 0 | G54: 0 | H54: 0 | I54: 0 | J54: 0 | K54: 0 | L54: 0 | M54: 0 | N54: 0 | O54: 0 | P54: 0 | Q54: 0 | R54: 0 | S54: 0 | T54: 0 | U54: 0 | V54: 0 | W54: 0 | X54: 0 | Y54: 0 | Z54: 0 | AA54: 0 | AC54: =Upgrades!$C$38 -> 92.42928175 | AD54: =Upgrades!$C$76 -> 93.8317521 | AE54: =Upgrades!$C$114 -> 95.25562474 | AF54: =Upgrades!$C$152 -> 96.70122868 | AG54: =Upgrades!$C$190 -> 98.16889802 | AH54: =Upgrades!$C$228 -> 99.65897205 | AI54: =Upgrades!$C$266 -> 101.1717953 | AJ54: =Upgrades!$C$304 -> 102.7077178 | AK54: =Upgrades!$C$342 -> 104.2670947 | AL54: =Upgrades!$C$380 -> 105.850287 | AM54: =Upgrades!$C$418 -> 107.4576611 | AN54: =Upgrades!$C$456 -> 109.0895892 | AO54: =Upgrades!$C$494 -> 110.7464492 | AP54: =Upgrades!$C$532 -> 112.4286249 | AQ54: =Upgrades!$C$570 -> 114.1365061 | AR54: =Upgrades!$C$608 -> 115.8704886 | AS54: =Upgrades!$C$646 -> 117.6309744 | AT54: =Upgrades!$C$684 -> 119.4183718 | AU54: =Upgrades!$C$722 -> 121.2330953 | AV54: =Upgrades!$C$760 -> 123.075566 | AW54: =Upgrades!$C$798 -> 124.9462115 | AX54: =Upgrades!$C$836 -> 126.845466 | AY54: =Upgrades!$C$874 -> 128.7737705 | AZ54: =Upgrades!$C$912 -> 130.7315728
A55: Hydro | B55: Cabinet Gorge 2nd Powerhouse | C55: 110 | D55: 0 | E55: 0 | F55: 0 | G55: 0 | H55: 0 | I55: 0 | J55: 0 | K55: 0 | L55: 0 | M55: 0 | N55: 0 | O55: 0 | P55: 0 | Q55: 0 | R55: 0 | S55: 0 | T55: 0 | U55: 0 | V55: 0 | W55: 0 | X55: 0 | Y55: 0 | Z55: 0 | AA55: 0 | AC55: =Upgrades!$DN$38 -> 273.1133505 | AD55: =Upgrades!$DN$76 -> 278.5756175 | AE55: =Upgrades!$DN$114 -> 284.1471298 | AF55: =Upgrades!$DN$152 -> 289.8300724 | AG55: =Upgrades!$DN$190 -> 295.6266739 | AH55: =Upgrades!$DN$228 -> 301.5392073 | AI55: =Upgrades!$DN$266 -> 307.5699915 | AJ55: =Upgrades!$DN$304 -> 313.7213913 | AK55: =Upgrades!$DN$342 -> 319.9958191 | AL55: =Upgrades!$DN$380 -> 326.3957355 | AM55: =Upgrades!$DN$418 -> 332.9236502 | AN55: =Upgrades!$DN$456 -> 339.5821232 | AO55: =Upgrades!$DN$494 -> 346.3737657 | AP55: =Upgrades!$DN$532 -> 353.301241 | AQ55: =Upgrades!$DN$570 -> 360.3672658 | AR55: =Upgrades!$DN$608 -> 367.5746112 | AS55: =Upgrades!$DN$646 -> 374.9261034 | AT55: =Upgrades!$DN$684 -> 382.4246254 | AU55: =Upgrades!$DN$722 -> 390.0731179 | AV55: =Upgrades!$DN$760 -> 397.8745803 | AW55: =Upgrades!$DN$798 -> 405.8320719 | AX55: =Upgrades!$DN$836 -> 413.9487134 | AY55: =Upgrades!$DN$874 -> 422.2276876 | AZ55: =Upgrades!$DN$912 -> 430.6722414
A56: Hydro | B56: Long Lake 2nd Powerhouse | C56: 68 | D56: 0 | E56: 0 | F56: 0 | G56: 0 | H56: 0 | I56: 0 | J56: 0 | K56: 0 | L56: 0 | M56: 0 | N56: 0 | O56: 0 | P56: 0 | Q56: 0 | R56: 0 | S56: 0 | T56: 0 | U56: 0 | V56: 0 | W56: 0 | X56: 0 | Y56: 0 | Z56: 0 | AA56: 0 | AC56: =Upgrades!$CQ$38 -> 290.5091451 | AD56: =Upgrades!$CQ$76 -> 296.319328 | AE56: =Upgrades!$CQ$114 -> 302.2457146 | AF56: =Upgrades!$CQ$152 -> 308.2906288 | AG56: =Upgrades!$CQ$190 -> 314.4564414 | AH56: =Upgrades!$CQ$228 -> 320.7455703 | AI56: =Upgrades!$CQ$266 -> 327.1604817 | AJ56: =Upgrades!$CQ$304 -> 333.7036913 | AK56: =Upgrades!$CQ$342 -> 340.3777651 | AL56: =Upgrades!$CQ$380 -> 347.1853204 | AM56: =Upgrades!$CQ$418 -> 354.1290268 | AN56: =Upgrades!$CQ$456 -> 361.2116074 | AO56: =Upgrades!$CQ$494 -> 368.4358395 | AP56: =Upgrades!$CQ$532 -> 375.8045563 | AQ56: =Upgrades!$CQ$570 -> 383.3206474 | AR56: =Upgrades!$CQ$608 -> 390.9870604 | AS56: =Upgrades!$CQ$646 -> 398.8068016 | AT56: =Upgrades!$CQ$684 -> 406.7829376 | AU56: =Upgrades!$CQ$722 -> 414.9185964 | AV56: =Upgrades!$CQ$760 -> 423.2169683 | AW56: =Upgrades!$CQ$798 -> 431.6813077 | AX56: =Upgrades!$CQ$836 -> 440.3149338 | AY56: =Upgrades!$CQ$874 -> 449.1212325 | AZ56: =Upgrades!$CQ$912 -> 458.1036571

Sheet PPA Summary
B1: Loaded w/ Integration & Misc Fees
B2: Levelized PPA Prices at Busbar | M2: On-System Wind | P2: Off-System Wind | S2: MT Wind | V2: Off Shore Wind
A3: Year Beginning | B3: =M2 -> On-System Wind | C3: =P2 -> Off-System Wind | D3: =S2 -> MT Wind | E3: =V2 -> Off Shore Wind | F3: =M31 -> On-System Solar | G3: =P31 -> Southern NW Solar | H3: =S31 -> Small Solar | I3: =Q61 -> Nuclear | J3: =U61 -> Geothermal | L3: Year | M3: $/MWh PPA | N3: FCF | P3: $/MWh PPA | Q3: FCF | S3: $/MWh PPA | T3: FCF | V3: $/MWh PPA | W3: FCF
A4: 2022 | B4: =(M4+Integration!Y63)*(1+Misc_Rev) -> 41.18990633 | C4: =(P4+Integration!Y88)*(1+Misc_Rev) -> 39.82510472 | D4: =(S4+Integration!Y113)*(1+Misc_Rev) -> 28.04414751 | E4: =(V4+Integration!Y138)*(1+Misc_Rev) -> 71.75046585 | F4: =(M33+Integration!Y188)*(1+Misc_Rev) -> 34.12987926 | G4: =(P33+Integration!Y213)*(1+Misc_Rev) -> 30.63512199 | H4: =(S33+Integration!Y163)*(1+Misc_Rev) -> 66.16556953 | I4: =Q63*(1+Misc_Rev) -> 84.59040478 | J4: =U63*(1+Misc_Rev) -> 83.44525196 | L4: 2022 | M4: 36.86628378 | N4: ='Wind PPA Analysis'!A29 -> 0.065 | P4: 35.54778709 | Q4: ='Wind PPA Analysis'!AA29 -> 0.065 | S4: 24.77285213 | T4: ='Wind PPA Analysis'!BA29 -> 0.06499999192 | V4: 67.71390714 | W4: ='Wind PPA Analysis'!CA29 -> 0.065
A5: 2023 | B5: =(M5+Integration!Y64)*(1+Misc_Rev) -> 48.71517448 | C5: =(P5+Integration!Y89)*(1+Misc_Rev) -> 45.91923494 | D5: =(S5+Integration!Y114)*(1+Misc_Rev) -> 33.95024382 | E5: =(V5+Integration!Y139)*(1+Misc_Rev) -> 75.94107293 | F5: =(M34+Integration!Y189)*(1+Misc_Rev) -> 33.69651424 | G5: =(P34+Integration!Y214)*(1+Misc_Rev) -> 30.13077454 | H5: =(S34+Integration!Y164)*(1+Misc_Rev) -> 65.19767299 | I5: 86.04831007 | J5: 84.88505663 | L5: 2023 | M5: 44.08101434 | N5: ='Wind PPA Analysis'!A69 -> 0.065 | P5: 41.45725424 | Q5: ='Wind PPA Analysis'!AA69 -> 0.065 | S5: 30.50217975 | T5: ='Wind PPA Analysis'!BA69 -> 0.065 | V5: 71.77814813 | W5: ='Wind PPA Analysis'!CA69 -> 0.065
A6: 2024 | B6: =(M6+Integration!Y65)*(1+Misc_Rev) -> 60.34157895 | C6: =(P6+Integration!Y90)*(1+Misc_Rev) -> 57.61754409 | D6: =(S6+Integration!Y115)*(1+Misc_Rev) -> 45.5120573 | E6: =(V6+Integration!Y140)*(1+Misc_Rev) -> 86.01648941 | F6: =(M35+Integration!Y190)*(1+Misc_Rev) -> 42.46593922 | G6: =(P35+Integration!Y215)*(1+Misc_Rev) -> 37.88877989 | H6: =(S35+Integration!Y165)*(1+Misc_Rev) -> 83.3594524 | I6: 87.56146288 | J6: 86.35024382 | L6: 2024 | M6: 55.35989012 | N6: ='Wind PPA Analysis'!A109 -> 0.065 | P6: 52.80651705 | Q6: ='Wind PPA Analysis'!AA109 -> 0.065 | S6: 41.72258265 | T6: ='Wind PPA Analysis'!BA109 -> 0.065 | V6: 81.55691185 | W6: ='Wind PPA Analysis'!CA109 -> 0.065
A7: 2025 | B7: =(M7+Integration!Y66)*(1+Misc_Rev) -> 60.81098613 | C7: =(P7+Integration!Y91)*(1+Misc_Rev) -> 58.13861089 | D7: =(S7+Integration!Y116)*(1+Misc_Rev) -> 45.92578287 | E7: =(V7+Integration!Y141)*(1+Misc_Rev) -> 85.09056639 | F7: =(M36+Integration!Y191)*(1+Misc_Rev) -> 41.88030125 | G7: =(P36+Integration!Y216)*(1+Misc_Rev) -> 37.25294974 | H7: =(S36+Integration!Y166)*(1+Misc_Rev) -> 82.06866759 | I7: 89.00016985 | J7: 87.84127029 | L7: 2025 | M7: 55.79110844 | N7: ='Wind PPA Analysis'!A149 -> 0.065 | P7: 53.28864276 | Q7: ='Wind PPA Analysis'!AA149 -> 0.065 | S7: 42.10556997 | T7: ='Wind PPA Analysis'!BA149 -> 0.065 | V7: 80.64183105 | W7: ='Wind PPA Analysis'!CA149 -> 0.065
A8: 2026 | B8: =(M8+Integration!Y67)*(1+Misc_Rev) -> 61.56337619 | C8: =(P8+Integration!Y92)*(1+Misc_Rev) -> 58.98636092 | D8: =(S8+Integration!Y117)*(1+Misc_Rev) -> 46.59652827 | E8: =(V8+Integration!Y142)*(1+Misc_Rev) -> 84.19888293 | F8: =(M37+Integration!Y192)*(1+Misc_Rev) -> 39.91595117 | G8: =(P37+Integration!Y217)*(1+Misc_Rev) -> 36.32695038 | H8: =(S37+Integration!Y167)*(1+Misc_Rev) -> 79.06584218 | I8: 90.46691897 | J8: 89.35860122 | L8: 2026 | M8: 56.49846784 | N8: ='Wind PPA Analysis'!A189 -> 0.065 | P8: 54.08933839 | Q8: ='Wind PPA Analysis'!AA189 -> 0.065 | S8: 42.73919367 | T8: ='Wind PPA Analysis'!BA189 -> 0.065 | V8: 79.76074599 | W8: ='Wind PPA Analysis'!CA189 -> 0.065
A9: 2027 | B9: =(M9+Integration!Y68)*(1+Misc_Rev) -> 62.19359606 | C9: =(P9+Integration!Y93)*(1+Misc_Rev) -> 59.69331655 | D9: =(S9+Integration!Y118)*(1+Misc_Rev) -> 47.15661602 | E9: =(V9+Integration!Y143)*(1+Misc_Rev) -> 83.33729794 | F9: =(M38+Integration!Y193)*(1+Misc_Rev) -> 39.38555364 | G9: =(P38+Integration!Y218)*(1+Misc_Rev) -> 35.84111608 | H9: =(S38+Integration!Y168)*(1+Misc_Rev) -> 77.86768548 | I9: 91.96283959 | J9: 90.90271029 | L9: 2027 | M9: 57.09413817 | N9: ='Wind PPA Analysis'!A229 -> 0.065 | P9: 54.76004775 | Q9: ='Wind PPA Analysis'!AA229 -> 0.065 | S9: 43.27065823 | T9: ='Wind PPA Analysis'!BA229 -> 0.065 | V9: 78.91324655 | W9: ='Wind PPA Analysis'!CA229 -> 0.065
A10: 2028 | B10: =(M10+Integration!Y69)*(1+Misc_Rev) -> 62.60134528 | C10: =(P10+Integration!Y94)*(1+Misc_Rev) -> 60.14222272 | D10: =(S10+Integration!Y119)*(1+Misc_Rev) -> 47.51382461 | E10: =(V10+Integration!Y144)*(1+Misc_Rev) -> 82.50954366 | F10: =(M39+Integration!Y194)*(1+Misc_Rev) -> 38.8693538 | G10: =(P39+Integration!Y219)*(1+Misc_Rev) -> 35.36821684 | H10: =(S39+Integration!Y169)*(1+Misc_Rev) -> 76.69854018 | I10: 93.48913167 | J10: 92.47407991 | L10: 2028 | M10: 57.47415065 | N10: ='Wind PPA Analysis'!A269 -> 0.065 | P10: 55.18051373 | Q10: ='Wind PPA Analysis'!AA269 -> 0.065 | S10: 43.60538097 | T10: ='Wind PPA Analysis'!BA269 -> 0.065 | V10: 78.09893512 | W10: ='Wind PPA Analysis'!CA269 -> 0.065
A11: 2029 | B11: =(M11+Integration!Y70)*(1+Misc_Rev) -> 63.04237912 | C11: =(P11+Integration!Y95)*(1+Misc_Rev) -> 60.62892965 | D11: =(S11+Integration!Y120)*(1+Misc_Rev) -> 47.90084687 | E11: =(V11+Integration!Y145)*(1+Misc_Rev) -> 81.71499055 | F11: =(M40+Integration!Y195)*(1+Misc_Rev) -> 38.36701563 | G11: =(P40+Integration!Y220)*(1+Misc_Rev) -> 34.90794701 | H11: =(S40+Integration!Y170)*(1+Misc_Rev) -> 75.55779792 | I11: 95.07057123 | J11: 94.07320132 | L11: 2029 | M11: 57.88738171 | N11: ='Wind PPA Analysis'!A309 -> 0.065 | P11: 55.63856145 | Q11: ='Wind PPA Analysis'!AA309 -> 0.065 | S11: 43.96974276 | T11: ='Wind PPA Analysis'!BA309 -> 0.065 | V11: 77.31742639 | W11: ='Wind PPA Analysis'!CA309 -> 0.065
A12: 2030 | B12: =(M12+Integration!Y71)*(1+Misc_Rev) -> 63.51669105 | C12: =(P12+Integration!Y96)*(1+Misc_Rev) -> 61.15340033 | D12: =(S12+Integration!Y121)*(1+Misc_Rev) -> 48.31765534 | E12: =(V12+Integration!Y146)*(1+Misc_Rev) -> 80.9533094 | F12: =(M41+Integration!Y196)*(1+Misc_Rev) -> 37.87835501 | G12: =(P41+Integration!Y221)*(1+Misc_Rev) -> 34.46013767 | H12: =(S41+Integration!Y171)*(1+Misc_Rev) -> 74.44501957 | I12: 96.68688664 | J12: 95.70057479 | L12: 2030 | M12: 58.33373882 | N12: ='Wind PPA Analysis'!A349 -> 0.065 | P12: 56.13407122 | Q12: ='Wind PPA Analysis'!AA349 -> 0.065 | S12: 44.36365108 | T12: ='Wind PPA Analysis'!BA349 -> 0.065 | V12: 76.56834719 | W12: ='Wind PPA Analysis'!CA349 -> 0.065
A13: 2031 | B13: =(M13+Integration!Y72)*(1+Misc_Rev) -> 63.99921674 | C13: =(P13+Integration!Y97)*(1+Misc_Rev) -> 61.68610428 | D13: =(S13+Integration!Y122)*(1+Misc_Rev) -> 48.74102548 | E13: =(V13+Integration!Y147)*(1+Misc_Rev) -> 81.26432277 | F13: =(M42+Integration!Y197)*(1+Misc_Rev) -> 38.13796677 | G13: =(P42+Integration!Y222)*(1+Misc_Rev) -> 34.55656488 | H13: =(S42+Integration!Y172)*(1+Misc_Rev) -> 74.59107552 | I13: 98.27357548 | J13: 97.35670979 | L13: 2031 | M13: 58.78609024 | N13: ='Wind PPA Analysis'!A389 -> 0.065 | P13: 56.63565103 | Q13: ='Wind PPA Analysis'!AA389 -> 0.065 | S13: 44.76241721 | T13: ='Wind PPA Analysis'!BA389 -> 0.065 | V13: 76.86034691 | W13: ='Wind PPA Analysis'!CA389 -> 0.065
A14: 2032 | B14: =(M14+Integration!Y73)*(1+Misc_Rev) -> 64.54841314 | C14: =(P14+Integration!Y98)*(1+Misc_Rev) -> 62.29523164 | D14: =(S14+Integration!Y123)*(1+Misc_Rev) -> 49.22459172 | E14: =(V14+Integration!Y148)*(1+Misc_Rev) -> 81.58331912 | F14: =(M43+Integration!Y198)*(1+Misc_Rev) -> 38.39605283 | G14: =(P43+Integration!Y223)*(1+Misc_Rev) -> 34.6543506 | H14: =(S43+Integration!Y173)*(1+Misc_Rev) -> 74.73945582 | I14: 99.78983581 | J14: 99.04212512 | L14: 2032 | M14: 59.30436189 | N14: ='Wind PPA Analysis'!A429 -> 0.065 | P14: 57.21259497 | Q14: ='Wind PPA Analysis'!AA429 -> 0.065 | S14: 45.2205438 | T14: ='Wind PPA Analysis'!BA429 -> 0.065 | V14: 77.16080706 | W14: ='Wind PPA Analysis'!CA429 -> 0.065
A15: 2033 | B15: =(M15+Integration!Y74)*(1+Misc_Rev) -> 65.24216148 | C15: =(P15+Integration!Y99)*(1+Misc_Rev) -> 63.0705006 | D15: =(S15+Integration!Y124)*(1+Misc_Rev) -> 49.83892066 | E15: =(V15+Integration!Y149)*(1+Misc_Rev) -> 81.91157384 | F15: =(M44+Integration!Y199)*(1+Misc_Rev) -> 38.65328364 | G15: =(P44+Integration!Y224)*(1+Misc_Rev) -> 34.75404431 | H15: =(S44+Integration!Y174)*(1+Misc_Rev) -> 74.89083157 | I15: 101.3382433 | J15: 100.7573491 | L15: 2033 | M15: 59.96243629 | N15: ='Wind PPA Analysis'!A469 -> 0.065 | P15: 57.95033841 | Q15: ='Wind PPA Analysis'!AA469 -> 0.065 | S15: 45.80522892 | T15: ='Wind PPA Analysis'!BA469 -> 0.065 | V15: 77.46985883 | W15: ='Wind PPA Analysis'!CA469 -> 0.065
A16: 2034 | B16: =(M16+Integration!Y75)*(1+Misc_Rev) -> 66.1946827 | C16: =(P16+Integration!Y100)*(1+Misc_Rev) -> 64.14439206 | D16: =(S16+Integration!Y125)*(1+Misc_Rev) -> 50.68821257 | E16: =(V16+Integration!Y150)*(1+Misc_Rev) -> 82.24791235 | F16: =(M45+Integration!Y200)*(1+Misc_Rev) -> 38.90908332 | G16: =(P45+Integration!Y225)*(1+Misc_Rev) -> 34.85507492 | H16: =(S45+Integration!Y175)*(1+Misc_Rev) -> 75.04452932 | I16: 102.943522 | J16: 102.5029199 | L16: 2034 | M16: 60.87336083 | N16: ='Wind PPA Analysis'!A509 -> 0.065 | P16: 58.97961252 | Q16: ='Wind PPA Analysis'!AA509 -> 0.065 | S16: 46.61929658 | T16: ='Wind PPA Analysis'!BA509 -> 0.065 | V16: 77.78763567 | W16: ='Wind PPA Analysis'!CA509 -> 0.065
A17: 2035 | B17: =(M17+Integration!Y76)*(1+Misc_Rev) -> 67.13622743 | C17: =(P17+Integration!Y101)*(1+Misc_Rev) -> 65.2044074 | D17: =(S17+Integration!Y126)*(1+Misc_Rev) -> 51.52668384 | E17: =(V17+Integration!Y151)*(1+Misc_Rev) -> 82.59416526 | F17: =(M46+Integration!Y201)*(1+Misc_Rev) -> 39.02399128 | G17: =(P46+Integration!Y226)*(1+Misc_Rev) -> 34.95824426 | H17: =(S46+Integration!Y176)*(1+Misc_Rev) -> 75.20152343 | I17: 104.5853518 | J17: 104.2793855 | L17: 2035 | M17: 61.77236983 | N17: ='Wind PPA Analysis'!A549 -> 0.065 | P17: 59.99418932 | Q17: ='Wind PPA Analysis'!AA549 -> 0.065 | S17: 47.42189508 | T17: ='Wind PPA Analysis'!BA549 -> 0.065 | V17: 78.11427334 | W17: ='Wind PPA Analysis'!CA549 -> 0.065
A18: 2036 | B18: =(M18+Integration!Y77)*(1+Misc_Rev) -> 67.96785905 | C18: =(P18+Integration!Y102)*(1+Misc_Rev) -> 66.1365093 | D18: =(S18+Integration!Y127)*(1+Misc_Rev) -> 52.26464407 | E18: =(V18+Integration!Y152)*(1+Misc_Rev) -> 82.94913208 | F18: =(M47+Integration!Y202)*(1+Misc_Rev) -> 39.14063111 | G18: =(P47+Integration!Y227)*(1+Misc_Rev) -> 35.06296724 | H18: =(S47+Integration!Y177)*(1+Misc_Rev) -> 75.36112405 | I18: 106.2652674 | J18: 106.0873038 | L18: 2036 | M18: 62.56543973 | N18: ='Wind PPA Analysis'!A589 -> 0.065 | P18: 60.88531204 | Q18: ='Wind PPA Analysis'!AA589 -> 0.065 | S18: 48.1274872 | T18: ='Wind PPA Analysis'!BA589 -> 0.065 | V18: 78.44990994 | W18: ='Wind PPA Analysis'!CA589 -> 0.065
A19: 2037 | B19: =(M19+Integration!Y78)*(1+Misc_Rev) -> 68.7981971 | C19: =(P19+Integration!Y103)*(1+Misc_Rev) -> 67.06657497 | D19: =(S19+Integration!Y128)*(1+Misc_Rev) -> 53.00109968 | E19: =(V19+Integration!Y153)*(1+Misc_Rev) -> 83.31206192 | F19: =(M48+Integration!Y203)*(1+Misc_Rev) -> 39.25858335 | G19: =(P48+Integration!Y228)*(1+Misc_Rev) -> 35.16886626 | H19: =(S48+Integration!Y178)*(1+Misc_Rev) -> 75.5228906 | I19: 107.9849052 | J19: 107.9272432 | L19: 2037 | M19: 63.35952061 | N19: ='Wind PPA Analysis'!A629 -> 0.065 | P19: 61.7766593 | Q19: ='Wind PPA Analysis'!AA629 -> 0.065 | S19: 48.83335011 | T19: ='Wind PPA Analysis'!BA629 -> 0.065 | V19: 78.79468596 | W19: ='Wind PPA Analysis'!CA629 -> 0.065
A20: 2038 | B20: =(M20+Integration!Y79)*(1+Misc_Rev) -> 69.63958568 | C20: =(P20+Integration!Y104)*(1+Misc_Rev) -> 68.00809138 | D20: =(S20+Integration!Y129)*(1+Misc_Rev) -> 53.74666038 | E20: =(V20+Integration!Y154)*(1+Misc_Rev) -> 83.68568858 | F20: =(M49+Integration!Y204)*(1+Misc_Rev) -> 39.37919599 | G20: =(P49+Integration!Y229)*(1+Misc_Rev) -> 35.2771544 | H20: =(S49+Integration!Y179)*(1+Misc_Rev) -> 75.68829151 | I20: 109.6599743 | J20: 109.7997824 | L20: 2038 | M20: 64.16254103 | N20: ='Wind PPA Analysis'!A669 -> 0.065 | P20: 62.67738635 | Q20: ='Wind PPA Analysis'!AA669 -> 0.065 | S20: 49.54668644 | T20: ='Wind PPA Analysis'!BA669 -> 0.065 | V20: 79.14874431 | W20: ='Wind PPA Analysis'!CA669 -> 0.065
A21: 2039 | B21: =(M21+Integration!Y80)*(1+Misc_Rev) -> 70.48218628 | C21: =(P21+Integration!Y105)*(1+Misc_Rev) -> 68.95083052 | D21: =(S21+Integration!Y130)*(1+Misc_Rev) -> 54.4932836 | E21: =(V21+Integration!Y155)*(1+Misc_Rev) -> 83.4485474 | F21: =(M50+Integration!Y205)*(1+Misc_Rev) -> 39.50052727 | G21: =(P50+Integration!Y230)*(1+Misc_Rev) -> 35.38608401 | H21: =(S50+Integration!Y180)*(1+Misc_Rev) -> 75.85524253 | I21: 111.3714929 | J21: 111.705511 | L21: 2039 | M21: 64.97106075 | N21: ='Wind PPA Analysis'!A709 -> 0.065 | P21: 63.58349964 | Q21: ='Wind PPA Analysis'!AA709 -> 0.065 | S21: 50.26435713 | T21: ='Wind PPA Analysis'!BA709 -> 0.065 | V21: 78.91200828 | W21: ='Wind PPA Analysis'!CA709 -> 0.065
A22: 2040 | B22: =(M22+Integration!Y81)*(1+Misc_Rev) -> 71.33169551 | C22: =(P22+Integration!Y106)*(1+Misc_Rev) -> 69.90043262 | D22: =(S22+Integration!Y131)*(1+Misc_Rev) -> 55.24540752 | E22: =(V22+Integration!Y156)*(1+Misc_Rev) -> 84.45706811 | F22: =(M51+Integration!Y206)*(1+Misc_Rev) -> 39.62419727 | G22: =(P51+Integration!Y231)*(1+Misc_Rev) -> 35.49711306 | H22: =(S51+Integration!Y181)*(1+Misc_Rev) -> 76.02550641 | I22: 113.1209007 | J22: 113.6450291 | L22: 2040 | M22: 65.78571928 | N22: ='Wind PPA Analysis'!A749 -> 0.065 | P22: 64.49572376 | Q22: ='Wind PPA Analysis'!AA749 -> 0.065 | S22: 50.98693403 | T22: ='Wind PPA Analysis'!BA749 -> 0.065 | V22: 79.88529197 | W22: ='Wind PPA Analysis'!CA749 -> 0.065
A23: 2041 | B23: =(M23+Integration!Y82)*(1+Misc_Rev) -> 72.31140651 | C23: =(P23+Integration!Y107)*(1+Misc_Rev) -> 70.99973286 | D23: =(S23+Integration!Y132)*(1+Misc_Rev) -> 56.11537647 | E23: =(V23+Integration!Y157)*(1+Misc_Rev) -> 85.17106081 | F23: =(M52+Integration!Y207)*(1+Misc_Rev) -> 39.86529416 | G23: =(P52+Integration!Y232)*(1+Misc_Rev) -> 35.69346528 | H23: =(S52+Integration!Y182)*(1+Misc_Rev) -> 76.39227503 | I23: 114.8990142 | J23: 115.6189482 | L23: 2041 | M23: 66.72766322 | N23: ='Wind PPA Analysis'!A789 -> 0.065 | P23: 65.5541553 | Q23: ='Wind PPA Analysis'!AA789 -> 0.065 | S23: 51.82460749 | T23: ='Wind PPA Analysis'!BA789 -> 0.065 | V23: 80.57286832 | W23: ='Wind PPA Analysis'!CA789 -> 0.065
A24: 2042 | B24: =(M24+Integration!Y83)*(1+Misc_Rev) -> 73.29758386 | C24: =(P24+Integration!Y108)*(1+Misc_Rev) -> 72.10635094 | D24: =(S24+Integration!Y133)*(1+Misc_Rev) -> 56.99120805 | E24: =(V24+Integration!Y158)*(1+Misc_Rev) -> 85.89172108 | F24: =(M53+Integration!Y208)*(1+Misc_Rev) -> 40.10740481 | G24: =(P53+Integration!Y233)*(1+Misc_Rev) -> 35.89065951 | H24: =(S53+Integration!Y183)*(1+Misc_Rev) -> 76.76109599 | I24: =Q83*(1+Misc_Rev) -> 116.741597 | J24: =U83*(1+Misc_Rev) -> 117.6278909 | L24: 2042 | M24: 67.68055518 | N24: ='Wind PPA Analysis'!A829 -> 0.065 | P24: 66.62422896 | Q24: ='Wind PPA Analysis'!AA829 -> 0.065 | S24: 52.67154165 | T24: ='Wind PPA Analysis'!BA829 -> 0.065 | V24: 81.26980708 | W24: ='Wind PPA Analysis'!CA829 -> 0.065
A25: 2043 | B25: =(M25+Integration!Y84)*(1+Misc_Rev) -> 74.29501745 | C25: =(P25+Integration!Y109)*(1+Misc_Rev) -> 73.22494128 | D25: =(S25+Integration!Y134)*(1+Misc_Rev) -> 57.87656516 | E25: =(V25+Integration!Y159)*(1+Misc_Rev) -> 86.6220652 | F25: =(M54+Integration!Y209)*(1+Misc_Rev) -> 40.35199001 | G25: =(P54+Integration!Y234)*(1+Misc_Rev) -> 36.09005462 | H25: =(S54+Integration!Y184)*(1+Misc_Rev) -> 77.13362052 | I25: =Q84*(1+Misc_Rev) -> 118.6287688 | J25: =U84*(1+Misc_Rev) -> 119.6724912 | L25: 2043 | M25: 68.6444877 | N25: ='Wind PPA Analysis'!A869 -> 0.065 | P25: 67.70603596 | Q25: ='Wind PPA Analysis'!AA869 -> 0.065 | S25: 53.52781034 | T25: ='Wind PPA Analysis'!BA869 -> 0.065 | V25: 81.97621916 | W25: ='Wind PPA Analysis'!CA869 -> 0.06499989837
A26: 2044 | B26: =(M26+Integration!Y85)*(1+Misc_Rev) -> 75.30361324 | C26: =(P26+Integration!Y110)*(1+Misc_Rev) -> 74.3554137 | D26: =(S26+Integration!Y135)*(1+Misc_Rev) -> 58.77137906 | E26: =(V26+Integration!Y160)*(1+Misc_Rev) -> 87.36228774 | F26: =(M55+Integration!Y210)*(1+Misc_Rev) -> 40.59908369 | G26: =(P55+Integration!Y235)*(1+Misc_Rev) -> 36.2916467 | H26: =(S55+Integration!Y185)*(1+Misc_Rev) -> 77.50984029 | I26: =Q85*(1+Misc_Rev) -> 120.4529999 | J26: =U85*(1+Misc_Rev) -> 121.7533949 | L26: 2044 | M26: 69.6195539 | N26: ='Wind PPA Analysis'!A909 -> 0.065 | P26: 68.79966792 | Q26: ='Wind PPA Analysis'!AA909 -> 0.065 | S26: 54.39348774 | T26: ='Wind PPA Analysis'!BA909 -> 0.065 | V26: 82.69240767 | W26: ='Wind PPA Analysis'!CA909 -> 0.065
A27: 2045 | B27: =(M27+Integration!Y86)*(1+Misc_Rev) -> 76.30691162 | C27: =(P27+Integration!Y111)*(1+Misc_Rev) -> 75.48177969 | D27: =(S27+Integration!Y136)*(1+Misc_Rev) -> 59.66307636 | E27: =(V27+Integration!Y161)*(1+Misc_Rev) -> 88.10217575 | F27: =(M56+Integration!Y211)*(1+Misc_Rev) -> 40.82142579 | G27: =(P56+Integration!Y236)*(1+Misc_Rev) -> 36.49078803 | H27: =(S56+Integration!Y186)*(1+Misc_Rev) -> 77.88421493 | I27: =Q86*(1+Misc_Rev) -> 122.3407768 | J27: =U86*(1+Misc_Rev) -> 123.8712598 | L27: 2045 | M27: 70.60584818 | N27: ='Wind PPA Analysis'!A949 -> 0.0650000014 | P27: 69.90521731 | Q27: ='Wind PPA Analysis'!AA949 -> 0.06500000099 | S27: 55.26864838 | T27: ='Wind PPA Analysis'!BA949 -> 0.065 | V27: 83.4183941 | W27: ='Wind PPA Analysis'!CA949 -> 0.065
M28: =SUM(M4:M27) -> 1444.207183 | P28: =SUM(P4:P27) -> 1401.683006 | S28: =SUM(S4:S27) -> 1102.326103 | V28: =SUM(V4:V27) -> 1884.862758
M31: On-System Solar | P31: Southern NW Solar | S31: Small Solar | W31: Solar + Storage 2 hr | AB31: Solar + Storage 2 hr
L32: Year | M32: $/MWh PPA | N32: FCF | P32: $/MWh PPA | Q32: FCF | S32: $/MWh PPA | T32: FCF | V32: Year | W32: $/MWh PPA | X32: $/kW-mn | Y32: FCF | AA32: Year | AB32: $/MWh PPA | AC32: $/kW-mn | AD32: FCF
L33: 2022 | M33: 32.10221346 | N33: ='Solar PPA Analysis'!A29 -> 0.06 | P33: 28.81253914 | Q33: ='Solar PPA Analysis'!AB29 -> 0.06 | S33: 63.14552635 | T33: ='Solar PPA Analysis'!BC29 -> 0.06 | V33: 2022 | W33: 32.10221346 | X33: 7.071120822 | Y33: ='Other PPA'!AA33 -> 0.065 | AA33: 2022 | AB33: 32.10221346 | AC33: 6.566526651 | AD33: ='Other PPA'!BA33 -> 0.065
L34: 2023 | M34: 31.6770179 | N34: ='Solar PPA Analysis'!A70 -> 0.06 | P34: 28.31878265 | Q34: ='Solar PPA Analysis'!AB70 -> 0.06 | S34: 62.200613 | T34: ='Solar PPA Analysis'!BC70 -> 0.06 | V34: 2023 | W34: 31.6770179 | X34: 6.829662119 | Y34: ='Other PPA'!AA80 -> 0.06499999985 | AA34: 2023 | AB34: 31.6770179 | AC34: 6.384598893 | AD34: ='Other PPA'!BA80 -> 0.065
L35: 2024 | M35: 40.19210388 | N35: ='Solar PPA Analysis'!A111 -> 0.06 | P35: 35.85169238 | Q35: ='Solar PPA Analysis'!AB111 -> 0.06 | S35: 79.84151223 | T35: ='Solar PPA Analysis'!BC111 -> 0.06 | V35: 2024 | W35: 40.19210388 | X35: 7.857388236 | Y35: ='Other PPA'!AA127 -> 0.065 | AA35: 2024 | AB35: 40.19210388 | AC35: 7.32815518 | AD35: ='Other PPA'!BA127 -> 0.065
L36: 2025 | M36: 39.61489394 | N36: ='Solar PPA Analysis'!A152 -> 0.06 | P36: 35.22652832 | Q36: ='Solar PPA Analysis'!AB152 -> 0.06 | S36: 78.57847798 | T36: ='Solar PPA Analysis'!BC152 -> 0.06 | V36: 2025 | W36: 39.61489394 | X36: 7.721395506 | Y36: ='Other PPA'!AA174 -> 0.065 | AA36: 2025 | AB36: 39.61489394 | AC36: 7.213792823 | AD36: ='Other PPA'!BA174 -> 0.065
L37: 2026 | M37: 37.69843378 | N37: ='Solar PPA Analysis'!A193 -> 0.06 | P37: 34.31977999 | Q37: ='Solar PPA Analysis'!AB193 -> 0.06 | S37: 75.65234003 | T37: ='Solar PPA Analysis'!BC193 -> 0.06 | V37: 2026 | W37: 37.69843378 | X37: 7.86625962 | Y37: ='Other PPA'!AA221 -> 0.065 | AA37: 2026 | AB37: 37.69843378 | AC37: 7.649021726 | AD37: ='Other PPA'!BA221 -> 0.065
L38: 2027 | M38: 37.17753372 | N38: ='Solar PPA Analysis'!A234 -> 0.06 | P38: 33.84273353 | Q38: ='Solar PPA Analysis'!AB234 -> 0.06 | S38: 74.48215494 | T38: ='Solar PPA Analysis'!BC234 -> 0.06 | V38: 2027 | W38: 37.17753372 | X38: 7.764366065 | Y38: ='Other PPA'!AA268 -> 0.065 | AA38: 2027 | AB38: 37.17753372 | AC38: 7.562048524 | AD38: ='Other PPA'!BA268 -> 0.065
L39: 2028 | M39: 36.6706088 | N39: ='Solar PPA Analysis'!A275 -> 0.06 | P39: 33.3784174 | Q39: ='Solar PPA Analysis'!AB275 -> 0.06 | S39: 73.34035344 | T39: ='Solar PPA Analysis'!BC275 -> 0.06 | V39: 2028 | W39: 36.6706088 | X39: 7.67422731 | Y39: ='Other PPA'!AA315 -> 0.065 | AA39: 2028 | AB39: 36.6706088 | AC39: 7.486262263 | AD39: ='Other PPA'!BA315 -> 0.065
L40: 2029 | M40: 36.17744754 | N40: ='Solar PPA Analysis'!A316 -> 0.06 | P40: 32.9266381 | Q40: ='Solar PPA Analysis'!AB316 -> 0.06 | S40: 72.22646861 | T40: ='Solar PPA Analysis'!BC316 -> 0.06 | V40: 2029 | W40: 36.17744754 | X40: 7.597061884 | Y40: ='Other PPA'!AA362 -> 0.065 | AA40: 2029 | AB40: 36.17744754 | AC40: 7.422594411 | AD40: ='Other PPA'!BA362 -> 0.065
L41: 2030 | M41: 35.6978437 | N41: ='Solar PPA Analysis'!A357 -> 0.06 | P41: 32.4872069 | Q41: ='Solar PPA Analysis'!AB357 -> 0.06 | S41: 71.14004424 | T41: ='Solar PPA Analysis'!BC357 -> 0.06 | V41: 2030 | W41: 35.6978437 | X41: 7.512588972 | Y41: ='Other PPA'!AA409 -> 0.065 | AA41: 2030 | AB41: 35.6978437 | AC41: 7.351903181 | AD41: ='Other PPA'!BA409 -> 0.065
L42: 2031 | M42: 35.94471222 | N42: ='Solar PPA Analysis'!A398 -> 0.06 | P42: 32.57605248 | Q42: ='Solar PPA Analysis'!AB398 -> 0.06 | S42: 71.27614266 | T42: ='Solar PPA Analysis'!BC398 -> 0.06 | V42: 2031 | W42: 35.94471222 | X42: 7.409209892 | Y42: ='Other PPA'!AA456 -> 0.065 | AA42: 2031 | AB42: 35.94471222 | AC42: 7.223275092 | AD42: ='Other PPA'!BA456 -> 0.065
L43: 2032 | M43: 36.19047869 | N43: ='Solar PPA Analysis'!A439 -> 0.06 | P43: 32.66656046 | Q43: ='Solar PPA Analysis'!AB439 -> 0.06 | S43: 71.41491044 | T43: ='Solar PPA Analysis'!BC439 -> 0.06 | V43: 2032 | W43: 36.19047869 | X43: 7.311793305 | Y43: ='Other PPA'!AA503 -> 0.065 | AA43: 2032 | AB43: 36.19047869 | AC43: 7.100721201 | AD43: ='Other PPA'!BA503 -> 0.065
L44: 2033 | M44: 36.43523252 | N44: ='Solar PPA Analysis'!A480 -> 0.06 | P44: 32.75875895 | Q44: ='Solar PPA Analysis'!AB480 -> 0.06 | S44: 71.55639268 | T44: ='Solar PPA Analysis'!BC480 -> 0.06 | V44: 2033 | W44: 36.43523252 | X44: 7.22417681 | Y44: ='Other PPA'!AA550 -> 0.065 | AA44: 2033 | AB44: 36.43523252 | AC44: 6.98785768 | AD44: ='Other PPA'!BA550 -> 0.065
L45: 2034 | M45: 36.67906256 | N45: ='Solar PPA Analysis'!A521 -> 0.06 | P45: 32.85267655 | Q45: ='Solar PPA Analysis'!AB521 -> 0.06 | S45: 71.70063529 | T45: ='Solar PPA Analysis'!BC521 -> 0.06 | V45: 2034 | W45: 36.67906256 | X45: 7.148552741 | Y45: ='Other PPA'!AA597 -> 0.065 | AA45: 2034 | AB45: 36.67906256 | AC45: 6.886747591 | AD45: ='Other PPA'!BA597 -> 0.065
L46: 2035 | M46: 36.78562546 | N46: ='Solar PPA Analysis'!A562 -> 0.06 | P46: 32.94834236 | Q46: ='Solar PPA Analysis'!AB562 -> 0.06 | S46: 71.84768491 | T46: ='Solar PPA Analysis'!BC562 -> 0.06 | V46: 2035 | W46: 36.78562546 | X46: 7.118153368 | Y46: ='Other PPA'!AA644 -> 0.065 | AA46: 2035 | AB46: 36.78562546 | AC46: 6.858198723 | AD46: ='Other PPA'!BA644 -> 0.065
L47: 2036 | M47: 36.89416912 | N47: ='Solar PPA Analysis'!A603 -> 0.06 | P47: 33.04578595 | Q47: ='Solar PPA Analysis'!AB603 -> 0.06 | S47: 71.997589 | T47: ='Solar PPA Analysis'!BC603 -> 0.06 | V47: 2036 | W47: 36.89416912 | X47: 7.098243858 | Y47: ='Other PPA'!AA691 -> 0.065 | AA47: 2036 | AB47: 36.89416912 | AC47: 6.839557984 | AD47: ='Other PPA'!BA691 -> 0.065
L48: 2037 | M48: 37.00472705 | N48: ='Solar PPA Analysis'!A644 -> 0.06 | P48: 33.1450374 | Q48: ='Solar PPA Analysis'!AB644 -> 0.06 | S48: 72.15039583 | T48: ='Solar PPA Analysis'!BC644 -> 0.06 | V48: 2037 | W48: 37.00472705 | X48: 7.087465001 | Y48: ='Other PPA'!AA738 -> 0.065 | AA48: 2037 | AB48: 37.00472705 | AC48: 6.829543185 | AD48: ='Other PPA'!BA738 -> 0.065
L49: 2038 | M49: 37.11733335 | N49: ='Solar PPA Analysis'!A685 -> 0.06 | P49: 33.2461273 | Q49: ='Solar PPA Analysis'!AB685 -> 0.06 | S49: 72.30615447 | T49: ='Solar PPA Analysis'!BC685 -> 0.06 | V49: 2038 | W49: 37.11733335 | X49: 7.088151035 | Y49: ='Other PPA'!AA785 -> 0.065 | AA49: 2038 | AB49: 37.11733335 | AC49: 6.830358704 | AD49: ='Other PPA'!BA785 -> 0.065
L50: 2039 | M50: 37.23202267 | N50: ='Solar PPA Analysis'!A726 -> 0.06 | P50: 33.34908675 | Q50: ='Solar PPA Analysis'!AB726 -> 0.06 | S50: 72.46491482 | T50: ='Solar PPA Analysis'!BC726 -> 0.06 | V50: 2039 | W50: 37.23202267 | X50: 7.086536199 | Y50: ='Other PPA'!AA832 -> 0.065 | AA50: 2039 | AB50: 37.23202267 | AC50: 6.829011064 | AD50: ='Other PPA'!BA832 -> 0.065
L51: 2040 | M51: 37.34883026 | N51: ='Solar PPA Analysis'!A767 -> 0.06 | P51: 33.45394738 | Q51: ='Solar PPA Analysis'!AB767 -> 0.06 | S51: 72.62672764 | T51: ='Solar PPA Analysis'!BC767 -> 0.06 | V51: 2040 | W51: 37.34883026 | X51: 7.084519896 | Y51: ='Other PPA'!AA879 -> 0.065 | AA51: 2040 | AB51: 37.34883026 | AC51: 6.827387931 | AD51: ='Other PPA'!BA879 -> 0.065
L52: 2041 | M52: 37.58000812 | N52: ='Solar PPA Analysis'!A808 -> 0.06 | P52: 33.64195704 | Q52: ='Solar PPA Analysis'!AB808 -> 0.06 | S52: 72.97977006 | T52: ='Solar PPA Analysis'!BC808 -> 0.06 | V52: 2041 | W52: 37.58000812 | X52: 7.076524252 | Y52: ='Other PPA'!AA926 -> 0.065 | AA52: 2041 | AB52: 37.58000812 | AC52: 6.813652461 | AD52: ='Other PPA'!BA926 -> 0.065
L53: 2042 | M53: 37.81366064 | N53: ='Solar PPA Analysis'!A849 -> 0.06000005714 | P53: 33.83212548 | Q53: ='Solar PPA Analysis'!AB849 -> 0.06 | S53: 73.33641545 | T53: ='Solar PPA Analysis'!BC849 -> 0.06 | V53: 2042 | W53: 37.81366064 | X53: 7.066254647 | Y53: ='Other PPA'!AA973 -> 0.065 | AA53: 2042 | AB53: 37.81366064 | AC53: 6.797724443 | AD53: ='Other PPA'!BA973 -> 0.065
L54: 2043 | M54: 38.04977216 | N54: ='Solar PPA Analysis'!A890 -> 0.06 | P54: 34.02448157 | Q54: ='Solar PPA Analysis'!AB890 -> 0.05999998232 | S54: 73.69671842 | T54: ='Solar PPA Analysis'!BC890 -> 0.06 | V54: 2043 | W54: 38.04977216 | X54: 7.054369318 | Y54: ='Other PPA'!AA1020 -> 0.065 | AA54: 2043 | AB54: 38.04977216 | AC54: 6.780268746 | AD54: ='Other PPA'!BA1020 -> 0.065
L55: 2044 | M55: 38.28843458 | N55: ='Solar PPA Analysis'!A931 -> 0.06 | P55: 34.21907452 | Q55: ='Solar PPA Analysis'!AB931 -> 0.06 | S55: 74.0607345 | T55: ='Solar PPA Analysis'!BC931 -> 0.06 | V55: 2044 | W55: 38.28843458 | X55: 7.040881503 | Y55: ='Other PPA'!AA1067 -> 0.065 | AA55: 2044 | AB55: 38.28843458 | AC55: 6.761286697 | AD55: ='Other PPA'!BA1067 -> 0.065
L56: 2045 | M56: 38.50820023 | N56: ='Solar PPA Analysis'!A972 -> 0.06 | P56: 34.41592442 | Q56: ='Solar PPA Analysis'!AB972 -> 0.06 | S56: 74.42852366 | T56: ='Solar PPA Analysis'!BC972 -> 0.06000000539 | V56: 2045 | W56: 38.50820023 | X56: 7.0303426 | Y56: ='Other PPA'!AA1114 -> 0.065 | AA56: 2045 | AB56: 38.50820023 | AC56: 6.74985342 | AD56: ='Other PPA'!BA1114 -> 0.06500000002
M57: =SUM(M33:M56) -> 884.8803664 | P57: =SUM(P33:P56) -> 795.340257 | S57: =SUM(S33:S56) -> 1738.451201 | W57: =SUM(W33:W56) -> 884.8803664 | X57: =SUM(X33:X56) -> 174.819245 | AB57: =SUM(AB33:AB56) -> 884.8803664 | AC57: =SUM(AC33:AC56) -> 168.0803486
M61: Solar + Storage 4 hr | Q61: Nuclear | U61: Geothermal | X61: Pumped Hydro (70 hr/ 500 MW) | AB61: Pumped Hydro (8.5 hr/ 400 MW) | AF61: Pumped Hydro (12 hr/ 1200 MW) | AJ61: Pumped Hydro (10 hr/ 400 MW)
L62: Year | M62: $/MWh PPA | N62: $/kW-mn | O62: FCF | Q62: $/MWh PPA | R62: $/kW-yr | S62: FCF | U62: $/MWh PPA | V62: FCF | X62: $/MWh PPA | Y62: $/kW-mn | Z62: FCF | AB62: $/MWh PPA | AC62: $/kW-mn | AD62: FCF | AF62: $/MWh PPA | AG62: $/kW-mn | AH62: FCF | AJ62: $/MWh PPA | AK62: $/kW-mn | AL62: FCF
L63: 2022 | M63: 32.10221346 | N63: 8.69612939 | O63: ='Other PPA'!A33 -> 0.065 | Q63: 82.19411747 | R63: 0 | S63: ='Other PPA'!BZ33 -> 0.07969944544 | U63: 81.08140469 | V63: ='Other PPA'!CZ33 -> 0.06500000003 | X63: 5 | Y63: 21.75734897 | Z63: ='Other PPA'!DY33 -> 0.065 | AB63: 5 | AC63: 23.27572794 | AD63: ='Other PPA'!EX33 -> 0.0649997569 | AF63: 5 | AG63: 15.18926337 | AH63: ='Other PPA'!FW33 -> 0.065 | AJ63: 5 | AK63: 25.15390086 | AL63: ='Other PPA'!GV33 -> 0.06499931669
L64: 2023 | M64: 31.6770179 | N64: 8.418946866 | O64: ='Other PPA'!A80 -> 0.06499999992 | Q64: 83.61072305 | R64: 0 | S64: ='Other PPA'!BZ80 -> 0.07963464003 | U64: 82.4804224 | V64: ='Other PPA'!CZ80 -> 0.065 | X64: =X63*1.02 -> 5.1 | Y64: 22.0737882 | Z64: ='Other PPA'!DY80 -> 0.065 | AB64: =AB63*1.02 -> 5.1 | AC64: 23.62462884 | AD64: ='Other PPA'!EX80 -> 0.06499967302 | AF64: =AF63*1.02 -> 5.1 | AG64: 15.41532332 | AH64: ='Other PPA'!FW80 -> 0.065 | AJ64: =AJ63*1.02 -> 5.1 | AK64: 25.52982161 | AL64: ='Other PPA'!GV80 -> 0.06499940056
L65: 2024 | M65: 40.19210388 | N65: 9.896387394 | O65: ='Other PPA'!A127 -> 0.065 | Q65: 85.08101109 | R65: 0 | S65: ='Other PPA'!BZ127 -> 0.0795776979 | U65: 83.90410358 | V65: ='Other PPA'!CZ127 -> 0.065 | X65: =X64*1.02 -> 5.202 | Y65: 22.39478747 | Z65: ='Other PPA'!DY127 -> 0.065 | AB65: =AB64*1.02 -> 5.202 | AC65: 23.97884821 | AD65: ='Other PPA'!EX127 -> 0.06499983601 | AF65: =AF64*1.02 -> 5.202 | AG65: 15.64474637 | AH65: ='Other PPA'!FW127 -> 0.065 | AJ65: =AJ64*1.02 -> 5.202 | AK65: 25.91136613 | AL65: ='Other PPA'!GV127 -> 0.06499948487
L66: 2025 | M66: 39.61489394 | N66: 9.751294841 | O66: ='Other PPA'!A174 -> 0.065 | Q66: 86.47896218 | R66: 0 | S66: ='Other PPA'!BZ174 -> 0.0795762932 | U66: 85.35289208 | V66: ='Other PPA'!CZ174 -> 0.065 | X66: 5.30604 | Y66: 22.72041162 | Z66: ='Other PPA'!DY174 -> 0.065 | AB66: 5.30604 | AC66: 24.33838975 | AD66: ='Other PPA'!EX174 -> 0.065 | AF66: 5.30604 | AG66: 15.87758252 | AH66: ='Other PPA'!FW174 -> 0.065 | AJ66: 5.30604 | AK66: 26.29861868 | AL66: ='Other PPA'!GV174 -> 0.06499956963
L67: 2026 | M67: 37.69843378 | N67: 9.842487635 | O67: ='Other PPA'!A221 -> 0.065 | Q67: 87.90416106 | R67: 0 | S67: ='Other PPA'!BZ221 -> 0.07957760776 | U67: 86.82723987 | V67: ='Other PPA'!CZ221 -> 0.065 | X67: 5.4121608 | Y67: 23.05072641 | Z67: ='Other PPA'!DY221 -> 0.065 | AB67: 5.4121608 | AC67: 24.70328006 | AD67: ='Other PPA'!EX221 -> 0.065 | AF67: 5.4121608 | AG67: 16.11388251 | AH67: ='Other PPA'!FW221 -> 0.065 | AJ67: 5.4121608 | AK67: 26.69166476 | AL67: ='Other PPA'!GV221 -> 0.06499965482
L68: 2027 | M68: 37.17753372 | N68: 9.717481902 | O68: ='Other PPA'!A268 -> 0.065 | Q68: 89.35770506 | R68: 0 | S68: ='Other PPA'!BZ268 -> 0.07958853766 | U68: 88.32760723 | V68: ='Other PPA'!CZ268 -> 0.065 | X68: 5.520404016 | Y68: 23.3857985 | Z68: ='Other PPA'!DY268 -> 0.065 | AB68: 5.520404016 | AC68: 25.0736522 | AD68: ='Other PPA'!EX268 -> 0.065 | AF68: 5.520404016 | AG68: 16.35369785 | AH68: ='Other PPA'!FW268 -> 0.065 | AJ68: 5.520404016 | AK68: 27.09059116 | AL68: ='Other PPA'!GV268 -> 0.06499974045
L69: 2028 | M69: 36.6706088 | N69: 9.606658459 | O69: ='Other PPA'!A315 -> 0.065 | Q69: 90.84076015 | R69: 0 | S69: ='Other PPA'!BZ315 -> 0.0796017724 | U69: 89.8544629 | V69: ='Other PPA'!CZ315 -> 0.065 | X69: 5.630812096 | Y69: 23.7256955 | Z69: ='Other PPA'!DY315 -> 0.065 | AB69: 5.630812096 | AC69: 25.44958875 | AD69: ='Other PPA'!EX315 -> 0.065 | AF69: 5.630812096 | AG69: 16.59708081 | AH69: ='Other PPA'!FW315 -> 0.065 | AJ69: 5.630812096 | AK69: 27.49548598 | AL69: ='Other PPA'!GV315 -> 0.06499982652
L70: 2029 | M70: 36.17744754 | N70: 9.512475971 | O70: ='Other PPA'!A362 -> 0.065 | Q70: 92.3774005 | R70: 0 | S70: ='Other PPA'!BZ362 -> 0.0796194643 | U70: 91.4082842 | V70: ='Other PPA'!CZ362 -> 0.065 | X70: 5.743428338 | Y70: 24.07048593 | Z70: ='Other PPA'!DY362 -> 0.065 | AB70: 5.743428338 | AC70: 25.83117354 | AD70: ='Other PPA'!EX362 -> 0.065 | AF70: 5.743428338 | AG70: 16.84408443 | AH70: ='Other PPA'!FW362 -> 0.065 | AJ70: 5.743428338 | AK70: 27.90643864 | AL70: ='Other PPA'!GV362 -> 0.06499991304
L71: 2030 | M71: 35.6978437 | N71: 9.408771312 | O71: ='Other PPA'!A409 -> 0.065 | Q71: 93.94792873 | R71: 0 | S71: ='Other PPA'!BZ409 -> 0.07963314288 | U71: 92.98955724 | V71: ='Other PPA'!CZ409 -> 0.065 | X71: 5.858296905 | Y71: 24.42023929 | Z71: ='Other PPA'!DY409 -> 0.065 | AB71: 5.858296905 | AC71: 26.21849165 | AD71: ='Other PPA'!EX409 -> 0.065 | AF71: 5.858296905 | AG71: 17.09476255 | AH71: ='Other PPA'!FW409 -> 0.065 | AJ71: 5.858296905 | AK71: 28.32353989 | AL71: ='Other PPA'!GV409 -> 0.065
L72: 2031 | M72: 35.94471222 | N72: 9.279799502 | O72: ='Other PPA'!A456 -> 0.065 | Q72: 95.48966965 | R72: 0 | S72: ='Other PPA'!BZ456 -> 0.07959742574 | U72: 94.59877704 | V72: ='Other PPA'!CZ456 -> 0.065 | X72: 5.975462843 | Y72: 24.77502603 | Z72: ='Other PPA'!DY456 -> 0.065 | AB72: 5.975462843 | AC72: 26.61162948 | AD72: ='Other PPA'!EX456 -> 0.065 | AF72: 5.975462843 | AG72: 17.3491698 | AH72: ='Other PPA'!FW456 -> 0.065 | AJ72: 5.975462843 | AK72: 28.7468485 | AL72: ='Other PPA'!GV456 -> 0.065
L73: 2032 | M73: 36.19047869 | N73: 9.158446969 | O73: ='Other PPA'!A503 -> 0.065 | Q73: 96.96297717 | R73: 0 | S73: ='Other PPA'!BZ503 -> 0.07956486642 | U73: 96.23644772 | V73: ='Other PPA'!CZ503 -> 0.065 | X73: 6.0949721 | Y73: 25.13491761 | Z73: ='Other PPA'!DY503 -> 0.065 | AB73: 6.0949721 | AC73: 27.01067471 | AD73: ='Other PPA'!EX503 -> 0.065 | AF73: 6.0949721 | AG73: 17.60736162 | AH73: ='Other PPA'!FW503 -> 0.065 | AJ73: 6.0949721 | AK73: 29.17649017 | AL73: ='Other PPA'!GV503 -> 0.065
L74: 2033 | M74: 36.43523252 | N74: 9.049665747 | O74: ='Other PPA'!A550 -> 0.065 | Q74: 98.46752118 | R74: 0 | S74: ='Other PPA'!BZ550 -> 0.07953722455 | U74: 97.90308268 | V74: ='Other PPA'!CZ550 -> 0.065 | X74: 6.216871542 | Y74: 25.49998644 | Z74: ='Other PPA'!DY550 -> 0.065 | AB74: 6.216871542 | AC74: 27.41571636 | AD74: ='Other PPA'!EX550 -> 0.065 | AF74: 6.216871542 | AG74: 17.86939429 | AH74: ='Other PPA'!FW550 -> 0.065 | AJ74: 6.216871542 | AK74: 29.61255977 | AL74: ='Other PPA'!GV550 -> 0.065
L75: 2034 | M75: 36.67906256 | N75: 8.956284771 | O75: ='Other PPA'!A597 -> 0.065 | Q75: 100.0273254 | R75: 0 | S75: ='Other PPA'!BZ597 -> 0.07951503479 | U75: 99.59920473 | V75: ='Other PPA'!CZ597 -> 0.065 | X75: 6.341208973 | Y75: 25.87030597 | Z75: ='Other PPA'!DY597 -> 0.065 | AB75: 6.341208973 | AC75: 27.82684477 | AD75: ='Other PPA'!EX597 -> 0.065 | AF75: 6.341208973 | AG75: 18.1353249 | AH75: ='Other PPA'!FW597 -> 0.065 | AJ75: 6.341208973 | AK75: 30.05515361 | AL75: ='Other PPA'!GV597 -> 0.065
L76: 2035 | M76: 36.78562546 | N76: 8.913089403 | O76: ='Other PPA'!A644 -> 0.065 | Q76: 101.6226452 | R76: 0 | S76: ='Other PPA'!BZ644 -> 0.07950033159 | U76: 101.3253463 | V76: ='Other PPA'!CZ644 -> 0.065 | X76: 6.468033152 | Y76: 26.24595065 | Z76: ='Other PPA'!DY644 -> 0.065 | AB76: 6.468033152 | AC76: 28.24415169 | AD76: ='Other PPA'!EX644 -> 0.065 | AF76: 6.468033152 | AG76: 18.40521141 | AH76: ='Other PPA'!FW644 -> 0.065 | AJ76: 6.468033152 | AK76: 30.50436943 | AL76: ='Other PPA'!GV644 -> 0.065
L77: 2036 | M77: 36.89416912 | N77: 8.883467646 | O77: ='Other PPA'!A691 -> 0.065 | Q77: 103.254972 | R77: 0 | S77: ='Other PPA'!BZ691 -> 0.07949037325 | U77: 103.0820497 | V77: ='Other PPA'!CZ691 -> 0.065 | X77: 6.597393815 | Y77: 26.62699598 | Z77: ='Other PPA'!DY691 -> 0.065 | AB77: 6.597393815 | AC77: 28.66773021 | AD77: ='Other PPA'!EX691 -> 0.065 | AF77: 6.597393815 | AG77: 18.67911263 | AH77: ='Other PPA'!FW691 -> 0.065 | AJ77: 6.597393815 | AK77: 30.96030644 | AL77: ='Other PPA'!GV691 -> 0.065
L78: 2037 | M78: 37.00472705 | N78: 8.865661879 | O78: ='Other PPA'!A738 -> 0.065 | Q78: 104.9258956 | R78: 0 | S78: ='Other PPA'!BZ738 -> 0.07948447755 | U78: 104.8698671 | V78: ='Other PPA'!CZ738 -> 0.065 | X78: 6.729341692 | Y78: 27.0135185 | Z78: ='Other PPA'!DY738 -> 0.065 | AB78: 6.729341692 | AC78: 29.09767487 | AD78: ='Other PPA'!EX738 -> 0.065 | AF78: 6.729341692 | AG78: 18.95708826 | AH78: ='Other PPA'!FW738 -> 0.065 | AJ78: 6.729341692 | AK78: 31.42306536 | AL78: ='Other PPA'!GV738 -> 0.065
L79: 2038 | M79: 37.11733335 | N79: 8.862679685 | O79: ='Other PPA'!A785 -> 0.065 | Q79: 106.5535131 | R79: 0 | S79: ='Other PPA'!BZ785 -> 0.07948268261 | U79: 106.6893608 | V79: ='Other PPA'!CZ785 -> 0.065 | X79: 6.863928525 | Y79: 27.40559581 | Z79: ='Other PPA'!DY785 -> 0.065 | AB79: 6.863928525 | AC79: 29.53408161 | AD79: ='Other PPA'!EX785 -> 0.065 | AF79: 6.863928525 | AG79: 19.23919885 | AH79: ='Other PPA'!FW785 -> 0.065 | AJ79: 6.863928525 | AK79: 31.89274839 | AL79: ='Other PPA'!GV785 -> 0.065
L80: 2039 | M80: 37.23202267 | N80: 8.856754803 | O80: ='Other PPA'!A832 -> 0.065 | Q80: 108.2165477 | R80: 0 | S80: ='Other PPA'!BZ832 -> 0.07948036454 | U80: 108.5411036 | V80: ='Other PPA'!CZ832 -> 0.065 | X80: 7.001207096 | Y80: 27.80330659 | Z80: ='Other PPA'!DY832 -> 0.065 | AB80: 7.001207096 | AC80: 29.97704784 | AD80: ='Other PPA'!EX832 -> 0.065 | AF80: 7.001207096 | AG80: 19.5255059 | AH80: ='Other PPA'!FW832 -> 0.065 | AJ80: 7.001207096 | AK80: 32.36945928 | AL80: ='Other PPA'!GV832 -> 0.065
L81: 2040 | M81: 37.34883026 | N81: 8.849957466 | O81: ='Other PPA'!A879 -> 0.065 | Q81: 109.916398 | R81: 0 | S81: ='Other PPA'!BZ879 -> 0.07947756518 | U81: 110.4256789 | V81: ='Other PPA'!CZ879 -> 0.065 | X81: 7.141231238 | Y81: 28.20673061 | Z81: ='Other PPA'!DY879 -> 0.065 | AB81: 7.141231238 | AC81: 30.42667244 | AD81: ='Other PPA'!EX879 -> 0.065 | AF81: 7.141231238 | AG81: 19.81607177 | AH81: ='Other PPA'!FW879 -> 0.065 | AJ81: 7.141231238 | AK81: 32.85330335 | AL81: ='Other PPA'!GV879 -> 0.065
L82: 2041 | M82: 37.58000812 | N82: 8.83533843 | O82: ='Other PPA'!A926 -> 0.065 | Q82: 111.644141 | R82: 0 | S82: ='Other PPA'!BZ926 -> 0.07946726027 | U82: 112.3436806 | V82: ='Other PPA'!CZ926 -> 0.065 | X82: 7.284055863 | Y82: 28.61594874 | Z82: ='Other PPA'!DY926 -> 0.065 | AB82: 7.284055863 | AC82: 30.88305578 | AD82: ='Other PPA'!EX926 -> 0.065 | AF82: 7.284055863 | AG82: 20.1109598 | AH82: ='Other PPA'!FW926 -> 0.065 | AJ82: 7.284055863 | AK82: 33.34438747 | AL82: ='Other PPA'!GV926 -> 0.065
L83: 2042 | M83: 37.81366064 | N83: 8.817803398 | O83: ='Other PPA'!A973 -> 0.065 | Q83: 113.4345268 | R83: 0 | S83: ='Other PPA'!BZ973 -> 0.07945654777 | U83: 114.2957137 | V83: ='Other PPA'!CZ973 -> 0.065 | X83: 7.42973698 | Y83: 29.03104298 | Z83: ='Other PPA'!DY973 -> 0.065 | AB83: 7.42973698 | AC83: 31.34629974 | AD83: ='Other PPA'!EX973 -> 0.065 | AF83: 7.42973698 | AG83: 20.41023423 | AH83: ='Other PPA'!FW973 -> 0.065 | AJ83: 7.42973698 | AK83: 33.84282015 | AL83: ='Other PPA'!GV973 -> 0.065
L84: 2043 | M84: 38.04977216 | N84: 8.798071214 | O84: ='Other PPA'!A1020 -> 0.065 | Q84: 115.2682385 | R84: 0 | S84: ='Other PPA'!BZ1020 -> 0.07944564382 | U84: 116.2823943 | V84: ='Other PPA'!CZ1020 -> 0.065 | X84: 7.578331719 | Y84: 29.45209646 | Z84: ='Other PPA'!DY1020 -> 0.065 | AB84: 7.578331719 | AC84: 31.81650777 | AD84: ='Other PPA'!EX1020 -> 0.065 | AF84: 7.578331719 | AG84: 20.71395821 | AH84: ='Other PPA'!FW1020 -> 0.0649999926 | AJ84: 7.578331719 | AK84: 34.3487115 | AL84: ='Other PPA'!GV1020 -> 0.065
L85: 2044 | M85: 38.28843458 | N85: 8.776160557 | O85: ='Other PPA'!A1067 -> 0.065 | Q85: 117.0407926 | R85: 0 | S85: ='Other PPA'!BZ1067 -> 0.07943408959 | U85: 118.3043499 | V85: ='Other PPA'!CZ1067 -> 0.065 | X85: 7.729898354 | Y85: 29.87919345 | Z85: ='Other PPA'!DY1067 -> 0.065 | AB85: 7.729898354 | AC85: 32.29378486 | AD85: ='Other PPA'!EX1067 -> 0.065 | AF85: 7.729898354 | AG85: 21.02219993 | AH85: ='Other PPA'!FW1067 -> 0.06499998521 | AJ85: 7.729898354 | AK85: 34.86217329 | AL85: ='Other PPA'!GV1067 -> 0.065
L86: 2045 | M86: 38.50820023 | N86: 8.756628915 | O86: ='Other PPA'!A1114 -> 0.065 | Q86: 118.8750923 | R86: 0 | S86: ='Other PPA'!BZ1114 -> 0.07942225027 | U86: 120.3622197 | V86: ='Other PPA'!CZ1114 -> 0.065 | X86: 7.884496321 | Y86: 30.3124194 | Z86: ='Other PPA'!DY1114 -> 0.065 | AB86: 7.884496321 | AC86: 32.7782376 | AD86: ='Other PPA'!EX1114 -> 0.065 | AF86: 7.884496321 | AG86: 21.33502654 | AH86: ='Other PPA'!FW1114 -> 0.06499997784 | AJ86: 7.884496321 | AK86: 35.38331899 | AL86: ='Other PPA'!GV1114 -> 0.065
M87: =SUM(M63:M86) -> 884.8803664 | N87: =SUM(N63:N86) -> 218.5104442 | Q87: =SUM(Q63:Q86) -> 2393.493026 | R87: =SUM(R63:R86) -> 0 | U87: =SUM(U63:U86) -> 2387.085251 | X87: =SUM(X63:X86) -> 152.1093124 | Y87: =Y86*1.02 -> 30.91866779 | AB87: =SUM(AB63:AB86) -> 152.1093124 | AC87: =SUM(AC63:AC86) -> 666.4238907 | AF87: =SUM(AF63:AF86) -> 152.1093124 | AG87: =SUM(AG63:AG86) -> 434.3062419 | AJ87: =SUM(AJ63:AJ86) -> 152.1093124 | AK87: =SUM(AK63:AK86) -> 719.7771434

Sheet Storage Summary
C1: 4 | D1: 8 | E1: 4 | F1: 8 | G1: 16 | H1: 4 | I1: 4 | J1: 16 | K1: 16 | L1: 24
B3: Levelized Fixed Cost $/kW | K3: option1 | L3: option2 | N3: Levelized Fixed Cost $/kW-month
C4: ='Resource Options'!$B$28 -> Distribution Scale 4hr Lithium-Ion | D4: ='Resource Options'!$B$29 -> Distribution Scale 8hr Lithium-Ion | E4: ='Resource Options'!$B$30 -> 4hr Lithium-Ion | F4: ='Resource Options'!$B$31 -> 8hr Lithium-Ion | G4: ='Resource Options'!$B$32 -> 16hr Lithium-Ion | H4: ='Resource Options'!$B$33 -> 4 hr Vanadium Flow Battery | I4: ='Resource Options'!$B$34 -> 4 hr Zinc Bromide Flow Battery | J4: ='Resource Options'!B37 -> Liquid Air | K4: Pumped Hydro (16 hr/ 100 MW) | L4: Pumped Hydro (24 hr/ 100 MW) | N4: =C4 -> Distribution Scale 4hr Lithium-Ion | O4: Distribution Scale 8hr Lithium-Ion | P4: 4hr Lithium-Ion | Q4: 8hr Lithium-Ion | R4: 16hr Lithium-Ion | S4: 4 hr Vanadium Flow Battery | T4: 4 hr Zinc Bromide Flow Battery | U4: Liquid Air | V4: Pumped Hydro (16 hr/ 100 MW) | W4: Pumped Hydro (24 hr/ 100 MW)
B5: 2022 | C5: ='Ownership Storage'!B23 -> 263.5722698 | D5: ='Ownership Storage'!Y23 -> 516.6060633 | E5: ='Ownership Storage'!AV23 -> 238.6118178 | F5: ='Ownership Storage'!BS23 -> 439.0457448 | G5: ='Ownership Storage'!CP23 -> 763.5578171 | H5: ='Ownership Storage'!DM23 -> 237.8796206 | I5: ='Ownership Storage'!EJ23 -> 283.6817777 | J5: ='Ownership Storage'!HW23 -> 251.6957505 | K5: ='Ownership Storage'!IT23 -> 420.203269 | L5: ='Ownership Storage'!JQ23 -> 437.7601151 | N5: =C5/12 -> 21.96435581 | O5: 43.05050528 | P5: 19.88431815 | Q5: 36.5871454 | R5: 63.62981809 | S5: 19.82330172 | T5: 23.64014814 | U5: 20.97464588 | V5: 35.01693908 | W5: 36.4800096
B6: 2023 | C6: ='Ownership Storage'!B46 -> 258.4719785 | D6: ='Ownership Storage'!Y46 -> 506.6198968 | E6: ='Ownership Storage'!AV46 -> 233.7232834 | F6: ='Ownership Storage'!BS46 -> 430.0508414 | G6: ='Ownership Storage'!CP46 -> 747.9145068 | H6: ='Ownership Storage'!DM46 -> 233.8313035 | I6: ='Ownership Storage'!EJ46 -> 278.5994938 | J6: ='Ownership Storage'!HW46 -> 256.7296656 | K6: ='Ownership Storage'!IT46 -> 426.5616917 | L6: ='Ownership Storage'!JQ46 -> 444.3801348 | N6: =C6/12 -> 21.53933154 | O6: =D6/12 -> 42.21832473 | P6: =E6/12 -> 19.47694028 | Q6: =F6/12 -> 35.83757012 | R6: =G6/12 -> 62.3262089 | S6: =H6/12 -> 19.48594196 | T6: =I6/12 -> 23.21662448 | U6: =J6/12 -> 21.3941388 | V6: =K6/12 -> 35.54680764 | W6: =L6/12 -> 37.0316779
B7: 2024 | C7: ='Ownership Storage'!B69 -> 253.8483316 | D7: ='Ownership Storage'!Y69 -> 497.5675857 | E7: ='Ownership Storage'!AV69 -> 229.2759629 | F7: ='Ownership Storage'!BS69 -> 421.8677717 | G7: ='Ownership Storage'!CP69 -> 733.6830811 | H7: ='Ownership Storage'!DM69 -> 230.1933111 | I7: ='Ownership Storage'!EJ69 -> 274.0156483 | J7: ='Ownership Storage'!HW69 -> 261.8642589 | K7: ='Ownership Storage'!IT69 -> 433.0168027 | L7: ='Ownership Storage'!JQ69 -> 451.1007407 | N7: 21.15402764 | O7: 41.46396547 | P7: 19.10633024 | Q7: 35.15564764 | R7: 61.14025676 | S7: 19.18277593 | T7: 22.83463736 | U7: 21.82202157 | V7: 36.08473356 | W7: 37.59172839
B8: 2025 | C8: ='Ownership Storage'!B92 -> 252.0346962 | D8: ='Ownership Storage'!Y92 -> 494.0202109 | E8: ='Ownership Storage'!AV92 -> 227.4432197 | F8: ='Ownership Storage'!BS92 -> 418.4955243 | G8: ='Ownership Storage'!CP92 -> 727.8183031 | H8: ='Ownership Storage'!DM69 -> 230.1933111 | I8: ='Ownership Storage'!EJ92 -> 272.3501222 | J8: ='Ownership Storage'!HW92 -> 267.101544 | K8: ='Ownership Storage'!IT92 -> 439.5700818 | L8: ='Ownership Storage'!JQ92 -> 457.9234705 | N8: 21.00289135 | O8: 41.16835091 | P8: 18.95360164 | Q8: 34.87462703 | R8: 60.65152526 | S8: 19.18277593 | T8: 22.69584352 | U8: 22.258462 | V8: 36.63084015 | W8: 38.16028921
B9: 2026 | C9: ='Ownership Storage'!B115 -> 250.5298969 | D9: ='Ownership Storage'!Y115 -> 491.0779587 | E9: ='Ownership Storage'!AV115 -> 225.8952739 | F9: ='Ownership Storage'!BS115 -> 415.6473039 | G9: ='Ownership Storage'!CP115 -> 722.8648764 | H9: ='Ownership Storage'!DM138 -> 227.5328319 | I9: ='Ownership Storage'!EJ115 -> 271.0091777 | J9: ='Ownership Storage'!HW115 -> 272.4435749 | K9: ='Ownership Storage'!IT115 -> 446.2230313 | L9: ='Ownership Storage'!JQ115 -> 464.8498854 | N9: 20.87749141 | O9: 40.92316322 | P9: 18.82460616 | Q9: 34.63727533 | R9: 60.2387397 | S9: 18.96106932 | T9: 22.58409814 | U9: 22.70363124 | V9: 37.18525261 | W9: 38.73749045
B10: 2027 | C10: ='Ownership Storage'!B138 -> 249.6572924 | D10: ='Ownership Storage'!Y138 -> 489.3742928 | E10: ='Ownership Storage'!AV138 -> 224.933261 | F10: ='Ownership Storage'!BS138 -> 413.8772002 | G10: ='Ownership Storage'!CP138 -> 719.7864352 | H10: ='Ownership Storage'!DM138 -> 227.5328319 | I10: ='Ownership Storage'!EJ138 -> 270.3282373 | J10: ='Ownership Storage'!HW138 -> 277.8924464 | K10: ='Ownership Storage'!IT138 -> 452.9771768 | L10: ='Ownership Storage'!JQ138 -> 471.8815711 | N10: 20.80477437 | O10: 40.78119106 | P10: 18.74443842 | Q10: 34.48976669 | R10: 59.98220293 | S10: 18.96106932 | T10: 22.52735311 | U10: 23.15770387 | V10: 37.74809807 | W10: 39.32346426
B11: 2028 | C11: ='Ownership Storage'!B161 -> 249.1028571 | D11: ='Ownership Storage'!Y161 -> 488.2940371 | E11: ='Ownership Storage'!AV161 -> 224.2646227 | F11: ='Ownership Storage'!BS161 -> 412.6469058 | G11: ='Ownership Storage'!CP161 -> 717.6467927 | H11: ='Ownership Storage'!DM161 -> 227.3734289 | I11: ='Ownership Storage'!EJ161 -> 269.981731 | J11: ='Ownership Storage'!HW161 -> 283.4502954 | K11: ='Ownership Storage'!IT161 -> 459.8340676 | L11: ='Ownership Storage'!JQ161 -> 479.0201374 | N11: 20.75857142 | O11: 40.69116976 | P11: 18.68871856 | Q11: 34.38724215 | R11: 59.8038994 | S11: 18.94778574 | T11: 22.49847759 | U11: 23.62085795 | V11: 38.31950563 | W11: 39.91834478
B12: 2029 | C12: ='Ownership Storage'!B184 -> 248.8343566 | D12: ='Ownership Storage'!Y184 -> 487.7740474 | E12: ='Ownership Storage'!AV184 -> 223.8592749 | F12: ='Ownership Storage'!BS184 -> 411.9010658 | G12: ='Ownership Storage'!CP184 -> 716.3496796 | H12: ='Ownership Storage'!DM184 -> 227.4630196 | I12: ='Ownership Storage'!EJ184 -> 269.9363205 | J12: ='Ownership Storage'!HW184 -> 289.1193013 | K12: ='Ownership Storage'!IT184 -> 466.7952767 | L12: ='Ownership Storage'!JQ184 -> 486.2672189 | N12: 20.73619639 | O12: 40.64783728 | P12: 18.65493957 | Q12: 34.32508882 | R12: 59.69580664 | S12: 18.95525164 | T12: 22.49469338 | U12: 24.09327511 | V12: 38.89960639 | W12: 40.52226824
B13: 2030 | C13: ='Ownership Storage'!B207 -> 248.4267924 | D13: ='Ownership Storage'!Y207 -> 486.9817509 | E13: ='Ownership Storage'!AV207 -> 223.3212907 | F13: ='Ownership Storage'!BS207 -> 410.9111749 | G13: ='Ownership Storage'!CP207 -> 714.6281303 | H13: ='Ownership Storage'!DM207 -> 227.4408922 | I13: ='Ownership Storage'!EJ207 -> 269.7513557 | J13: ='Ownership Storage'!HW207 -> 294.9016873 | K13: ='Ownership Storage'!IT207 -> 473.8624014 | L13: ='Ownership Storage'!JQ207 -> 493.6244755 | N13: 20.7022327 | O13: 40.58181257 | P13: 18.61010756 | Q13: 34.24259791 | R13: 59.55234419 | S13: 18.95340768 | T13: 22.47927964 | U13: 24.57514061 | V13: 39.48853345 | W13: 41.13537296
B14: 2031 | C14: ='Ownership Storage'!B230 -> 248.1168459 | D14: ='Ownership Storage'!Y230 -> 486.3808106 | E14: ='Ownership Storage'!AV230 -> 222.8710656 | F14: ='Ownership Storage'!BS230 -> 410.0827608 | G14: ='Ownership Storage'!CP230 -> 713.1874101 | H14: ='Ownership Storage'!DM230 -> 227.5081232 | I14: ='Ownership Storage'!EJ230 -> 269.6723785 | J14: ='Ownership Storage'!HW230 -> 300.799721 | K14: ='Ownership Storage'!IT230 -> 481.0370637 | L14: ='Ownership Storage'!JQ230 -> 501.0935928 | N14: 20.67640382 | O14: 40.53173422 | P14: 18.5725888 | Q14: 34.1735634 | R14: 59.43228417 | S14: 18.95901027 | T14: 22.47269821 | U14: 25.06664342 | V14: 40.08642198 | W14: 41.7577994
B15: 2032 | C15: ='Ownership Storage'!B253 -> 247.9410683 | D15: ='Ownership Storage'!Y253 -> 486.042833 | E15: ='Ownership Storage'!AV253 -> 222.542582 | F15: ='Ownership Storage'!BS253 -> 409.4783508 | G15: ='Ownership Storage'!CP253 -> 712.1362623 | H15: ='Ownership Storage'!DM253 -> 227.6958754 | I15: ='Ownership Storage'!EJ253 -> 269.7373891 | J15: ='Ownership Storage'!HW253 -> 306.8157155 | K15: ='Ownership Storage'!IT253 -> 488.3209108 | L15: ='Ownership Storage'!JQ253 -> 508.6762821 | N15: 20.66175569 | O15: 40.50356942 | P15: 18.54521516 | Q15: 34.1231959 | R15: 59.34468852 | S15: 18.97465628 | T15: 22.47811576 | U15: 25.56797629 | V15: 40.69340923 | W15: 42.38969018
B16: 2033 | C16: ='Ownership Storage'!B276 -> 247.9807158 | D16: ='Ownership Storage'!Y276 -> 486.1270015 | E16: ='Ownership Storage'!AV276 -> 222.4114611 | F16: ='Ownership Storage'!BS276 -> 409.2370884 | G16: ='Ownership Storage'!CP276 -> 711.7166756 | H16: ='Ownership Storage'!DM276 -> 228.0732695 | I16: ='Ownership Storage'!EJ276 -> 270.0307502 | J16: ='Ownership Storage'!HW276 -> 312.9520298 | K16: ='Ownership Storage'!IT276 -> 495.7156151 | L16: ='Ownership Storage'!JQ276 -> 516.3742814 | N16: 20.66505965 | O16: 40.51058346 | P16: 18.53428843 | Q16: 34.1030907 | R16: 59.30972296 | S16: 19.0061058 | T16: 22.50256252 | U16: 26.07933581 | V16: 41.30963459 | W16: 43.03119012
B17: 2034 | C17: ='Ownership Storage'!B299 -> 248.2825218 | D17: ='Ownership Storage'!Y299 -> 486.7248701 | E17: ='Ownership Storage'!AV299 -> 222.5211673 | F17: ='Ownership Storage'!BS299 -> 409.4389479 | G17: ='Ownership Storage'!CP299 -> 712.0677355 | H17: ='Ownership Storage'!DM299 -> 228.6801187 | I17: ='Ownership Storage'!EJ299 -> 270.6010256 | J17: ='Ownership Storage'!HW299 -> 319.2110704 | K17: ='Ownership Storage'!IT299 -> 503.2228749 | L17: ='Ownership Storage'!JQ299 -> 524.1893554 | N17: 20.69021015 | O17: 40.56040584 | P17: 18.54343061 | Q17: 34.11991232 | R17: 59.33897795 | S17: 19.05667656 | T17: 22.55008547 | U17: 26.60092253 | V17: 41.93523958 | W17: 43.68244629
B18: 2035 | C18: ='Ownership Storage'!B322 -> 248.9594952 | D18: ='Ownership Storage'!Y322 -> 488.0578261 | E18: ='Ownership Storage'!AV322 -> 222.9768955 | F18: ='Ownership Storage'!BS322 -> 410.2774877 | G18: ='Ownership Storage'!CP322 -> 713.5260656 | H18: ='Ownership Storage'!DM322 -> 229.6125081 | I18: ='Ownership Storage'!EJ322 -> 271.5655108 | J18: ='Ownership Storage'!HW322 -> 325.5952918 | K18: ='Ownership Storage'!IT322 -> 510.8444149 | L18: ='Ownership Storage'!JQ322 -> 532.1232959 | N18: 20.7466246 | O18: 40.6714855 | P18: 18.58140796 | Q18: 34.18979064 | R18: 59.46050546 | S18: 19.13437567 | T18: 22.63045923 | U18: 27.13294098 | V18: 42.57036791 | W18: 44.343608
B19: 2036 | C19: ='Ownership Storage'!B345 -> 249.8768204 | D19: ='Ownership Storage'!Y345 -> 489.8617677 | E19: ='Ownership Storage'!AV345 -> 223.6530029 | F19: ='Ownership Storage'!BS345 -> 411.5215254 | G19: ='Ownership Storage'!CP345 -> 715.6896094 | H19: ='Ownership Storage'!DM345 -> 230.7561156 | I19: ='Ownership Storage'!EJ345 -> 272.7844994 | J19: ='Ownership Storage'!HW345 -> 332.1071976 | K19: ='Ownership Storage'!IT345 -> 518.5819862 | L19: ='Ownership Storage'!JQ345 -> 540.1779226 | N19: 20.82306836 | O19: 40.82181397 | P19: 18.63775024 | Q19: 34.29346045 | R19: 59.64080078 | S19: 19.2296763 | T19: 22.73204162 | U19: 27.6755998 | V19: 43.21516552 | W19: 45.01482688
B20: 2037 | C20: ='Ownership Storage'!B368 -> 251.0066219 | D20: ='Ownership Storage'!Y368 -> 492.0820897 | E20: ='Ownership Storage'!AV368 -> 224.5234552 | F20: ='Ownership Storage'!BS368 -> 413.1231575 | G20: ='Ownership Storage'!CP368 -> 718.4750565 | H20: ='Ownership Storage'!DM368 -> 232.0874173 | I20: ='Ownership Storage'!EJ368 -> 274.2291885 | J20: ='Ownership Storage'!HW368 -> 338.7493416 | K20: ='Ownership Storage'!IT368 -> 526.4373671 | L20: ='Ownership Storage'!JQ368 -> 548.3550829 | N20: 20.91721849 | O20: 41.00684081 | P20: 18.71028793 | Q20: 34.42692979 | R20: 59.87292137 | S20: 19.34061811 | T20: 22.85243238 | U20: 28.2291118 | V20: 43.86978059 | W20: 45.69625691
B21: 2038 | C21: ='Ownership Storage'!B391 -> 252.3985341 | D21: ='Ownership Storage'!Y391 -> 494.8160285 | E21: ='Ownership Storage'!AV391 -> 225.6344126 | F21: ='Ownership Storage'!BS391 -> 415.1673192 | G21: ='Ownership Storage'!CP391 -> 722.0301204 | H21: ='Ownership Storage'!DM391 -> 233.6486999 | I21: ='Ownership Storage'!EJ391 -> 275.951158 | J21: ='Ownership Storage'!HW391 -> 345.5243284 | K21: ='Ownership Storage'!IT391 -> 534.4123633 | L21: ='Ownership Storage'!JQ391 -> 556.6566531 | N21: 21.03321117 | O21: 41.23466904 | P21: 18.80286772 | Q21: 34.5972766 | R21: 60.1691767 | S21: 19.47072499 | T21: 22.99592983 | U21: 28.79369403 | V21: 44.53436361 | W21: 46.38805443
B22: 2039 | C22: ='Ownership Storage'!B414 -> 253.7644572 | D22: ='Ownership Storage'!Y414 -> 497.499198 | E22: ='Ownership Storage'!AV414 -> 226.7174517 | F22: ='Ownership Storage'!BS414 -> 417.1601111 | G22: ='Ownership Storage'!CP414 -> 725.4958454 | H22: ='Ownership Storage'!DM414 -> 235.1955071 | I22: ='Ownership Storage'!EJ414 -> 277.6517456 | J22: ='Ownership Storage'!HW414 -> 352.4348149 | K22: ='Ownership Storage'!IT414 -> 542.5088086 | L22: ='Ownership Storage'!JQ414 -> 565.0845383 | N22: 21.1470381 | O22: 41.4582665 | P22: 18.89312097 | Q22: 34.76334259 | R22: 60.45798712 | S22: 19.5996256 | T22: 23.13764547 | U22: 29.36956791 | V22: 45.20906738 | W22: 47.09037819
B23: 2040 | C23: ='Ownership Storage'!B437 -> 255.1696424 | D23: ='Ownership Storage'!Y437 -> 500.2594286 | E23: ='Ownership Storage'!AV437 -> 227.8332765 | F23: ='Ownership Storage'!BS437 -> 419.2132287 | G23: ='Ownership Storage'!CP437 -> 729.0664847 | H23: ='Ownership Storage'!DM437 -> 236.7833911 | I23: ='Ownership Storage'!EJ437 -> 279.3987311 | J23: ='Ownership Storage'!HW437 -> 359.4835112 | K23: ='Ownership Storage'!IT437 -> 550.728565 | L23: ='Ownership Storage'!JQ437 -> 573.640673 | N23: 21.26413686 | O23: 41.68828572 | P23: 18.98610637 | Q23: 34.93443573 | R23: 60.7555404 | S23: 19.73194926 | T23: 23.28322759 | U23: 29.95695927 | V23: 45.89404708 | W23: 47.80338942
B24: 2041 | C24: ='Ownership Storage'!B460 -> 256.5507406 | D24: ='Ownership Storage'!Y460 -> 502.9726221 | E24: ='Ownership Storage'!AV460 -> 228.9228047 | F24: ='Ownership Storage'!BS460 -> 421.2179607 | G24: ='Ownership Storage'!CP460 -> 732.5529751 | H24: ='Ownership Storage'!DM460 -> 238.3587213 | I24: ='Ownership Storage'!EJ460 -> 281.1265324 | J24: ='Ownership Storage'!HW460 -> 366.6731815 | K24: ='Ownership Storage'!IT460 -> 559.0735232 | L24: ='Ownership Storage'!JQ460 -> 582.3270217 | N24: 21.37922839 | O24: 41.91438517 | P24: 19.07690039 | Q24: 35.10149672 | R24: 61.04608126 | S24: 19.86322677 | T24: 23.42721103 | U24: 30.55609846 | V24: 46.58946026 | W24: 48.5272518
B25: 2042 | C25: ='Ownership Storage'!B483 -> 257.909125 | D25: ='Ownership Storage'!Y483 -> 505.6414712 | E25: ='Ownership Storage'!AV483 -> 229.9872381 | F25: ='Ownership Storage'!BS483 -> 423.1765181 | G25: ='Ownership Storage'!CP483 -> 735.9591619 | H25: ='Ownership Storage'!DM483 -> 239.9228215 | I25: ='Ownership Storage'!EJ483 -> 282.8366894 | J25: ='Ownership Storage'!HW483 -> 374.0066451 | K25: ='Ownership Storage'!IT483 -> 567.5456033 | L25: ='Ownership Storage'!JQ483 -> 591.1455789 | N25: 21.49242708 | O25: 42.13678926 | P25: 19.16560317 | Q25: 35.26470984 | R25: 61.32993016 | S25: 19.99356846 | T25: 23.56972411 | U25: 31.16722043 | V25: 47.29546694 | W25: 49.26213158
B26: 2043 | C26: ='Ownership Storage'!B506 -> 257.6616687 | D26: ='Ownership Storage'!Y506 -> 508.3099587 | E26: ='Ownership Storage'!AV506 -> 231.047409 | F26: ='Ownership Storage'!BS506 -> 425.1272325 | G26: ='Ownership Storage'!CP506 -> 739.3517087 | H26: ='Ownership Storage'!DM506 -> 241.4949135 | I26: ='Ownership Storage'!EJ506 -> 284.5526018 | J26: ='Ownership Storage'!HW506 -> 381.486778 | K26: ='Ownership Storage'!IT506 -> 576.1467551 | L26: ='Ownership Storage'!JQ506 -> 600.0983704 | N26: 21.47180572 | O26: 42.35916323 | P26: 19.25395075 | Q26: 35.42726938 | R26: 61.6126424 | S26: 20.12457613 | T26: 23.71271682 | U26: 31.79056483 | V26: 48.01222959 | W26: 50.00819753
B27: 2044 | C27: ='Ownership Storage'!B529 -> 258.9185987 | D27: ='Ownership Storage'!Y529 -> 510.9803803 | E27: ='Ownership Storage'!AV529 -> 232.1043271 | F27: ='Ownership Storage'!BS529 -> 427.0719618 | G27: ='Ownership Storage'!CP529 -> 742.7338466 | H27: ='Ownership Storage'!DM529 -> 243.0761552 | I27: ='Ownership Storage'!EJ529 -> 286.2756039 | J27: ='Ownership Storage'!HW529 -> 389.1165136 | K27: ='Ownership Storage'!IT529 -> 584.8789586 | L27: ='Ownership Storage'!JQ529 -> 609.1874529 | N27: 21.57654989 | O27: 42.58169836 | P27: 19.34202725 | Q27: 35.58933015 | R27: 61.89448722 | S27: 20.25634627 | T27: 23.85630033 | U27: 32.42637613 | V27: 48.73991321 | W27: 50.76562108
B28: 2045 | C28: ='Ownership Storage'!B552 -> 260.1944325 | D28: ='Ownership Storage'!Y552 -> 513.6551561 | E28: ='Ownership Storage'!AV552 -> 233.1590596 | F28: ='Ownership Storage'!BS552 -> 429.0126697 | G28: ='Ownership Storage'!CP552 -> 746.1089907 | H28: ='Ownership Storage'!DM552 -> 244.6677617 | I28: ='Ownership Storage'!EJ552 -> 288.0070982 | J28: ='Ownership Storage'!HW552 -> 396.8988438 | K28: ='Ownership Storage'!IT552 -> 593.7442242 | L28: ='Ownership Storage'!JQ552 -> 618.4149151 | N28: 21.68286938 | O28: 42.80459634 | P28: 19.42992163 | Q28: 35.75105581 | R28: 62.17574923 | S28: 20.38898015 | T28: 24.00059152 | U28: 33.07490365 | V28: 49.47868535 | W28: 51.53457626
B31: Levelized Fixed Cost $/kWh | N31: $/MWh (include losses)
B32: =B5 -> 2022 | C32: =C5/C$1 -> 65.89306744 | D32: 64.57575792 | E32: =E5/D$1 -> 29.82647723 | F32: =F5/F$1 -> 54.8807181 | G32: =G5/E$1 -> 190.8894543 | H32: =H5/F$1 -> 29.73495258 | I32: =I5/G$1 -> 17.73011111 | J32: =J5/H$1 -> 62.92393764 | K32: =K5/I$1 -> 105.0508172 | L32: =L5/J$1 -> 27.3600072 | N32: ='Ownership Storage'!$B$26 -> 240.1531662 | O32: ='Ownership Storage'!$AV$26 -> 229.4867559 | P32: ='Ownership Storage'!$BS$26 -> 214.1048499 | Q32: ='Ownership Storage'!$CP$26 -> 191.0319908 | R32: ='Ownership Storage'!$DM$26 -> 283.8400271 | S32: ='Ownership Storage'!$EJ$26 -> 344.6037548
B33: =B6 -> 2023 | C33: 64.61799463 | D33: 63.3274871 | E33: 29.21541042 | F33: =F6/F$1 -> 53.75635518 | G33: 186.9786267 | H33: 29.22891294 | I33: 17.41246836 | J33: 64.18241639 | K33: 106.6404229 | L33: 27.77375843
B34: 2024 | C34: 63.46208291 | D34: 62.19594821 | E34: 28.65949536 | F34: 52.73347146 | G34: 183.4207703 | H34: 28.77416389 | I34: 17.12597802 | J34: 65.46606472 | K34: 108.2542007 | L34: 28.1937963
B35: 2025 | C35: 63.00867405 | D35: 61.75252637 | E35: 28.43040247 | F35: 52.31194054 | G35: 181.9545758 | H35: 28.77416389 | I35: 17.02188264 | J35: 66.77538601 | K35: 109.8925204 | L35: 28.6202169
B36: 2026 | C36: 62.63247422 | D36: 61.38474483 | E36: 28.23690923 | F36: 51.95591299 | G36: 180.7162191 | H36: 28.44160398 | I36: 16.93807361 | J36: 68.11089373 | K36: 111.5557578 | L36: 29.05311784
B37: 2027 | C37: 62.41432311 | D37: 61.17178659 | E37: 28.11665763 | F37: 51.73465003 | G37: 179.9466088 | H37: 28.44160398 | I37: 16.89551483 | J37: 69.47311161 | K37: 113.2442942 | L37: 29.4925982
B38: 2028 | C38: 62.27571426 | D38: 61.03675464 | E38: 28.03307784 | F38: 51.58086323 | G38: 179.4116982 | H38: 28.42167861 | I38: 16.87385819 | J38: 70.86257384 | K38: 114.9585169 | L38: 29.93875859
B39: 2029 | C39: 62.20858916 | D39: 60.97175593 | E39: 27.98240936 | F39: 51.48763322 | G39: 179.0874199 | H39: 28.43287745 | I39: 16.87102003 | J39: 72.27982532 | K39: 116.6988192 | L39: 30.39170118 | N39: ='Ownership Storage'!$B$187 -> 240.2998188 | O39: ='Ownership Storage'!$AV$187 -> 229.9489654 | P39: ='Ownership Storage'!$BS$187 -> 215.5180694 | Q39: ='Ownership Storage'!$CP$187 -> 193.8717253 | R39: ='Ownership Storage'!$DM$187 -> 290.5999158 | S39: ='Ownership Storage'!$EJ$187 -> 348.6720052
B40: 2030 | C40: 62.10669809 | D40: 60.87271886 | E40: 27.91516134 | F40: 51.36389687 | G40: 178.6570326 | H40: 28.43011152 | I40: 16.85945973 | J40: 73.72542182 | K40: 118.4656003 | L40: 30.85152972
B41: 2031 | C41: 62.02921147 | D41: 60.79760133 | E41: 27.85888321 | F41: 51.2603451 | G41: 178.2968525 | H41: 28.43851541 | I41: 16.85452366 | J41: 75.19993026 | K41: 120.2592659 | L41: 31.31834955
B42: 2032 | C42: 61.98526708 | D42: 60.75535413 | E42: 27.81782275 | F42: 51.18479385 | G42: 178.0340656 | H42: 28.46198443 | I42: 16.85858682 | J42: 76.70392886 | K42: 122.0802277 | L42: 31.79226763
B43: 2033 | C43: 61.99517894 | D43: 60.76587518 | E43: 27.80143264 | F43: 51.15463606 | G43: 177.9291689 | H43: 28.50915869 | I43: 16.87692189 | J43: 78.23800744 | K43: 123.9289038 | L43: 32.27339259
B44: 2034 | C44: 62.07063046 | D44: 60.84060876 | E44: 27.81514592 | F44: 51.17986849 | G44: 178.0169339 | H44: 28.58501484 | I44: 16.9125641 | J44: 79.80276759 | K44: 125.8057187 | L44: 32.76183471
B45: 2035 | C45: 62.2398738 | D45: 61.00722826 | E45: 27.87211194 | F45: 51.28468596 | G45: 178.3815164 | H45: 28.70156351 | I45: 16.97284442 | J45: 81.39882294 | K45: 127.7111037 | L45: 33.257706
B46: 2036 | C46: 62.46920509 | D46: 61.23272096 | E46: 27.95662537 | F46: 51.44019067 | G46: 178.9224023 | H46: 28.84451445 | I46: 17.04903121 | J46: 83.0267994 | K46: 129.6454965 | L46: 33.76112016
B47: 2037 | C47: 62.75165548 | D47: 61.51026122 | E47: 28.06543189 | F47: 51.64039468 | G47: 179.6187641 | H47: 29.01092716 | I47: 17.13932428 | J47: 84.68733539 | K47: 131.6093418 | L47: 34.27219268 | N47: ='Ownership Storage'!$B$371 -> 253.2176979 | O47: ='Ownership Storage'!$AV$371 -> 242.4188929 | P47: ='Ownership Storage'!$BS$371 -> 227.945181 | Q47: ='Ownership Storage'!$CP$371 -> 206.2346132 | R47: ='Ownership Storage'!$DM$371 -> 311.507222 | S47: ='Ownership Storage'!$EJ$371 -> 370.571526
B48: 2038 | C48: 63.09963352 | D48: 61.85200356 | E48: 28.20430158 | F48: 51.8959149 | G48: 180.5075301 | H48: 29.20608748 | I48: 17.24694737 | J48: 86.3810821 | K48: 133.6030908 | L48: 34.79104082
B49: 2039 | C49: 63.44111429 | D49: 62.18739975 | E49: 28.33968146 | F49: 52.14501389 | G49: 181.3739614 | H49: 29.39943839 | I49: 17.3532341 | J49: 88.10870374 | K49: 135.6272022 | L49: 35.31778365
B50: 2040 | C50: 63.79241059 | D50: 62.53242858 | E50: 28.47915956 | F50: 52.40165359 | G50: 182.2666212 | H50: 29.59792388 | I50: 17.46242069 | J50: 89.87087781 | K50: 137.6821412 | L50: 35.85254206
B51: 2041 | C51: 64.13768516 | D51: 62.87157776 | E51: 28.61535059 | F51: 52.65224508 | G51: 183.1382438 | H51: 29.79484016 | I51: 17.57040827 | J51: 91.66829537 | K51: 139.7683808 | L51: 36.39543885
B52: 2042 | C52: 64.47728125 | D52: 63.2051839 | E52: 28.74840476 | F52: 52.89706476 | G52: 183.9897905 | H52: 29.99035269 | I52: 17.67729308 | J52: 93.50166128 | K52: 141.8864008 | L52: 36.94659868
B53: 2043 | C53: 64.41541717 | D53: 63.53874484 | E53: 28.88092612 | F53: 53.14090407 | G53: 184.8379272 | H53: 30.18686419 | I53: 17.78453761 | J53: 95.3716945 | K53: 144.0366888 | L53: 37.50614815
B54: 2044 | C54: 64.72964967 | D54: 63.87254754 | E54: 29.01304088 | F54: 53.38399522 | G54: 185.6834616 | H54: 30.3845194 | I54: 17.89222525 | J54: 97.27912839 | K54: 146.2197396 | L54: 38.07421581
B55: 2045 | C55: 65.04860813 | D55: 64.20689451 | E55: 29.14488245 | F55: 53.62658371 | G55: 186.5272477 | H55: 30.58347022 | I55: 18.00044364 | J55: 99.22471096 | K55: 148.436056 | L55: 38.65093219

Sheet NG Summary
E2: 2022 | H2: 2029 | K2: 2037
C3: Short Description | D3: Long Description | E3: $/MWh | F3: Fixed Cost $/kW-yr | G3: Variable Cost $/MWh | H3: $/MWh | I3: Fixed Cost $/kW-yr | J3: Variable Cost $/MWh | K3: $/MWh | L3: Fixed Cost $/kW-yr | M3: Variable Cost $/MWh
C4: ='Resource Options'!B7 -> Advanced Small Frame CT | D4: ='Resource Options'!C7 -> GE- 7E.03 Simple Cycle | E4: ='ID Fuel Gen'!$C$35 -> 58.5060987 | F4: ='ID Fuel Gen'!$C$36 -> 131.5684492 | G4: ='ID Fuel Gen'!$C$37 -> 42.384885 | H4: ='ID Fuel Gen'!$FH$35 -> 76.3779189 | I4: ='ID Fuel Gen'!$FH$36 -> 150.1227842 | J4: ='ID Fuel Gen'!$FH$37 -> 57.98322398 | K4: ='ID Fuel Gen'!$MJ$35 -> 91.54359323 | L4: ='ID Fuel Gen'!$MJ$36 -> 173.3884852 | M4: ='ID Fuel Gen'!$MJ$37 -> 70.29812868
C5: ='Resource Options'!B8 -> Frame/Aero Hybrid CT | D5: ='Resource Options'!C8 -> GE-LMS100PB Wet Intercooler DLN | E5: ='ID Fuel Gen'!$C$71 -> 51.37164204 | F5: ='ID Fuel Gen'!$C$72 -> 137.9832464 | G5: ='ID Fuel Gen'!$C$73 -> 34.46441683 | H5: ='ID Fuel Gen'!$FH$71 -> 66.21377388 | I5: ='ID Fuel Gen'!$FH$72 -> 157.4360492 | J5: ='ID Fuel Gen'!$FH$73 -> 46.92297727 | K5: ='ID Fuel Gen'!$MJ$71 -> 79.88153785 | L5: ='ID Fuel Gen'!$MJ$72 -> 181.819703 | M5: ='ID Fuel Gen'!$MJ$73 -> 57.60298775
C6: ='Resource Options'!B9 -> Large Reciprocating Engine Facility | D6: ='Resource Options'!C9 -> 10X Wartsila 18V50SG-B | E6: ='ID Fuel Gen'!$C$107 -> 51.23984375 | F6: ='ID Fuel Gen'!$C$108 -> 142.4804306 | G6: ='ID Fuel Gen'!$C$109 -> 33.78157405 | H6: ='ID Fuel Gen'!$FH$107 -> 65.05650841 | I6: ='ID Fuel Gen'!$FH$108 -> 158.2290158 | J6: ='ID Fuel Gen'!$FH$109 -> 45.66854881 | K6: ='ID Fuel Gen'!$MJ$107 -> 77.82201047 | L6: ='ID Fuel Gen'!$MJ$108 -> 178.3796767 | M6: ='ID Fuel Gen'!$MJ$109 -> 55.96497025
C7: ='Resource Options'!B10 -> Small Reciprocating Engine Facility (Option 2) | D7: ='Resource Options'!C10 -> Jenbacher 920 | E7: ='ID Fuel Gen'!$C$143 -> 56.32359543 | F7: ='ID Fuel Gen'!$C$144 -> 170.5111709 | G7: ='ID Fuel Gen'!$C$145 -> 35.43069109 | H7: ='ID Fuel Gen'!$FH$143 -> 70.59337091 | I7: ='ID Fuel Gen'!$FH$144 -> 189.5338215 | J7: ='ID Fuel Gen'!$FH$145 -> 47.36960216 | K7: ='ID Fuel Gen'!$MJ$143 -> 84.09892407 | L7: ='ID Fuel Gen'!$MJ$144 -> 213.9056769 | M7: ='ID Fuel Gen'!$MJ$145 -> 57.8888475
C8: ='Resource Options'!B11 -> Modern Small Frame CT | D8: ='Resource Options'!C11 -> Siemens- SGT-800-57 | E8: ='ID Fuel Gen'!$C$179 -> 56.5409002 | F8: ='ID Fuel Gen'!$C$180 -> 147.0292418 | G8: ='ID Fuel Gen'!$C$181 -> 38.52526012 | H8: ='ID Fuel Gen'!$FH$179 -> 72.85200187 | I8: ='ID Fuel Gen'!$FH$180 -> 167.788616 | J8: ='ID Fuel Gen'!$FH$181 -> 52.2926949 | K8: ='ID Fuel Gen'!$MJ$179 -> 87.89996067 | L8: ='ID Fuel Gen'!$MJ$180 -> 193.853889 | M8: ='ID Fuel Gen'!$MJ$181 -> 64.14684973
C9: ='Resource Options'!B12 -> Aero CT option 2 | D9: ='Resource Options'!C12 -> GE- LM6000- PF Sprint | E9: ='ID Fuel Gen'!$C$215 -> 58.40954012 | F9: ='ID Fuel Gen'!$C$216 -> 170.5080334 | G9: ='ID Fuel Gen'!$C$217 -> 37.51702023 | H9: ='ID Fuel Gen'!$FH$215 -> 74.72708155 | I9: ='ID Fuel Gen'!$FH$216 -> 194.5818294 | J9: ='ID Fuel Gen'!$FH$217 -> 50.88477535 | K9: ='ID Fuel Gen'!$MJ$215 -> 90.13473715 | L9: ='ID Fuel Gen'!$MJ$216 -> 226.2847205 | M9: ='ID Fuel Gen'!$MJ$217 -> 62.40784399
C10: ='Resource Options'!B13 -> 1 on 1 Large CCCT option 2 | D10: ='Resource Options'!C13 -> Siemens- SGT6-9000HL CCCT | E10: ='ID Fuel Gen'!$C$251 -> 39.86843018 | F10: ='ID Fuel Gen'!$C$252 -> 113.9969483 | G10: ='ID Fuel Gen'!$C$253 -> 25.90027008 | H10: ='ID Fuel Gen'!$FH$251 -> 50.6863073 | I10: ='ID Fuel Gen'!$FH$252 -> 127.0859546 | J10: ='ID Fuel Gen'!$FH$253 -> 35.11433816 | K10: ='ID Fuel Gen'!$MJ$251 -> 60.69669428 | L10: ='ID Fuel Gen'!$MJ$252 -> 143.9224755 | M10: ='ID Fuel Gen'!$MJ$253 -> 43.06172939
C11: ='Resource Options'!B14 -> 1 on 1 modern CCCT | D11: ='Resource Options'!C14 -> GE - 7F.04 One on One | E11: ='ID Fuel Gen'!$C$287 -> 47.17484245 | F11: ='ID Fuel Gen'!$C$288 -> 161.3854147 | G11: ='ID Fuel Gen'!$C$289 -> 27.40012614 | H11: ='ID Fuel Gen'!$FH$287 -> 59.14153517 | I11: ='ID Fuel Gen'!$FH$288 -> 180.2256323 | J11: ='ID Fuel Gen'!$FH$289 -> 37.05830816 | K11: ='ID Fuel Gen'!$MJ$287 -> 70.47788184 | L11: ='ID Fuel Gen'!$MJ$288 -> 204.5142661 | M11: ='ID Fuel Gen'!$MJ$289 -> 45.41854424
C12: ='Resource Options'!B15 -> 3 x 2 small CCCT | D12: ='Resource Options'!C15 -> Siemens- SGT-800 3 on 2 | E12: ='ID Fuel Gen'!$C$323 -> 55.95565409 | F12: ='ID Fuel Gen'!$C$324 -> 219.4114876 | G12: ='ID Fuel Gen'!$C$325 -> 29.07094503 | H12: ='ID Fuel Gen'!$FH$323 -> 69.09706502 | I12: ='ID Fuel Gen'!$FH$324 -> 244.8890559 | J12: ='ID Fuel Gen'!$FH$325 -> 39.09056403 | K12: ='ID Fuel Gen'!$MJ$323 -> 81.86831169 | L12: ='ID Fuel Gen'!$MJ$324 -> 277.7109812 | M12: ='ID Fuel Gen'!$MJ$325 -> 47.84010735
C17: Green = Recip
C18: Blue = Gas Combustion Turbine
C19: Red = CCCT

Sheet Upgrade Summary
D2: 2022 | G2: 2029 | J2: 2037
C3: Short Description | D3: $/MWh | E3: Fixed Cost $/kW-yr | F3: Variable Cost $/MWh | G3: $/MWh | H3: Fixed Cost $/kW-yr | I3: Variable Cost $/MWh | J3: $/MWh | K3: Fixed Cost $/kW-yr | L3: Variable Cost $/MWh
C5: ='Resource Options'!$B$45 -> Rathdrum Supplemental Compression - 2 unit operation | D5: =Upgrades!C37 -> 47.12285501 | E5: =Upgrades!C38 -> 92.42928175 | F5: =Upgrades!C39 -> 35.56919479 | G5: =Upgrades!C303 -> 61.74047034 | H5: =Upgrades!C304 -> 102.7077178 | I5: =Upgrades!C305 -> 48.90200562 | J5: =Upgrades!C607 -> 74.65968205 | K5: =Upgrades!C608 -> 115.8704886 | L5: =Upgrades!C609 -> 60.17587097
C6: ='Resource Options'!$B$46 -> Rathdrum CT 2055 Uprates - 2 unit operation | D6: =Upgrades!Z37 -> 34.24445777 | E6: =Upgrades!Z38 -> 99.85659486 | F6: =Upgrades!Z39 -> 21.76238342 | G6: =Upgrades!Z303 -> 43.46560691 | H6: =Upgrades!Z304 -> 110.7489252 | I6: =Upgrades!Z305 -> 29.62199127 | J6: =Upgrades!Z607 -> 51.94441399 | K6: =Upgrades!Z608 -> 124.6595458 | L6: =Upgrades!Z609 -> 36.36197077
C7: ='Resource Options'!$B$47 -> Rathdrum CT: Inlet Evaporation - 2 unit operation | D7: =Upgrades!AW37 -> 44.97586899 | E7: =Upgrades!AW38 -> 31.67375047 | F7: =Upgrades!AW39 -> 41.01665018 | G7: =Upgrades!AW303 -> 61.40272438 | H7: =Upgrades!AW304 -> 35.2268521 | I7: =Upgrades!AW305 -> 56.99936787 | J7: =Upgrades!AW607 -> 75.29464794 | K7: =Upgrades!AW608 -> 39.78260457 | L7: =Upgrades!AW609 -> 70.32182237
C8: ='Resource Options'!$B$48 -> Kettle Falls Turbine Generator Upgrade | D8: =Upgrades!BT37 -> 53.33428304 | E8: =Upgrades!BT38 -> 162.7622871 | F8: =Upgrades!BT39 -> 31.03807933 | G8: =Upgrades!BT303 -> 66.11296736 | H8: =Upgrades!BT266 -> 177.8661476 | I8: =Upgrades!BT267 -> 39.67579711 | J8: =Upgrades!BT607 -> 71.76191339 | K8: =Upgrades!BT608 -> 203.1901128 | L8: =Upgrades!BT609 -> 43.92765137
C9: ='Resource Options'!$B$49 -> Long Lake 2nd Powerhouse | D9: =Upgrades!CQ37 -> 97.53866005 | E9: =Upgrades!CQ38 -> 290.5091451 | F9: =Upgrades!CQ39 -> 0 | G9: =Upgrades!CQ303 -> 112.0412608 | H9: =Upgrades!CQ304 -> 333.7036913 | I9: =Upgrades!CQ305 -> 0 | J9: =Upgrades!CQ607 -> 131.2741943 | K9: =Upgrades!CQ608 -> 390.9870604 | L9: =Upgrades!CQ609 -> 0
C10: ='Resource Options'!$B$50 -> Cabinet Gorge 2nd Powerhouse | D10: =Upgrades!DN37 -> 185.5793042 | E10: =Upgrades!DN38 -> 273.1133505 | F10: =Upgrades!DN39 -> 0 | G10: =Upgrades!DN303 -> 213.172287 | H10: =Upgrades!DN304 -> 313.7213913 | I10: =Upgrades!DN305 -> 0 | J10: =Upgrades!DN607 -> 249.7653098 | K10: =Upgrades!DN608 -> 367.5746112 | L10: =Upgrades!DN609 -> 0
C11: ='Resource Options'!B$44 -> Wood Biomass | D11: =Upgrades!EK37 -> 114.8468492 | E11: =Upgrades!EK38 -> 335.6216624 | F11: =Upgrades!EK39 -> 38.22089886 | G11: =Upgrades!EK303 -> 134.5924344 | H11: =Upgrades!EK304 -> 385.5237934 | I11: =Upgrades!EK305 -> 46.57330351 | J11: =Upgrades!EK607 -> 181.4267791 | K11: =Upgrades!EK608 -> 451.7025691 | L11: =Upgrades!EK609 -> 78.29833865
C14: Green = Wood
C15: Blue = Hydro
C16: Red = Natural Gas

Sheet Solar PPA Analysis
A1: Solar Analysis
C4: 5yr MACRES | D4: 0.2 | E4: 0.32 | F4: 0.192 | G4: 0.1152 | H4: 0.1152 | I4: 0.0576
A5: Discount Rate | B5: 0.08
A6: Fed Tax Rate | B6: 0.21
A7: Debt Rate | B7: 0.05
A8: Property Tax | B8: 0.01
A9: Tax Equity Return | B9: 0.07
C10: 0 | D10: 1 | E10: 2 | F10: 3 | G10: 4 | H10: 5 | I10: 6 | J10: 7 | K10: 8 | L10: 9 | M10: 10 | N10: 11 | O10: 12 | P10: 13 | Q10: 14 | R10: 15 | S10: 16 | T10: 17 | U10: 18 | V10: 19 | W10: 20 | X10: Future PV | AD10: 0 | AE10: 1 | AF10: 2 | AG10: 3 | AH10: 4 | AI10: 5 | AJ10: 6 | AK10: 7 | AL10: 8 | AM10: 9 | AN10: 10 | AO10: 11 | AP10: 12 | AQ10: 13 | AR10: 14 | AS10: 15 | AT10: 16 | AU10: 17 | AV10: 18 | AW10: 19 | AX10: 20 | AY10: Future PV | BE10: 0 | BF10: 1 | BG10: 2 | BH10: 3 | BI10: 4 | BJ10: 5 | BK10: 6 | BL10: 7 | BM10: 8 | BN10: 9 | BO10: 10 | BP10: 11 | BQ10: 12 | BR10: 13 | BS10: 14 | BT10: 15 | BU10: 16 | BV10: 17 | BW10: 18 | BX10: 19 | BY10: 20 | BZ10: Future PV
B11: 2022 Solar | AC11: 2022 Southern NW Solar | BD11: 2022 Small Solar
B12: Year | D12: 2022 | E12: =D12+1 -> 2023 | F12: =E12+1 -> 2024 | G12: 2025 | H12: 2026 | I12: 2027 | J12: 2028 | K12: 2029 | L12: 2030 | M12: 2031 | N12: 2032 | O12: 2033 | P12: 2034 | Q12: 2035 | R12: 2036 | S12: 2037 | T12: 2038 | U12: 2039 | V12: 2040 | W12: 2041 | AC12: Year | AE12: 2022 | AF12: =AE12+1 -> 2023 | AG12: 2024 | AH12: 2025 | AI12: 2026 | AJ12: 2027 | AK12: 2028 | AL12: 2029 | AM12: 2030 | AN12: 2031 | AO12: 2032 | AP12: 2033 | AQ12: 2034 | AR12: 2035 | AS12: 2036 | AT12: 2037 | AU12: 2038 | AV12: 2039 | AW12: 2040 | AX12: 2041 | BD12: Year | BF12: 2022 | BG12: =BF12+1 -> 2023 | BH12: 2024 | BI12: 2025 | BJ12: 2026 | BK12: 2027 | BL12: 2028 | BM12: 2029 | BN12: 2030 | BO12: 2031 | BP12: 2032 | BQ12: 2033 | BR12: 2034 | BS12: 2035 | BT12: 2036 | BU12: 2037 | BV12: 2038 | BW12: 2039 | BX12: 2040 | BY12: 2041
B13: MWh | D13: =('Resource Options'!$V$22/100*'Resource Options'!$J$22*8760)*(1+'Resource Options'!$X$22)^($D12-$D$12) -> 236520 | E13: =D13*(1-'Resource Options'!$AA$22) -> 235337.4 | F13: =E13*(1-'Resource Options'!$AA$22) -> 234160.713 | G13: =F13*(1-'Resource Options'!$AA$22) -> 232989.9094 | H13: =G13*(1-'Resource Options'!$AA$22) -> 231824.9599 | I13: =H13*(1-'Resource Options'!$AA$22) -> 230665.8351 | J13: =I13*(1-'Resource Options'!$AA$22) -> 229512.5059 | K13: =J13*(1-'Resource Options'!$AA$22) -> 228364.9434 | L13: =K13*(1-'Resource Options'!$AA$22) -> 227223.1187 | M13: =L13*(1-'Resource Options'!$AA$22) -> 226087.0031 | N13: =M13*(1-'Resource Options'!$AA$22) -> 224956.5681 | O13: =N13*(1-'Resource Options'!$AA$22) -> 223831.7852 | P13: =O13*(1-'Resource Options'!$AA$22) -> 222712.6263 | Q13: =P13*(1-'Resource Options'!$AA$22) -> 221599.0632 | R13: =Q13*(1-'Resource Options'!$AA$22) -> 220491.0678 | S13: =R13*(1-'Resource Options'!$AA$22) -> 219388.6125 | T13: =S13*(1-'Resource Options'!$AA$22) -> 218291.6694 | U13: =T13*(1-'Resource Options'!$AA$22) -> 217200.2111 | V13: =U13*(1-'Resource Options'!$AA$22) -> 216114.21 | W13: =V13*(1-'Resource Options'!$AA$22) -> 215033.639 | AC13: MWh | AE13: =('Resource Options'!$V$23/100*'Resource Options'!$J$23*8760)*(1+'Resource Options'!$X$23)^($D12-$D$12) -> 262800 | AF13: =AE13*(1-'Resource Options'!$AA$22) -> 261486 | AG13: =AF13*(1-'Resource Options'!$AA$22) -> 260178.57 | AH13: =AG13*(1-'Resource Options'!$AA$22) -> 258877.6772 | AI13: =AH13*(1-'Resource Options'!$AA$22) -> 257583.2888 | AJ13: =AI13*(1-'Resource Options'!$AA$22) -> 256295.3723 | AK13: =AJ13*(1-'Resource Options'!$AA$22) -> 255013.8955 | AL13: =AK13*(1-'Resource Options'!$AA$22) -> 253738.826 | AM13: =AL13*(1-'Resource Options'!$AA$22) -> 252470.1319 | AN13: =AM13*(1-'Resource Options'!$AA$22) -> 251207.7812 | AO13: =AN13*(1-'Resource Options'!$AA$22) -> 249951.7423 | AP13: =AO13*(1-'Resource Options'!$AA$22) -> 248701.9836 | AQ13: =AP13*(1-'Resource Options'!$AA$22) -> 247458.4737 | AR13: =AQ13*(1-'Resource Options'!$AA$22) -> 246221.1813 | AS13: =AR13*(1-'Resource Options'!$AA$22) -> 244990.0754 | AT13: =AS13*(1-'Resource Options'!$AA$22) -> 243765.125 | AU13: =AT13*(1-'Resource Options'!$AA$22) -> 242546.2994 | AV13: =AU13*(1-'Resource Options'!$AA$22) -> 241333.5679 | AW13: =AV13*(1-'Resource Options'!$AA$22) -> 240126.9 | AX13: =AW13*(1-'Resource Options'!$AA$22) -> 238926.2655 | BD13: MWh | BF13: =('Resource Options'!$V$21/100*'Resource Options'!$J$21*8760)*(1+'Resource Options'!$X$21)^($D12-$D$12) -> 10950 | BG13: =BF13*(1-'Resource Options'!$AA$22) -> 10895.25 | BH13: =BG13*(1-'Resource Options'!$AA$22) -> 10840.77375 | BI13: =BH13*(1-'Resource Options'!$AA$22) -> 10786.56988 | BJ13: =BI13*(1-'Resource Options'!$AA$22) -> 10732.63703 | BK13: =BJ13*(1-'Resource Options'!$AA$22) -> 10678.97385 | BL13: =BK13*(1-'Resource Options'!$AA$22) -> 10625.57898 | BM13: =BL13*(1-'Resource Options'!$AA$22) -> 10572.45108 | BN13: =BM13*(1-'Resource Options'!$AA$22) -> 10519.58883 | BO13: =BN13*(1-'Resource Options'!$AA$22) -> 10466.99088 | BP13: =BO13*(1-'Resource Options'!$AA$22) -> 10414.65593 | BQ13: =BP13*(1-'Resource Options'!$AA$22) -> 10362.58265 | BR13: =BQ13*(1-'Resource Options'!$AA$22) -> 10310.76974 | BS13: =BR13*(1-'Resource Options'!$AA$22) -> 10259.21589 | BT13: =BS13*(1-'Resource Options'!$AA$22) -> 10207.91981 | BU13: =BT13*(1-'Resource Options'!$AA$22) -> 10156.88021 | BV13: =BU13*(1-'Resource Options'!$AA$22) -> 10106.09581 | BW13: =BV13*(1-'Resource Options'!$AA$22) -> 10055.56533 | BX13: =BW13*(1-'Resource Options'!$AA$22) -> 10005.2875 | BY13: =BX13*(1-'Resource Options'!$AA$22) -> 9955.261064
B14: PPA Rate ($/MWh) | D14: ='PPA Summary'!M33 -> 32.10221346 | E14: =D14 -> 32.10221346 | F14: =E14 -> 32.10221346 | G14: 32.10221346 | H14: 32.10221346 | I14: 32.10221346 | J14: 32.10221346 | K14: 32.10221346 | L14: 32.10221346 | M14: 32.10221346 | N14: 32.10221346 | O14: 32.10221346 | P14: 32.10221346 | Q14: 32.10221346 | R14: 32.10221346 | S14: 32.10221346 | T14: 32.10221346 | U14: 32.10221346 | V14: 32.10221346 | W14: 32.10221346 | AC14: PPA Rate ($/MWh) | AE14: ='PPA Summary'!P33 -> 28.81253914 | AF14: =AE14 -> 28.81253914 | AG14: =AF14 -> 28.81253914 | AH14: 28.81253914 | AI14: 28.81253914 | AJ14: 28.81253914 | AK14: 28.81253914 | AL14: 28.81253914 | AM14: 28.81253914 | AN14: 28.81253914 | AO14: 28.81253914 | AP14: 28.81253914 | AQ14: 28.81253914 | AR14: 28.81253914 | AS14: 28.81253914 | AT14: 28.81253914 | AU14: 28.81253914 | AV14: 28.81253914 | AW14: 28.81253914 | AX14: 28.81253914 | BD14: PPA Rate ($/MWh) | BF14: ='PPA Summary'!S33 -> 63.14552635 | BG14: =BF14 -> 63.14552635 | BH14: =BG14 -> 63.14552635 | BI14: 63.14552635 | BJ14: 63.14552635 | BK14: 63.14552635 | BL14: 63.14552635 | BM14: 63.14552635 | BN14: 63.14552635 | BO14: 63.14552635 | BP14: 63.14552635 | BQ14: 63.14552635 | BR14: 63.14552635 | BS14: 63.14552635 | BT14: 63.14552635 | BU14: 63.14552635 | BV14: 63.14552635 | BW14: 63.14552635 | BX14: 63.14552635 | BY14: 63.14552635
B15: Revenue | D15: =D14*D13 -> 7592815.528 | E15: =E14*E13 -> 7554851.45 | F15: 7517077.193 | G15: 7479491.807 | H15: 7442094.348 | I15: 7404883.876 | J15: 7367859.457 | K15: 7331020.16 | L15: 7294365.059 | M15: 7257893.233 | N15: 7221603.767 | O15: 7185495.748 | P15: 7149568.27 | Q15: 7113820.428 | R15: 7078251.326 | S15: 7042860.07 | T15: 7007645.769 | U15: 6972607.54 | V15: 6937744.503 | W15: 6903055.78 | AC15: Revenue | AE15: =AE14*AE13 -> 7571935.285 | AF15: 7534075.609 | AG15: 7496405.231 | AH15: 7458923.205 | AI15: 7421628.589 | AJ15: 7384520.446 | AK15: 7347597.843 | AL15: 7310859.854 | AM15: 7274305.555 | AN15: 7237934.027 | AO15: 7201744.357 | AP15: 7165735.635 | AQ15: 7129906.957 | AR15: 7094257.422 | AS15: 7058786.135 | AT15: 7023492.204 | AU15: 6988374.743 | AV15: 6953432.87 | AW15: 6918665.705 | AX15: 6884072.377 | BD15: Revenue | BF15: =BF14*BF13 -> 691443.5136 | BG15: 687986.296 | BH15: 684546.3645 | BI15: 681123.6327 | BJ15: 677718.0145 | BK15: 674329.4245 | BL15: 670957.7774 | BM15: 667602.9885 | BN15: 664264.9735 | BO15: 660943.6487 | BP15: 657638.9304 | BQ15: 654350.7358 | BR15: 651078.9821 | BS15: 647823.5872 | BT15: 644584.4692 | BU15: 641361.5469 | BV15: 638154.7392 | BW15: 634963.9655 | BX15: 631789.1456 | BY15: 628630.1999
B17: Fixed O&M | D17: =HLOOKUP(D12,'Fixed O&M'!$C$4:$AU$48,ROW('Fixed O&M'!$B$20)-ROW('Fixed O&M'!$B$4)+1,FALSE)*'Resource Options'!$J$22*1000 -> 1092420 | E17: =HLOOKUP(E12,'Fixed O&M'!$C$4:$AU$48,ROW('Fixed O&M'!$B$20)-ROW('Fixed O&M'!$B$4)+1,FALSE)*'Resource Options'!$J$22*1000 -> 1114268.4 | F17: =HLOOKUP(F12,'Fixed O&M'!$C$4:$AU$48,ROW('Fixed O&M'!$B$20)-ROW('Fixed O&M'!$B$4)+1,FALSE)*'Resource Options'!$J$22*1000 -> 1136553.768 | G17: =HLOOKUP(G12,'Fixed O&M'!$C$4:$AU$48,ROW('Fixed O&M'!$B$20)-ROW('Fixed O&M'!$B$4)+1,FALSE)*'Resource Options'!$J$22*1000 -> 1159284.843 | H17: =HLOOKUP(H12,'Fixed O&M'!$C$4:$AU$48,ROW('Fixed O&M'!$B$20)-ROW('Fixed O&M'!$B$4)+1,FALSE)*'Resource Options'!$J$22*1000 -> 1182470.54 | I17: =HLOOKUP(I12,'Fixed O&M'!$C$4:$AU$48,ROW('Fixed O&M'!$B$20)-ROW('Fixed O&M'!$B$4)+1,FALSE)*'Resource Options'!$J$22*1000 -> 1206119.951 | J17: =HLOOKUP(J12,'Fixed O&M'!$C$4:$AU$48,ROW('Fixed O&M'!$B$20)-ROW('Fixed O&M'!$B$4)+1,FALSE)*'Resource Options'!$J$22*1000 -> 1230242.35 | K17: =HLOOKUP(K12,'Fixed O&M'!$C$4:$AU$48,ROW('Fixed O&M'!$B$20)-ROW('Fixed O&M'!$B$4)+1,FALSE)*'Resource Options'!$J$22*1000 -> 1254847.197 | L17: =HLOOKUP(L12,'Fixed O&M'!$C$4:$AU$48,ROW('Fixed O&M'!$B$20)-ROW('Fixed O&M'!$B$4)+1,FALSE)*'Resource Options'!$J$22*1000 -> 1279944.141 | M17: =HLOOKUP(M12,'Fixed O&M'!$C$4:$AU$48,ROW('Fixed O&M'!$B$20)-ROW('Fixed O&M'!$B$4)+1,FALSE)*'Resource Options'!$J$22*1000 -> 1305543.024 | N17: =HLOOKUP(N12,'Fixed O&M'!$C$4:$AU$48,ROW('Fixed O&M'!$B$20)-ROW('Fixed O&M'!$B$4)+1,FALSE)*'Resource Options'!$J$22*1000 -> 1331653.884 | O17: =HLOOKUP(O12,'Fixed O&M'!$C$4:$AU$48,ROW('Fixed O&M'!$B$20)-ROW('Fixed O&M'!$B$4)+1,FALSE)*'Resource Options'!$J$22*1000 -> 1358286.962 | P17: =HLOOKUP(P12,'Fixed O&M'!$C$4:$AU$48,ROW('Fixed O&M'!$B$20)-ROW('Fixed O&M'!$B$4)+1,FALSE)*'Resource Options'!$J$22*1000 -> 1385452.701 | Q17: =HLOOKUP(Q12,'Fixed O&M'!$C$4:$AU$48,ROW('Fixed O&M'!$B$20)-ROW('Fixed O&M'!$B$4)+1,FALSE)*'Resource Options'!$J$22*1000 -> 1413161.755 | R17: =HLOOKUP(R12,'Fixed O&M'!$C$4:$AU$48,ROW('Fixed O&M'!$B$20)-ROW('Fixed O&M'!$B$4)+1,FALSE)*'Resource Options'!$J$22*1000 -> 1441424.99 | S17: =HLOOKUP(S12,'Fixed O&M'!$C$4:$AU$48,ROW('Fixed O&M'!$B$20)-ROW('Fixed O&M'!$B$4)+1,FALSE)*'Resource Options'!$J$22*1000 -> 1470253.49 | T17: =HLOOKUP(T12,'Fixed O&M'!$C$4:$AU$48,ROW('Fixed O&M'!$B$20)-ROW('Fixed O&M'!$B$4)+1,FALSE)*'Resource Options'!$J$22*1000 -> 1499658.56 | U17: =HLOOKUP(U12,'Fixed O&M'!$C$4:$AU$48,ROW('Fixed O&M'!$B$20)-ROW('Fixed O&M'!$B$4)+1,FALSE)*'Resource Options'!$J$22*1000 -> 1529651.731 | V17: =HLOOKUP(V12,'Fixed O&M'!$C$4:$AU$48,ROW('Fixed O&M'!$B$20)-ROW('Fixed O&M'!$B$4)+1,FALSE)*'Resource Options'!$J$22*1000 -> 1560244.766 | W17: =HLOOKUP(W12,'Fixed O&M'!$C$4:$AU$48,ROW('Fixed O&M'!$B$20)-ROW('Fixed O&M'!$B$4)+1,FALSE)*'Resource Options'!$J$22*1000 -> 1591449.661 | AC17: Fixed O&M | AE17: =HLOOKUP(AE12,'Fixed O&M'!$C$4:$AU$48,ROW('Fixed O&M'!$B$21)-ROW('Fixed O&M'!$B$4)+1,FALSE)*'Resource Options'!$J$22*1000 -> 1092420 | AF17: =HLOOKUP(AF12,'Fixed O&M'!$C$4:$AU$48,ROW('Fixed O&M'!$B$21)-ROW('Fixed O&M'!$B$4)+1,FALSE)*'Resource Options'!$J$22*1000 -> 1114268.4 | AG17: =HLOOKUP(AG12,'Fixed O&M'!$C$4:$AU$48,ROW('Fixed O&M'!$B$21)-ROW('Fixed O&M'!$B$4)+1,FALSE)*'Resource Options'!$J$22*1000 -> 1136553.768 | AH17: =HLOOKUP(AH12,'Fixed O&M'!$C$4:$AU$48,ROW('Fixed O&M'!$B$21)-ROW('Fixed O&M'!$B$4)+1,FALSE)*'Resource Options'!$J$22*1000 -> 1159284.843 | AI17: =HLOOKUP(AI12,'Fixed O&M'!$C$4:$AU$48,ROW('Fixed O&M'!$B$21)-ROW('Fixed O&M'!$B$4)+1,FALSE)*'Resource Options'!$J$22*1000 -> 1182470.54 | AJ17: =HLOOKUP(AJ12,'Fixed O&M'!$C$4:$AU$48,ROW('Fixed O&M'!$B$21)-ROW('Fixed O&M'!$B$4)+1,FALSE)*'Resource Options'!$J$22*1000 -> 1206119.951 | AK17: =HLOOKUP(AK12,'Fixed O&M'!$C$4:$AU$48,ROW('Fixed O&M'!$B$21)-ROW('Fixed O&M'!$B$4)+1,FALSE)*'Resource Options'!$J$22*1000 -> 1230242.35 | AL17: =HLOOKUP(AL12,'Fixed O&M'!$C$4:$AU$48,ROW('Fixed O&M'!$B$21)-ROW('Fixed O&M'!$B$4)+1,FALSE)*'Resource Options'!$J$22*1000 -> 1254847.197 | AM17: =HLOOKUP(AM12,'Fixed O&M'!$C$4:$AU$48,ROW('Fixed O&M'!$B$21)-ROW('Fixed O&M'!$B$4)+1,FALSE)*'Resource Options'!$J$22*1000 -> 1279944.141 | AN17: =HLOOKUP(AN12,'Fixed O&M'!$C$4:$AU$48,ROW('Fixed O&M'!$B$21)-ROW('Fixed O&M'!$B$4)+1,FALSE)*'Resource Options'!$J$22*1000 -> 1305543.024 | AO17: =HLOOKUP(AO12,'Fixed O&M'!$C$4:$AU$48,ROW('Fixed O&M'!$B$21)-ROW('Fixed O&M'!$B$4)+1,FALSE)*'Resource Options'!$J$22*1000 -> 1331653.884 | AP17: =HLOOKUP(AP12,'Fixed O&M'!$C$4:$AU$48,ROW('Fixed O&M'!$B$21)-ROW('Fixed O&M'!$B$4)+1,FALSE)*'Resource Options'!$J$22*1000 -> 1358286.962 | AQ17: =HLOOKUP(AQ12,'Fixed O&M'!$C$4:$AU$48,ROW('Fixed O&M'!$B$21)-ROW('Fixed O&M'!$B$4)+1,FALSE)*'Resource Options'!$J$22*1000 -> 1385452.701 | AR17: =HLOOKUP(AR12,'Fixed O&M'!$C$4:$AU$48,ROW('Fixed O&M'!$B$21)-ROW('Fixed O&M'!$B$4)+1,FALSE)*'Resource Options'!$J$22*1000 -> 1413161.755 | AS17: =HLOOKUP(AS12,'Fixed O&M'!$C$4:$AU$48,ROW('Fixed O&M'!$B$21)-ROW('Fixed O&M'!$B$4)+1,FALSE)*'Resource Options'!$J$22*1000 -> 1441424.99 | AT17: =HLOOKUP(AT12,'Fixed O&M'!$C$4:$AU$48,ROW('Fixed O&M'!$B$21)-ROW('Fixed O&M'!$B$4)+1,FALSE)*'Resource Options'!$J$22*1000 -> 1470253.49 | AU17: =HLOOKUP(AU12,'Fixed O&M'!$C$4:$AU$48,ROW('Fixed O&M'!$B$21)-ROW('Fixed O&M'!$B$4)+1,FALSE)*'Resource Options'!$J$22*1000 -> 1499658.56 | AV17: =HLOOKUP(AV12,'Fixed O&M'!$C$4:$AU$48,ROW('Fixed O&M'!$B$21)-ROW('Fixed O&M'!$B$4)+1,FALSE)*'Resource Options'!$J$22*1000 -> 1529651.731 | AW17: =HLOOKUP(AW12,'Fixed O&M'!$C$4:$AU$48,ROW('Fixed O&M'!$B$21)-ROW('Fixed O&M'!$B$4)+1,FALSE)*'Resource Options'!$J$22*1000 -> 1560244.766 | AX17: =HLOOKUP(AX12,'Fixed O&M'!$C$4:$AU$48,ROW('Fixed O&M'!$B$21)-ROW('Fixed O&M'!$B$4)+1,FALSE)*'Resource Options'!$J$22*1000 -> 1591449.661 | BD17: Fixed O&M | BF17: =HLOOKUP(BF12,'Fixed O&M'!$C$4:$AU$48,ROW('Fixed O&M'!$B$19)-ROW('Fixed O&M'!$B$4)+1,FALSE)*'Resource Options'!$J$21*1000 -> 72828 | BG17: =HLOOKUP(BG12,'Fixed O&M'!$C$4:$AU$48,ROW('Fixed O&M'!$B$19)-ROW('Fixed O&M'!$B$4)+1,FALSE)*'Resource Options'!$J$21*1000 -> 74284.56 | BH17: =HLOOKUP(BH12,'Fixed O&M'!$C$4:$AU$48,ROW('Fixed O&M'!$B$19)-ROW('Fixed O&M'!$B$4)+1,FALSE)*'Resource Options'!$J$21*1000 -> 75770.2512 | BI17: =HLOOKUP(BI12,'Fixed O&M'!$C$4:$AU$48,ROW('Fixed O&M'!$B$19)-ROW('Fixed O&M'!$B$4)+1,FALSE)*'Resource Options'!$J$21*1000 -> 77285.65622 | BJ17: =HLOOKUP(BJ12,'Fixed O&M'!$C$4:$AU$48,ROW('Fixed O&M'!$B$19)-ROW('Fixed O&M'!$B$4)+1,FALSE)*'Resource Options'!$J$21*1000 -> 78831.36935 | BK17: =HLOOKUP(BK12,'Fixed O&M'!$C$4:$AU$48,ROW('Fixed O&M'!$B$19)-ROW('Fixed O&M'!$B$4)+1,FALSE)*'Resource Options'!$J$21*1000 -> 80407.99674 | BL17: =HLOOKUP(BL12,'Fixed O&M'!$C$4:$AU$48,ROW('Fixed O&M'!$B$19)-ROW('Fixed O&M'!$B$4)+1,FALSE)*'Resource Options'!$J$21*1000 -> 82016.15667 | BM17: =HLOOKUP(BM12,'Fixed O&M'!$C$4:$AU$48,ROW('Fixed O&M'!$B$19)-ROW('Fixed O&M'!$B$4)+1,FALSE)*'Resource Options'!$J$21*1000 -> 83656.4798 | BN17: =HLOOKUP(BN12,'Fixed O&M'!$C$4:$AU$48,ROW('Fixed O&M'!$B$19)-ROW('Fixed O&M'!$B$4)+1,FALSE)*'Resource Options'!$J$21*1000 -> 85329.6094 | BO17: =HLOOKUP(BO12,'Fixed O&M'!$C$4:$AU$48,ROW('Fixed O&M'!$B$19)-ROW('Fixed O&M'!$B$4)+1,FALSE)*'Resource Options'!$J$21*1000 -> 87036.20159 | BP17: =HLOOKUP(BP12,'Fixed O&M'!$C$4:$AU$48,ROW('Fixed O&M'!$B$19)-ROW('Fixed O&M'!$B$4)+1,FALSE)*'Resource Options'!$J$21*1000 -> 88776.92562 | BQ17: =HLOOKUP(BQ12,'Fixed O&M'!$C$4:$AU$48,ROW('Fixed O&M'!$B$19)-ROW('Fixed O&M'!$B$4)+1,FALSE)*'Resource Options'!$J$21*1000 -> 90552.46413 | BR17: =HLOOKUP(BR12,'Fixed O&M'!$C$4:$AU$48,ROW('Fixed O&M'!$B$19)-ROW('Fixed O&M'!$B$4)+1,FALSE)*'Resource Options'!$J$21*1000 -> 92363.51341 | BS17: =HLOOKUP(BS12,'Fixed O&M'!$C$4:$AU$48,ROW('Fixed O&M'!$B$19)-ROW('Fixed O&M'!$B$4)+1,FALSE)*'Resource Options'!$J$21*1000 -> 94210.78368 | BT17: =HLOOKUP(BT12,'Fixed O&M'!$C$4:$AU$48,ROW('Fixed O&M'!$B$19)-ROW('Fixed O&M'!$B$4)+1,FALSE)*'Resource Options'!$J$21*1000 -> 96094.99936 | BU17: =HLOOKUP(BU12,'Fixed O&M'!$C$4:$AU$48,ROW('Fixed O&M'!$B$19)-ROW('Fixed O&M'!$B$4)+1,FALSE)*'Resource Options'!$J$21*1000 -> 98016.89934 | BV17: =HLOOKUP(BV12,'Fixed O&M'!$C$4:$AU$48,ROW('Fixed O&M'!$B$19)-ROW('Fixed O&M'!$B$4)+1,FALSE)*'Resource Options'!$J$21*1000 -> 99977.23733 | BW17: =HLOOKUP(BW12,'Fixed O&M'!$C$4:$AU$48,ROW('Fixed O&M'!$B$19)-ROW('Fixed O&M'!$B$4)+1,FALSE)*'Resource Options'!$J$21*1000 -> 101976.7821 | BX17: =HLOOKUP(BX12,'Fixed O&M'!$C$4:$AU$48,ROW('Fixed O&M'!$B$19)-ROW('Fixed O&M'!$B$4)+1,FALSE)*'Resource Options'!$J$21*1000 -> 104016.3177 | BY17: =HLOOKUP(BY12,'Fixed O&M'!$C$4:$AU$48,ROW('Fixed O&M'!$B$19)-ROW('Fixed O&M'!$B$4)+1,FALSE)*'Resource Options'!$J$21*1000 -> 106096.6441
B18: Variable O&M | D18: =HLOOKUP(D12,'Variable O&M'!$B$4:$AT$48,ROW('Variable O&M'!$A$20)-ROW('Variable O&M'!$A$4)+1,FALSE)*D13 -> 0 | E18: =HLOOKUP(E12,'Variable O&M'!$B$4:$AT$48,ROW('Variable O&M'!$A$20)-ROW('Variable O&M'!$A$4)+1,FALSE)*E13 -> 0 | F18: =HLOOKUP(F12,'Variable O&M'!$B$4:$AT$48,ROW('Variable O&M'!$A$20)-ROW('Variable O&M'!$A$4)+1,FALSE)*F13 -> 0 | G18: =HLOOKUP(G12,'Variable O&M'!$B$4:$AT$48,ROW('Variable O&M'!$A$20)-ROW('Variable O&M'!$A$4)+1,FALSE)*G13 -> 0 | H18: =HLOOKUP(H12,'Variable O&M'!$B$4:$AT$48,ROW('Variable O&M'!$A$20)-ROW('Variable O&M'!$A$4)+1,FALSE)*H13 -> 0 | I18: =HLOOKUP(I12,'Variable O&M'!$B$4:$AT$48,ROW('Variable O&M'!$A$20)-ROW('Variable O&M'!$A$4)+1,FALSE)*I13 -> 0 | J18: =HLOOKUP(J12,'Variable O&M'!$B$4:$AT$48,ROW('Variable O&M'!$A$20)-ROW('Variable O&M'!$A$4)+1,FALSE)*J13 -> 0 | K18: =HLOOKUP(K12,'Variable O&M'!$B$4:$AT$48,ROW('Variable O&M'!$A$20)-ROW('Variable O&M'!$A$4)+1,FALSE)*K13 -> 0 | L18: =HLOOKUP(L12,'Variable O&M'!$B$4:$AT$48,ROW('Variable O&M'!$A$20)-ROW('Variable O&M'!$A$4)+1,FALSE)*L13 -> 0 | M18: =HLOOKUP(M12,'Variable O&M'!$B$4:$AT$48,ROW('Variable O&M'!$A$20)-ROW('Variable O&M'!$A$4)+1,FALSE)*M13 -> 0 | N18: =HLOOKUP(N12,'Variable O&M'!$B$4:$AT$48,ROW('Variable O&M'!$A$20)-ROW('Variable O&M'!$A$4)+1,FALSE)*N13 -> 0 | O18: =HLOOKUP(O12,'Variable O&M'!$B$4:$AT$48,ROW('Variable O&M'!$A$20)-ROW('Variable O&M'!$A$4)+1,FALSE)*O13 -> 0 | P18: =HLOOKUP(P12,'Variable O&M'!$B$4:$AT$48,ROW('Variable O&M'!$A$20)-ROW('Variable O&M'!$A$4)+1,FALSE)*P13 -> 0 | Q18: =HLOOKUP(Q12,'Variable O&M'!$B$4:$AT$48,ROW('Variable O&M'!$A$20)-ROW('Variable O&M'!$A$4)+1,FALSE)*Q13 -> 0 | R18: =HLOOKUP(R12,'Variable O&M'!$B$4:$AT$48,ROW('Variable O&M'!$A$20)-ROW('Variable O&M'!$A$4)+1,FALSE)*R13 -> 0 | S18: =HLOOKUP(S12,'Variable O&M'!$B$4:$AT$48,ROW('Variable O&M'!$A$20)-ROW('Variable O&M'!$A$4)+1,FALSE)*S13 -> 0 | T18: =HLOOKUP(T12,'Variable O&M'!$B$4:$AT$48,ROW('Variable O&M'!$A$20)-ROW('Variable O&M'!$A$4)+1,FALSE)*T13 -> 0 | U18: =HLOOKUP(U12,'Variable O&M'!$B$4:$AT$48,ROW('Variable O&M'!$A$20)-ROW('Variable O&M'!$A$4)+1,FALSE)*U13 -> 0 | V18: =HLOOKUP(V12,'Variable O&M'!$B$4:$AT$48,ROW('Variable O&M'!$A$20)-ROW('Variable O&M'!$A$4)+1,FALSE)*V13 -> 0 | W18: =HLOOKUP(W12,'Variable O&M'!$B$4:$AT$48,ROW('Variable O&M'!$A$20)-ROW('Variable O&M'!$A$4)+1,FALSE)*W13 -> 0 | AC18: Variable O&M | AE18: =HLOOKUP(AE12,'Variable O&M'!$B$4:$AT$48,ROW('Variable O&M'!$A$21)-ROW('Variable O&M'!$A$4)+1,FALSE)*AE13 -> 0 | AF18: =HLOOKUP(AF12,'Variable O&M'!$B$4:$AT$48,ROW('Variable O&M'!$A$21)-ROW('Variable O&M'!$A$4)+1,FALSE)*AF13 -> 0 | AG18: =HLOOKUP(AG12,'Variable O&M'!$B$4:$AT$48,ROW('Variable O&M'!$A$21)-ROW('Variable O&M'!$A$4)+1,FALSE)*AG13 -> 0 | AH18: =HLOOKUP(AH12,'Variable O&M'!$B$4:$AT$48,ROW('Variable O&M'!$A$21)-ROW('Variable O&M'!$A$4)+1,FALSE)*AH13 -> 0 | AI18: =HLOOKUP(AI12,'Variable O&M'!$B$4:$AT$48,ROW('Variable O&M'!$A$21)-ROW('Variable O&M'!$A$4)+1,FALSE)*AI13 -> 0 | AJ18: =HLOOKUP(AJ12,'Variable O&M'!$B$4:$AT$48,ROW('Variable O&M'!$A$21)-ROW('Variable O&M'!$A$4)+1,FALSE)*AJ13 -> 0 | AK18: =HLOOKUP(AK12,'Variable O&M'!$B$4:$AT$48,ROW('Variable O&M'!$A$21)-ROW('Variable O&M'!$A$4)+1,FALSE)*AK13 -> 0 | AL18: =HLOOKUP(AL12,'Variable O&M'!$B$4:$AT$48,ROW('Variable O&M'!$A$21)-ROW('Variable O&M'!$A$4)+1,FALSE)*AL13 -> 0 | AM18: =HLOOKUP(AM12,'Variable O&M'!$B$4:$AT$48,ROW('Variable O&M'!$A$21)-ROW('Variable O&M'!$A$4)+1,FALSE)*AM13 -> 0 | AN18: =HLOOKUP(AN12,'Variable O&M'!$B$4:$AT$48,ROW('Variable O&M'!$A$21)-ROW('Variable O&M'!$A$4)+1,FALSE)*AN13 -> 0 | AO18: =HLOOKUP(AO12,'Variable O&M'!$B$4:$AT$48,ROW('Variable O&M'!$A$21)-ROW('Variable O&M'!$A$4)+1,FALSE)*AO13 -> 0 | AP18: =HLOOKUP(AP12,'Variable O&M'!$B$4:$AT$48,ROW('Variable O&M'!$A$21)-ROW('Variable O&M'!$A$4)+1,FALSE)*AP13 -> 0 | AQ18: =HLOOKUP(AQ12,'Variable O&M'!$B$4:$AT$48,ROW('Variable O&M'!$A$21)-ROW('Variable O&M'!$A$4)+1,FALSE)*AQ13 -> 0 | AR18: =HLOOKUP(AR12,'Variable O&M'!$B$4:$AT$48,ROW('Variable O&M'!$A$21)-ROW('Variable O&M'!$A$4)+1,FALSE)*AR13 -> 0 | AS18: =HLOOKUP(AS12,'Variable O&M'!$B$4:$AT$48,ROW('Variable O&M'!$A$21)-ROW('Variable O&M'!$A$4)+1,FALSE)*AS13 -> 0 | AT18: =HLOOKUP(AT12,'Variable O&M'!$B$4:$AT$48,ROW('Variable O&M'!$A$21)-ROW('Variable O&M'!$A$4)+1,FALSE)*AT13 -> 0 | AU18: =HLOOKUP(AU12,'Variable O&M'!$B$4:$AT$48,ROW('Variable O&M'!$A$21)-ROW('Variable O&M'!$A$4)+1,FALSE)*AU13 -> 0 | AV18: =HLOOKUP(AV12,'Variable O&M'!$B$4:$AT$48,ROW('Variable O&M'!$A$21)-ROW('Variable O&M'!$A$4)+1,FALSE)*AV13 -> 0 | AW18: =HLOOKUP(AW12,'Variable O&M'!$B$4:$AT$48,ROW('Variable O&M'!$A$21)-ROW('Variable O&M'!$A$4)+1,FALSE)*AW13 -> 0 | AX18: =HLOOKUP(AX12,'Variable O&M'!$B$4:$AT$48,ROW('Variable O&M'!$A$21)-ROW('Variable O&M'!$A$4)+1,FALSE)*AX13 -> 0 | BD18: Variable O&M | BF18: =HLOOKUP(BF12,'Variable O&M'!$B$4:$AT$48,ROW('Variable O&M'!$A$19)-ROW('Variable O&M'!$A$4)+1,FALSE)*BF13 -> 0 | BG18: =HLOOKUP(BG12,'Variable O&M'!$B$4:$AT$48,ROW('Variable O&M'!$A$19)-ROW('Variable O&M'!$A$4)+1,FALSE)*BG13 -> 0 | BH18: =HLOOKUP(BH12,'Variable O&M'!$B$4:$AT$48,ROW('Variable O&M'!$A$19)-ROW('Variable O&M'!$A$4)+1,FALSE)*BH13 -> 0 | BI18: =HLOOKUP(BI12,'Variable O&M'!$B$4:$AT$48,ROW('Variable O&M'!$A$19)-ROW('Variable O&M'!$A$4)+1,FALSE)*BI13 -> 0 | BJ18: =HLOOKUP(BJ12,'Variable O&M'!$B$4:$AT$48,ROW('Variable O&M'!$A$19)-ROW('Variable O&M'!$A$4)+1,FALSE)*BJ13 -> 0 | BK18: =HLOOKUP(BK12,'Variable O&M'!$B$4:$AT$48,ROW('Variable O&M'!$A$19)-ROW('Variable O&M'!$A$4)+1,FALSE)*BK13 -> 0 | BL18: =HLOOKUP(BL12,'Variable O&M'!$B$4:$AT$48,ROW('Variable O&M'!$A$19)-ROW('Variable O&M'!$A$4)+1,FALSE)*BL13 -> 0 | BM18: =HLOOKUP(BM12,'Variable O&M'!$B$4:$AT$48,ROW('Variable O&M'!$A$19)-ROW('Variable O&M'!$A$4)+1,FALSE)*BM13 -> 0 | BN18: =HLOOKUP(BN12,'Variable O&M'!$B$4:$AT$48,ROW('Variable O&M'!$A$19)-ROW('Variable O&M'!$A$4)+1,FALSE)*BN13 -> 0 | BO18: =HLOOKUP(BO12,'Variable O&M'!$B$4:$AT$48,ROW('Variable O&M'!$A$19)-ROW('Variable O&M'!$A$4)+1,FALSE)*BO13 -> 0 | BP18: =HLOOKUP(BP12,'Variable O&M'!$B$4:$AT$48,ROW('Variable O&M'!$A$19)-ROW('Variable O&M'!$A$4)+1,FALSE)*BP13 -> 0 | BQ18: =HLOOKUP(BQ12,'Variable O&M'!$B$4:$AT$48,ROW('Variable O&M'!$A$19)-ROW('Variable O&M'!$A$4)+1,FALSE)*BQ13 -> 0 | BR18: =HLOOKUP(BR12,'Variable O&M'!$B$4:$AT$48,ROW('Variable O&M'!$A$19)-ROW('Variable O&M'!$A$4)+1,FALSE)*BR13 -> 0 | BS18: =HLOOKUP(BS12,'Variable O&M'!$B$4:$AT$48,ROW('Variable O&M'!$A$19)-ROW('Variable O&M'!$A$4)+1,FALSE)*BS13 -> 0 | BT18: =HLOOKUP(BT12,'Variable O&M'!$B$4:$AT$48,ROW('Variable O&M'!$A$19)-ROW('Variable O&M'!$A$4)+1,FALSE)*BT13 -> 0 | BU18: =HLOOKUP(BU12,'Variable O&M'!$B$4:$AT$48,ROW('Variable O&M'!$A$19)-ROW('Variable O&M'!$A$4)+1,FALSE)*BU13 -> 0 | BV18: =HLOOKUP(BV12,'Variable O&M'!$B$4:$AT$48,ROW('Variable O&M'!$A$19)-ROW('Variable O&M'!$A$4)+1,FALSE)*BV13 -> 0 | BW18: =HLOOKUP(BW12,'Variable O&M'!$B$4:$AT$48,ROW('Variable O&M'!$A$19)-ROW('Variable O&M'!$A$4)+1,FALSE)*BW13 -> 0 | BX18: =HLOOKUP(BX12,'Variable O&M'!$B$4:$AT$48,ROW('Variable O&M'!$A$19)-ROW('Variable O&M'!$A$4)+1,FALSE)*BX13 -> 0 | BY18: =HLOOKUP(BY12,'Variable O&M'!$B$4:$AT$48,ROW('Variable O&M'!$A$19)-ROW('Variable O&M'!$A$4)+1,FALSE)*BY13 -> 0
B19: B&O Tax | D19: =D15*0.00275 -> 20880.2427 | E19: =E15*0.00275 -> 20775.84149 | F19: 20671.96228 | G19: 20568.60247 | H19: 20465.75946 | I19: 20363.43066 | J19: 20261.61351 | K19: 20160.30544 | L19: 20059.50391 | M19: 19959.20639 | N19: 19859.41036 | O19: 19760.11331 | P19: 19661.31274 | Q19: 19563.00618 | R19: 19465.19115 | S19: 19367.86519 | T19: 19271.02587 | U19: 19174.67074 | V19: 19078.79738 | W19: 18983.4034 | AC19: B&O Tax | AE19: 0 | AF19: 0 | AG19: 0 | AH19: 0 | AI19: 0 | AJ19: 0 | AK19: 0 | AL19: 0 | AM19: 0 | AN19: 0 | AO19: 0 | AP19: 0 | AQ19: 0 | AR19: 0 | AS19: 0 | AT19: 0 | AU19: 0 | AV19: 0 | AW19: 0 | AX19: 0 | BD19: B&O Tax | BF19: =BF15*0.00275 -> 1901.469662 | BG19: =BG15*0.00275 -> 1891.962314 | BH19: 1882.502502 | BI19: 1873.08999 | BJ19: 1863.72454 | BK19: 1854.405917 | BL19: 1845.133888 | BM19: 1835.908218 | BN19: 1826.728677 | BO19: 1817.595034 | BP19: 1808.507059 | BQ19: 1799.464523 | BR19: 1790.467201 | BS19: 1781.514865 | BT19: 1772.60729 | BU19: 1763.744254 | BV19: 1754.925533 | BW19: 1746.150905 | BX19: 1737.42015 | BY19: 1728.73305
B20: Property Tax | D20: =C42*$B$8 -> 1021901.071 | E20: =D42*$B$8 -> 964961.2341 | F20: 911194.0573 | G20: 860422.7619 | H20: 812480.4186 | I20: 767209.3997 | J20: 724460.8602 | K20: 684094.2488 | L20: 645976.8457 | M20: 609983.3259 | N20: 575995.3478 | O20: 543901.1635 | P20: 513595.2517 | Q20: 484977.9709 | R20: 457955.2311 | S20: 432438.1855 | T20: 408342.9374 | U20: 385590.2649 | V20: 364105.3604 | W20: 343817.5845 | AC20: Property Tax | AE20: =AD42*$B$8 -> 1021901.071 | AF20: =AE42*$B$8 -> 964961.2341 | AG20: 911194.0573 | AH20: 860422.7619 | AI20: 812480.4186 | AJ20: 767209.3997 | AK20: 724460.8602 | AL20: 684094.2488 | AM20: 645976.8457 | AN20: 609983.3259 | AO20: 575995.3478 | AP20: 543901.1635 | AQ20: 513595.2517 | AR20: 484977.9709 | AS20: 457955.2311 | AT20: 432438.1855 | AU20: 408342.9374 | AV20: 385590.2649 | AW20: 364105.3604 | AX20: 343817.5845 | BD20: Property Tax | BF20: =BE42*$B$8 -> 98357.97811 | BG20: =BF42*$B$8 -> 92877.51878 | BH20: 87702.42802 | BI20: 82815.69083 | BJ20: 78201.24029 | BK20: 73843.90472 | BL20: 69729.35779 | BM20: 65844.07145 | BN20: 62175.27139 | BO20: 58710.89512 | BP20: 55439.55222 | BQ20: 52350.48699 | BR20: 49433.54298 | BS20: 46679.1297 | BT20: 44078.191 | BU20: 41622.17535 | BV20: 39303.00772 | BW20: 37113.063 | BX20: 35045.14094 | BY20: 33092.44251
B21: Total Operating Costs | D21: =SUM(D17:D20) -> 2135201.314 | E21: =SUM(E17:E20) -> 2100005.476 | F21: 2068419.788 | G21: 2040276.208 | H21: 2015416.718 | I21: 1993692.781 | J21: 1974964.824 | K21: 1959101.751 | L21: 1945980.491 | M21: 1935485.556 | N21: 1927508.642 | O21: 1921948.239 | P21: 1918709.266 | Q21: 1917702.732 | R21: 1918845.413 | S21: 1922059.541 | T21: 1927272.523 | U21: 1934416.667 | V21: 1943428.924 | W21: 1954250.649 | AC21: Total Operating Costs | AE21: =SUM(AE17:AE20) -> 2114321.071 | AF21: 2079229.634 | AG21: 2047747.825 | AH21: 2019707.605 | AI21: 1994950.959 | AJ21: 1973329.351 | AK21: 1954703.21 | AL21: 1938941.446 | AM21: 1925920.987 | AN21: 1915526.35 | AO21: 1907649.232 | AP21: 1902188.125 | AQ21: 1899047.953 | AR21: 1898139.726 | AS21: 1899380.221 | AT21: 1902691.676 | AU21: 1908001.497 | AV21: 1915241.996 | AW21: 1924350.126 | AX21: 1935267.246 | BD21: Total Operating Costs | BF21: =SUM(BF17:BF20) -> 173087.4478 | BG21: 169054.0411 | BH21: 165355.1817 | BI21: 161974.437 | BJ21: 158896.3342 | BK21: 156106.3074 | BL21: 153590.6484 | BM21: 151336.4595 | BN21: 149331.6095 | BO21: 147564.6917 | BP21: 146024.9849 | BQ21: 144702.4156 | BR21: 143587.5236 | BS21: 142671.4282 | BT21: 141945.7976 | BU21: 141402.8189 | BV21: 141035.1706 | BW21: 140835.996 | BX21: 140798.8788 | BY21: 140917.8196
B23: EBITDA | D23: =D15-D21 -> 5457614.214 | E23: =E15-E21 -> 5454845.975 | F23: 5448657.405 | G23: 5439215.599 | H23: 5426677.63 | I23: 5411191.095 | J23: 5392894.633 | K23: 5371918.408 | L23: 5348384.568 | M23: 5322407.677 | N23: 5294095.125 | O23: 5263547.51 | P23: 5230859.004 | Q23: 5196117.696 | R23: 5159405.914 | S23: 5120800.529 | T23: 5080373.246 | U23: 5038190.874 | V23: 4994315.579 | W23: 4948805.131 | AC23: EBITDA | AE23: =AE15-AE21 -> 5457614.214 | AF23: =AF15-AF21 -> 5454845.975 | AG23: 5448657.405 | AH23: 5439215.599 | AI23: 5426677.63 | AJ23: 5411191.095 | AK23: 5392894.633 | AL23: 5371918.408 | AM23: 5348384.568 | AN23: 5322407.677 | AO23: 5294095.125 | AP23: 5263547.51 | AQ23: 5230859.004 | AR23: 5196117.696 | AS23: 5159405.914 | AT23: 5120800.529 | AU23: 5080373.246 | AV23: 5038190.874 | AW23: 4994315.579 | AX23: 4948805.131 | BD23: EBITDA | BF23: =BF15-BF21 -> 518356.0658 | BG23: =BG15-BG21 -> 518932.2549 | BH23: 519191.1828 | BI23: 519149.1957 | BJ23: 518821.6804 | BK23: 518223.1171 | BL23: 517367.129 | BM23: 516266.529 | BN23: 514933.3641 | BO23: 513378.9569 | BP23: 511613.9455 | BQ23: 509648.3201 | BR23: 507491.4585 | BS23: 505152.1589 | BT23: 502638.6716 | BU23: 499958.7279 | BV23: 497119.5686 | BW23: 494127.9695 | BX23: 490990.2668 | BY23: 487712.3803
B24: Before Tax Earnings | D24: =D23-D43-D33 -> -14395448.42 | E24: =E23-E25-E43 -> -22340863.16 | F24: -11228768.08 | G24: -4567239.69 | H24: -4579777.66 | I24: 407963.4501 | J24: 5392894.633 | K24: 5371918.408 | L24: 5348384.568 | M24: 5322407.677 | N24: 5294095.125 | O24: 5263547.51 | P24: 5230859.004 | Q24: 5196117.696 | R24: 5159405.914 | S24: 5120800.529 | T24: 5080373.246 | U24: 5038190.874 | V24: 4994315.579 | W24: 4948805.131 | AC24: Before Tax Earnings | AE24: =AE23-AE43-AE33 -> -14395448.42 | AF24: =AF23-AF25-AF43 -> -22340863.16 | AG24: -11228768.08 | AH24: -4567239.69 | AI24: -4579777.66 | AJ24: 407963.4501 | AK24: 5392894.633 | AL24: 5371918.408 | AM24: 5348384.568 | AN24: 5322407.677 | AO24: 5294095.125 | AP24: 5263547.51 | AQ24: 5230859.004 | AR24: 5196117.696 | AS24: 5159405.914 | AT24: 5120800.529 | AU24: 5080373.246 | AV24: 5038190.874 | AW24: 4994315.579 | AX24: 4948805.131 | BD24: Before Tax Earnings | BF24: =BF23-BF43-BF33 -> -1392501.213 | BG24: =BG23-BG25-BG43 -> -2156404.75 | BH24: -1086011.02 | BI24: -443972.126 | BJ24: -444299.6413 | BK24: 36662.45629 | BL24: 517367.129 | BM24: 516266.529 | BN24: 514933.3641 | BO24: 513378.9569 | BP24: 511613.9455 | BQ24: 509648.3201 | BR24: 507491.4585 | BS24: 505152.1589 | BT24: 502638.6716 | BU24: 499958.7279 | BV24: 497119.5686 | BW24: 494127.9695 | BX24: 490990.2668 | BY24: 487712.3803
B25: ITC | D25: =-C29*0.3 -> 30657032.14 | E25: 0 | F25: 0 | G25: 0 | H25: 0 | I25: 0 | J25: 0 | K25: 0 | L25: 0 | M25: 0 | N25: 0 | O25: 0 | P25: 0 | Q25: 0 | R25: 0 | S25: 0 | T25: 0 | U25: 0 | V25: 0 | W25: 0 | AC25: ITC | AE25: =-AD29*0.3 -> 30657032.14 | AF25: 0 | AG25: 0 | AH25: 0 | AI25: 0 | AJ25: 0 | AK25: 0 | AL25: 0 | AM25: 0 | AN25: 0 | AO25: 0 | AP25: 0 | AQ25: 0 | AR25: 0 | AS25: 0 | AT25: 0 | AU25: 0 | AV25: 0 | AW25: 0 | AX25: 0 | BD25: ITC | BF25: =-BE29*0.3 -> 2950739.343 | BG25: 0 | BH25: 0 | BI25: 0 | BJ25: 0 | BK25: 0 | BL25: 0 | BM25: 0 | BN25: 0 | BO25: 0 | BP25: 0 | BQ25: 0 | BR25: 0 | BS25: 0 | BT25: 0 | BU25: 0 | BV25: 0 | BW25: 0 | BX25: 0 | BY25: 0
B26: Federal Tax | D26: =D24*$B$6-D25 -> -33680076.31 | E26: -4691581.264 | F26: -2358041.296 | G26: -959120.335 | H26: -961753.3086 | I26: 85672.32451 | J26: 1132507.873 | K26: 1128102.866 | L26: 1123160.759 | M26: 1117705.612 | N26: 1111759.976 | O26: 1105344.977 | P26: 1098480.391 | Q26: 1091184.716 | R26: 1083475.242 | S26: 1075368.111 | T26: 1066878.382 | U26: 1058020.083 | V26: 1048806.272 | W26: 1039249.078 | AC26: Federal Tax | AE26: =AE24*$B$6-AE25 -> -33680076.31 | AF26: -4691581.264 | AG26: -2358041.296 | AH26: -959120.335 | AI26: -961753.3086 | AJ26: 85672.32451 | AK26: 1132507.873 | AL26: 1128102.866 | AM26: 1123160.759 | AN26: 1117705.612 | AO26: 1111759.976 | AP26: 1105344.977 | AQ26: 1098480.391 | AR26: 1091184.716 | AS26: 1083475.242 | AT26: 1075368.111 | AU26: 1066878.382 | AV26: 1058020.083 | AW26: 1048806.272 | AX26: 1039249.078 | BD26: Federal Tax | BF26: =BF24*$B$6-BF25 -> -3243164.598 | BG26: -452844.9974 | BH26: -228062.3142 | BI26: -93234.14645 | BJ26: -93302.92467 | BK26: 7699.11582 | BL26: 108647.0971 | BM26: 108415.9711 | BN26: 108136.0065 | BO26: 107809.581 | BP26: 107438.9286 | BQ26: 107026.1472 | BR26: 106573.2063 | BS26: 106081.9534 | BT26: 105554.121 | BU26: 104991.3329 | BV26: 104395.1094 | BW26: 103766.8736 | BX26: 103107.956 | BY26: 102419.5999
A29: =IRR(C29:X29,0.1) -> 0.06 | B29: Free Cash Flow | C29: =-HLOOKUP(D12,'Capital Costs'!$B$163:$CA$207,ROW('Capital Costs'!$A$179)-ROW('Capital Costs'!$A$163)+1,FALSE)*1000000*(1+AFUDC!$Y$21) -> -102190107.1 | D29: =D23-D26 -> 39137690.52 | E29: 10146427.24 | F29: 7806698.702 | G29: 6398335.934 | H29: 6388430.938 | I29: 5325518.77 | J29: 4260386.76 | K29: 4243815.543 | L29: 4225223.809 | M29: 4204702.065 | N29: 4182335.149 | O29: 4158202.533 | P29: 4132378.613 | Q29: 4104932.98 | R29: 4075930.672 | S29: 4045432.418 | T29: 4013494.864 | U29: 3980170.79 | V29: 3945509.308 | W29: 3909556.054 | X29: =C29*-0.3 -> 30657032.14 | AB29: =IRR(AD29:AY29,0.1) -> 0.06 | AC29: Free Cash Flow | AD29: =-HLOOKUP(AE12,'Capital Costs'!$B$163:$CA$207,ROW('Capital Costs'!$A$180)-ROW('Capital Costs'!$A$163)+1,FALSE)*1000000*(1+AFUDC!$Y$22) -> -102190107.1 | AE29: =AE23-AE26 -> 39137690.52 | AF29: 10146427.24 | AG29: 7806698.702 | AH29: 6398335.934 | AI29: 6388430.938 | AJ29: 5325518.77 | AK29: 4260386.76 | AL29: 4243815.543 | AM29: 4225223.809 | AN29: 4204702.065 | AO29: 4182335.149 | AP29: 4158202.533 | AQ29: 4132378.613 | AR29: 4104932.98 | AS29: 4075930.672 | AT29: 4045432.418 | AU29: 4013494.864 | AV29: 3980170.79 | AW29: 3945509.308 | AX29: 3909556.054 | AY29: =AD29*-0.3 -> 30657032.14 | BC29: =IRR(BE29:BZ29,0.1) -> 0.06 | BD29: Free Cash Flow | BE29: =-HLOOKUP(BF12,'Capital Costs'!$B$163:$CA$207,ROW('Capital Costs'!$A$178)-ROW('Capital Costs'!$A$163)+1,FALSE)*1000000*(1+AFUDC!$Y$20) -> -9835797.811 | BF29: =BF23-BF26 -> 3761520.664 | BG29: 971777.2523 | BH29: 747253.497 | BI29: 612383.3421 | BJ29: 612124.605 | BK29: 510524.0013 | BL29: 408720.0319 | BM29: 407850.5579 | BN29: 406797.3576 | BO29: 405569.376 | BP29: 404175.017 | BQ29: 402622.1729 | BR29: 400918.2522 | BS29: 399070.2056 | BT29: 397084.5506 | BU29: 394967.3951 | BV29: 392724.4592 | BW29: 390361.0959 | BX29: 387882.3108 | BY29: 385292.7804 | BZ29: =BE29*-0.3 -> 2950739.343
A30: =IRR(C30:X30,0.1) -> 0.0808018538 | B30: ROE | C30: =-C49 -> -8755568.56 | D30: =D29-D33-D35-D44-D25 -> 851244.5414 | E30: 328101.303 | F30: 323212.3333 | G30: 315753.3066 | H30: 305848.3106 | I30: 293613.948 | J30: 279159.7432 | K30: 262588.5256 | L30: 243996.792 | M30: 223475.0482 | N30: 201108.1317 | O30: 176975.5157 | P30: 151151.5963 | Q30: 123705.963 | R30: 94703.65484 | S30: 64205.40083 | T30: 32267.84749 | U30: -1056.226758 | V30: -35717.70941 | W30: -71670.96329 | X30: =X29 -> 30657032.14 | AB30: =IRR(AD30:AY30,0.1) -> 0.0808018538 | AC30: ROE | AD30: =-AD49 -> -8755568.56 | AE30: =AE29-AE33-AE35-AE44-AE25 -> 851244.5414 | AF30: 328101.303 | AG30: 323212.3333 | AH30: 315753.3066 | AI30: 305848.3106 | AJ30: 293613.948 | AK30: 279159.7432 | AL30: 262588.5256 | AM30: 243996.792 | AN30: 223475.0482 | AO30: 201108.1317 | AP30: 176975.5157 | AQ30: 151151.5963 | AR30: 123705.963 | AS30: 94703.65484 | AT30: 64205.40083 | AU30: 32267.84749 | AV30: -1056.226758 | AW30: -35717.70941 | AX30: -71670.96329 | AY30: =AY29 -> 30657032.14 | BC30: =IRR(BE30:BZ30,0.1) -> 0.08045830826 | BD30: ROE | BE30: =-BE49 -> -842723.4739 | BF30: =BF29-BF33-BF35-BF44-BF25 -> 76450.23831 | BG30: 26763.381 | BH30: 26967.93404 | BI30: 26934.7642 | BJ30: 26676.02711 | BK30: 26203.16213 | BL30: 25526.93153 | BM30: 24657.45752 | BN30: 23604.25722 | BO30: 22376.27558 | BP30: 20981.91657 | BQ30: 19429.07251 | BR30: 17725.15182 | BS30: 15877.10517 | BT30: 13891.45018 | BU30: 11774.29469 | BV30: 9531.35879 | BW30: 7167.995508 | BX30: 4689.210407 | BY30: 2099.680032 | BZ30: =BZ29 -> 2950739.343
B33: Interest | D33: =C36*$B$7 -> 2480744.425 | E33: 2405720.296 | F33: 2326944.96 | G33: 2244230.857 | H33: 2157381.049 | I33: 2066188.75 | J33: 1970436.837 | K33: 1869897.328 | L33: 1764330.844 | M33: 1653486.035 | N33: 1537098.986 | O33: 1414892.584 | P33: 1286575.863 | Q33: 1151843.305 | R33: 1010374.119 | S33: 861831.4745 | T33: 705861.6974 | U33: 542093.4314 | V33: 370136.7521 | W33: 189582.2389 | AC33: Interest | AE33: =AD36*$B$7 -> 2480744.425 | AF33: 2405720.296 | AG33: 2326944.96 | AH33: 2244230.857 | AI33: 2157381.049 | AJ33: 2066188.75 | AK33: 1970436.837 | AL33: 1869897.328 | AM33: 1764330.844 | AN33: 1653486.035 | AO33: 1537098.986 | AP33: 1414892.584 | AQ33: 1286575.863 | AR33: 1151843.305 | AS33: 1010374.119 | AT33: 861831.4745 | AU33: 705861.6974 | AV33: 542093.4314 | AW33: 370136.7521 | AX33: 189582.2389 | BD33: Interest | BF33: =BE36*$B$7 -> 238771.6509 | BG33: 231550.5785 | BH33: 223968.4524 | BI33: 216007.22 | BJ33: 207647.9259 | BK33: 198870.6672 | BL33: 189654.5456 | BM33: 179977.6178 | BN33: 169816.8437 | BO33: 159148.0309 | BP33: 147945.7774 | BQ33: 136183.4112 | BR33: 123832.9268 | BS33: 110864.9181 | BT33: 97248.50899 | BU33: 82951.27942 | BV33: 67939.18837 | BW33: 52176.49277 | BX33: 35625.66239 | BY33: 18247.29049
B34: Mortgage Payment | D34: =-PMT($B$7,20,$C48) -> 3981227.017 | E34: =-PMT($B$7,20,$C48) -> 3981227.017 | F34: 3981227.017 | G34: 3981227.017 | H34: 3981227.017 | I34: 3981227.017 | J34: 3981227.017 | K34: 3981227.017 | L34: 3981227.017 | M34: 3981227.017 | N34: 3981227.017 | O34: 3981227.017 | P34: 3981227.017 | Q34: 3981227.017 | R34: 3981227.017 | S34: 3981227.017 | T34: 3981227.017 | U34: 3981227.017 | V34: 3981227.017 | W34: 3981227.017 | AC34: Mortgage Payment | AE34: =-PMT($B$7,20,$AD48) -> 3981227.017 | AF34: 3981227.017 | AG34: 3981227.017 | AH34: 3981227.017 | AI34: 3981227.017 | AJ34: 3981227.017 | AK34: 3981227.017 | AL34: 3981227.017 | AM34: 3981227.017 | AN34: 3981227.017 | AO34: 3981227.017 | AP34: 3981227.017 | AQ34: 3981227.017 | AR34: 3981227.017 | AS34: 3981227.017 | AT34: 3981227.017 | AU34: 3981227.017 | AV34: 3981227.017 | AW34: 3981227.017 | AX34: 3981227.017 | BD34: Mortgage Payment | BF34: =-PMT($B$7,20,$BE48) -> 383193.1004 | BG34: 383193.1004 | BH34: 383193.1004 | BI34: 383193.1004 | BJ34: 383193.1004 | BK34: 383193.1004 | BL34: 383193.1004 | BM34: 383193.1004 | BN34: 383193.1004 | BO34: 383193.1004 | BP34: 383193.1004 | BQ34: 383193.1004 | BR34: 383193.1004 | BS34: 383193.1004 | BT34: 383193.1004 | BU34: 383193.1004 | BV34: 383193.1004 | BW34: 383193.1004 | BX34: 383193.1004 | BY34: 383193.1004
B35: Sinking Fund | D35: =D34-D33 -> 1500482.592 | E35: =E34-E33 -> 1575506.721 | F35: =F34-F33 -> 1654282.057 | G35: 1736996.16 | H35: 1823845.968 | I35: 1915038.267 | J35: 2010790.18 | K35: 2111329.689 | L35: 2216896.173 | M35: 2327740.982 | N35: 2444128.031 | O35: 2566334.433 | P35: 2694651.154 | Q35: 2829383.712 | R35: 2970852.898 | S35: 3119395.542 | T35: 3275365.32 | U35: 3439133.586 | V35: 3611090.265 | W35: 3791644.778 | AC35: Sinking Fund | AE35: =AE34-AE33 -> 1500482.592 | AF35: 1575506.721 | AG35: 1654282.057 | AH35: 1736996.16 | AI35: 1823845.968 | AJ35: 1915038.267 | AK35: 2010790.18 | AL35: 2111329.689 | AM35: 2216896.173 | AN35: 2327740.982 | AO35: 2444128.031 | AP35: 2566334.433 | AQ35: 2694651.154 | AR35: 2829383.712 | AS35: 2970852.898 | AT35: 3119395.542 | AU35: 3275365.32 | AV35: 3439133.586 | AW35: 3611090.265 | AX35: 3791644.778 | BD35: Sinking Fund | BF35: =BF34-BF33 -> 144421.4494 | BG35: 151642.5219 | BH35: 159224.648 | BI35: 167185.8804 | BJ35: 175545.1744 | BK35: 184322.4332 | BL35: 193538.5548 | BM35: 203215.4826 | BN35: 213376.2567 | BO35: 224045.0695 | BP35: 235247.323 | BQ35: 247009.6891 | BR35: 259360.1736 | BS35: 272328.1823 | BT35: 285944.5914 | BU35: 300241.821 | BV35: 315253.912 | BW35: 331016.6076 | BX35: 347567.438 | BY35: 364945.8099
B36: Mortgage Balance | C36: =C48 -> 49614888.51 | D36: =C36-D35 -> 48114405.91 | E36: =D36-E35 -> 46538899.19 | F36: =E36-F35 -> 44884617.14 | G36: 43147620.98 | H36: 41323775.01 | I36: 39408736.74 | J36: 37397946.56 | K36: 35286616.87 | L36: 33069720.7 | M36: 30741979.72 | N36: 28297851.69 | O36: 25731517.25 | P36: 23036866.1 | Q36: 20207482.39 | R36: 17236629.49 | S36: 14117233.95 | T36: 10841868.63 | U36: 7402735.043 | V36: 3791644.778 | W36: 3.073364496e-08 | AC36: Mortgage Balance | AD36: =AD48 -> 49614888.51 | AE36: =AD36-AE35 -> 48114405.91 | AF36: 46538899.19 | AG36: 44884617.14 | AH36: 43147620.98 | AI36: 41323775.01 | AJ36: 39408736.74 | AK36: 37397946.56 | AL36: 35286616.87 | AM36: 33069720.7 | AN36: 30741979.72 | AO36: 28297851.69 | AP36: 25731517.25 | AQ36: 23036866.1 | AR36: 20207482.39 | AS36: 17236629.49 | AT36: 14117233.95 | AU36: 10841868.63 | AV36: 7402735.043 | AW36: 3791644.778 | AX36: 3.073364496e-08 | BD36: Mortgage Balance | BE36: =BE48 -> 4775433.019 | BF36: =BE36-BF35 -> 4631011.569 | BG36: 4479369.047 | BH36: 4320144.399 | BI36: 4152958.519 | BJ36: 3977413.345 | BK36: 3793090.911 | BL36: 3599552.357 | BM36: 3396336.874 | BN36: 3182960.617 | BO36: 2958915.548 | BP36: 2723668.225 | BQ36: 2476658.536 | BR36: 2217298.362 | BS36: 1944970.18 | BT36: 1659025.588 | BU36: 1358783.767 | BV36: 1043529.855 | BW36: 712513.2479 | BX36: 364945.8099 | BY36: 1.746229827e-09
B39: Book Depr | D39: =-($C29)/20 -> 5109505.356 | E39: =-($C29)/20 -> 5109505.356 | F39: 5109505.356 | G39: 5109505.356 | H39: 5109505.356 | I39: 5109505.356 | J39: 5109505.356 | K39: 5109505.356 | L39: 5109505.356 | M39: 5109505.356 | N39: 5109505.356 | O39: 5109505.356 | P39: 5109505.356 | Q39: 5109505.356 | R39: 5109505.356 | S39: 5109505.356 | T39: 5109505.356 | U39: 5109505.356 | V39: 5109505.356 | W39: 5109505.356 | AC39: Book Depr | AE39: =-($AD$29)/20 -> 5109505.356 | AF39: =-($AD$29)/20 -> 5109505.356 | AG39: 5109505.356 | AH39: 5109505.356 | AI39: 5109505.356 | AJ39: 5109505.356 | AK39: 5109505.356 | AL39: 5109505.356 | AM39: 5109505.356 | AN39: 5109505.356 | AO39: 5109505.356 | AP39: 5109505.356 | AQ39: 5109505.356 | AR39: 5109505.356 | AS39: 5109505.356 | AT39: 5109505.356 | AU39: 5109505.356 | AV39: 5109505.356 | AW39: 5109505.356 | AX39: 5109505.356 | BD39: Book Depr | BF39: =-($BE$29)/20 -> 491789.8905 | BG39: =-($BE$29)/20 -> 491789.8905 | BH39: 491789.8905 | BI39: 491789.8905 | BJ39: 491789.8905 | BK39: 491789.8905 | BL39: 491789.8905 | BM39: 491789.8905 | BN39: 491789.8905 | BO39: 491789.8905 | BP39: 491789.8905 | BQ39: 491789.8905 | BR39: 491789.8905 | BS39: 491789.8905 | BT39: 491789.8905 | BU39: 491789.8905 | BV39: 491789.8905 | BW39: 491789.8905 | BX39: 491789.8905 | BY39: 491789.8905
B40: Accum Depreciation | D40: =SUM($D39:D39) -> 5109505.356 | E40: =SUM($D39:E39) -> 10219010.71 | F40: =SUM($D39:F39) -> 15328516.07 | G40: =SUM($D39:G39) -> 20438021.43 | H40: =SUM($D39:H39) -> 25547526.78 | I40: =SUM($D39:I39) -> 30657032.14 | J40: =SUM($D39:J39) -> 35766537.49 | K40: =SUM($D39:K39) -> 40876042.85 | L40: =SUM($D39:L39) -> 45985548.21 | M40: =SUM($D39:M39) -> 51095053.56 | N40: =SUM($D39:N39) -> 56204558.92 | O40: =SUM($D39:O39) -> 61314064.28 | P40: =SUM($D39:P39) -> 66423569.63 | Q40: =SUM($D39:Q39) -> 71533074.99 | R40: =SUM($D39:R39) -> 76642580.34 | S40: =SUM($D39:S39) -> 81752085.7 | T40: =SUM($D39:T39) -> 86861591.06 | U40: =SUM($D39:U39) -> 91971096.41 | V40: =SUM($D39:V39) -> 97080601.77 | W40: =SUM($D39:W39) -> 102190107.1 | AC40: Accum Depreciation | AE40: =SUM($AE39:AE39) -> 5109505.356 | AF40: =SUM($AE39:AF39) -> 10219010.71 | AG40: =SUM($AE39:AG39) -> 15328516.07 | AH40: =SUM($AE39:AH39) -> 20438021.43 | AI40: =SUM($AE39:AI39) -> 25547526.78 | AJ40: =SUM($AE39:AJ39) -> 30657032.14 | AK40: =SUM($AE39:AK39) -> 35766537.49 | AL40: =SUM($AE39:AL39) -> 40876042.85 | AM40: =SUM($AE39:AM39) -> 45985548.21 | AN40: =SUM($AE39:AN39) -> 51095053.56 | AO40: =SUM($AE39:AO39) -> 56204558.92 | AP40: =SUM($AE39:AP39) -> 61314064.28 | AQ40: =SUM($AE39:AQ39) -> 66423569.63 | AR40: =SUM($AE39:AR39) -> 71533074.99 | AS40: =SUM($AE39:AS39) -> 76642580.34 | AT40: =SUM($AE39:AT39) -> 81752085.7 | AU40: =SUM($AE39:AU39) -> 86861591.06 | AV40: =SUM($AE39:AV39) -> 91971096.41 | AW40: =SUM($AE39:AW39) -> 97080601.77 | AX40: =SUM($AE39:AX39) -> 102190107.1 | BD40: Accum Depreciation | BF40: =SUM($BF39:BF39) -> 491789.8905 | BG40: =SUM($BF39:BG39) -> 983579.7811 | BH40: =SUM($BF39:BH39) -> 1475369.672 | BI40: =SUM($BF39:BI39) -> 1967159.562 | BJ40: =SUM($BF39:BJ39) -> 2458949.453 | BK40: =SUM($BF39:BK39) -> 2950739.343 | BL40: =SUM($BF39:BL39) -> 3442529.234 | BM40: =SUM($BF39:BM39) -> 3934319.124 | BN40: =SUM($BF39:BN39) -> 4426109.015 | BO40: =SUM($BF39:BO39) -> 4917898.905 | BP40: =SUM($BF39:BP39) -> 5409688.796 | BQ40: =SUM($BF39:BQ39) -> 5901478.686 | BR40: =SUM($BF39:BR39) -> 6393268.577 | BS40: =SUM($BF39:BS39) -> 6885058.468 | BT40: =SUM($BF39:BT39) -> 7376848.358 | BU40: =SUM($BF39:BU39) -> 7868638.249 | BV40: =SUM($BF39:BV39) -> 8360428.139 | BW40: =SUM($BF39:BW39) -> 8852218.03 | BX40: =SUM($BF39:BX39) -> 9344007.92 | BY40: =SUM($BF39:BY39) -> 9835797.811
B41: End Year Book Value | D41: =-$C29-D40 -> 97080601.77 | E41: 91971096.41 | F41: 86861591.06 | G41: 81752085.7 | H41: 76642580.34 | I41: 71533074.99 | J41: 66423569.63 | K41: 61314064.28 | L41: 56204558.92 | M41: 51095053.56 | N41: 45985548.21 | O41: 40876042.85 | P41: 35766537.49 | Q41: 30657032.14 | R41: 25547526.78 | S41: 20438021.43 | T41: 15328516.07 | U41: 10219010.71 | V41: 5109505.356 | W41: 0 | AC41: End Year Book Value | AE41: =-$AD29-AE40 -> 97080601.77 | AF41: =-$AD29-AF40 -> 91971096.41 | AG41: 86861591.06 | AH41: 81752085.7 | AI41: 76642580.34 | AJ41: 71533074.99 | AK41: 66423569.63 | AL41: 61314064.28 | AM41: 56204558.92 | AN41: 51095053.56 | AO41: 45985548.21 | AP41: 40876042.85 | AQ41: 35766537.49 | AR41: 30657032.14 | AS41: 25547526.78 | AT41: 20438021.43 | AU41: 15328516.07 | AV41: 10219010.71 | AW41: 5109505.356 | AX41: 0 | BD41: End Year Book Value | BF41: =-$BE29-BF40 -> 9344007.92 | BG41: =-$BE29-BG40 -> 8852218.03 | BH41: 8360428.139 | BI41: 7868638.249 | BJ41: 7376848.358 | BK41: 6885058.468 | BL41: 6393268.577 | BM41: 5901478.686 | BN41: 5409688.796 | BO41: 4917898.905 | BP41: 4426109.015 | BQ41: 3934319.124 | BR41: 3442529.234 | BS41: 2950739.343 | BT41: 2458949.453 | BU41: 1967159.562 | BV41: 1475369.672 | BW41: 983579.7811 | BX41: 491789.8905 | BY41: 0
B42: Prop. Tax Value | C42: =-C29 -> 102190107.1 | D42: =C42/(($C42/$X42)^(1/21)) -> 96496123.41 | E42: =D42/(($C42/$X42)^(1/21)) -> 91119405.73 | F42: 86042276.19 | G42: 81248041.86 | H42: 76720939.97 | I42: 72446086.02 | J42: 68409424.88 | K42: 64597684.57 | L42: 60998332.59 | M42: 57599534.78 | N42: 54390116.35 | O42: 51359525.17 | P42: 48497797.09 | Q42: 45795523.11 | R42: 43243818.55 | S42: 40834293.74 | T42: 38559026.49 | U42: 36410536.04 | V42: 34381758.45 | W42: 32466023.38 | X42: =X29 -> 30657032.14 | AC42: Prop. Tax Value | AD42: =-AD29 -> 102190107.1 | AE42: =AD42/(($AD42/$AY42)^(1/21)) -> 96496123.41 | AF42: =AE42/(($AD42/$AY42)^(1/21)) -> 91119405.73 | AG42: 86042276.19 | AH42: 81248041.86 | AI42: 76720939.97 | AJ42: 72446086.02 | AK42: 68409424.88 | AL42: 64597684.57 | AM42: 60998332.59 | AN42: 57599534.78 | AO42: 54390116.35 | AP42: 51359525.17 | AQ42: 48497797.09 | AR42: 45795523.11 | AS42: 43243818.55 | AT42: 40834293.74 | AU42: 38559026.49 | AV42: 36410536.04 | AW42: 34381758.45 | AX42: 32466023.38 | AY42: =AY29 -> 30657032.14 | BD42: Prop. Tax Value | BE42: =-BE29 -> 9835797.811 | BF42: =BE42/(($BE42/$BZ42)^(1/21)) -> 9287751.878 | BG42: =BF42/(($BE42/$BZ42)^(1/21)) -> 8770242.802 | BH42: 8281569.083 | BI42: 7820124.029 | BJ42: 7384390.472 | BK42: 6972935.779 | BL42: 6584407.145 | BM42: 6217527.139 | BN42: 5871089.512 | BO42: 5543955.222 | BP42: 5235048.699 | BQ42: 4943354.298 | BR42: 4667912.97 | BS42: 4407819.1 | BT42: 4162217.535 | BU42: 3930300.772 | BV42: 3711306.3 | BW42: 3504514.094 | BX42: 3309244.251 | BY42: 3124854.75 | BZ42: =BZ29 -> 2950739.343
B43: Tax Dep | D43: =($C29*0.85)*-D$4 -> 17372318.21 | E43: 27795709.14 | F43: 16677425.48 | G43: 10006455.29 | H43: 10006455.29 | I43: 5003227.645 | AC43: Tax Dep | AE43: =($AD$29*0.85)*-D$4 -> 17372318.21 | AF43: 27795709.14 | AG43: 16677425.48 | AH43: 10006455.29 | AI43: 10006455.29 | AJ43: 5003227.645 | BD43: Tax Dep | BF43: =($BE29*0.85)*-D$4 -> 1672085.628 | BG43: 2675337.005 | BH43: 1605202.203 | BI43: 963121.3216 | BJ43: 963121.3216 | BK43: 481560.6608
B44: After Tax Dep. Value | D44: =D43*$B$6 -> 3648186.824 | E44: 5837098.919 | F44: 3502259.351 | G44: 2101355.611 | H44: 2101355.611 | I44: 1050677.805 | AC44: After Tax Dep. Value | AE44: =AE43*$B$6 -> 3648186.824 | AF44: 5837098.919 | AG44: 3502259.351 | AH44: 2101355.611 | AI44: 2101355.611 | AJ44: 1050677.805 | BD44: After Tax Dep. Value | BF44: =BF43*$B$6 -> 351137.9818 | BG44: 561820.771 | BH44: 337092.4626 | BI44: 202255.4775 | BJ44: 202255.4775 | BK44: 101127.7388
B46: Dep. Tax Equity | C46: =NPV($B$9,D44:I44) -> 15168218.15 | D46: =C46/C50 -> 0.1484313754 | AC46: Dep. Tax Equity | AD46: =NPV($B$9,AE44:AJ44) -> 15168218.15 | AE46: =AD46/AD50 -> 0.1484313754 | BD46: Dep. Tax Equity | BE46: =NPV($B$9,BF44:BK44) -> 1459940.997 | BF46: =BE46/BE50 -> 0.1484313754
B47: ITC Tax Equity | C47: =NPV($B$9,D25:W25) -> 28651431.9 | D47: =C47/C50 -> 0.2803738318 | AC47: ITC Tax Equity | AD47: =NPV($B$9,AE25:AX25) -> 28651431.9 | AE47: =AD47/AD50 -> 0.2803738318 | BD47: ITC Tax Equity | BE47: =NPV($B$9,BF25:BY25) -> 2757700.321 | BF47: =BE47/BE50 -> 0.2803738318
A48: 0.85 | B48: Debt | C48: =(C50-C46-C47)*$A48 -> 49614888.51 | D48: =C48/C50 -> 0.4855155739 | AB48: 0.85 | AC48: Debt | AD48: =(AD50-AD46-AD47)*$A48 -> 49614888.51 | AE48: =AD48/AD50 -> 0.4855155739 | BC48: 0.85 | BD48: Debt | BE48: =(BE50-BE46-BE47)*$A48 -> 4775433.019 | BF48: =BE48/BE50 -> 0.4855155739
A49: 0.15 | B49: Equity | C49: =(C50-C46-C47)*$A49 -> 8755568.56 | D49: =C49/C50 -> 0.08567921892 | AB49: 0.15 | AC49: Equity | AD49: =(AD50-AD46-AD47)*$A49 -> 8755568.56 | AE49: =AD49/AD50 -> 0.08567921892 | BC49: 0.15 | BD49: Equity | BE49: =(BE50-BE46-BE47)*$A49 -> 842723.4739 | BF49: =BE49/BE50 -> 0.08567921892
B50: Total | C50: =-C29 -> 102190107.1 | AC50: Total | AD50: =-AD29 -> 102190107.1 | BD50: Total | BE50: =-BE29 -> 9835797.811
B51: Check | C51: =SUM(C46:C49)-C50 -> 0 | AC51: Check | AD51: =SUM(AD46:AD49)-AD50 -> 0 | BD51: Check | BE51: =SUM(BE46:BE49)-BE50 -> 0
B52: 2023 Solar | AC52: 2023 Southern NW Solar | BD52: 2023 Small Solar
B53: Year | D53: 2023 | E53: =D53+1 -> 2024 | F53: =E53+1 -> 2025 | G53: 2026 | H53: 2027 | I53: 2028 | J53: 2029 | K53: 2030 | L53: 2031 | M53: 2032 | N53: 2033 | O53: 2034 | P53: 2035 | Q53: 2036 | R53: 2037 | S53: 2038 | T53: 2039 | U53: 2040 | V53: 2041 | W53: 2042 | AC53: Year | AE53: 2023 | AF53: =AE53+1 -> 2024 | AG53: =AF53+1 -> 2025 | AH53: 2026 | AI53: 2027 | AJ53: 2028 | AK53: 2029 | AL53: 2030 | AM53: 2031 | AN53: 2032 | AO53: 2033 | AP53: 2034 | AQ53: 2035 | AR53: 2036 | AS53: 2037 | AT53: 2038 | AU53: 2039 | AV53: 2040 | AW53: 2041 | AX53: 2042 | BD53: Year | BF53: 2023 | BG53: =BF53+1 -> 2024 | BH53: =BG53+1 -> 2025 | BI53: 2026 | BJ53: 2027 | BK53: 2028 | BL53: 2029 | BM53: 2030 | BN53: 2031 | BO53: 2032 | BP53: 2033 | BQ53: 2034 | BR53: 2035 | BS53: 2036 | BT53: 2037 | BU53: 2038 | BV53: 2039 | BW53: 2040 | BX53: 2041 | BY53: 2042
B54: MWh | D54: =('Resource Options'!$V$22/100*'Resource Options'!$J$22*8760)*(1+'Resource Options'!$X$22)^($D53-$D$12) -> 237229.56 | E54: =D54*(1-'Resource Options'!$AA$22) -> 236043.4122 | F54: =E54*(1-'Resource Options'!$AA$22) -> 234863.1951 | G54: =F54*(1-'Resource Options'!$AA$22) -> 233688.8792 | H54: =G54*(1-'Resource Options'!$AA$22) -> 232520.4348 | I54: =H54*(1-'Resource Options'!$AA$22) -> 231357.8326 | J54: =I54*(1-'Resource Options'!$AA$22) -> 230201.0434 | K54: =J54*(1-'Resource Options'!$AA$22) -> 229050.0382 | L54: =K54*(1-'Resource Options'!$AA$22) -> 227904.788 | M54: =L54*(1-'Resource Options'!$AA$22) -> 226765.2641 | N54: =M54*(1-'Resource Options'!$AA$22) -> 225631.4378 | O54: =N54*(1-'Resource Options'!$AA$22) -> 224503.2806 | P54: =O54*(1-'Resource Options'!$AA$22) -> 223380.7642 | Q54: =P54*(1-'Resource Options'!$AA$22) -> 222263.8603 | R54: =Q54*(1-'Resource Options'!$AA$22) -> 221152.541 | S54: =R54*(1-'Resource Options'!$AA$22) -> 220046.7783 | T54: =S54*(1-'Resource Options'!$AA$22) -> 218946.5445 | U54: =T54*(1-'Resource Options'!$AA$22) -> 217851.8117 | V54: =U54*(1-'Resource Options'!$AA$22) -> 216762.5527 | W54: =V54*(1-'Resource Options'!$AA$22) -> 215678.7399 | AC54: MWh | AE54: =('Resource Options'!$V$23/100*'Resource Options'!$J$23*8760)*(1+'Resource Options'!$X$23)^($D53-$D$12) -> 263588.4 | AF54: =AE54*(1-'Resource Options'!$AA$22) -> 262270.458 | AG54: =AF54*(1-'Resource Options'!$AA$22) -> 260959.1057 | AH54: =AG54*(1-'Resource Options'!$AA$22) -> 259654.3102 | AI54: =AH54*(1-'Resource Options'!$AA$22) -> 258356.0386 | AJ54: =AI54*(1-'Resource Options'!$AA$22) -> 257064.2584 | AK54: =AJ54*(1-'Resource Options'!$AA$22) -> 255778.9371 | AL54: =AK54*(1-'Resource Options'!$AA$22) -> 254500.0425 | AM54: =AL54*(1-'Resource Options'!$AA$22) -> 253227.5422 | AN54: =AM54*(1-'Resource Options'!$AA$22) -> 251961.4045 | AO54: =AN54*(1-'Resource Options'!$AA$22) -> 250701.5975 | AP54: =AO54*(1-'Resource Options'!$AA$22) -> 249448.0895 | AQ54: =AP54*(1-'Resource Options'!$AA$22) -> 248200.8491 | AR54: =AQ54*(1-'Resource Options'!$AA$22) -> 246959.8448 | AS54: =AR54*(1-'Resource Options'!$AA$22) -> 245725.0456 | AT54: =AS54*(1-'Resource Options'!$AA$22) -> 244496.4204 | AU54: =AT54*(1-'Resource Options'!$AA$22) -> 243273.9383 | AV54: =AU54*(1-'Resource Options'!$AA$22) -> 242057.5686 | AW54: =AV54*(1-'Resource Options'!$AA$22) -> 240847.2807 | AX54: =AW54*(1-'Resource Options'!$AA$22) -> 239643.0443 | BD54: MWh | BF54: =('Resource Options'!$V$21/100*'Resource Options'!$J$21*8760)*(1+'Resource Options'!$X$21)^($D53-$D$12) -> 10982.85 | BG54: =BF54*(1-'Resource Options'!$AA$22) -> 10927.93575 | BH54: =BG54*(1-'Resource Options'!$AA$22) -> 10873.29607 | BI54: =BH54*(1-'Resource Options'!$AA$22) -> 10818.92959 | BJ54: =BI54*(1-'Resource Options'!$AA$22) -> 10764.83494 | BK54: =BJ54*(1-'Resource Options'!$AA$22) -> 10711.01077 | BL54: =BK54*(1-'Resource Options'!$AA$22) -> 10657.45571 | BM54: =BL54*(1-'Resource Options'!$AA$22) -> 10604.16844 | BN54: =BM54*(1-'Resource Options'!$AA$22) -> 10551.14759 | BO54: =BN54*(1-'Resource Options'!$AA$22) -> 10498.39186 | BP54: =BO54*(1-'Resource Options'!$AA$22) -> 10445.8999 | BQ54: =BP54*(1-'Resource Options'!$AA$22) -> 10393.6704 | BR54: =BQ54*(1-'Resource Options'!$AA$22) -> 10341.70204 | BS54: =BR54*(1-'Resource Options'!$AA$22) -> 10289.99353 | BT54: =BS54*(1-'Resource Options'!$AA$22) -> 10238.54357 | BU54: =BT54*(1-'Resource Options'!$AA$22) -> 10187.35085 | BV54: =BU54*(1-'Resource Options'!$AA$22) -> 10136.41409 | BW54: =BV54*(1-'Resource Options'!$AA$22) -> 10085.73202 | BX54: =BW54*(1-'Resource Options'!$AA$22) -> 10035.30336 | BY54: =BX54*(1-'Resource Options'!$AA$22) -> 9985.126848
B55: PPA Rate ($/MWh) | D55: ='PPA Summary'!M34 -> 31.6770179 | E55: =D55 -> 31.6770179 | F55: =E55 -> 31.6770179 | G55: 31.6770179 | H55: 31.6770179 | I55: 31.6770179 | J55: 31.6770179 | K55: 31.6770179 | L55: 31.6770179 | M55: 31.6770179 | N55: 31.6770179 | O55: 31.6770179 | P55: 31.6770179 | Q55: 31.6770179 | R55: 31.6770179 | S55: 31.6770179 | T55: 31.6770179 | U55: 31.6770179 | V55: 31.6770179 | W55: 31.6770179 | AC55: PPA Rate ($/MWh) | AE55: ='PPA Summary'!P34 -> 28.31878265 | AF55: =AE55 -> 28.31878265 | AG55: =AF55 -> 28.31878265 | AH55: 28.31878265 | AI55: 28.31878265 | AJ55: 28.31878265 | AK55: 28.31878265 | AL55: 28.31878265 | AM55: 28.31878265 | AN55: 28.31878265 | AO55: 28.31878265 | AP55: 28.31878265 | AQ55: 28.31878265 | AR55: 28.31878265 | AS55: 28.31878265 | AT55: 28.31878265 | AU55: 28.31878265 | AV55: 28.31878265 | AW55: 28.31878265 | AX55: 28.31878265 | BD55: PPA Rate ($/MWh) | BF55: ='PPA Summary'!S34 -> 62.200613 | BG55: =BF55 -> 62.200613 | BH55: =BG55 -> 62.200613 | BI55: 62.200613 | BJ55: 62.200613 | BK55: 62.200613 | BL55: 62.200613 | BM55: 62.200613 | BN55: 62.200613 | BO55: 62.200613 | BP55: 62.200613 | BQ55: 62.200613 | BR55: 62.200613 | BS55: 62.200613 | BT55: 62.200613 | BU55: 62.200613 | BV55: 62.200613 | BW55: 62.200613 | BX55: 62.200613 | BY55: 62.200613
B56: Revenue | D56: =D55*D54 -> 7514725.019 | E56: 7477151.394 | F56: 7439765.637 | G56: 7402566.809 | H56: 7365553.975 | I56: 7328726.205 | J56: 7292082.574 | K56: 7255622.161 | L56: 7219344.05 | M56: 7183247.33 | N56: 7147331.093 | O56: 7111594.438 | P56: 7076036.466 | Q56: 7040656.283 | R56: 7005453.002 | S56: 6970425.737 | T56: 6935573.608 | U56: 6900895.74 | V56: 6866391.261 | W56: 6832059.305 | AC56: Revenue | AE56: =AE55*AE54 -> 7464502.608 | AF56: 7427180.095 | AG56: 7390044.194 | AH56: 7353093.973 | AI56: 7316328.503 | AJ56: 7279746.861 | AK56: 7243348.127 | AL56: 7207131.386 | AM56: 7171095.729 | AN56: 7135240.25 | AO56: 7099564.049 | AP56: 7064066.229 | AQ56: 7028745.898 | AR56: 6993602.168 | AS56: 6958634.157 | AT56: 6923840.987 | AU56: 6889221.782 | AV56: 6854775.673 | AW56: 6820501.794 | AX56: 6786399.285 | BD56: Revenue | BF56: =BF55*BF54 -> 683140.0025 | BG56: 679724.3025 | BH56: 676325.681 | BI56: 672944.0526 | BJ56: 669579.3323 | BK56: 666231.4356 | BL56: 662900.2785 | BM56: 659585.7771 | BN56: 656287.8482 | BO56: 653006.4089 | BP56: 649741.3769 | BQ56: 646492.67 | BR56: 643260.2067 | BS56: 640043.9056 | BT56: 636843.6861 | BU56: 633659.4677 | BV56: 630491.1703 | BW56: 627338.7145 | BX56: 624202.0209 | BY56: 621081.0108
B58: Fixed O&M | D58: =HLOOKUP(D53,'Fixed O&M'!$C$4:$AU$48,ROW('Fixed O&M'!$B$20)-ROW('Fixed O&M'!$B$4)+1,FALSE)*'Resource Options'!$J$22*1000 -> 1114268.4 | E58: =HLOOKUP(E53,'Fixed O&M'!$C$4:$AU$48,ROW('Fixed O&M'!$B$20)-ROW('Fixed O&M'!$B$4)+1,FALSE)*'Resource Options'!$J$22*1000 -> 1136553.768 | F58: =HLOOKUP(F53,'Fixed O&M'!$C$4:$AU$48,ROW('Fixed O&M'!$B$20)-ROW('Fixed O&M'!$B$4)+1,FALSE)*'Resource Options'!$J$22*1000 -> 1159284.843 | G58: =HLOOKUP(G53,'Fixed O&M'!$C$4:$AU$48,ROW('Fixed O&M'!$B$20)-ROW('Fixed O&M'!$B$4)+1,FALSE)*'Resource Options'!$J$22*1000 -> 1182470.54 | H58: =HLOOKUP(H53,'Fixed O&M'!$C$4:$AU$48,ROW('Fixed O&M'!$B$20)-ROW('Fixed O&M'!$B$4)+1,FALSE)*'Resource Options'!$J$22*1000 -> 1206119.951 | I58: =HLOOKUP(I53,'Fixed O&M'!$C$4:$AU$48,ROW('Fixed O&M'!$B$20)-ROW('Fixed O&M'!$B$4)+1,FALSE)*'Resource Options'!$J$22*1000 -> 1230242.35 | J58: =HLOOKUP(J53,'Fixed O&M'!$C$4:$AU$48,ROW('Fixed O&M'!$B$20)-ROW('Fixed O&M'!$B$4)+1,FALSE)*'Resource Options'!$J$22*1000 -> 1254847.197 | K58: =HLOOKUP(K53,'Fixed O&M'!$C$4:$AU$48,ROW('Fixed O&M'!$B$20)-ROW('Fixed O&M'!$B$4)+1,FALSE)*'Resource Options'!$J$22*1000 -> 1279944.141 | L58: =HLOOKUP(L53,'Fixed O&M'!$C$4:$AU$48,ROW('Fixed O&M'!$B$20)-ROW('Fixed O&M'!$B$4)+1,FALSE)*'Resource Options'!$J$22*1000 -> 1305543.024 | M58: =HLOOKUP(M53,'Fixed O&M'!$C$4:$AU$48,ROW('Fixed O&M'!$B$20)-ROW('Fixed O&M'!$B$4)+1,FALSE)*'Resource Options'!$J$22*1000 -> 1331653.884 | N58: =HLOOKUP(N53,'Fixed O&M'!$C$4:$AU$48,ROW('Fixed O&M'!$B$20)-ROW('Fixed O&M'!$B$4)+1,FALSE)*'Resource Options'!$J$22*1000 -> 1358286.962 | O58: =HLOOKUP(O53,'Fixed O&M'!$C$4:$AU$48,ROW('Fixed O&M'!$B$20)-ROW('Fixed O&M'!$B$4)+1,FALSE)*'Resource Options'!$J$22*1000 -> 1385452.701 | P58: =HLOOKUP(P53,'Fixed O&M'!$C$4:$AU$48,ROW('Fixed O&M'!$B$20)-ROW('Fixed O&M'!$B$4)+1,FALSE)*'Resource Options'!$J$22*1000 -> 1413161.755 | Q58: =HLOOKUP(Q53,'Fixed O&M'!$C$4:$AU$48,ROW('Fixed O&M'!$B$20)-ROW('Fixed O&M'!$B$4)+1,FALSE)*'Resource Options'!$J$22*1000 -> 1441424.99 | R58: =HLOOKUP(R53,'Fixed O&M'!$C$4:$AU$48,ROW('Fixed O&M'!$B$20)-ROW('Fixed O&M'!$B$4)+1,FALSE)*'Resource Options'!$J$22*1000 -> 1470253.49 | S58: =HLOOKUP(S53,'Fixed O&M'!$C$4:$AU$48,ROW('Fixed O&M'!$B$20)-ROW('Fixed O&M'!$B$4)+1,FALSE)*'Resource Options'!$J$22*1000 -> 1499658.56 | T58: =HLOOKUP(T53,'Fixed O&M'!$C$4:$AU$48,ROW('Fixed O&M'!$B$20)-ROW('Fixed O&M'!$B$4)+1,FALSE)*'Resource Options'!$J$22*1000 -> 1529651.731 | U58: =HLOOKUP(U53,'Fixed O&M'!$C$4:$AU$48,ROW('Fixed O&M'!$B$20)-ROW('Fixed O&M'!$B$4)+1,FALSE)*'Resource Options'!$J$22*1000 -> 1560244.766 | V58: =HLOOKUP(V53,'Fixed O&M'!$C$4:$AU$48,ROW('Fixed O&M'!$B$20)-ROW('Fixed O&M'!$B$4)+1,FALSE)*'Resource Options'!$J$22*1000 -> 1591449.661 | W58: =HLOOKUP(W53,'Fixed O&M'!$C$4:$AU$48,ROW('Fixed O&M'!$B$20)-ROW('Fixed O&M'!$B$4)+1,FALSE)*'Resource Options'!$J$22*1000 -> 1623278.654 | AC58: Fixed O&M | AE58: =HLOOKUP(AE53,'Fixed O&M'!$C$4:$AU$48,ROW('Fixed O&M'!$B$21)-ROW('Fixed O&M'!$B$4)+1,FALSE)*'Resource Options'!$J$22*1000 -> 1114268.4 | AF58: =HLOOKUP(AF53,'Fixed O&M'!$C$4:$AU$48,ROW('Fixed O&M'!$B$21)-ROW('Fixed O&M'!$B$4)+1,FALSE)*'Resource Options'!$J$22*1000 -> 1136553.768 | AG58: =HLOOKUP(AG53,'Fixed O&M'!$C$4:$AU$48,ROW('Fixed O&M'!$B$21)-ROW('Fixed O&M'!$B$4)+1,FALSE)*'Resource Options'!$J$22*1000 -> 1159284.843 | AH58: =HLOOKUP(AH53,'Fixed O&M'!$C$4:$AU$48,ROW('Fixed O&M'!$B$21)-ROW('Fixed O&M'!$B$4)+1,FALSE)*'Resource Options'!$J$22*1000 -> 1182470.54 | AI58: =HLOOKUP(AI53,'Fixed O&M'!$C$4:$AU$48,ROW('Fixed O&M'!$B$21)-ROW('Fixed O&M'!$B$4)+1,FALSE)*'Resource Options'!$J$22*1000 -> 1206119.951 | AJ58: =HLOOKUP(AJ53,'Fixed O&M'!$C$4:$AU$48,ROW('Fixed O&M'!$B$21)-ROW('Fixed O&M'!$B$4)+1,FALSE)*'Resource Options'!$J$22*1000 -> 1230242.35 | AK58: =HLOOKUP(AK53,'Fixed O&M'!$C$4:$AU$48,ROW('Fixed O&M'!$B$21)-ROW('Fixed O&M'!$B$4)+1,FALSE)*'Resource Options'!$J$22*1000 -> 1254847.197 | AL58: =HLOOKUP(AL53,'Fixed O&M'!$C$4:$AU$48,ROW('Fixed O&M'!$B$21)-ROW('Fixed O&M'!$B$4)+1,FALSE)*'Resource Options'!$J$22*1000 -> 1279944.141 | AM58: =HLOOKUP(AM53,'Fixed O&M'!$C$4:$AU$48,ROW('Fixed O&M'!$B$21)-ROW('Fixed O&M'!$B$4)+1,FALSE)*'Resource Options'!$J$22*1000 -> 1305543.024 | AN58: =HLOOKUP(AN53,'Fixed O&M'!$C$4:$AU$48,ROW('Fixed O&M'!$B$21)-ROW('Fixed O&M'!$B$4)+1,FALSE)*'Resource Options'!$J$22*1000 -> 1331653.884 | AO58: =HLOOKUP(AO53,'Fixed O&M'!$C$4:$AU$48,ROW('Fixed O&M'!$B$21)-ROW('Fixed O&M'!$B$4)+1,FALSE)*'Resource Options'!$J$22*1000 -> 1358286.962 | AP58: =HLOOKUP(AP53,'Fixed O&M'!$C$4:$AU$48,ROW('Fixed O&M'!$B$21)-ROW('Fixed O&M'!$B$4)+1,FALSE)*'Resource Options'!$J$22*1000 -> 1385452.701 | AQ58: =HLOOKUP(AQ53,'Fixed O&M'!$C$4:$AU$48,ROW('Fixed O&M'!$B$21)-ROW('Fixed O&M'!$B$4)+1,FALSE)*'Resource Options'!$J$22*1000 -> 1413161.755 | AR58: =HLOOKUP(AR53,'Fixed O&M'!$C$4:$AU$48,ROW('Fixed O&M'!$B$21)-ROW('Fixed O&M'!$B$4)+1,FALSE)*'Resource Options'!$J$22*1000 -> 1441424.99 | AS58: =HLOOKUP(AS53,'Fixed O&M'!$C$4:$AU$48,ROW('Fixed O&M'!$B$21)-ROW('Fixed O&M'!$B$4)+1,FALSE)*'Resource Options'!$J$22*1000 -> 1470253.49 | AT58: =HLOOKUP(AT53,'Fixed O&M'!$C$4:$AU$48,ROW('Fixed O&M'!$B$21)-ROW('Fixed O&M'!$B$4)+1,FALSE)*'Resource Options'!$J$22*1000 -> 1499658.56 | AU58: =HLOOKUP(AU53,'Fixed O&M'!$C$4:$AU$48,ROW('Fixed O&M'!$B$21)-ROW('Fixed O&M'!$B$4)+1,FALSE)*'Resource Options'!$J$22*1000 -> 1529651.731 | AV58: =HLOOKUP(AV53,'Fixed O&M'!$C$4:$AU$48,ROW('Fixed O&M'!$B$21)-ROW('Fixed O&M'!$B$4)+1,FALSE)*'Resource Options'!$J$22*1000 -> 1560244.766 | AW58: =HLOOKUP(AW53,'Fixed O&M'!$C$4:$AU$48,ROW('Fixed O&M'!$B$21)-ROW('Fixed O&M'!$B$4)+1,FALSE)*'Resource Options'!$J$22*1000 -> 1591449.661 | AX58: =HLOOKUP(AX53,'Fixed O&M'!$C$4:$AU$48,ROW('Fixed O&M'!$B$21)-ROW('Fixed O&M'!$B$4)+1,FALSE)*'Resource Options'!$J$22*1000 -> 1623278.654 | BD58: Fixed O&M | BF58: =HLOOKUP(BF53,'Fixed O&M'!$C$4:$AU$48,ROW('Fixed O&M'!$B$19)-ROW('Fixed O&M'!$B$4)+1,FALSE)*'Resource Options'!$J$21*1000 -> 74284.56 | BG58: =HLOOKUP(BG53,'Fixed O&M'!$C$4:$AU$48,ROW('Fixed O&M'!$B$19)-ROW('Fixed O&M'!$B$4)+1,FALSE)*'Resource Options'!$J$21*1000 -> 75770.2512 | BH58: =HLOOKUP(BH53,'Fixed O&M'!$C$4:$AU$48,ROW('Fixed O&M'!$B$19)-ROW('Fixed O&M'!$B$4)+1,FALSE)*'Resource Options'!$J$21*1000 -> 77285.65622 | BI58: =HLOOKUP(BI53,'Fixed O&M'!$C$4:$AU$48,ROW('Fixed O&M'!$B$19)-ROW('Fixed O&M'!$B$4)+1,FALSE)*'Resource Options'!$J$21*1000 -> 78831.36935 | BJ58: =HLOOKUP(BJ53,'Fixed O&M'!$C$4:$AU$48,ROW('Fixed O&M'!$B$19)-ROW('Fixed O&M'!$B$4)+1,FALSE)*'Resource Options'!$J$21*1000 -> 80407.99674 | BK58: =HLOOKUP(BK53,'Fixed O&M'!$C$4:$AU$48,ROW('Fixed O&M'!$B$19)-ROW('Fixed O&M'!$B$4)+1,FALSE)*'Resource Options'!$J$21*1000 -> 82016.15667 | BL58: =HLOOKUP(BL53,'Fixed O&M'!$C$4:$AU$48,ROW('Fixed O&M'!$B$19)-ROW('Fixed O&M'!$B$4)+1,FALSE)*'Resource Options'!$J$21*1000 -> 83656.4798 | BM58: =HLOOKUP(BM53,'Fixed O&M'!$C$4:$AU$48,ROW('Fixed O&M'!$B$19)-ROW('Fixed O&M'!$B$4)+1,FALSE)*'Resource Options'!$J$21*1000 -> 85329.6094 | BN58: =HLOOKUP(BN53,'Fixed O&M'!$C$4:$AU$48,ROW('Fixed O&M'!$B$19)-ROW('Fixed O&M'!$B$4)+1,FALSE)*'Resource Options'!$J$21*1000 -> 87036.20159 | BO58: =HLOOKUP(BO53,'Fixed O&M'!$C$4:$AU$48,ROW('Fixed O&M'!$B$19)-ROW('Fixed O&M'!$B$4)+1,FALSE)*'Resource Options'!$J$21*1000 -> 88776.92562 | BP58: =HLOOKUP(BP53,'Fixed O&M'!$C$4:$AU$48,ROW('Fixed O&M'!$B$19)-ROW('Fixed O&M'!$B$4)+1,FALSE)*'Resource Options'!$J$21*1000 -> 90552.46413 | BQ58: =HLOOKUP(BQ53,'Fixed O&M'!$C$4:$AU$48,ROW('Fixed O&M'!$B$19)-ROW('Fixed O&M'!$B$4)+1,FALSE)*'Resource Options'!$J$21*1000 -> 92363.51341 | BR58: =HLOOKUP(BR53,'Fixed O&M'!$C$4:$AU$48,ROW('Fixed O&M'!$B$19)-ROW('Fixed O&M'!$B$4)+1,FALSE)*'Resource Options'!$J$21*1000 -> 94210.78368 | BS58: =HLOOKUP(BS53,'Fixed O&M'!$C$4:$AU$48,ROW('Fixed O&M'!$B$19)-ROW('Fixed O&M'!$B$4)+1,FALSE)*'Resource Options'!$J$21*1000 -> 96094.99936 | BT58: =HLOOKUP(BT53,'Fixed O&M'!$C$4:$AU$48,ROW('Fixed O&M'!$B$19)-ROW('Fixed O&M'!$B$4)+1,FALSE)*'Resource Options'!$J$21*1000 -> 98016.89934 | BU58: =HLOOKUP(BU53,'Fixed O&M'!$C$4:$AU$48,ROW('Fixed O&M'!$B$19)-ROW('Fixed O&M'!$B$4)+1,FALSE)*'Resource Options'!$J$21*1000 -> 99977.23733 | BV58: =HLOOKUP(BV53,'Fixed O&M'!$C$4:$AU$48,ROW('Fixed O&M'!$B$19)-ROW('Fixed O&M'!$B$4)+1,FALSE)*'Resource Options'!$J$21*1000 -> 101976.7821 | BW58: =HLOOKUP(BW53,'Fixed O&M'!$C$4:$AU$48,ROW('Fixed O&M'!$B$19)-ROW('Fixed O&M'!$B$4)+1,FALSE)*'Resource Options'!$J$21*1000 -> 104016.3177 | BX58: =HLOOKUP(BX53,'Fixed O&M'!$C$4:$AU$48,ROW('Fixed O&M'!$B$19)-ROW('Fixed O&M'!$B$4)+1,FALSE)*'Resource Options'!$J$21*1000 -> 106096.6441 | BY58: =HLOOKUP(BY53,'Fixed O&M'!$C$4:$AU$48,ROW('Fixed O&M'!$B$19)-ROW('Fixed O&M'!$B$4)+1,FALSE)*'Resource Options'!$J$21*1000 -> 108218.577
B59: Variable O&M | D59: =HLOOKUP(D53,'Variable O&M'!$B$4:$AT$48,ROW('Variable O&M'!$A$20)-ROW('Variable O&M'!$A$4)+1,FALSE)*D54 -> 0 | E59: =HLOOKUP(E53,'Variable O&M'!$B$4:$AT$48,ROW('Variable O&M'!$A$20)-ROW('Variable O&M'!$A$4)+1,FALSE)*E54 -> 0 | F59: =HLOOKUP(F53,'Variable O&M'!$B$4:$AT$48,ROW('Variable O&M'!$A$20)-ROW('Variable O&M'!$A$4)+1,FALSE)*F54 -> 0 | G59: =HLOOKUP(G53,'Variable O&M'!$B$4:$AT$48,ROW('Variable O&M'!$A$20)-ROW('Variable O&M'!$A$4)+1,FALSE)*G54 -> 0 | H59: =HLOOKUP(H53,'Variable O&M'!$B$4:$AT$48,ROW('Variable O&M'!$A$20)-ROW('Variable O&M'!$A$4)+1,FALSE)*H54 -> 0 | I59: =HLOOKUP(I53,'Variable O&M'!$B$4:$AT$48,ROW('Variable O&M'!$A$20)-ROW('Variable O&M'!$A$4)+1,FALSE)*I54 -> 0 | J59: =HLOOKUP(J53,'Variable O&M'!$B$4:$AT$48,ROW('Variable O&M'!$A$20)-ROW('Variable O&M'!$A$4)+1,FALSE)*J54 -> 0 | K59: =HLOOKUP(K53,'Variable O&M'!$B$4:$AT$48,ROW('Variable O&M'!$A$20)-ROW('Variable O&M'!$A$4)+1,FALSE)*K54 -> 0 | L59: =HLOOKUP(L53,'Variable O&M'!$B$4:$AT$48,ROW('Variable O&M'!$A$20)-ROW('Variable O&M'!$A$4)+1,FALSE)*L54 -> 0 | M59: =HLOOKUP(M53,'Variable O&M'!$B$4:$AT$48,ROW('Variable O&M'!$A$20)-ROW('Variable O&M'!$A$4)+1,FALSE)*M54 -> 0 | N59: =HLOOKUP(N53,'Variable O&M'!$B$4:$AT$48,ROW('Variable O&M'!$A$20)-ROW('Variable O&M'!$A$4)+1,FALSE)*N54 -> 0 | O59: =HLOOKUP(O53,'Variable O&M'!$B$4:$AT$48,ROW('Variable O&M'!$A$20)-ROW('Variable O&M'!$A$4)+1,FALSE)*O54 -> 0 | P59: =HLOOKUP(P53,'Variable O&M'!$B$4:$AT$48,ROW('Variable O&M'!$A$20)-ROW('Variable O&M'!$A$4)+1,FALSE)*P54 -> 0 | Q59: =HLOOKUP(Q53,'Variable O&M'!$B$4:$AT$48,ROW('Variable O&M'!$A$20)-ROW('Variable O&M'!$A$4)+1,FALSE)*Q54 -> 0 | R59: =HLOOKUP(R53,'Variable O&M'!$B$4:$AT$48,ROW('Variable O&M'!$A$20)-ROW('Variable O&M'!$A$4)+1,FALSE)*R54 -> 0 | S59: =HLOOKUP(S53,'Variable O&M'!$B$4:$AT$48,ROW('Variable O&M'!$A$20)-ROW('Variable O&M'!$A$4)+1,FALSE)*S54 -> 0 | T59: =HLOOKUP(T53,'Variable O&M'!$B$4:$AT$48,ROW('Variable O&M'!$A$20)-ROW('Variable O&M'!$A$4)+1,FALSE)*T54 -> 0 | U59: =HLOOKUP(U53,'Variable O&M'!$B$4:$AT$48,ROW('Variable O&M'!$A$20)-ROW('Variable O&M'!$A$4)+1,FALSE)*U54 -> 0 | V59: =HLOOKUP(V53,'Variable O&M'!$B$4:$AT$48,ROW('Variable O&M'!$A$20)-ROW('Variable O&M'!$A$4)+1,FALSE)*V54 -> 0 | W59: =HLOOKUP(W53,'Variable O&M'!$B$4:$AT$48,ROW('Variable O&M'!$A$20)-ROW('Variable O&M'!$A$4)+1,FALSE)*W54 -> 0 | AC59: Variable O&M | AE59: =HLOOKUP(AE53,'Variable O&M'!$B$4:$AT$48,ROW('Variable O&M'!$A$21)-ROW('Variable O&M'!$A$4)+1,FALSE)*AE54 -> 0 | AF59: =HLOOKUP(AF53,'Variable O&M'!$B$4:$AT$48,ROW('Variable O&M'!$A$21)-ROW('Variable O&M'!$A$4)+1,FALSE)*AF54 -> 0 | AG59: =HLOOKUP(AG53,'Variable O&M'!$B$4:$AT$48,ROW('Variable O&M'!$A$21)-ROW('Variable O&M'!$A$4)+1,FALSE)*AG54 -> 0 | AH59: =HLOOKUP(AH53,'Variable O&M'!$B$4:$AT$48,ROW('Variable O&M'!$A$21)-ROW('Variable O&M'!$A$4)+1,FALSE)*AH54 -> 0 | AI59: =HLOOKUP(AI53,'Variable O&M'!$B$4:$AT$48,ROW('Variable O&M'!$A$21)-ROW('Variable O&M'!$A$4)+1,FALSE)*AI54 -> 0 | AJ59: =HLOOKUP(AJ53,'Variable O&M'!$B$4:$AT$48,ROW('Variable O&M'!$A$21)-ROW('Variable O&M'!$A$4)+1,FALSE)*AJ54 -> 0 | AK59: =HLOOKUP(AK53,'Variable O&M'!$B$4:$AT$48,ROW('Variable O&M'!$A$21)-ROW('Variable O&M'!$A$4)+1,FALSE)*AK54 -> 0 | AL59: =HLOOKUP(AL53,'Variable O&M'!$B$4:$AT$48,ROW('Variable O&M'!$A$21)-ROW('Variable O&M'!$A$4)+1,FALSE)*AL54 -> 0 | AM59: =HLOOKUP(AM53,'Variable O&M'!$B$4:$AT$48,ROW('Variable O&M'!$A$21)-ROW('Variable O&M'!$A$4)+1,FALSE)*AM54 -> 0 | AN59: =HLOOKUP(AN53,'Variable O&M'!$B$4:$AT$48,ROW('Variable O&M'!$A$21)-ROW('Variable O&M'!$A$4)+1,FALSE)*AN54 -> 0 | AO59: =HLOOKUP(AO53,'Variable O&M'!$B$4:$AT$48,ROW('Variable O&M'!$A$21)-ROW('Variable O&M'!$A$4)+1,FALSE)*AO54 -> 0 | AP59: =HLOOKUP(AP53,'Variable O&M'!$B$4:$AT$48,ROW('Variable O&M'!$A$21)-ROW('Variable O&M'!$A$4)+1,FALSE)*AP54 -> 0 | AQ59: =HLOOKUP(AQ53,'Variable O&M'!$B$4:$AT$48,ROW('Variable O&M'!$A$21)-ROW('Variable O&M'!$A$4)+1,FALSE)*AQ54 -> 0 | AR59: =HLOOKUP(AR53,'Variable O&M'!$B$4:$AT$48,ROW('Variable O&M'!$A$21)-ROW('Variable O&M'!$A$4)+1,FALSE)*AR54 -> 0 | AS59: =HLOOKUP(AS53,'Variable O&M'!$B$4:$AT$48,ROW('Variable O&M'!$A$21)-ROW('Variable O&M'!$A$4)+1,FALSE)*AS54 -> 0 | AT59: =HLOOKUP(AT53,'Variable O&M'!$B$4:$AT$48,ROW('Variable O&M'!$A$21)-ROW('Variable O&M'!$A$4)+1,FALSE)*AT54 -> 0 | AU59: =HLOOKUP(AU53,'Variable O&M'!$B$4:$AT$48,ROW('Variable O&M'!$A$21)-ROW('Variable O&M'!$A$4)+1,FALSE)*AU54 -> 0 | AV59: =HLOOKUP(AV53,'Variable O&M'!$B$4:$AT$48,ROW('Variable O&M'!$A$21)-ROW('Variable O&M'!$A$4)+1,FALSE)*AV54 -> 0 | AW59: =HLOOKUP(AW53,'Variable O&M'!$B$4:$AT$48,ROW('Variable O&M'!$A$21)-ROW('Variable O&M'!$A$4)+1,FALSE)*AW54 -> 0 | AX59: =HLOOKUP(AX53,'Variable O&M'!$B$4:$AT$48,ROW('Variable O&M'!$A$21)-ROW('Variable O&M'!$A$4)+1,FALSE)*AX54 -> 0 | BD59: Variable O&M | BF59: =HLOOKUP(BF53,'Variable O&M'!$B$4:$AT$48,ROW('Variable O&M'!$A$19)-ROW('Variable O&M'!$A$4)+1,FALSE)*BF54 -> 0 | BG59: =HLOOKUP(BG53,'Variable O&M'!$B$4:$AT$48,ROW('Variable O&M'!$A$19)-ROW('Variable O&M'!$A$4)+1,FALSE)*BG54 -> 0 | BH59: =HLOOKUP(BH53,'Variable O&M'!$B$4:$AT$48,ROW('Variable O&M'!$A$19)-ROW('Variable O&M'!$A$4)+1,FALSE)*BH54 -> 0 | BI59: =HLOOKUP(BI53,'Variable O&M'!$B$4:$AT$48,ROW('Variable O&M'!$A$19)-ROW('Variable O&M'!$A$4)+1,FALSE)*BI54 -> 0 | BJ59: =HLOOKUP(BJ53,'Variable O&M'!$B$4:$AT$48,ROW('Variable O&M'!$A$19)-ROW('Variable O&M'!$A$4)+1,FALSE)*BJ54 -> 0 | BK59: =HLOOKUP(BK53,'Variable O&M'!$B$4:$AT$48,ROW('Variable O&M'!$A$19)-ROW('Variable O&M'!$A$4)+1,FALSE)*BK54 -> 0 | BL59: =HLOOKUP(BL53,'Variable O&M'!$B$4:$AT$48,ROW('Variable O&M'!$A$19)-ROW('Variable O&M'!$A$4)+1,FALSE)*BL54 -> 0 | BM59: =HLOOKUP(BM53,'Variable O&M'!$B$4:$AT$48,ROW('Variable O&M'!$A$19)-ROW('Variable O&M'!$A$4)+1,FALSE)*BM54 -> 0 | BN59: =HLOOKUP(BN53,'Variable O&M'!$B$4:$AT$48,ROW('Variable O&M'!$A$19)-ROW('Variable O&M'!$A$4)+1,FALSE)*BN54 -> 0 | BO59: =HLOOKUP(BO53,'Variable O&M'!$B$4:$AT$48,ROW('Variable O&M'!$A$19)-ROW('Variable O&M'!$A$4)+1,FALSE)*BO54 -> 0 | BP59: =HLOOKUP(BP53,'Variable O&M'!$B$4:$AT$48,ROW('Variable O&M'!$A$19)-ROW('Variable O&M'!$A$4)+1,FALSE)*BP54 -> 0 | BQ59: =HLOOKUP(BQ53,'Variable O&M'!$B$4:$AT$48,ROW('Variable O&M'!$A$19)-ROW('Variable O&M'!$A$4)+1,FALSE)*BQ54 -> 0 | BR59: =HLOOKUP(BR53,'Variable O&M'!$B$4:$AT$48,ROW('Variable O&M'!$A$19)-ROW('Variable O&M'!$A$4)+1,FALSE)*BR54 -> 0 | BS59: =HLOOKUP(BS53,'Variable O&M'!$B$4:$AT$48,ROW('Variable O&M'!$A$19)-ROW('Variable O&M'!$A$4)+1,FALSE)*BS54 -> 0 | BT59: =HLOOKUP(BT53,'Variable O&M'!$B$4:$AT$48,ROW('Variable O&M'!$A$19)-ROW('Variable O&M'!$A$4)+1,FALSE)*BT54 -> 0 | BU59: =HLOOKUP(BU53,'Variable O&M'!$B$4:$AT$48,ROW('Variable O&M'!$A$19)-ROW('Variable O&M'!$A$4)+1,FALSE)*BU54 -> 0 | BV59: =HLOOKUP(BV53,'Variable O&M'!$B$4:$AT$48,ROW('Variable O&M'!$A$19)-ROW('Variable O&M'!$A$4)+1,FALSE)*BV54 -> 0 | BW59: =HLOOKUP(BW53,'Variable O&M'!$B$4:$AT$48,ROW('Variable O&M'!$A$19)-ROW('Variable O&M'!$A$4)+1,FALSE)*BW54 -> 0 | BX59: =HLOOKUP(BX53,'Variable O&M'!$B$4:$AT$48,ROW('Variable O&M'!$A$19)-ROW('Variable O&M'!$A$4)+1,FALSE)*BX54 -> 0 | BY59: =HLOOKUP(BY53,'Variable O&M'!$B$4:$AT$48,ROW('Variable O&M'!$A$19)-ROW('Variable O&M'!$A$4)+1,FALSE)*BY54 -> 0
B60: B&O Tax | D60: =D56*0.00275 -> 20665.4938 | E60: =E56*0.00275 -> 20562.16633 | F60: 20459.3555 | G60: 20357.05872 | H60: 20255.27343 | I60: 20153.99706 | J60: 20053.22708 | K60: 19952.96094 | L60: 19853.19614 | M60: 19753.93016 | N60: 19655.16051 | O60: 19556.8847 | P60: 19459.10028 | Q60: 19361.80478 | R60: 19264.99576 | S60: 19168.67078 | T60: 19072.82742 | U60: 18977.46329 | V60: 18882.57597 | W60: 18788.16309 | AC60: B&O Tax | AE60: 0 | AF60: 0 | AG60: 0 | AH60: 0 | AI60: 0 | AJ60: 0 | AK60: 0 | AL60: 0 | AM60: 0 | AN60: 0 | AO60: 0 | AP60: 0 | AQ60: 0 | AR60: 0 | AS60: 0 | AT60: 0 | AU60: 0 | AV60: 0 | AW60: 0 | AX60: 0 | BD60: B&O Tax | BF60: =BF56*0.00275 -> 1878.635007 | BG60: =BG56*0.00275 -> 1869.241832 | BH60: 1859.895623 | BI60: 1850.596145 | BJ60: 1841.343164 | BK60: 1832.136448 | BL60: 1822.975766 | BM60: 1813.860887 | BN60: 1804.791582 | BO60: 1795.767625 | BP60: 1786.788786 | BQ60: 1777.854843 | BR60: 1768.965568 | BS60: 1760.12074 | BT60: 1751.320137 | BU60: 1742.563536 | BV60: 1733.850718 | BW60: 1725.181465 | BX60: 1716.555557 | BY60: 1707.97278
B61: Property Tax | D61: =C83*$B$8 -> 1004814.885 | E61: =D83*$B$8 -> 948827.0823 | F61: 895958.8927 | G61: 846036.4933 | H61: 798895.746 | I61: 754381.6585 | J61: 712347.8746 | K61: 672656.193 | L61: 635176.1128 | M61: 599784.4047 | N61: 566364.7056 | O61: 534807.136 | P61: 505007.9391 | Q61: 476869.1392 | R61: 450298.2197 | S61: 425207.819 | T61: 401515.4434 | U61: 379143.1957 | V61: 358017.5188 | W61: 338068.9545 | AC61: Property Tax | AE61: =AD83*$B$8 -> 1004814.885 | AF61: =AE83*$B$8 -> 948827.0823 | AG61: 895958.8927 | AH61: 846036.4933 | AI61: 798895.746 | AJ61: 754381.6585 | AK61: 712347.8746 | AL61: 672656.193 | AM61: 635176.1128 | AN61: 599784.4047 | AO61: 566364.7056 | AP61: 534807.136 | AQ61: 505007.9391 | AR61: 476869.1392 | AS61: 450298.2197 | AT61: 425207.819 | AU61: 401515.4434 | AV61: 379143.1957 | AW61: 358017.5188 | AX61: 338068.9545 | BD61: Property Tax | BF61: =BE83*$B$8 -> 96713.43271 | BG61: =BF83*$B$8 -> 91324.60667 | BH61: 86236.04342 | BI61: 81431.01248 | BJ61: 76893.71555 | BK61: 72609.23463 | BL61: 68563.48293 | BM61: 64743.15857 | BN61: 61135.70086 | BO61: 57729.24895 | BP61: 54512.60291 | BQ61: 51475.18684 | BR61: 48607.01414 | BS61: 45898.65465 | BT61: 43341.20364 | BU61: 40926.25258 | BV61: 38645.86143 | BW61: 36492.53258 | BX61: 34459.18618 | BY61: 32539.13687
B62: Total Operating Costs | D62: =SUM(D58:D61) -> 2139748.779 | E62: 2105943.017 | F62: 2075703.092 | G62: 2048864.092 | H62: 2025270.97 | I62: 2004778.006 | J62: 1987248.299 | K62: 1972553.295 | L62: 1960572.333 | M62: 1951192.219 | N62: 1944306.828 | O62: 1939816.722 | P62: 1937628.795 | Q62: 1937655.934 | R62: 1939816.706 | S62: 1944035.05 | T62: 1950240.002 | U62: 1958365.425 | V62: 1968349.756 | W62: 1980135.772 | AC62: Total Operating Costs | AE62: =SUM(AE58:AE61) -> 2119083.285 | AF62: 2085380.85 | AG62: 2055243.736 | AH62: 2028507.033 | AI62: 2005015.697 | AJ62: 1984624.009 | AK62: 1967195.072 | AL62: 1952600.334 | AM62: 1940719.137 | AN62: 1931438.289 | AO62: 1924651.668 | AP62: 1920259.837 | AQ62: 1918169.694 | AR62: 1918294.13 | AS62: 1920551.71 | AT62: 1924866.379 | AU62: 1931167.175 | AV62: 1939387.961 | AW62: 1949467.18 | AX62: 1961347.609 | BD62: Total Operating Costs | BF62: =SUM(BF58:BF61) -> 172876.6277 | BG62: 168964.0997 | BH62: 165381.5953 | BI62: 162112.978 | BJ62: 159143.0555 | BK62: 156457.5277 | BL62: 154042.9385 | BM62: 151886.6289 | BN62: 149976.694 | BO62: 148301.9422 | BP62: 146851.8558 | BQ62: 145616.5551 | BR62: 144586.7634 | BS62: 143753.7747 | BT62: 143109.4231 | BU62: 142646.0534 | BV62: 142356.4942 | BW62: 142234.0318 | BX62: 142272.3858 | BY62: 142465.6866
B64: EBITDA | D64: =D56-D62 -> 5374976.24 | E64: =E56-E62 -> 5371208.377 | F64: 5364062.545 | G64: 5353702.717 | H64: 5340283.004 | I64: 5323948.199 | J64: 5304834.275 | K64: 5283068.866 | L64: 5258771.717 | M64: 5232055.111 | N64: 5203024.265 | O64: 5171777.716 | P64: 5138407.671 | Q64: 5103000.349 | R64: 5065636.296 | S64: 5026390.687 | T64: 4985333.606 | U64: 4942530.315 | V64: 4898041.506 | W64: 4851923.533 | AC64: EBITDA | AE64: =AE56-AE62 -> 5345419.322 | AF64: =AF56-AF62 -> 5341799.244 | AG64: 5334800.458 | AH64: 5324586.94 | AI64: 5311312.806 | AJ64: 5295122.852 | AK64: 5276153.055 | AL64: 5254531.052 | AM64: 5230376.592 | AN64: 5203801.961 | AO64: 5174912.382 | AP64: 5143806.392 | AQ64: 5110576.203 | AR64: 5075308.039 | AS64: 5038082.448 | AT64: 4998974.608 | AU64: 4958054.607 | AV64: 4915387.711 | AW64: 4871034.614 | AX64: 4825051.677 | BD64: EBITDA | BF64: =BF56-BF62 -> 510263.3748 | BG64: =BG56-BG62 -> 510760.2028 | BH64: 510944.0857 | BI64: 510831.0746 | BJ64: 510436.2768 | BK64: 509773.9079 | BL64: 508857.34 | BM64: 507699.1482 | BN64: 506311.1542 | BO64: 504704.4667 | BP64: 502889.5211 | BQ64: 500876.1149 | BR64: 498673.4433 | BS64: 496290.1309 | BT64: 493734.263 | BU64: 491013.4142 | BV64: 488134.6761 | BW64: 485104.6827 | BX64: 481929.6351 | BY64: 478615.3242
B65: Before Tax Earnings | D65: =D64-D84-D74 -> -14146143.19 | E65: =E64-E66-E84 -> -21959756.5 | F65: -11034516.38 | G65: -4485444.641 | H65: -4498864.353 | I65: 404374.5207 | J65: 5304834.275 | K65: 5283068.866 | L65: 5258771.717 | M65: 5232055.111 | N65: 5203024.265 | O65: 5171777.716 | P65: 5138407.671 | Q65: 5103000.349 | R65: 5065636.296 | S65: 5026390.687 | T65: 4985333.606 | U65: 4942530.315 | V65: 4898041.506 | W65: 4851923.533 | AC65: Before Tax Earnings | AE65: =AE64-AE84-AE74 -> -14455386.73 | AF65: =AF64-AF66-AF84 -> -22453909.89 | AG65: -11342625.02 | AH65: -4681868.35 | AI65: -4695142.483 | AJ65: 291895.2074 | AK65: 5276153.055 | AL65: 5254531.052 | AM65: 5230376.592 | AN65: 5203801.961 | AO65: 5174912.382 | AP65: 5143806.392 | AQ65: 5110576.203 | AR65: 5075308.039 | AS65: 5038082.448 | AT65: 4998974.608 | AU65: 4958054.607 | AV65: 4915387.711 | AW65: 4871034.614 | AX65: 4825051.677 | BD65: Before Tax Earnings | BF65: =BF64-BF84-BF74 -> -1368644.37 | BG65: =BG64-BG66-BG84 -> -2119845.167 | BH65: -1067419.136 | BI65: -436186.8585 | BJ65: -436581.6563 | BK65: 36264.94132 | BL65: 508857.34 | BM65: 507699.1482 | BN65: 506311.1542 | BO65: 504704.4667 | BP65: 502889.5211 | BQ65: 500876.1149 | BR65: 498673.4433 | BS65: 496290.1309 | BT65: 493734.263 | BU65: 491013.4142 | BV65: 488134.6761 | BW65: 485104.6827 | BX65: 481929.6351 | BY65: 478615.3242
B66: ITC | D66: =-C70*0.3 -> 30144446.56 | E66: 0 | F66: 0 | G66: 0 | H66: 0 | I66: 0 | J66: 0 | K66: 0 | L66: 0 | M66: 0 | N66: 0 | O66: 0 | P66: 0 | Q66: 0 | R66: 0 | S66: 0 | T66: 0 | U66: 0 | V66: 0 | W66: 0 | AC66: ITC | AE66: =-AD70*0.3 -> 30144446.56 | AF66: 0 | AG66: 0 | AH66: 0 | AI66: 0 | AJ66: 0 | AK66: 0 | AL66: 0 | AM66: 0 | AN66: 0 | AO66: 0 | AP66: 0 | AQ66: 0 | AR66: 0 | AS66: 0 | AT66: 0 | AU66: 0 | AV66: 0 | AW66: 0 | AX66: 0 | BD66: ITC | BF66: =-BE70*0.3 -> 2901402.981 | BG66: 0 | BH66: 0 | BI66: 0 | BJ66: 0 | BK66: 0 | BL66: 0 | BM66: 0 | BN66: 0 | BO66: 0 | BP66: 0 | BQ66: 0 | BR66: 0 | BS66: 0 | BT66: 0 | BU66: 0 | BV66: 0 | BW66: 0 | BX66: 0 | BY66: 0
B67: Federal Tax | D67: =D65*$B$6-D66 -> -33115136.63 | E67: -4611548.866 | F67: -2317248.44 | G67: -941943.3745 | H67: -944761.5141 | I67: 84918.64934 | J67: 1114015.198 | K67: 1109444.462 | L67: 1104342.061 | M67: 1098731.573 | N67: 1092635.096 | O67: 1086073.32 | P67: 1079065.611 | Q67: 1071630.073 | R67: 1063783.622 | S67: 1055542.044 | T67: 1046920.057 | U67: 1037931.366 | V67: 1028588.716 | W67: 1018903.942 | AC67: Federal Tax | AE67: =AE65*$B$6-AE66 -> -33180077.77 | AF67: -4715321.078 | AG67: -2381951.255 | AH67: -983192.3535 | AI67: -985979.9215 | AJ67: 61297.99356 | AK67: 1107992.142 | AL67: 1103451.521 | AM67: 1098379.084 | AN67: 1092798.412 | AO67: 1086731.6 | AP67: 1080199.342 | AQ67: 1073221.003 | AR67: 1065814.688 | AS67: 1057997.314 | AT67: 1049784.668 | AU67: 1041191.467 | AV67: 1032231.419 | AW67: 1022917.269 | AX67: 1013260.852 | BD67: Federal Tax | BF67: =BF65*$B$6-BF66 -> -3188818.299 | BG67: -445167.4851 | BH67: -224158.0186 | BI67: -91599.2403 | BJ67: -91682.14782 | BK67: 7615.637676 | BL67: 106860.0414 | BM67: 106616.8211 | BN67: 106325.3424 | BO67: 105987.938 | BP67: 105606.7994 | BQ67: 105183.9841 | BR67: 104721.4231 | BS67: 104220.9275 | BT67: 103684.1952 | BU67: 103112.817 | BV67: 102508.282 | BW67: 101871.9834 | BX67: 101205.2234 | BY67: 100509.2181
A70: =IRR(C70:X70,0.1) -> 0.06 | B70: Free Cash Flow | C70: =-HLOOKUP(D53,'Capital Costs'!$B$163:$CA$207,ROW('Capital Costs'!$A$179)-ROW('Capital Costs'!$A$163)+1,FALSE)*1000000*(1+AFUDC!$Y$21) -> -100481488.5 | D70: =D64-D67 -> 38490112.87 | E70: =E64-E67 -> 9982757.243 | F70: 7681310.986 | G70: 6295646.091 | H70: 6285044.518 | I70: 5239029.55 | J70: 4190819.077 | K70: 4173624.404 | L70: 4154429.657 | M70: 4133323.538 | N70: 4110389.17 | O70: 4085704.396 | P70: 4059342.06 | Q70: 4031370.276 | R70: 4001852.674 | S70: 3970848.643 | T70: 3938413.549 | U70: 3904598.949 | V70: 3869452.789 | W70: 3833019.591 | X70: =C70*-0.3 -> 30144446.56 | AB70: =IRR(AD70:AY70,0.1) -> 0.06 | AC70: Free Cash Flow | AD70: =-HLOOKUP(AE53,'Capital Costs'!$B$163:$CA$207,ROW('Capital Costs'!$A$180)-ROW('Capital Costs'!$A$163)+1,FALSE)*1000000*(1+AFUDC!$Y$22) -> -100481488.5 | AE70: =AE64-AE67 -> 38525497.1 | AF70: 10057120.32 | AG70: 7716751.713 | AH70: 6307779.293 | AI70: 6297292.728 | AJ70: 5233824.859 | AK70: 4168160.913 | AL70: 4151079.531 | AM70: 4131997.508 | AN70: 4111003.549 | AO70: 4088180.781 | AP70: 4063607.049 | AQ70: 4037355.201 | AR70: 4009493.351 | AS70: 3980085.134 | AT70: 3949189.94 | AU70: 3916863.14 | AV70: 3883156.292 | AW70: 3848117.345 | AX70: 3811790.824 | AY70: =AD70*-0.3 -> 30144446.56 | BC70: =IRR(BE70:BZ70,0.1) -> 0.06 | BD70: Free Cash Flow | BE70: =-HLOOKUP(BF53,'Capital Costs'!$B$163:$CA$207,ROW('Capital Costs'!$A$178)-ROW('Capital Costs'!$A$163)+1,FALSE)*1000000*(1+AFUDC!$Y$20) -> -9671343.271 | BF70: =BF64-BF67 -> 3699081.674 | BG70: 955927.6879 | BH70: 735102.1043 | BI70: 602430.3149 | BJ70: 602118.4247 | BK70: 502158.2702 | BL70: 401997.2986 | BM70: 401082.3271 | BN70: 399985.8118 | BO70: 398716.5287 | BP70: 397282.7216 | BQ70: 395692.1308 | BR70: 393952.0202 | BS70: 392069.2034 | BT70: 390050.0677 | BU70: 387900.5972 | BV70: 385626.3941 | BW70: 383232.6993 | BX70: 380724.4117 | BY70: 378106.1061 | BZ70: =BE70*-0.3 -> 2901402.981
A71: =IRR(C71:X71,0.1) -> 0.08084438902 | B71: ROE | C71: =-C90 -> -8609175.454 | D71: =D70-D74-D76-D85-D66 -> 843816.2678 | E71: 328593.7169 | F71: 322948.5097 | G71: 314764.2449 | H71: 304162.6722 | I71: 291258.1762 | J71: 276158.1761 | K71: 258963.503 | L71: 239768.7556 | M71: 218662.6363 | N71: 195728.2683 | O71: 171043.4943 | P71: 144681.1589 | Q71: 116709.3745 | R71: 87191.7729 | S71: 56187.74164 | T71: 23752.64768 | U71: -10061.95202 | V71: -45208.11179 | W71: -81641.30995 | X71: =X70 -> 30144446.56 | AB71: =IRR(AD71:AY71,0.1) -> 0.0807227973 | AC71: ROE | AD71: =-AD90 -> -8571133.563 | AE71: =AE70-AE74-AE76-AE85-AE66 -> 835500.7624 | AF71: 322658.4539 | AG71: 317129.4127 | AH71: 309060.7332 | AI71: 298574.1678 | AJ71: 285784.1041 | AK71: 270797.9641 | AL71: 253716.5818 | AM71: 234634.5587 | AN71: 213640.6002 | AO71: 190817.8322 | AP71: 166244.1001 | AQ71: 139992.2514 | AR71: 112130.4013 | AS71: 82722.18435 | AT71: 51826.99079 | AU71: 19500.19034 | AV71: -14206.6573 | AW71: -49245.60379 | AX71: -85572.12473 | AY71: =AY70 -> 30144446.56 | BC71: =IRR(BE71:BZ71,0.1) -> 0.08048677841 | BD71: ROE | BE71: =-BE90 -> -828633.1374 | BF71: =BF70-BF74-BF76-BF85-BF66 -> 75625.626 | BG71: 26714.44845 | BH71: 26859.71596 | BI71: 26770.43718 | BJ71: 26458.54697 | BK71: 25935.27549 | BL71: 25211.18682 | BM71: 24296.21534 | BN71: 23199.70004 | BO71: 21930.41698 | BP71: 20496.6099 | BQ71: 18906.01903 | BR71: 17165.90844 | BS71: 15283.09165 | BT71: 13263.95601 | BU71: 11114.48549 | BV71: 8840.282377 | BW71: 6446.587598 | BX71: 3938.299978 | BY71: 1319.99437 | BZ71: =BZ70 -> 2901402.981
B74: Interest | D74: =C77*$B$7 -> 2439266.379 | E74: 2365496.652 | F74: 2288038.44 | G74: 2206707.317 | H74: 2121309.638 | I74: 2031642.075 | J74: 1937491.133 | K74: 1838632.645 | L74: 1734831.232 | M74: 1625839.748 | N74: 1511398.691 | O74: 1391235.58 | P74: 1265064.314 | Q74: 1132584.485 | R74: 993480.6641 | S74: 847421.6523 | T74: 694059.6898 | U74: 533029.6292 | V74: 363948.0656 | W74: 186412.4239 | AC74: Interest | AE74: =AD77*$B$7 -> 2428487.843 | AF74: 2355044.087 | AG74: 2277928.144 | AH74: 2196956.404 | AI74: 2111936.077 | AJ74: 2022664.733 | AK74: 1928929.822 | AL74: 1830508.166 | AM74: 1727165.427 | AN74: 1618655.551 | AO74: 1504720.181 | AP74: 1385088.042 | AQ74: 1259474.297 | AR74: 1127579.864 | AS74: 989090.7102 | AT74: 843677.0983 | AU74: 690992.8057 | AV74: 530674.2986 | AW74: 362339.866 | AX74: 185588.7119 | BD74: Interest | BF74: =BE77*$B$7 -> 234779.3889 | BG74: 227679.0528 | BH74: 220223.6998 | BI74: 212395.5793 | BJ74: 204176.0526 | BK74: 195545.5497 | BL74: 186483.5216 | BM74: 176968.3921 | BN74: 166977.5061 | BO74: 156487.0758 | BP74: 145472.124 | BQ74: 133906.4246 | BR74: 121762.4402 | BS74: 109011.2567 | BT74: 95622.51392 | BU74: 81564.33403 | BV74: 66803.24514 | BW74: 51304.10181 | BX74: 35030.00132 | BY74: 17942.1958
B75: Mortgage Payment | D75: =-PMT($B$7,20,$C89) -> 3914660.901 | E75: =-PMT($B$7,20,$C89) -> 3914660.901 | F75: 3914660.901 | G75: 3914660.901 | H75: 3914660.901 | I75: 3914660.901 | J75: 3914660.901 | K75: 3914660.901 | L75: 3914660.901 | M75: 3914660.901 | N75: 3914660.901 | O75: 3914660.901 | P75: 3914660.901 | Q75: 3914660.901 | R75: 3914660.901 | S75: 3914660.901 | T75: 3914660.901 | U75: 3914660.901 | V75: 3914660.901 | W75: 3914660.901 | AC75: Mortgage Payment | AE75: =-PMT($B$7,20,$AD89) -> 3897362.949 | AF75: 3897362.949 | AG75: 3897362.949 | AH75: 3897362.949 | AI75: 3897362.949 | AJ75: 3897362.949 | AK75: 3897362.949 | AL75: 3897362.949 | AM75: 3897362.949 | AN75: 3897362.949 | AO75: 3897362.949 | AP75: 3897362.949 | AQ75: 3897362.949 | AR75: 3897362.949 | AS75: 3897362.949 | AT75: 3897362.949 | AU75: 3897362.949 | AV75: 3897362.949 | AW75: 3897362.949 | AX75: 3897362.949 | BD75: Mortgage Payment | BF75: =-PMT($B$7,20,$BE89) -> 376786.1117 | BG75: 376786.1117 | BH75: 376786.1117 | BI75: 376786.1117 | BJ75: 376786.1117 | BK75: 376786.1117 | BL75: 376786.1117 | BM75: 376786.1117 | BN75: 376786.1117 | BO75: 376786.1117 | BP75: 376786.1117 | BQ75: 376786.1117 | BR75: 376786.1117 | BS75: 376786.1117 | BT75: 376786.1117 | BU75: 376786.1117 | BV75: 376786.1117 | BW75: 376786.1117 | BX75: 376786.1117 | BY75: 376786.1117
B76: Sinking Fund | D76: =D75-D74 -> 1475394.523 | E76: 1549164.249 | F76: 1626622.461 | G76: 1707953.584 | H76: 1793351.264 | I76: 1883018.827 | J76: 1977169.768 | K76: 2076028.256 | L76: 2179829.669 | M76: 2288821.153 | N76: 2403262.21 | O76: 2523425.321 | P76: 2649596.587 | Q76: 2782076.416 | R76: 2921180.237 | S76: 3067239.249 | T76: 3220601.211 | U76: 3381631.272 | V76: 3550712.836 | W76: 3728248.477 | AC76: Sinking Fund | AE76: =AE75-AE74 -> 1468875.106 | AF76: 1542318.862 | AG76: 1619434.805 | AH76: 1700406.545 | AI76: 1785426.872 | AJ76: 1874698.216 | AK76: 1968433.127 | AL76: 2066854.783 | AM76: 2170197.522 | AN76: 2278707.398 | AO76: 2392642.768 | AP76: 2512274.907 | AQ76: 2637888.652 | AR76: 2769783.085 | AS76: 2908272.239 | AT76: 3053685.851 | AU76: 3206370.143 | AV76: 3366688.651 | AW76: 3535023.083 | AX76: 3711774.237 | BD76: Sinking Fund | BF76: =BF75-BF74 -> 142006.7228 | BG76: 149107.0589 | BH76: 156562.4119 | BI76: 164390.5325 | BJ76: 172610.0591 | BK76: 181240.5621 | BL76: 190302.5902 | BM76: 199817.7197 | BN76: 209808.6057 | BO76: 220299.036 | BP76: 231313.9877 | BQ76: 242879.6871 | BR76: 255023.6715 | BS76: 267774.8551 | BT76: 281163.5978 | BU76: 295221.7777 | BV76: 309982.8666 | BW76: 325482.0099 | BX76: 341756.1104 | BY76: 358843.9159
B77: Mortgage Balance | C77: =C89 -> 48785327.57 | D77: =C77-D76 -> 47309933.05 | E77: 45760768.8 | F77: 44134146.34 | G77: 42426192.75 | H77: 40632841.49 | I77: 38749822.66 | J77: 36772652.9 | K77: 34696624.64 | L77: 32516794.97 | M77: 30227973.82 | N77: 27824711.61 | O77: 25301286.29 | P77: 22651689.7 | Q77: 19869613.28 | R77: 16948433.05 | S77: 13881193.8 | T77: 10660592.58 | U77: 7278961.313 | V77: 3728248.477 | W77: 0 | AC77: Mortgage Balance | AD77: =AD89 -> 48569756.85 | AE77: =AD77-AE76 -> 47100881.75 | AF77: 45558562.89 | AG77: 43939128.08 | AH77: 42238721.54 | AI77: 40453294.66 | AJ77: 38578596.45 | AK77: 36610163.32 | AL77: 34543308.54 | AM77: 32373111.02 | AN77: 30094403.62 | AO77: 27701760.85 | AP77: 25189485.94 | AQ77: 22551597.29 | AR77: 19781814.2 | AS77: 16873541.97 | AT77: 13819856.11 | AU77: 10613485.97 | AV77: 7246797.321 | AW77: 3711774.237 | AX77: 2.374872565e-08 | BD77: Mortgage Balance | BE77: =BE89 -> 4695587.779 | BF77: =BE77-BF76 -> 4553581.056 | BG77: 4404473.997 | BH77: 4247911.585 | BI77: 4083521.053 | BJ77: 3910910.993 | BK77: 3729670.431 | BL77: 3539367.841 | BM77: 3339550.121 | BN77: 3129741.516 | BO77: 2909442.48 | BP77: 2678128.492 | BQ77: 2435248.805 | BR77: 2180225.133 | BS77: 1912450.278 | BT77: 1631286.681 | BU77: 1336064.903 | BV77: 1026082.036 | BW77: 700600.0264 | BX77: 358843.9159 | BY77: 0
B80: Book Depr | D80: =-($C70)/20 -> 5024074.427 | E80: =-($C70)/20 -> 5024074.427 | F80: 5024074.427 | G80: 5024074.427 | H80: 5024074.427 | I80: 5024074.427 | J80: 5024074.427 | K80: 5024074.427 | L80: 5024074.427 | M80: 5024074.427 | N80: 5024074.427 | O80: 5024074.427 | P80: 5024074.427 | Q80: 5024074.427 | R80: 5024074.427 | S80: 5024074.427 | T80: 5024074.427 | U80: 5024074.427 | V80: 5024074.427 | W80: 5024074.427 | AC80: Book Depr | AE80: =-($AD$29)/20 -> 5109505.356 | AF80: =-($AD$29)/20 -> 5109505.356 | AG80: 5109505.356 | AH80: 5109505.356 | AI80: 5109505.356 | AJ80: 5109505.356 | AK80: 5109505.356 | AL80: 5109505.356 | AM80: 5109505.356 | AN80: 5109505.356 | AO80: 5109505.356 | AP80: 5109505.356 | AQ80: 5109505.356 | AR80: 5109505.356 | AS80: 5109505.356 | AT80: 5109505.356 | AU80: 5109505.356 | AV80: 5109505.356 | AW80: 5109505.356 | AX80: 5109505.356 | BD80: Book Depr | BF80: =-($BE$29)/20 -> 491789.8905 | BG80: =-($BE$29)/20 -> 491789.8905 | BH80: 491789.8905 | BI80: 491789.8905 | BJ80: 491789.8905 | BK80: 491789.8905 | BL80: 491789.8905 | BM80: 491789.8905 | BN80: 491789.8905 | BO80: 491789.8905 | BP80: 491789.8905 | BQ80: 491789.8905 | BR80: 491789.8905 | BS80: 491789.8905 | BT80: 491789.8905 | BU80: 491789.8905 | BV80: 491789.8905 | BW80: 491789.8905 | BX80: 491789.8905 | BY80: 491789.8905
B81: Accum Depreciation | D81: =SUM($D80:D80) -> 5024074.427 | E81: =SUM($D80:E80) -> 10048148.85 | F81: =SUM($D80:F80) -> 15072223.28 | G81: =SUM($D80:G80) -> 20096297.71 | H81: =SUM($D80:H80) -> 25120372.13 | I81: =SUM($D80:I80) -> 30144446.56 | J81: =SUM($D80:J80) -> 35168520.99 | K81: =SUM($D80:K80) -> 40192595.41 | L81: =SUM($D80:L80) -> 45216669.84 | M81: =SUM($D80:M80) -> 50240744.27 | N81: =SUM($D80:N80) -> 55264818.69 | O81: =SUM($D80:O80) -> 60288893.12 | P81: =SUM($D80:P80) -> 65312967.55 | Q81: =SUM($D80:Q80) -> 70337041.97 | R81: =SUM($D80:R80) -> 75361116.4 | S81: =SUM($D80:S80) -> 80385190.83 | T81: =SUM($D80:T80) -> 85409265.25 | U81: =SUM($D80:U80) -> 90433339.68 | V81: =SUM($D80:V80) -> 95457414.11 | W81: =SUM($D80:W80) -> 100481488.5 | AC81: Accum Depreciation | AE81: =SUM($AE80:AE80) -> 5109505.356 | AF81: =SUM($AE80:AF80) -> 10219010.71 | AG81: =SUM($AE80:AG80) -> 15328516.07 | AH81: =SUM($AE80:AH80) -> 20438021.43 | AI81: =SUM($AE80:AI80) -> 25547526.78 | AJ81: =SUM($AE80:AJ80) -> 30657032.14 | AK81: =SUM($AE80:AK80) -> 35766537.49 | AL81: =SUM($AE80:AL80) -> 40876042.85 | AM81: =SUM($AE80:AM80) -> 45985548.21 | AN81: =SUM($AE80:AN80) -> 51095053.56 | AO81: =SUM($AE80:AO80) -> 56204558.92 | AP81: =SUM($AE80:AP80) -> 61314064.28 | AQ81: =SUM($AE80:AQ80) -> 66423569.63 | AR81: =SUM($AE80:AR80) -> 71533074.99 | AS81: =SUM($AE80:AS80) -> 76642580.34 | AT81: =SUM($AE80:AT80) -> 81752085.7 | AU81: =SUM($AE80:AU80) -> 86861591.06 | AV81: =SUM($AE80:AV80) -> 91971096.41 | AW81: =SUM($AE80:AW80) -> 97080601.77 | AX81: =SUM($AE80:AX80) -> 102190107.1 | BD81: Accum Depreciation | BF81: =SUM($BF80:BF80) -> 491789.8905 | BG81: =SUM($BF80:BG80) -> 983579.7811 | BH81: =SUM($BF80:BH80) -> 1475369.672 | BI81: =SUM($BF80:BI80) -> 1967159.562 | BJ81: =SUM($BF80:BJ80) -> 2458949.453 | BK81: =SUM($BF80:BK80) -> 2950739.343 | BL81: =SUM($BF80:BL80) -> 3442529.234 | BM81: =SUM($BF80:BM80) -> 3934319.124 | BN81: =SUM($BF80:BN80) -> 4426109.015 | BO81: =SUM($BF80:BO80) -> 4917898.905 | BP81: =SUM($BF80:BP80) -> 5409688.796 | BQ81: =SUM($BF80:BQ80) -> 5901478.686 | BR81: =SUM($BF80:BR80) -> 6393268.577 | BS81: =SUM($BF80:BS80) -> 6885058.468 | BT81: =SUM($BF80:BT80) -> 7376848.358 | BU81: =SUM($BF80:BU80) -> 7868638.249 | BV81: =SUM($BF80:BV80) -> 8360428.139 | BW81: =SUM($BF80:BW80) -> 8852218.03 | BX81: =SUM($BF80:BX80) -> 9344007.92 | BY81: =SUM($BF80:BY80) -> 9835797.811
B82: End Year Book Value | D82: =-$C70-D81 -> 95457414.11 | E82: 90433339.68 | F82: 85409265.25 | G82: 80385190.83 | H82: 75361116.4 | I82: 70337041.97 | J82: 65312967.55 | K82: 60288893.12 | L82: 55264818.69 | M82: 50240744.27 | N82: 45216669.84 | O82: 40192595.41 | P82: 35168520.99 | Q82: 30144446.56 | R82: 25120372.13 | S82: 20096297.71 | T82: 15072223.28 | U82: 10048148.85 | V82: 5024074.427 | W82: 0 | AC82: End Year Book Value | AE82: =-$AD70-AE81 -> 95371983.18 | AF82: 90262477.82 | AG82: 85152972.47 | AH82: 80043467.11 | AI82: 74933961.75 | AJ82: 69824456.4 | AK82: 64714951.04 | AL82: 59605445.68 | AM82: 54495940.33 | AN82: 49386434.97 | AO82: 44276929.62 | AP82: 39167424.26 | AQ82: 34057918.9 | AR82: 28948413.55 | AS82: 23838908.19 | AT82: 18729402.83 | AU82: 13619897.48 | AV82: 8510392.121 | AW82: 3400886.765 | AX82: -1708618.591 | BD82: End Year Book Value | BF82: =-$BE70-BF81 -> 9179553.381 | BG82: 8687763.49 | BH82: 8195973.6 | BI82: 7704183.709 | BJ82: 7212393.819 | BK82: 6720603.928 | BL82: 6228814.038 | BM82: 5737024.147 | BN82: 5245234.257 | BO82: 4753444.366 | BP82: 4261654.475 | BQ82: 3769864.585 | BR82: 3278074.694 | BS82: 2786284.804 | BT82: 2294494.913 | BU82: 1802705.023 | BV82: 1310915.132 | BW82: 819125.2417 | BX82: 327335.3511 | BY82: -164454.5394
B83: Prop. Tax Value | C83: =-C70 -> 100481488.5 | D83: =C83/(($C83/$X83)^(1/21)) -> 94882708.23 | E83: =D83/(($C83/$X83)^(1/21)) -> 89595889.27 | F83: 84603649.33 | G83: 79889574.6 | H83: 75438165.85 | I83: 71234787.46 | J83: 67265619.3 | K83: 63517611.28 | L83: 59978440.47 | M83: 56636470.56 | N83: 53480713.6 | O83: 50500793.91 | P83: 47686913.92 | Q83: 45029821.97 | R83: 42520781.9 | S83: 40151544.34 | T83: 37914319.57 | U83: 35801751.88 | V83: 33806895.45 | W83: 31923191.46 | X83: =X70 -> 30144446.56 | AC83: Prop. Tax Value | AD83: =-AD70 -> 100481488.5 | AE83: =AD83/(($AD83/$AY83)^(1/21)) -> 94882708.23 | AF83: =AE83/(($AD83/$AY83)^(1/21)) -> 89595889.27 | AG83: 84603649.33 | AH83: 79889574.6 | AI83: 75438165.85 | AJ83: 71234787.46 | AK83: 67265619.3 | AL83: 63517611.28 | AM83: 59978440.47 | AN83: 56636470.56 | AO83: 53480713.6 | AP83: 50500793.91 | AQ83: 47686913.92 | AR83: 45029821.97 | AS83: 42520781.9 | AT83: 40151544.34 | AU83: 37914319.57 | AV83: 35801751.88 | AW83: 33806895.45 | AX83: 31923191.46 | AY83: =AY70 -> 30144446.56 | BD83: Prop. Tax Value | BE83: =-BE70 -> 9671343.271 | BF83: =BE83/(($BE83/$BZ83)^(1/21)) -> 9132460.667 | BG83: =BF83/(($BE83/$BZ83)^(1/21)) -> 8623604.342 | BH83: 8143101.248 | BI83: 7689371.555 | BJ83: 7260923.463 | BK83: 6856348.293 | BL83: 6474315.857 | BM83: 6113570.086 | BN83: 5772924.895 | BO83: 5451260.291 | BP83: 5147518.684 | BQ83: 4860701.414 | BR83: 4589865.465 | BS83: 4334120.364 | BT83: 4092625.258 | BU83: 3864586.143 | BV83: 3649253.258 | BW83: 3445918.618 | BX83: 3253913.687 | BY83: 3072607.178 | BZ83: =BZ70 -> 2901402.981
B84: Tax Dep | D84: =($C70*0.85)*-D$4 -> 17081853.05 | E84: 27330964.88 | F84: 16398578.93 | G84: 9839147.357 | H84: 9839147.357 | I84: 4919573.679 | AC84: Tax Dep | AE84: =($AD$29*0.85)*-D$4 -> 17372318.21 | AF84: 27795709.14 | AG84: 16677425.48 | AH84: 10006455.29 | AI84: 10006455.29 | AJ84: 5003227.645 | BD84: Tax Dep | BF84: =($BE70*0.85)*-D$4 -> 1644128.356 | BG84: 2630605.37 | BH84: 1578363.222 | BI84: 947017.9331 | BJ84: 947017.9331 | BK84: 473508.9666
B85: After Tax Dep. Value | D85: =D84*$B$6 -> 3587189.141 | E85: 5739502.625 | F85: 3443701.575 | G85: 2066220.945 | H85: 2066220.945 | I85: 1033110.473 | AC85: After Tax Dep. Value | AE85: =AE84*$B$6 -> 3648186.824 | AF85: 5837098.919 | AG85: 3502259.351 | AH85: 2101355.611 | AI85: 2101355.611 | AJ85: 1050677.805 | BD85: After Tax Dep. Value | BF85: =BF84*$B$6 -> 345266.9548 | BG85: 552427.1277 | BH85: 331456.2766 | BI85: 198873.766 | BJ85: 198873.766 | BK85: 99436.88298
B87: Dep. Tax Equity | C87: =NPV($B$9,D85:I85) -> 14914605.55 | D87: =C87/C91 -> 0.1484313754 | AC87: Dep. Tax Equity | AD87: =NPV($B$9,AE85:AJ85) -> 15168218.15 | AE87: =AD87/AD91 -> 0.1509553488 | BD87: Dep. Tax Equity | BE87: =NPV($B$9,BF85:BK85) -> 1435530.784 | BF87: =BE87/BE91 -> 0.1484313754
B88: ITC Tax Equity | C88: =NPV($B$9,D66:W66) -> 28172379.96 | D88: =C88/C91 -> 0.2803738318 | AC88: ITC Tax Equity | AD88: =NPV($B$9,AE66:AX66) -> 28172379.96 | AE88: =AD88/AD91 -> 0.2803738318 | BD88: ITC Tax Equity | BE88: =NPV($B$9,BF66:BY66) -> 2711591.571 | BF88: =BE88/BE91 -> 0.2803738318
A89: 0.85 | B89: Debt | C89: =(C91-C87-C88)*$A89 -> 48785327.57 | D89: =C89/C91 -> 0.4855155739 | AB89: 0.85 | AC89: Debt | AD89: =(AD91-AD87-AD88)*$A89 -> 48569756.85 | AE89: =AD89/AD91 -> 0.4833701965 | BC89: 0.85 | BD89: Debt | BE89: =(BE91-BE87-BE88)*$A89 -> 4695587.779 | BF89: =BE89/BE91 -> 0.4855155739
A90: 0.15 | B90: Equity | C90: =(C91-C87-C88)*$A90 -> 8609175.454 | D90: =C90/C91 -> 0.08567921892 | AB90: 0.15 | AC90: Equity | AD90: =(AD91-AD87-AD88)*$A90 -> 8571133.563 | AE90: =AD90/AD91 -> 0.08530062291 | BC90: 0.15 | BD90: Equity | BE90: =(BE91-BE87-BE88)*$A90 -> 828633.1374 | BF90: =BE90/BE91 -> 0.08567921892
B91: Total | C91: =-C70 -> 100481488.5 | AC91: Total | AD91: =-AD70 -> 100481488.5 | BD91: Total | BE91: =-BE70 -> 9671343.271
B92: Check | C92: =SUM(C87:C90)-C91 -> 0 | AC92: Check | AD92: =SUM(AD87:AD90)-AD91 -> 0 | BD92: Check | BE92: =SUM(BE87:BE90)-BE91 -> 0
B93: 2024 Solar | AC93: 2024 Southern NW Solar | BD93: 2024 Small Solar
B94: Year | D94: 2024 | E94: =D94+1 -> 2025 | F94: =E94+1 -> 2026 | G94: 2027 | H94: 2028 | I94: 2029 | J94: 2030 | K94: 2031 | L94: 2032 | M94: 2033 | N94: 2034 | O94: 2035 | P94: 2036 | Q94: 2037 | R94: 2038 | S94: 2039 | T94: 2040 | U94: 2041 | V94: 2042 | W94: 2043 | AC94: Year | AE94: 2024 | AF94: =AE94+1 -> 2025 | AG94: =AF94+1 -> 2026 | AH94: 2027 | AI94: 2028 | AJ94: 2029 | AK94: 2030 | AL94: 2031 | AM94: 2032 | AN94: 2033 | AO94: 2034 | AP94: 2035 | AQ94: 2036 | AR94: 2037 | AS94: 2038 | AT94: 2039 | AU94: 2040 | AV94: 2041 | AW94: 2042 | AX94: 2043 | BD94: Year | BF94: 2024 | BG94: =BF94+1 -> 2025 | BH94: =BG94+1 -> 2026 | BI94: 2027 | BJ94: 2028 | BK94: 2029 | BL94: 2030 | BM94: 2031 | BN94: 2032 | BO94: 2033 | BP94: 2034 | BQ94: 2035 | BR94: 2036 | BS94: 2037 | BT94: 2038 | BU94: 2039 | BV94: 2040 | BW94: 2041 | BX94: 2042 | BY94: 2043
B95: MWh | D95: =('Resource Options'!$V$22/100*'Resource Options'!$J$22*8760)*(1+'Resource Options'!$X$22)^($D94-$D$12) -> 237941.2487 | E95: =D95*(1-'Resource Options'!$AA$22) -> 236751.5424 | F95: =E95*(1-'Resource Options'!$AA$22) -> 235567.7847 | G95: =F95*(1-'Resource Options'!$AA$22) -> 234389.9458 | H95: =G95*(1-'Resource Options'!$AA$22) -> 233217.9961 | I95: =H95*(1-'Resource Options'!$AA$22) -> 232051.9061 | J95: =I95*(1-'Resource Options'!$AA$22) -> 230891.6466 | K95: =J95*(1-'Resource Options'!$AA$22) -> 229737.1883 | L95: =K95*(1-'Resource Options'!$AA$22) -> 228588.5024 | M95: =L95*(1-'Resource Options'!$AA$22) -> 227445.5599 | N95: =M95*(1-'Resource Options'!$AA$22) -> 226308.3321 | O95: =N95*(1-'Resource Options'!$AA$22) -> 225176.7904 | P95: =O95*(1-'Resource Options'!$AA$22) -> 224050.9065 | Q95: =P95*(1-'Resource Options'!$AA$22) -> 222930.6519 | R95: =Q95*(1-'Resource Options'!$AA$22) -> 221815.9987 | S95: =R95*(1-'Resource Options'!$AA$22) -> 220706.9187 | T95: =S95*(1-'Resource Options'!$AA$22) -> 219603.3841 | U95: =T95*(1-'Resource Options'!$AA$22) -> 218505.3672 | V95: =U95*(1-'Resource Options'!$AA$22) -> 217412.8403 | W95: =V95*(1-'Resource Options'!$AA$22) -> 216325.7761 | AC95: MWh | AE95: =('Resource Options'!$V$23/100*'Resource Options'!$J$23*8760)*(1+'Resource Options'!$X$23)^($D94-$D$12) -> 264379.1652 | AF95: =AE95*(1-'Resource Options'!$AA$22) -> 263057.2694 | AG95: =AF95*(1-'Resource Options'!$AA$22) -> 261741.983 | AH95: =AG95*(1-'Resource Options'!$AA$22) -> 260433.2731 | AI95: =AH95*(1-'Resource Options'!$AA$22) -> 259131.1067 | AJ95: =AI95*(1-'Resource Options'!$AA$22) -> 257835.4512 | AK95: =AJ95*(1-'Resource Options'!$AA$22) -> 256546.274 | AL95: =AK95*(1-'Resource Options'!$AA$22) -> 255263.5426 | AM95: =AL95*(1-'Resource Options'!$AA$22) -> 253987.2249 | AN95: =AM95*(1-'Resource Options'!$AA$22) -> 252717.2887 | AO95: =AN95*(1-'Resource Options'!$AA$22) -> 251453.7023 | AP95: =AO95*(1-'Resource Options'!$AA$22) -> 250196.4338 | AQ95: =AP95*(1-'Resource Options'!$AA$22) -> 248945.4516 | AR95: =AQ95*(1-'Resource Options'!$AA$22) -> 247700.7244 | AS95: =AR95*(1-'Resource Options'!$AA$22) -> 246462.2207 | AT95: =AS95*(1-'Resource Options'!$AA$22) -> 245229.9096 | AU95: =AT95*(1-'Resource Options'!$AA$22) -> 244003.7601 | AV95: =AU95*(1-'Resource Options'!$AA$22) -> 242783.7413 | AW95: =AV95*(1-'Resource Options'!$AA$22) -> 241569.8226 | AX95: =AW95*(1-'Resource Options'!$AA$22) -> 240361.9735 | BD95: MWh | BF95: =('Resource Options'!$V$21/100*'Resource Options'!$J$21*8760)*(1+'Resource Options'!$X$21)^($D94-$D$12) -> 11015.79855 | BG95: =BF95*(1-'Resource Options'!$AA$22) -> 10960.71956 | BH95: =BG95*(1-'Resource Options'!$AA$22) -> 10905.91596 | BI95: =BH95*(1-'Resource Options'!$AA$22) -> 10851.38638 | BJ95: =BI95*(1-'Resource Options'!$AA$22) -> 10797.12945 | BK95: =BJ95*(1-'Resource Options'!$AA$22) -> 10743.1438 | BL95: =BK95*(1-'Resource Options'!$AA$22) -> 10689.42808 | BM95: =BL95*(1-'Resource Options'!$AA$22) -> 10635.98094 | BN95: =BM95*(1-'Resource Options'!$AA$22) -> 10582.80104 | BO95: =BN95*(1-'Resource Options'!$AA$22) -> 10529.88703 | BP95: =BO95*(1-'Resource Options'!$AA$22) -> 10477.2376 | BQ95: =BP95*(1-'Resource Options'!$AA$22) -> 10424.85141 | BR95: =BQ95*(1-'Resource Options'!$AA$22) -> 10372.72715 | BS95: =BR95*(1-'Resource Options'!$AA$22) -> 10320.86352 | BT95: =BS95*(1-'Resource Options'!$AA$22) -> 10269.2592 | BU95: =BT95*(1-'Resource Options'!$AA$22) -> 10217.9129 | BV95: =BU95*(1-'Resource Options'!$AA$22) -> 10166.82334 | BW95: =BV95*(1-'Resource Options'!$AA$22) -> 10115.98922 | BX95: =BW95*(1-'Resource Options'!$AA$22) -> 10065.40927 | BY95: =BX95*(1-'Resource Options'!$AA$22) -> 10015.08223
B96: PPA Rate ($/MWh) | D96: ='PPA Summary'!M35 -> 40.19210388 | E96: =D96 -> 40.19210388 | F96: =E96 -> 40.19210388 | G96: 40.19210388 | H96: 40.19210388 | I96: 40.19210388 | J96: 40.19210388 | K96: 40.19210388 | L96: 40.19210388 | M96: 40.19210388 | N96: 40.19210388 | O96: 40.19210388 | P96: 40.19210388 | Q96: 40.19210388 | R96: 40.19210388 | S96: 40.19210388 | T96: 40.19210388 | U96: 40.19210388 | V96: 40.19210388 | W96: 40.19210388 | AC96: PPA Rate ($/MWh) | AE96: ='PPA Summary'!P35 -> 35.85169238 | AF96: =AE96 -> 35.85169238 | AG96: =AF96 -> 35.85169238 | AH96: 35.85169238 | AI96: 35.85169238 | AJ96: 35.85169238 | AK96: 35.85169238 | AL96: 35.85169238 | AM96: 35.85169238 | AN96: 35.85169238 | AO96: 35.85169238 | AP96: 35.85169238 | AQ96: 35.85169238 | AR96: 35.85169238 | AS96: 35.85169238 | AT96: 35.85169238 | AU96: 35.85169238 | AV96: 35.85169238 | AW96: 35.85169238 | AX96: 35.85169238 | BD96: PPA Rate ($/MWh) | BF96: ='PPA Summary'!S35 -> 79.84151223 | BG96: =BF96 -> 79.84151223 | BH96: =BG96 -> 79.84151223 | BI96: 79.84151223 | BJ96: 79.84151223 | BK96: 79.84151223 | BL96: 79.84151223 | BM96: 79.84151223 | BN96: 79.84151223 | BO96: 79.84151223 | BP96: 79.84151223 | BQ96: 79.84151223 | BR96: 79.84151223 | BS96: 79.84151223 | BT96: 79.84151223 | BU96: 79.84151223 | BV96: 79.84151223 | BW96: 79.84151223 | BX96: 79.84151223 | BY96: 79.84151223
B97: Revenue | D97: =D96*D95 -> 9563359.385 | E97: 9515542.588 | F97: 9467964.876 | G97: 9420625.051 | H97: 9373521.926 | I97: 9326654.316 | J97: 9280021.045 | K97: 9233620.939 | L97: 9187452.835 | M97: 9141515.571 | N97: 9095807.993 | O97: 9050328.953 | P97: 9005077.308 | Q97: 8960051.921 | R97: 8915251.662 | S97: 8870675.404 | T97: 8826322.027 | U97: 8782190.416 | V97: 8738279.464 | W97: 8694588.067 | AC97: Revenue | AE97: =AE96*AE95 -> 9478440.504 | AF97: 9431048.301 | AG97: 9383893.06 | AH97: 9336973.594 | AI97: 9290288.726 | AJ97: 9243837.283 | AK97: 9197618.096 | AL97: 9151630.006 | AM97: 9105871.856 | AN97: 9060342.496 | AO97: 9015040.784 | AP97: 8969965.58 | AQ97: 8925115.752 | AR97: 8880490.173 | AS97: 8836087.723 | AT97: 8791907.284 | AU97: 8747947.748 | AV97: 8704208.009 | AW97: 8660686.969 | AX97: 8617383.534 | BD97: Revenue | BF97: =BF96*BF95 -> 879518.0146 | BG97: 875120.4246 | BH97: 870744.8224 | BI97: 866391.0983 | BJ97: 862059.1428 | BK97: 857748.8471 | BL97: 853460.1029 | BM97: 849192.8024 | BN97: 844946.8384 | BO97: 840722.1042 | BP97: 836518.4936 | BQ97: 832335.9012 | BR97: 828174.2217 | BS97: 824033.3506 | BT97: 819913.1838 | BU97: 815813.6179 | BV97: 811734.5498 | BW97: 807675.8771 | BX97: 803637.4977 | BY97: 799619.3102
B99: Fixed O&M | D99: =HLOOKUP(D94,'Fixed O&M'!$C$4:$AU$48,ROW('Fixed O&M'!$B$20)-ROW('Fixed O&M'!$B$4)+1,FALSE)*'Resource Options'!$J$22*1000 -> 1136553.768 | E99: =HLOOKUP(E94,'Fixed O&M'!$C$4:$AU$48,ROW('Fixed O&M'!$B$20)-ROW('Fixed O&M'!$B$4)+1,FALSE)*'Resource Options'!$J$22*1000 -> 1159284.843 | F99: =HLOOKUP(F94,'Fixed O&M'!$C$4:$AU$48,ROW('Fixed O&M'!$B$20)-ROW('Fixed O&M'!$B$4)+1,FALSE)*'Resource Options'!$J$22*1000 -> 1182470.54 | G99: =HLOOKUP(G94,'Fixed O&M'!$C$4:$AU$48,ROW('Fixed O&M'!$B$20)-ROW('Fixed O&M'!$B$4)+1,FALSE)*'Resource Options'!$J$22*1000 -> 1206119.951 | H99: =HLOOKUP(H94,'Fixed O&M'!$C$4:$AU$48,ROW('Fixed O&M'!$B$20)-ROW('Fixed O&M'!$B$4)+1,FALSE)*'Resource Options'!$J$22*1000 -> 1230242.35 | I99: =HLOOKUP(I94,'Fixed O&M'!$C$4:$AU$48,ROW('Fixed O&M'!$B$20)-ROW('Fixed O&M'!$B$4)+1,FALSE)*'Resource Options'!$J$22*1000 -> 1254847.197 | J99: =HLOOKUP(J94,'Fixed O&M'!$C$4:$AU$48,ROW('Fixed O&M'!$B$20)-ROW('Fixed O&M'!$B$4)+1,FALSE)*'Resource Options'!$J$22*1000 -> 1279944.141 | K99: =HLOOKUP(K94,'Fixed O&M'!$C$4:$AU$48,ROW('Fixed O&M'!$B$20)-ROW('Fixed O&M'!$B$4)+1,FALSE)*'Resource Options'!$J$22*1000 -> 1305543.024 | L99: =HLOOKUP(L94,'Fixed O&M'!$C$4:$AU$48,ROW('Fixed O&M'!$B$20)-ROW('Fixed O&M'!$B$4)+1,FALSE)*'Resource Options'!$J$22*1000 -> 1331653.884 | M99: =HLOOKUP(M94,'Fixed O&M'!$C$4:$AU$48,ROW('Fixed O&M'!$B$20)-ROW('Fixed O&M'!$B$4)+1,FALSE)*'Resource Options'!$J$22*1000 -> 1358286.962 | N99: =HLOOKUP(N94,'Fixed O&M'!$C$4:$AU$48,ROW('Fixed O&M'!$B$20)-ROW('Fixed O&M'!$B$4)+1,FALSE)*'Resource Options'!$J$22*1000 -> 1385452.701 | O99: =HLOOKUP(O94,'Fixed O&M'!$C$4:$AU$48,ROW('Fixed O&M'!$B$20)-ROW('Fixed O&M'!$B$4)+1,FALSE)*'Resource Options'!$J$22*1000 -> 1413161.755 | P99: =HLOOKUP(P94,'Fixed O&M'!$C$4:$AU$48,ROW('Fixed O&M'!$B$20)-ROW('Fixed O&M'!$B$4)+1,FALSE)*'Resource Options'!$J$22*1000 -> 1441424.99 | Q99: =HLOOKUP(Q94,'Fixed O&M'!$C$4:$AU$48,ROW('Fixed O&M'!$B$20)-ROW('Fixed O&M'!$B$4)+1,FALSE)*'Resource Options'!$J$22*1000 -> 1470253.49 | R99: =HLOOKUP(R94,'Fixed O&M'!$C$4:$AU$48,ROW('Fixed O&M'!$B$20)-ROW('Fixed O&M'!$B$4)+1,FALSE)*'Resource Options'!$J$22*1000 -> 1499658.56 | S99: =HLOOKUP(S94,'Fixed O&M'!$C$4:$AU$48,ROW('Fixed O&M'!$B$20)-ROW('Fixed O&M'!$B$4)+1,FALSE)*'Resource Options'!$J$22*1000 -> 1529651.731 | T99: =HLOOKUP(T94,'Fixed O&M'!$C$4:$AU$48,ROW('Fixed O&M'!$B$20)-ROW('Fixed O&M'!$B$4)+1,FALSE)*'Resource Options'!$J$22*1000 -> 1560244.766 | U99: =HLOOKUP(U94,'Fixed O&M'!$C$4:$AU$48,ROW('Fixed O&M'!$B$20)-ROW('Fixed O&M'!$B$4)+1,FALSE)*'Resource Options'!$J$22*1000 -> 1591449.661 | V99: =HLOOKUP(V94,'Fixed O&M'!$C$4:$AU$48,ROW('Fixed O&M'!$B$20)-ROW('Fixed O&M'!$B$4)+1,FALSE)*'Resource Options'!$J$22*1000 -> 1623278.654 | W99: =HLOOKUP(W94,'Fixed O&M'!$C$4:$AU$48,ROW('Fixed O&M'!$B$20)-ROW('Fixed O&M'!$B$4)+1,FALSE)*'Resource Options'!$J$22*1000 -> 1655744.227 | AC99: Fixed O&M | AE99: =HLOOKUP(AE94,'Fixed O&M'!$C$4:$AU$48,ROW('Fixed O&M'!$B$21)-ROW('Fixed O&M'!$B$4)+1,FALSE)*'Resource Options'!$J$22*1000 -> 1136553.768 | AF99: =HLOOKUP(AF94,'Fixed O&M'!$C$4:$AU$48,ROW('Fixed O&M'!$B$21)-ROW('Fixed O&M'!$B$4)+1,FALSE)*'Resource Options'!$J$22*1000 -> 1159284.843 | AG99: =HLOOKUP(AG94,'Fixed O&M'!$C$4:$AU$48,ROW('Fixed O&M'!$B$21)-ROW('Fixed O&M'!$B$4)+1,FALSE)*'Resource Options'!$J$22*1000 -> 1182470.54 | AH99: =HLOOKUP(AH94,'Fixed O&M'!$C$4:$AU$48,ROW('Fixed O&M'!$B$21)-ROW('Fixed O&M'!$B$4)+1,FALSE)*'Resource Options'!$J$22*1000 -> 1206119.951 | AI99: =HLOOKUP(AI94,'Fixed O&M'!$C$4:$AU$48,ROW('Fixed O&M'!$B$21)-ROW('Fixed O&M'!$B$4)+1,FALSE)*'Resource Options'!$J$22*1000 -> 1230242.35 | AJ99: =HLOOKUP(AJ94,'Fixed O&M'!$C$4:$AU$48,ROW('Fixed O&M'!$B$21)-ROW('Fixed O&M'!$B$4)+1,FALSE)*'Resource Options'!$J$22*1000 -> 1254847.197 | AK99: =HLOOKUP(AK94,'Fixed O&M'!$C$4:$AU$48,ROW('Fixed O&M'!$B$21)-ROW('Fixed O&M'!$B$4)+1,FALSE)*'Resource Options'!$J$22*1000 -> 1279944.141 | AL99: =HLOOKUP(AL94,'Fixed O&M'!$C$4:$AU$48,ROW('Fixed O&M'!$B$21)-ROW('Fixed O&M'!$B$4)+1,FALSE)*'Resource Options'!$J$22*1000 -> 1305543.024 | AM99: =HLOOKUP(AM94,'Fixed O&M'!$C$4:$AU$48,ROW('Fixed O&M'!$B$21)-ROW('Fixed O&M'!$B$4)+1,FALSE)*'Resource Options'!$J$22*1000 -> 1331653.884 | AN99: =HLOOKUP(AN94,'Fixed O&M'!$C$4:$AU$48,ROW('Fixed O&M'!$B$21)-ROW('Fixed O&M'!$B$4)+1,FALSE)*'Resource Options'!$J$22*1000 -> 1358286.962 | AO99: =HLOOKUP(AO94,'Fixed O&M'!$C$4:$AU$48,ROW('Fixed O&M'!$B$21)-ROW('Fixed O&M'!$B$4)+1,FALSE)*'Resource Options'!$J$22*1000 -> 1385452.701 | AP99: =HLOOKUP(AP94,'Fixed O&M'!$C$4:$AU$48,ROW('Fixed O&M'!$B$21)-ROW('Fixed O&M'!$B$4)+1,FALSE)*'Resource Options'!$J$22*1000 -> 1413161.755 | AQ99: =HLOOKUP(AQ94,'Fixed O&M'!$C$4:$AU$48,ROW('Fixed O&M'!$B$21)-ROW('Fixed O&M'!$B$4)+1,FALSE)*'Resource Options'!$J$22*1000 -> 1441424.99 | AR99: =HLOOKUP(AR94,'Fixed O&M'!$C$4:$AU$48,ROW('Fixed O&M'!$B$21)-ROW('Fixed O&M'!$B$4)+1,FALSE)*'Resource Options'!$J$22*1000 -> 1470253.49 | AS99: =HLOOKUP(AS94,'Fixed O&M'!$C$4:$AU$48,ROW('Fixed O&M'!$B$21)-ROW('Fixed O&M'!$B$4)+1,FALSE)*'Resource Options'!$J$22*1000 -> 1499658.56 | AT99: =HLOOKUP(AT94,'Fixed O&M'!$C$4:$AU$48,ROW('Fixed O&M'!$B$21)-ROW('Fixed O&M'!$B$4)+1,FALSE)*'Resource Options'!$J$22*1000 -> 1529651.731 | AU99: =HLOOKUP(AU94,'Fixed O&M'!$C$4:$AU$48,ROW('Fixed O&M'!$B$21)-ROW('Fixed O&M'!$B$4)+1,FALSE)*'Resource Options'!$J$22*1000 -> 1560244.766 | AV99: =HLOOKUP(AV94,'Fixed O&M'!$C$4:$AU$48,ROW('Fixed O&M'!$B$21)-ROW('Fixed O&M'!$B$4)+1,FALSE)*'Resource Options'!$J$22*1000 -> 1591449.661 | AW99: =HLOOKUP(AW94,'Fixed O&M'!$C$4:$AU$48,ROW('Fixed O&M'!$B$21)-ROW('Fixed O&M'!$B$4)+1,FALSE)*'Resource Options'!$J$22*1000 -> 1623278.654 | AX99: =HLOOKUP(AX94,'Fixed O&M'!$C$4:$AU$48,ROW('Fixed O&M'!$B$21)-ROW('Fixed O&M'!$B$4)+1,FALSE)*'Resource Options'!$J$22*1000 -> 1655744.227 | BD99: Fixed O&M | BF99: =HLOOKUP(BF94,'Fixed O&M'!$C$4:$AU$48,ROW('Fixed O&M'!$B$19)-ROW('Fixed O&M'!$B$4)+1,FALSE)*'Resource Options'!$J$21*1000 -> 75770.2512 | BG99: =HLOOKUP(BG94,'Fixed O&M'!$C$4:$AU$48,ROW('Fixed O&M'!$B$19)-ROW('Fixed O&M'!$B$4)+1,FALSE)*'Resource Options'!$J$21*1000 -> 77285.65622 | BH99: =HLOOKUP(BH94,'Fixed O&M'!$C$4:$AU$48,ROW('Fixed O&M'!$B$19)-ROW('Fixed O&M'!$B$4)+1,FALSE)*'Resource Options'!$J$21*1000 -> 78831.36935 | BI99: =HLOOKUP(BI94,'Fixed O&M'!$C$4:$AU$48,ROW('Fixed O&M'!$B$19)-ROW('Fixed O&M'!$B$4)+1,FALSE)*'Resource Options'!$J$21*1000 -> 80407.99674 | BJ99: =HLOOKUP(BJ94,'Fixed O&M'!$C$4:$AU$48,ROW('Fixed O&M'!$B$19)-ROW('Fixed O&M'!$B$4)+1,FALSE)*'Resource Options'!$J$21*1000 -> 82016.15667 | BK99: =HLOOKUP(BK94,'Fixed O&M'!$C$4:$AU$48,ROW('Fixed O&M'!$B$19)-ROW('Fixed O&M'!$B$4)+1,FALSE)*'Resource Options'!$J$21*1000 -> 83656.4798 | BL99: =HLOOKUP(BL94,'Fixed O&M'!$C$4:$AU$48,ROW('Fixed O&M'!$B$19)-ROW('Fixed O&M'!$B$4)+1,FALSE)*'Resource Options'!$J$21*1000 -> 85329.6094 | BM99: =HLOOKUP(BM94,'Fixed O&M'!$C$4:$AU$48,ROW('Fixed O&M'!$B$19)-ROW('Fixed O&M'!$B$4)+1,FALSE)*'Resource Options'!$J$21*1000 -> 87036.20159 | BN99: =HLOOKUP(BN94,'Fixed O&M'!$C$4:$AU$48,ROW('Fixed O&M'!$B$19)-ROW('Fixed O&M'!$B$4)+1,FALSE)*'Resource Options'!$J$21*1000 -> 88776.92562 | BO99: =HLOOKUP(BO94,'Fixed O&M'!$C$4:$AU$48,ROW('Fixed O&M'!$B$19)-ROW('Fixed O&M'!$B$4)+1,FALSE)*'Resource Options'!$J$21*1000 -> 90552.46413 | BP99: =HLOOKUP(BP94,'Fixed O&M'!$C$4:$AU$48,ROW('Fixed O&M'!$B$19)-ROW('Fixed O&M'!$B$4)+1,FALSE)*'Resource Options'!$J$21*1000 -> 92363.51341 | BQ99: =HLOOKUP(BQ94,'Fixed O&M'!$C$4:$AU$48,ROW('Fixed O&M'!$B$19)-ROW('Fixed O&M'!$B$4)+1,FALSE)*'Resource Options'!$J$21*1000 -> 94210.78368 | BR99: =HLOOKUP(BR94,'Fixed O&M'!$C$4:$AU$48,ROW('Fixed O&M'!$B$19)-ROW('Fixed O&M'!$B$4)+1,FALSE)*'Resource Options'!$J$21*1000 -> 96094.99936 | BS99: =HLOOKUP(BS94,'Fixed O&M'!$C$4:$AU$48,ROW('Fixed O&M'!$B$19)-ROW('Fixed O&M'!$B$4)+1,FALSE)*'Resource Options'!$J$21*1000 -> 98016.89934 | BT99: =HLOOKUP(BT94,'Fixed O&M'!$C$4:$AU$48,ROW('Fixed O&M'!$B$19)-ROW('Fixed O&M'!$B$4)+1,FALSE)*'Resource Options'!$J$21*1000 -> 99977.23733 | BU99: =HLOOKUP(BU94,'Fixed O&M'!$C$4:$AU$48,ROW('Fixed O&M'!$B$19)-ROW('Fixed O&M'!$B$4)+1,FALSE)*'Resource Options'!$J$21*1000 -> 101976.7821 | BV99: =HLOOKUP(BV94,'Fixed O&M'!$C$4:$AU$48,ROW('Fixed O&M'!$B$19)-ROW('Fixed O&M'!$B$4)+1,FALSE)*'Resource Options'!$J$21*1000 -> 104016.3177 | BW99: =HLOOKUP(BW94,'Fixed O&M'!$C$4:$AU$48,ROW('Fixed O&M'!$B$19)-ROW('Fixed O&M'!$B$4)+1,FALSE)*'Resource Options'!$J$21*1000 -> 106096.6441 | BX99: =HLOOKUP(BX94,'Fixed O&M'!$C$4:$AU$48,ROW('Fixed O&M'!$B$19)-ROW('Fixed O&M'!$B$4)+1,FALSE)*'Resource Options'!$J$21*1000 -> 108218.577 | BY99: =HLOOKUP(BY94,'Fixed O&M'!$C$4:$AU$48,ROW('Fixed O&M'!$B$19)-ROW('Fixed O&M'!$B$4)+1,FALSE)*'Resource Options'!$J$21*1000 -> 110382.9485
B100: Variable O&M | D100: =HLOOKUP(D94,'Variable O&M'!$B$4:$AT$48,ROW('Variable O&M'!$A$20)-ROW('Variable O&M'!$A$4)+1,FALSE)*D95 -> 0 | E100: =HLOOKUP(E94,'Variable O&M'!$B$4:$AT$48,ROW('Variable O&M'!$A$20)-ROW('Variable O&M'!$A$4)+1,FALSE)*E95 -> 0 | F100: =HLOOKUP(F94,'Variable O&M'!$B$4:$AT$48,ROW('Variable O&M'!$A$20)-ROW('Variable O&M'!$A$4)+1,FALSE)*F95 -> 0 | G100: =HLOOKUP(G94,'Variable O&M'!$B$4:$AT$48,ROW('Variable O&M'!$A$20)-ROW('Variable O&M'!$A$4)+1,FALSE)*G95 -> 0 | H100: =HLOOKUP(H94,'Variable O&M'!$B$4:$AT$48,ROW('Variable O&M'!$A$20)-ROW('Variable O&M'!$A$4)+1,FALSE)*H95 -> 0 | I100: =HLOOKUP(I94,'Variable O&M'!$B$4:$AT$48,ROW('Variable O&M'!$A$20)-ROW('Variable O&M'!$A$4)+1,FALSE)*I95 -> 0 | J100: =HLOOKUP(J94,'Variable O&M'!$B$4:$AT$48,ROW('Variable O&M'!$A$20)-ROW('Variable O&M'!$A$4)+1,FALSE)*J95 -> 0 | K100: =HLOOKUP(K94,'Variable O&M'!$B$4:$AT$48,ROW('Variable O&M'!$A$20)-ROW('Variable O&M'!$A$4)+1,FALSE)*K95 -> 0 | L100: =HLOOKUP(L94,'Variable O&M'!$B$4:$AT$48,ROW('Variable O&M'!$A$20)-ROW('Variable O&M'!$A$4)+1,FALSE)*L95 -> 0 | M100: =HLOOKUP(M94,'Variable O&M'!$B$4:$AT$48,ROW('Variable O&M'!$A$20)-ROW('Variable O&M'!$A$4)+1,FALSE)*M95 -> 0 | N100: =HLOOKUP(N94,'Variable O&M'!$B$4:$AT$48,ROW('Variable O&M'!$A$20)-ROW('Variable O&M'!$A$4)+1,FALSE)*N95 -> 0 | O100: =HLOOKUP(O94,'Variable O&M'!$B$4:$AT$48,ROW('Variable O&M'!$A$20)-ROW('Variable O&M'!$A$4)+1,FALSE)*O95 -> 0 | P100: =HLOOKUP(P94,'Variable O&M'!$B$4:$AT$48,ROW('Variable O&M'!$A$20)-ROW('Variable O&M'!$A$4)+1,FALSE)*P95 -> 0 | Q100: =HLOOKUP(Q94,'Variable O&M'!$B$4:$AT$48,ROW('Variable O&M'!$A$20)-ROW('Variable O&M'!$A$4)+1,FALSE)*Q95 -> 0 | R100: =HLOOKUP(R94,'Variable O&M'!$B$4:$AT$48,ROW('Variable O&M'!$A$20)-ROW('Variable O&M'!$A$4)+1,FALSE)*R95 -> 0 | S100: =HLOOKUP(S94,'Variable O&M'!$B$4:$AT$48,ROW('Variable O&M'!$A$20)-ROW('Variable O&M'!$A$4)+1,FALSE)*S95 -> 0 | T100: =HLOOKUP(T94,'Variable O&M'!$B$4:$AT$48,ROW('Variable O&M'!$A$20)-ROW('Variable O&M'!$A$4)+1,FALSE)*T95 -> 0 | U100: =HLOOKUP(U94,'Variable O&M'!$B$4:$AT$48,ROW('Variable O&M'!$A$20)-ROW('Variable O&M'!$A$4)+1,FALSE)*U95 -> 0 | V100: =HLOOKUP(V94,'Variable O&M'!$B$4:$AT$48,ROW('Variable O&M'!$A$20)-ROW('Variable O&M'!$A$4)+1,FALSE)*V95 -> 0 | W100: =HLOOKUP(W94,'Variable O&M'!$B$4:$AT$48,ROW('Variable O&M'!$A$20)-ROW('Variable O&M'!$A$4)+1,FALSE)*W95 -> 0 | AC100: Variable O&M | AE100: =HLOOKUP(AE94,'Variable O&M'!$B$4:$AT$48,ROW('Variable O&M'!$A$21)-ROW('Variable O&M'!$A$4)+1,FALSE)*AE95 -> 0 | AF100: =HLOOKUP(AF94,'Variable O&M'!$B$4:$AT$48,ROW('Variable O&M'!$A$21)-ROW('Variable O&M'!$A$4)+1,FALSE)*AF95 -> 0 | AG100: =HLOOKUP(AG94,'Variable O&M'!$B$4:$AT$48,ROW('Variable O&M'!$A$21)-ROW('Variable O&M'!$A$4)+1,FALSE)*AG95 -> 0 | AH100: =HLOOKUP(AH94,'Variable O&M'!$B$4:$AT$48,ROW('Variable O&M'!$A$21)-ROW('Variable O&M'!$A$4)+1,FALSE)*AH95 -> 0 | AI100: =HLOOKUP(AI94,'Variable O&M'!$B$4:$AT$48,ROW('Variable O&M'!$A$21)-ROW('Variable O&M'!$A$4)+1,FALSE)*AI95 -> 0 | AJ100: =HLOOKUP(AJ94,'Variable O&M'!$B$4:$AT$48,ROW('Variable O&M'!$A$21)-ROW('Variable O&M'!$A$4)+1,FALSE)*AJ95 -> 0 | AK100: =HLOOKUP(AK94,'Variable O&M'!$B$4:$AT$48,ROW('Variable O&M'!$A$21)-ROW('Variable O&M'!$A$4)+1,FALSE)*AK95 -> 0 | AL100: =HLOOKUP(AL94,'Variable O&M'!$B$4:$AT$48,ROW('Variable O&M'!$A$21)-ROW('Variable O&M'!$A$4)+1,FALSE)*AL95 -> 0 | AM100: =HLOOKUP(AM94,'Variable O&M'!$B$4:$AT$48,ROW('Variable O&M'!$A$21)-ROW('Variable O&M'!$A$4)+1,FALSE)*AM95 -> 0 | AN100: =HLOOKUP(AN94,'Variable O&M'!$B$4:$AT$48,ROW('Variable O&M'!$A$21)-ROW('Variable O&M'!$A$4)+1,FALSE)*AN95 -> 0 | AO100: =HLOOKUP(AO94,'Variable O&M'!$B$4:$AT$48,ROW('Variable O&M'!$A$21)-ROW('Variable O&M'!$A$4)+1,FALSE)*AO95 -> 0 | AP100: =HLOOKUP(AP94,'Variable O&M'!$B$4:$AT$48,ROW('Variable O&M'!$A$21)-ROW('Variable O&M'!$A$4)+1,FALSE)*AP95 -> 0 | AQ100: =HLOOKUP(AQ94,'Variable O&M'!$B$4:$AT$48,ROW('Variable O&M'!$A$21)-ROW('Variable O&M'!$A$4)+1,FALSE)*AQ95 -> 0 | AR100: =HLOOKUP(AR94,'Variable O&M'!$B$4:$AT$48,ROW('Variable O&M'!$A$21)-ROW('Variable O&M'!$A$4)+1,FALSE)*AR95 -> 0 | AS100: =HLOOKUP(AS94,'Variable O&M'!$B$4:$AT$48,ROW('Variable O&M'!$A$21)-ROW('Variable O&M'!$A$4)+1,FALSE)*AS95 -> 0 | AT100: =HLOOKUP(AT94,'Variable O&M'!$B$4:$AT$48,ROW('Variable O&M'!$A$21)-ROW('Variable O&M'!$A$4)+1,FALSE)*AT95 -> 0 | AU100: =HLOOKUP(AU94,'Variable O&M'!$B$4:$AT$48,ROW('Variable O&M'!$A$21)-ROW('Variable O&M'!$A$4)+1,FALSE)*AU95 -> 0 | AV100: =HLOOKUP(AV94,'Variable O&M'!$B$4:$AT$48,ROW('Variable O&M'!$A$21)-ROW('Variable O&M'!$A$4)+1,FALSE)*AV95 -> 0 | AW100: =HLOOKUP(AW94,'Variable O&M'!$B$4:$AT$48,ROW('Variable O&M'!$A$21)-ROW('Variable O&M'!$A$4)+1,FALSE)*AW95 -> 0 | AX100: =HLOOKUP(AX94,'Variable O&M'!$B$4:$AT$48,ROW('Variable O&M'!$A$21)-ROW('Variable O&M'!$A$4)+1,FALSE)*AX95 -> 0 | BD100: Variable O&M | BF100: =HLOOKUP(BF94,'Variable O&M'!$B$4:$AT$48,ROW('Variable O&M'!$A$19)-ROW('Variable O&M'!$A$4)+1,FALSE)*BF95 -> 0 | BG100: =HLOOKUP(BG94,'Variable O&M'!$B$4:$AT$48,ROW('Variable O&M'!$A$19)-ROW('Variable O&M'!$A$4)+1,FALSE)*BG95 -> 0 | BH100: =HLOOKUP(BH94,'Variable O&M'!$B$4:$AT$48,ROW('Variable O&M'!$A$19)-ROW('Variable O&M'!$A$4)+1,FALSE)*BH95 -> 0 | BI100: =HLOOKUP(BI94,'Variable O&M'!$B$4:$AT$48,ROW('Variable O&M'!$A$19)-ROW('Variable O&M'!$A$4)+1,FALSE)*BI95 -> 0 | BJ100: =HLOOKUP(BJ94,'Variable O&M'!$B$4:$AT$48,ROW('Variable O&M'!$A$19)-ROW('Variable O&M'!$A$4)+1,FALSE)*BJ95 -> 0 | BK100: =HLOOKUP(BK94,'Variable O&M'!$B$4:$AT$48,ROW('Variable O&M'!$A$19)-ROW('Variable O&M'!$A$4)+1,FALSE)*BK95 -> 0 | BL100: =HLOOKUP(BL94,'Variable O&M'!$B$4:$AT$48,ROW('Variable O&M'!$A$19)-ROW('Variable O&M'!$A$4)+1,FALSE)*BL95 -> 0 | BM100: =HLOOKUP(BM94,'Variable O&M'!$B$4:$AT$48,ROW('Variable O&M'!$A$19)-ROW('Variable O&M'!$A$4)+1,FALSE)*BM95 -> 0 | BN100: =HLOOKUP(BN94,'Variable O&M'!$B$4:$AT$48,ROW('Variable O&M'!$A$19)-ROW('Variable O&M'!$A$4)+1,FALSE)*BN95 -> 0 | BO100: =HLOOKUP(BO94,'Variable O&M'!$B$4:$AT$48,ROW('Variable O&M'!$A$19)-ROW('Variable O&M'!$A$4)+1,FALSE)*BO95 -> 0 | BP100: =HLOOKUP(BP94,'Variable O&M'!$B$4:$AT$48,ROW('Variable O&M'!$A$19)-ROW('Variable O&M'!$A$4)+1,FALSE)*BP95 -> 0 | BQ100: =HLOOKUP(BQ94,'Variable O&M'!$B$4:$AT$48,ROW('Variable O&M'!$A$19)-ROW('Variable O&M'!$A$4)+1,FALSE)*BQ95 -> 0 | BR100: =HLOOKUP(BR94,'Variable O&M'!$B$4:$AT$48,ROW('Variable O&M'!$A$19)-ROW('Variable O&M'!$A$4)+1,FALSE)*BR95 -> 0 | BS100: =HLOOKUP(BS94,'Variable O&M'!$B$4:$AT$48,ROW('Variable O&M'!$A$19)-ROW('Variable O&M'!$A$4)+1,FALSE)*BS95 -> 0 | BT100: =HLOOKUP(BT94,'Variable O&M'!$B$4:$AT$48,ROW('Variable O&M'!$A$19)-ROW('Variable O&M'!$A$4)+1,FALSE)*BT95 -> 0 | BU100: =HLOOKUP(BU94,'Variable O&M'!$B$4:$AT$48,ROW('Variable O&M'!$A$19)-ROW('Variable O&M'!$A$4)+1,FALSE)*BU95 -> 0 | BV100: =HLOOKUP(BV94,'Variable O&M'!$B$4:$AT$48,ROW('Variable O&M'!$A$19)-ROW('Variable O&M'!$A$4)+1,FALSE)*BV95 -> 0 | BW100: =HLOOKUP(BW94,'Variable O&M'!$B$4:$AT$48,ROW('Variable O&M'!$A$19)-ROW('Variable O&M'!$A$4)+1,FALSE)*BW95 -> 0 | BX100: =HLOOKUP(BX94,'Variable O&M'!$B$4:$AT$48,ROW('Variable O&M'!$A$19)-ROW('Variable O&M'!$A$4)+1,FALSE)*BX95 -> 0 | BY100: =HLOOKUP(BY94,'Variable O&M'!$B$4:$AT$48,ROW('Variable O&M'!$A$19)-ROW('Variable O&M'!$A$4)+1,FALSE)*BY95 -> 0
B101: B&O Tax | D101: =D97*0.00275 -> 26299.23831 | E101: =E97*0.00275 -> 26167.74212 | F101: 26036.90341 | G101: 25906.71889 | H101: 25777.1853 | I101: 25648.29937 | J101: 25520.05787 | K101: 25392.45758 | L101: 25265.4953 | M101: 25139.16782 | N101: 25013.47198 | O101: 24888.40462 | P101: 24763.9626 | Q101: 24640.14278 | R101: 24516.94207 | S101: 24394.35736 | T101: 24272.38557 | U101: 24151.02365 | V101: 24030.26853 | W101: 23910.11718 | AC101: B&O Tax | AE101: 0 | AF101: 0 | AG101: 0 | AH101: 0 | AI101: 0 | AJ101: 0 | AK101: 0 | AL101: 0 | AM101: 0 | AN101: 0 | AO101: 0 | AP101: 0 | AQ101: 0 | AR101: 0 | AS101: 0 | AT101: 0 | AU101: 0 | AV101: 0 | AW101: 0 | AX101: 0 | BD101: B&O Tax | BF101: =BF97*0.00275 -> 2418.67454 | BG101: =BG97*0.00275 -> 2406.581168 | BH101: 2394.548262 | BI101: 2382.57552 | BJ101: 2370.662643 | BK101: 2358.80933 | BL101: 2347.015283 | BM101: 2335.280207 | BN101: 2323.603805 | BO101: 2311.985786 | BP101: 2300.425858 | BQ101: 2288.923728 | BR101: 2277.47911 | BS101: 2266.091714 | BT101: 2254.761255 | BU101: 2243.487449 | BV101: 2232.270012 | BW101: 2221.108662 | BX101: 2210.003119 | BY101: 2198.953103
B102: Property Tax | D102: =C124*$B$8 -> 988014.3805 | E102: =D124*$B$8 -> 932962.6934 | F102: 880978.46 | G102: 831890.7631 | H102: 785538.2091 | I102: 741768.3972 | J102: 700437.4181 | K102: 661409.3814 | L102: 624555.9682 | M102: 589756.0094 | N102: 556895.0877 | O102: 525865.1607 | P102: 496564.2064 | Q102: 468895.8872 | R102: 442769.2334 | S102: 418098.3443 | T102: 394802.1052 | U102: 372803.9214 | V102: 352031.4659 | W102: 332416.4416 | AC102: Property Tax | AE102: =AD124*$B$8 -> 988014.3805 | AF102: =AE124*$B$8 -> 932962.6934 | AG102: 880978.46 | AH102: 831890.7631 | AI102: 785538.2091 | AJ102: 741768.3972 | AK102: 700437.4181 | AL102: 661409.3814 | AM102: 624555.9682 | AN102: 589756.0094 | AO102: 556895.0877 | AP102: 525865.1607 | AQ102: 496564.2064 | AR102: 468895.8872 | AS102: 442769.2334 | AT102: 418098.3443 | AU102: 394802.1052 | AV102: 372803.9214 | AW102: 352031.4659 | AX102: 332416.4416 | BD102: Property Tax | BF102: =BE124*$B$8 -> 95096.38412 | BG102: =BF124*$B$8 -> 89797.65924 | BH102: 84794.17678 | BI102: 80069.48595 | BJ102: 75608.05263 | BK102: 71395.20823 | BL102: 67417.1015 | BM102: 63660.65296 | BN102: 60113.51194 | BO102: 56764.01591 | BP102: 53601.15219 | BQ102: 50614.52172 | BR102: 47794.30487 | BS102: 45131.22914 | BT102: 42616.53872 | BU102: 40241.96564 | BV102: 37999.70263 | BW102: 35882.37744 | BX102: 33883.02859 | BY102: 31995.0825
